Workbook

Sheet Notes
A2: National Quarterly Pulse Survey Data - Q4 2021-22
A3: :

Sheet Summary
B4: National level headline figures for Quarter 4
B6: 194 NHS service providers submitted to Q4 2021-22
C8: Quarter 4
C9: Response count | D9: Head Count | E9: Score | F9: Proportion
B10: Engagement | C10: 119669 | D10: 1128001 | E10: 6.50183154
B11: Acute and Acute & Community Trusts | C11: 78451 | D11: 827952 | E11: 6.428188568 | F11: 0.6555666046
B12: Acute Specialist Trusts | C12: 1320 | D12: 18817 | E12: 7.019682487 | F12: 0.01103042559
B13: Ambulance Trusts | C13: 4363 | D13: 48293 | E13: 5.639018873 | F13: 0.03645889913
B14: Community Trusts | C14: 5537 | D14: 36159 | E14: 7.034862138 | F14: 0.0462692928
B15: Mental Health & Learning Disability and Mental Health, Learning Disability & Community Trusts | C15: 29998 | D15: 196780 | E15: 6.853000562 | F15: 0.2506747779
B17: Motivation | C17: 120272 | D17: 1128001 | E17: 6.646961332
B18: Acute and Acute & Community Trusts | C18: 78782 | D18: 827952 | E18: 6.509006338 | F18: 0.6550319276
B19: Acute Specialist Trusts | C19: 1352 | D19: 18817 | E19: 6.853772205 | F19: 0.01124118664
B20: Ambulance Trusts | C20: 4389 | D20: 48293 | E20: 5.979411961 | F20: 0.03649228416
B21: Community Trusts | C21: 5546 | D21: 36159 | E21: 7.052577036 | F21: 0.0461121458
B22: Mental Health & Learning Disability and Mental Health, Learning Disability & Community Trusts | C22: 30203 | D22: 196780 | E22: 6.940784635 | F22: 0.2511224558
B24: Advocacy | C24: 124466 | D24: 1128001 | E24: 6.559348202
B25: Acute and Acute & Community Trusts | C25: 83154 | D25: 827952 | E25: 6.534481706 | F25: 0.6680860637
B26: Acute Specialist Trusts | C26: 1321 | D26: 18817 | E26: 7.526486014 | F26: 0.01061334019
B27: Ambulance Trusts | C27: 4371 | D27: 48293 | E27: 5.895021883 | F27: 0.0351180242
B28: Community Trusts | C28: 5563 | D28: 36159 | E28: 7.249590621 | F28: 0.04469493677
B29: Mental Health & Learning Disability and Mental Health, Learning Disability & Community Trusts | C29: 30057 | D29: 196780 | E29: 6.858829571 | F29: 0.2414876352
B31: Involvement | C31: 126639 | D31: 1128001 | E31: 6.299185085
B32: Acute and Acute & Community Trusts | C32: 85158 | D32: 827952 | E32: 6.24107766 | F32: 0.6724468766
B33: Acute Specialist Trusts | C33: 1338 | D33: 18817 | E33: 6.678789242 | F33: 0.01056546561
B34: Ambulance Trusts | C34: 4369 | D34: 48293 | E34: 5.042622777 | F34: 0.03449964071
B35: Community Trusts | C35: 5577 | D35: 36159 | E35: 6.802418758 | F35: 0.04403856632
B36: Mental Health & Learning Disability and Mental Health, Learning Disability & Community Trusts | C36: 30197 | D36: 196780 | E36: 6.759387481 | F36: 0.2384494508

Sheet Engagement Score Breakdown
A7: Region Code | B7: Region Name | C7: ICB Code | D7: ICB Name | E7: Org Code | F7: Org Name | G7: Care Setting | H7: Total Responses (Average Across Theme) | I7: HSCIC Workforce Headcount | J7: Engagement Score | K7: Advocacy | L7: Involvement | M7: Motivation
G9: England | H9: 119669 | I9: 1128001 | J9: 6.50183154 | K9: 6.559348202 | L9: 6.299185085 | M9: 6.646961332
A10: Y56 | B10: LONDON COMMISSIONING REGION | C10: QMF | D10: East London Health & Care Partnership (STP) | E10: R1H | F10: BARTS HEALTH NHS TRUST | G10: Acute and Acute & Community Trusts | H10: 376 | I10: 15760 | J10: 6.255171395 | K10: 6.33643617 | L10: 6.119237589 | M10: 6.309840426
A11: Y56 | B11: LONDON COMMISSIONING REGION | C11: QMJ | D11: North London Partners in Health & Care (STP) | E11: RAL | F11: ROYAL FREE LONDON NHS FOUNDATION TRUST | G11: Acute and Acute & Community Trusts | H11: 110 | I11: 9812 | J11: 6.138888889 | K11: 6.21969697 | L11: 5.810606061 | M11: 6.386363636
A12: Y56 | B12: LONDON COMMISSIONING REGION | C12: QRV | D12: North West London Health & Care Partnership (STP) | E12: RAS | F12: THE HILLINGDON HOSPITALS NHS FOUNDATION TRUST | G12: Acute and Acute & Community Trusts | H12: 21 | I12: 3164 | J12: 6.296296296 | K12: 5.396825397 | L12: 6.666666667 | M12: 6.825396825
A13: Y56 | B13: LONDON COMMISSIONING REGION | C13: QMF | D13: East London Health & Care Partnership (STP) | E13: RAT | F13: NORTH EAST LONDON NHS FOUNDATION TRUST | G13: Mental Health & Learning Disability and Mental Health, Learning Disability & Community Trusts | H13: 1020 | I13: 5887 | J13: 6.800108932 | K13: 6.763071895 | L13: 6.687908497 | M13: 6.949346405
A14: Y56 | B14: LONDON COMMISSIONING REGION | C14: QWE | D14: South West London Health & Care Partnership (STP) | E14: RAX | F14: KINGSTON HOSPITAL NHS FOUNDATION TRUST | G14: Acute and Acute & Community Trusts | H14: 56 | I14: 3244 | J14: 6.116071429 | K14: 6.62202381 | L14: 5.446428571 | M14: 6.279761905
A15: Y56 | B15: LONDON COMMISSIONING REGION | C15: QMF | D15: East London Health & Care Partnership (STP) | E15: RF4 | F15: BARKING, HAVERING AND REDBRIDGE UNIVERSITY HOSPITALS NHS TRUST | G15: Acute and Acute & Community Trusts | H15: 420 | I15: 6783 | J15: 6.060185185 | K15: 5.71031746 | L15: 5.918650794 | M15: 6.551587302
A16: Y56 | B16: LONDON COMMISSIONING REGION | C16: QKK | D16: Our Healthier South East London STP | E16: RJ1 | F16: GUY'S AND ST THOMAS' NHS FOUNDATION TRUST | G16: Acute and Acute & Community Trusts | H16: 263 | I16: 20397 | J16: 6.800239792 | K16: 7.60261194 | L16: 6.365914787 | M16: 6.432192649
A17: Y56 | B17: LONDON COMMISSIONING REGION | C17: QKK | D17: Our Healthier South East London STP | E17: RJ2 | F17: LEWISHAM AND GREENWICH NHS TRUST | G17: Acute and Acute & Community Trusts | H17: 470 | I17: 6157 | J17: 5.963356974 | K17: 5.829787234 | L17: 5.840425532 | M17: 6.219858156
A18: Y56 | B18: LONDON COMMISSIONING REGION | C18: QWE | D18: South West London Health & Care Partnership (STP) | E18: RJ7 | F18: ST GEORGE'S UNIVERSITY HOSPITALS NHS FOUNDATION TRUST | G18: Acute and Acute & Community Trusts | H18: 312 | I18: 8764 | J18: 6.306089744 | K18: 6.332799145 | L18: 6.006944444 | M18: 6.578525641
A19: Y56 | B19: LONDON COMMISSIONING REGION | C19: QKK | D19: Our Healthier South East London STP | E19: RJZ | F19: KING'S COLLEGE HOSPITAL NHS FOUNDATION TRUST | G19: Acute and Acute & Community Trusts | H19: 100 | I19: 12410 | J19: 6.613888889 | K19: 6.916666667 | L19: 6.308333333 | M19: 6.616666667
A20: Y56 | B20: LONDON COMMISSIONING REGION | C20: QMJ | D20: North London Partners in Health & Care (STP) | E20: RKE | F20: WHITTINGTON HEALTH NHS TRUST | G20: Acute and Acute & Community Trusts | H20: 286 | I20: 4003 | J20: 6.38014763 | K20: 6.290792541 | L20: 6.185897436 | M20: 6.663752914
A21: Y56 | B21: LONDON COMMISSIONING REGION | C21: QRV | D21: North West London Health & Care Partnership (STP) | E21: RKL | F21: WEST LONDON NHS TRUST | G21: Mental Health & Learning Disability and Mental Health, Learning Disability & Community Trusts | H21: 30 | I21: 3793 | J21: 5.62037037 | K21: 5.222222222 | L21: 5.388888889 | M21: 6.25
A22: Y56 | B22: LONDON COMMISSIONING REGION | C22: QMJ | D22: North London Partners in Health & Care (STP) | E22: RP4 | F22: GREAT ORMOND STREET HOSPITAL FOR CHILDREN NHS FOUNDATION TRUST | G22: Acute Specialist Trusts | H22: 129 | I22: 5112 | J22: 7.049575962 | K22: 7.538461538 | L22: 6.834625323 | M22: 6.775641026
A23: Y56 | B23: LONDON COMMISSIONING REGION | C23: QMJ | D23: North London Partners in Health & Care (STP) | E23: RP6 | F23: MOORFIELDS EYE HOSPITAL NHS FOUNDATION TRUST | G23: Acute Specialist Trusts | H23: 14 | I23: 2082 | J23: 5.734126984 | K23: 6.488095238 | L23: 4.94047619 | M23: 5.773809524
A24: Y56 | B24: LONDON COMMISSIONING REGION | C24: QKK | D24: Our Healthier South East London STP | E24: RPG | F24: OXLEAS NHS FOUNDATION TRUST | G24: Mental Health & Learning Disability and Mental Health, Learning Disability & Community Trusts | H24: 359 | I24: 3475 | J24: 6.487155679 | K24: 6.4090065 | L24: 6.441504178 | M24: 6.61095636
A25: Y56 | B25: LONDON COMMISSIONING REGION | C25: QRV | D25: North West London Health & Care Partnership (STP) | E25: RQM | F25: CHELSEA AND WESTMINSTER HOSPITAL NHS FOUNDATION TRUST | G25: Acute and Acute & Community Trusts | H25: 18 | I25: 5899 | J25: 6.37345679 | K25: 6.759259259 | L25: 6.62037037 | M25: 5.740740741
A26: Y56 | B26: LONDON COMMISSIONING REGION | C26: QMF | D26: East London Health & Care Partnership (STP) | E26: RQX | F26: HOMERTON UNIVERSITY HOSPITAL NHS FOUNDATION TRUST | G26: Acute and Acute & Community Trusts | H26: 866 | I26: 3550 | J26: 7.063488965 | K26: 7.399392559 | L26: 6.795308362 | M26: 6.995765974
A27: Y56 | B27: LONDON COMMISSIONING REGION | C27: QWE | D27: South West London Health & Care Partnership (STP) | E27: RQY | F27: SOUTH WEST LONDON AND ST GEORGE'S MENTAL HEALTH NHS TRUST | G27: Mental Health & Learning Disability and Mental Health, Learning Disability & Community Trusts | H27: 50 | I27: 2320 | J27: 6.227777778 | K27: 5.883333333 | L27: 6.033333333 | M27: 6.766666667
A28: Y56 | B28: LONDON COMMISSIONING REGION | C28: QMJ | D28: North London Partners in Health & Care (STP) | E28: RRP | F28: BARNET, ENFIELD AND HARINGEY MENTAL HEALTH NHS TRUST | G28: Mental Health & Learning Disability and Mental Health, Learning Disability & Community Trusts | H28: 218 | I28: 3066 | J28: 6.29332314 | K28: 5.863914373 | L28: 6.479357798 | M28: 6.536697248
A29: Y56 | B29: LONDON COMMISSIONING REGION | C29: QKK | D29: Our Healthier South East London STP | E29: RRU | F29: LONDON AMBULANCE SERVICE NHS TRUST | G29: Ambulance Trusts | H29: 41 | I29: 6227 | J29: 5.799457995 | K29: 6.117886179 | L29: 5.182926829 | M29: 6.097560976
A30: Y56 | B30: LONDON COMMISSIONING REGION | C30: QMJ | D30: North London Partners in Health & Care (STP) | E30: RRV | F30: UNIVERSITY COLLEGE LONDON HOSPITALS NHS FOUNDATION TRUST | G30: Acute and Acute & Community Trusts | H30: 663 | I30: 9370 | J30: 6.824618736 | K30: 7.357968829 | L30: 6.519607843 | M30: 6.596279537
A31: Y56 | B31: LONDON COMMISSIONING REGION | C31: QMJ | D31: North London Partners in Health & Care (STP) | E31: RV3 | F31: CENTRAL AND NORTH WEST LONDON NHS FOUNDATION TRUST | G31: Mental Health & Learning Disability and Mental Health, Learning Disability & Community Trusts | H31: 37 | I31: 6889 | J31: 5.690690691 | K31: 5.675675676 | L31: 5.495495495 | M31: 5.900900901
A32: Y56 | B32: LONDON COMMISSIONING REGION | C32: QKK | D32: Our Healthier South East London STP | E32: RV5 | F32: SOUTH LONDON AND MAUDSLEY NHS FOUNDATION TRUST | G32: Mental Health & Learning Disability and Mental Health, Learning Disability & Community Trusts | H32: 111 | I32: 5026 | J32: 6.301301301 | K32: 5.915915916 | L32: 6.501501502 | M32: 6.486486486
A33: Y56 | B33: LONDON COMMISSIONING REGION | C33: QWE | D33: South West London Health & Care Partnership (STP) | E33: RVR | F33: EPSOM AND ST HELIER UNIVERSITY HOSPITALS NHS TRUST | G33: Acute and Acute & Community Trusts | H33: 204 | I33: 6045 | J33: 5.980392157 | K33: 5.755718954 | L33: 5.894607843 | M33: 6.290849673
A34: Y56 | B34: LONDON COMMISSIONING REGION | C34: QMF | D34: East London Health & Care Partnership (STP) | E34: RWK | F34: EAST LONDON NHS FOUNDATION TRUST | G34: Mental Health & Learning Disability and Mental Health, Learning Disability & Community Trusts | H34: 1418 | I34: 5851 | J34: 7.172537527 | K34: 7.411259991 | L34: 6.964161447 | M34: 7.142191142
A35: Y56 | B35: LONDON COMMISSIONING REGION | C35: QWE | D35: South West London Health & Care Partnership (STP) | E35: RY9 | F35: HOUNSLOW AND RICHMOND COMMUNITY HEALTHCARE NHS TRUST | G35: Community Trusts | H35: 180 | I35: 1045 | J35: 6.929012346 | K35: 7.143518519 | L35: 6.791666667 | M35: 6.851851852
A36: Y56 | B36: LONDON COMMISSIONING REGION | C36: QRV | D36: North West London Health & Care Partnership (STP) | E36: RYJ | F36: IMPERIAL COLLEGE HEALTHCARE NHS TRUST | G36: Acute and Acute & Community Trusts | H36: 80 | I36: 12149 | J36: 6.378472222 | K36: 6.520833333 | L36: 6 | M36: 6.614583333
A37: Y56 | B37: LONDON COMMISSIONING REGION | C37: QRV | D37: North West London Health & Care Partnership (STP) | E37: RYX | F37: CENTRAL LONDON COMMUNITY HEALTHCARE NHS TRUST | G37: Community Trusts | H37: 154 | I37: 4006 | J37: 6.3997114 | K37: 6.130952381 | L37: 6.282467532 | M37: 6.785714286
A38: Y58 | B38: SOUTH WEST COMMISSIONING REGION | C38: QVV | D38: Dorset STP | E38: R0D | F38: UNIVERSITY HOSPITALS DORSET NHS FOUNDATION TRUST | G38: Acute and Acute & Community Trusts | H38: 172 | I38: 8004 | J38: 6.083656331 | K38: 6.124031008 | L38: 6.05620155 | M38: 6.070736434
A39: Y58 | B39: SOUTH WEST COMMISSIONING REGION | C39: QSL | D39: Somerset STP | E39: RA4 | F39: YEOVIL DISTRICT HOSPITAL NHS FOUNDATION TRUST | G39: Acute and Acute & Community Trusts | H39: 0 | I39: 2315 | J39: 0 | K39: 7.072564612 | L39: 6.669980119 | M39: -
A40: Y58 | B40: SOUTH WEST COMMISSIONING REGION | C40: QUY | D40: Bristol, North Somerset and South Gloucestershire STP | E40: RA7 | F40: UNIVERSITY HOSPITALS BRISTOL AND WESTON NHS FOUNDATION TRUST | G40: Acute and Acute & Community Trusts | H40: 2536 | I40: 10096 | J40: 6.876126695 | K40: 7.253039028 | L40: 6.552588692 | M40: 6.822752366
A41: Y58 | B41: SOUTH WEST COMMISSIONING REGION | C41: QJK | D41: Devon STP | E41: RA9 | F41: TORBAY AND SOUTH DEVON NHS FOUNDATION TRUST | G41: Acute and Acute & Community Trusts | H41: 140 | I41: 5683 | J41: 5.781718189 | K41: 5.447427293 | L41: 5.81547619 | M41: 6.082251082
A42: Y58 | B42: SOUTH WEST COMMISSIONING REGION | C42: QVV | D42: Dorset STP | E42: RBD | F42: DORSET COUNTY HOSPITAL NHS FOUNDATION TRUST | G42: Acute and Acute & Community Trusts | H42: 464 | I42: 2765 | J42: 6.780411877 | K42: 6.855244253 | L42: 6.603807471 | M42: 6.882183908
A43: Y58 | B43: SOUTH WEST COMMISSIONING REGION | C43: QJK | D43: Devon STP | E43: RBZ | F43: NORTHERN DEVON HEALTHCARE NHS TRUST | G43: Acute and Acute & Community Trusts | H43: 531 | I43: 2963 | J43: 6.93278891 | K43: 7.084118016 | L43: 6.700743494 | M43: 7.013505218
A44: Y58 | B44: SOUTH WEST COMMISSIONING REGION | C44: QOX | D44: Bath and North East Somerset, Swindon and Wiltshire STP | E44: RD1 | F44: ROYAL UNITED HOSPITALS BATH NHS FOUNDATION TRUST | G44: Acute and Acute & Community Trusts | H44: 256 | I44: 5074 | J44: 6.991102431 | K44: 7.122395833 | L44: 6.940104167 | M44: 6.910807292
A45: Y58 | B45: SOUTH WEST COMMISSIONING REGION | C45: QVV | D45: Dorset STP | E45: RDY | F45: DORSET HEALTHCARE UNIVERSITY NHS FOUNDATION TRUST | G45: Mental Health & Learning Disability and Mental Health, Learning Disability & Community Trusts | H45: 1148 | I45: 5189 | J45: 6.912020906 | K45: 6.930168409 | L45: 6.649970964 | M45: 7.155923345
A46: Y58 | B46: SOUTH WEST COMMISSIONING REGION | C46: QT6 | D46: Cornwall and the Isles of Scilly Health & Social Care Partnership (STP) | E46: REF | F46: ROYAL CORNWALL HOSPITALS NHS TRUST | G46: Acute and Acute & Community Trusts | H46: 681 | I46: 5957 | J46: 6.468214067 | K46: 6.427174976 | L46: 6.511485826 | M46: 6.4659814
A47: Y58 | B47: SOUTH WEST COMMISSIONING REGION | C47: QSL | D47: Somerset STP | E47: RH5 | F47: SOMERSET NHS FOUNDATION TRUST | G47: Acute and Acute & Community Trusts | H47: 946 | I47: 8202 | J47: 6.851068828 | K47: 7.036645525 | L47: 6.666666667 | M47: 6.849894292
A48: Y58 | B48: SOUTH WEST COMMISSIONING REGION | C48: QJK | D48: Devon STP | E48: RH8 | F48: ROYAL DEVON AND EXETER NHS FOUNDATION TRUST | G48: Acute and Acute & Community Trusts | H48: 1181 | I48: 7581 | J48: 6.88811345 | K48: 7.178944397 | L48: 6.561796171 | M48: 6.923599782
A49: Y58 | B49: SOUTH WEST COMMISSIONING REGION | C49: QT6 | D49: Cornwall and the Isles of Scilly Health & Social Care Partnership (STP) | E49: RJ8 | F49: CORNWALL PARTNERSHIP NHS FOUNDATION TRUST | G49: Mental Health & Learning Disability and Mental Health, Learning Disability & Community Trusts | H49: 11 | I49: 3370 | J49: 5.050505051 | K49: 4.924242424 | L49: 4.621212121 | M49: 5.606060606
A50: Y58 | B50: SOUTH WEST COMMISSIONING REGION | C50: QJK | D50: Devon STP | E50: RK9 | F50: UNIVERSITY HOSPITALS PLYMOUTH NHS TRUST | G50: Acute and Acute & Community Trusts | H50: 167 | I50: 8017 | J50: 6.519754608 | K50: 6.691616766 | L50: 6.210784314 | M50: 6.656862745
A51: Y58 | B51: SOUTH WEST COMMISSIONING REGION | C51: QOX | D51: Bath and North East Somerset, Swindon and Wiltshire STP | E51: RN3 | F51: GREAT WESTERN HOSPITALS NHS FOUNDATION TRUST | G51: Acute and Acute & Community Trusts | H51: 1663 | I51: 4570 | J51: 6.668918353 | K51: 6.76438164 | L51: 6.34106933 | M51: 6.90130409
A52: Y58 | B52: SOUTH WEST COMMISSIONING REGION | C52: QOX | D52: Bath and North East Somerset, Swindon and Wiltshire STP | E52: RNZ | F52: SALISBURY NHS FOUNDATION TRUST | G52: Acute and Acute & Community Trusts | H52: 99 | I52: 3371 | J52: 6.105499439 | K52: 6.346801347 | L52: 5.875420875 | M52: 6.094276094
A53: Y58 | B53: SOUTH WEST COMMISSIONING REGION | C53: QR1 | D53: Gloucestershire STP | E53: RTE | F53: GLOUCESTERSHIRE HOSPITALS NHS FOUNDATION TRUST | G53: Acute and Acute & Community Trusts | H53: 98 | I53: 7155 | J53: 6.249284225 | K53: 6.195286195 | L53: 6.037414966 | M53: 6.515151515
A54: Y58 | B54: SOUTH WEST COMMISSIONING REGION | C54: QR1 | D54: Gloucestershire STP | E54: RTQ | F54: GLOUCESTERSHIRE HEALTH AND CARE NHS FOUNDATION TRUST | G54: Mental Health & Learning Disability and Mental Health, Learning Disability & Community Trusts | H54: 171 | I54: 3774 | J54: 6.851851852 | K54: 6.890838207 | L54: 6.93957115 | M54: 6.725146199
A55: Y58 | B55: SOUTH WEST COMMISSIONING REGION | C55: QUY | D55: Bristol, North Somerset and South Gloucestershire STP | E55: RVJ | F55: NORTH BRISTOL NHS TRUST | G55: Acute and Acute & Community Trusts | H55: 175 | I55: 8058 | J55: 6.455402237 | K55: 6.747159091 | L55: 6.40952381 | M55: 6.20952381
A56: Y58 | B56: SOUTH WEST COMMISSIONING REGION | C56: QJK | D56: Devon STP | E56: RWV | F56: DEVON PARTNERSHIP NHS TRUST | G56: Mental Health & Learning Disability and Mental Health, Learning Disability & Community Trusts | H56: 151 | I56: 3068 | J56: 6.694260486 | K56: 6.495584989 | L56: 6.843267108 | M56: 6.74392936
A57: Y58 | B57: SOUTH WEST COMMISSIONING REGION | C57: QJK | D57: Devon STP | E57: RYF | F57: SOUTH WESTERN AMBULANCE SERVICE NHS FOUNDATION TRUST | G57: Ambulance Trusts | H57: 520 | I57: 4390 | J57: 5.846136831 | K57: 6.025271913 | L57: 5.304487179 | M57: 6.208651399
A58: Y59 | B58: SOUTH EAST COMMISSIONING REGION | C58: QRL | D58: Hampshire and the Isle of Wight STP | E58: R1C | F58: SOLENT NHS TRUST | G58: Mental Health & Learning Disability and Mental Health, Learning Disability & Community Trusts | H58: 251 | I58: 3306 | J58: 7.288623285 | K58: 7.609561753 | L58: 7.114873838 | M58: 7.141434263
A59: Y59 | B59: SOUTH EAST COMMISSIONING REGION | C59: QRL | D59: Hampshire and the Isle of Wight STP | E59: R1F | F59: ISLE OF WIGHT NHS TRUST | G59: Acute and Acute & Community Trusts | H59: 344 | I59: 3082 | J59: 7.097000045 | K59: 6.835260116 | L59: 7.093023256 | M59: 7.362716763
A60: Y59 | B60: SOUTH EAST COMMISSIONING REGION | C60: QXU | D60: Surrey Heartlands Health & Care Partnership (STP) | E60: RA2 | F60: ROYAL SURREY COUNTY HOSPITAL NHS FOUNDATION TRUST | G60: Acute and Acute & Community Trusts | H60: 52 | I60: 4289 | J60: 7.056623932 | K60: 7.516025641 | L60: 6.71474359 | M60: 6.939102564
A61: Y59 | B61: SOUTH EAST COMMISSIONING REGION | C61: QNX | D61: Sussex Health and Care Partnership STP | E61: RDR | F61: SUSSEX COMMUNITY NHS FOUNDATION TRUST | G61: Community Trusts | H61: 62 | I61: 4364 | J61: 7.217741935 | K61: 7.459677419 | L61: 7.163978495 | M61: 7.029569892
A62: Y59 | B62: SOUTH EAST COMMISSIONING REGION | C62: QNQ | D62: Frimley Health & Care (STP) | E62: RDU | F62: FRIMLEY HEALTH NHS FOUNDATION TRUST | G62: Acute and Acute & Community Trusts | H62: 155 | I62: 8996 | J62: 5.784946237 | K62: 6.059139785 | L62: 5.424731183 | M62: 5.870967742
A63: Y59 | B63: SOUTH EAST COMMISSIONING REGION | C63: QRL | D63: Hampshire and the Isle of Wight STP | E63: RHM | F63: UNIVERSITY HOSPITAL SOUTHAMPTON NHS FOUNDATION TRUST | G63: Acute and Acute & Community Trusts | H63: 3359 | I63: 11005 | J63: 7.175431634 | K63: 7.735933313 | L63: 6.872048406 | M63: 6.918313182
A64: Y59 | B64: SOUTH EAST COMMISSIONING REGION | C64: QRL | D64: Hampshire and the Isle of Wight STP | E64: RHU | F64: PORTSMOUTH HOSPITALS UNIVERSITY NATIONAL HEALTH SERVICE TRUST | G64: Acute and Acute & Community Trusts | H64: 1077 | I64: 7090 | J64: 6.416486124 | K64: 6.624110183 | L64: 6.183844011 | M64: 6.441504178
A65: Y59 | B65: SOUTH EAST COMMISSIONING REGION | C65: QU9 | D65: Buckinghamshire, Oxfordshire and Berkshire West STP | E65: RHW | F65: ROYAL BERKSHIRE NHS FOUNDATION TRUST | G65: Acute and Acute & Community Trusts | H65: 97 | I65: 5537 | J65: 6.901489118 | K65: 7.182130584 | L65: 6.546391753 | M65: 6.975945017
A66: Y59 | B66: SOUTH EAST COMMISSIONING REGION | C66: QRL | D66: Hampshire and the Isle of Wight STP | E66: RN5 | F66: HAMPSHIRE HOSPITALS NHS FOUNDATION TRUST | G66: Acute and Acute & Community Trusts | H66: 293 | I66: 6428 | J66: 6.00967008 | K66: 5.804891923 | L66: 5.787827076 | M66: 6.43629124
A67: Y59 | B67: SOUTH EAST COMMISSIONING REGION | C67: QKS | D67: Kent and Medway STP | E67: RN7 | F67: DARTFORD AND GRAVESHAM NHS TRUST | G67: Acute and Acute & Community Trusts | H67: 620 | I67: 3401 | J67: 6.820340502 | K67: 7.021505376 | L67: 6.505376344 | M67: 6.934139785
A68: Y59 | B68: SOUTH EAST COMMISSIONING REGION | C68: QU9 | D68: Buckinghamshire, Oxfordshire and Berkshire West STP | E68: RNU | F68: OXFORD HEALTH NHS FOUNDATION TRUST | G68: Mental Health & Learning Disability and Mental Health, Learning Disability & Community Trusts | H68: 1100 | I68: 5265 | J68: 6.868181818 | K68: 6.846969697 | L68: 6.729545455 | M68: 7.028030303
A69: Y59 | B69: SOUTH EAST COMMISSIONING REGION | C69: QKS | D69: Kent and Medway STP | E69: RPA | F69: MEDWAY NHS FOUNDATION TRUST | G69: Acute and Acute & Community Trusts | H69: 312 | I69: 4106 | J69: 5.941951567 | K69: 5.662393162 | L69: 5.78525641 | M69: 6.378205128
A70: Y59 | B70: SOUTH EAST COMMISSIONING REGION | C70: QNX | D70: Sussex Health and Care Partnership STP | E70: RPC | F70: QUEEN VICTORIA HOSPITAL NHS FOUNDATION TRUST | G70: Acute Specialist Trusts | H70: 145 | I70: 902 | J70: 7.492337165 | K70: 8.172413793 | L70: 7.212643678 | M70: 7.091954023
A71: Y59 | B71: SOUTH EAST COMMISSIONING REGION | C71: QU9 | D71: Buckinghamshire, Oxfordshire and Berkshire West STP | E71: RTH | F71: OXFORD UNIVERSITY HOSPITALS NHS FOUNDATION TRUST | G71: Acute and Acute & Community Trusts | H71: 2814 | I71: 12111 | J71: 6.974335162 | K71: 7.370883677 | L71: 6.572410148 | M71: 6.979711661
A72: Y59 | B72: SOUTH EAST COMMISSIONING REGION | C72: QKS | D72: Kent and Medway STP | E72: RVV | F72: EAST KENT HOSPITALS UNIVERSITY NHS FOUNDATION TRUST | G72: Acute and Acute & Community Trusts | H72: 2916 | I72: 9248 | J72: 6.362398723 | K72: 6.193415638 | L72: 6.195443238 | M72: 6.698337292
A73: Y59 | B73: SOUTH EAST COMMISSIONING REGION | C73: QRL | D73: Hampshire and the Isle of Wight STP | E73: RW1 | F73: SOUTHERN HEALTH NHS FOUNDATION TRUST | G73: Mental Health & Learning Disability and Mental Health, Learning Disability & Community Trusts | H73: 440 | I73: 5369 | J73: 6.796085859 | K73: 6.90530303 | L73: 6.821969697 | M73: 6.660984848
A74: Y59 | B74: SOUTH EAST COMMISSIONING REGION | C74: QNQ | D74: Frimley Health & Care (STP) | E74: RWX | F74: BERKSHIRE HEALTHCARE NHS FOUNDATION TRUST | G74: Mental Health & Learning Disability and Mental Health, Learning Disability & Community Trusts | H74: 1479 | I74: 3880 | J74: 7.370971185 | K74: 7.624521073 | L74: 7.235077129 | M74: 7.253315352
A75: Y59 | B75: SOUTH EAST COMMISSIONING REGION | C75: QNX | D75: Sussex Health and Care Partnership STP | E75: RX2 | F75: SUSSEX PARTNERSHIP NHS FOUNDATION TRUST | G75: Mental Health & Learning Disability and Mental Health, Learning Disability & Community Trusts | H75: 145 | I75: 4598 | J75: 6.511494253 | K75: 6.17816092 | L75: 6.609195402 | M75: 6.747126437
A76: Y59 | B76: SOUTH EAST COMMISSIONING REGION | C76: QNX | D76: Sussex Health and Care Partnership STP | E76: RXC | F76: EAST SUSSEX HEALTHCARE NHS TRUST | G76: Acute and Acute & Community Trusts | H76: 119 | I76: 6714 | J76: 5.821661998 | K76: 5.868347339 | L76: 5.602240896 | M76: 5.994397759
A77: Y59 | B77: SOUTH EAST COMMISSIONING REGION | C77: QU9 | D77: Buckinghamshire, Oxfordshire and Berkshire West STP | E77: RXQ | F77: BUCKINGHAMSHIRE HEALTHCARE NHS TRUST | G77: Acute and Acute & Community Trusts | H77: 607 | I77: 5385 | J77: 6.744005125 | K77: 6.691378364 | L77: 6.571938495 | M77: 6.968698517
A78: Y59 | B78: SOUTH EAST COMMISSIONING REGION | C78: QKS | D78: Kent and Medway STP | E78: RXY | F78: KENT AND MEDWAY NHS AND SOCIAL CARE PARTNERSHIP TRUST | G78: Mental Health & Learning Disability and Mental Health, Learning Disability & Community Trusts | H78: 272 | I78: 3123 | J78: 6.639093137 | K78: 6.430759804 | L78: 6.681985294 | M78: 6.804534314
A79: Y59 | B79: SOUTH EAST COMMISSIONING REGION | C79: QNX | D79: Sussex Health and Care Partnership STP | E79: RYD | F79: SOUTH EAST COAST AMBULANCE SERVICE NHS FOUNDATION TRUST | G79: Ambulance Trusts | H79: 318 | I79: 3879 | J79: 5.129280224 | K79: 5.159853249 | L79: 4.612159329 | M79: 5.615828092
A80: Y59 | B80: SOUTH EAST COMMISSIONING REGION | C80: QU9 | D80: Buckinghamshire, Oxfordshire and Berkshire West STP | E80: RYE | F80: SOUTH CENTRAL AMBULANCE SERVICE NHS FOUNDATION TRUST | G80: Ambulance Trusts | H80: 143 | I80: 4160 | J80: 5.916860917 | K80: 6.282051282 | L80: 5.361305361 | M80: 6.107226107
A81: Y59 | B81: SOUTH EAST COMMISSIONING REGION | C81: QNX | D81: Sussex Health and Care Partnership STP | E81: RYR | F81: UNIVERSITY HOSPITALS SUSSEX NHS FOUNDATION TRUST | G81: Acute and Acute & Community Trusts | H81: 326 | I81: 14064 | J81: 5.85463531 | K81: 5.823108384 | L81: 5.846114519 | M81: 5.894683027
A82: Y59 | B82: SOUTH EAST COMMISSIONING REGION | C82: QKS | D82: Kent and Medway STP | E82: RYY | F82: KENT COMMUNITY HEALTH NHS FOUNDATION TRUST | G82: Community Trusts | H82: 324 | I82: 4189 | J82: 6.79526749 | K82: 7.019032922 | L82: 6.682098765 | M82: 6.684670782
A83: Y60 | B83: MIDLANDS COMMISSIONING REGION | C83: QGH | D83: Herefordshire and Worcestershire STP | E83: R1A | F83: HEREFORDSHIRE AND WORCESTERSHIRE HEALTH AND CARE NHS TRUST | G83: Mental Health & Learning Disability and Mental Health, Learning Disability & Community Trusts | H83: 282 | I83: 3596 | J83: 6.70922125 | K83: 6.669621749 | L83: 6.498822144 | M83: 6.959219858
A84: Y60 | B84: MIDLANDS COMMISSIONING REGION | C84: QOC | D84: Shropshire and Telford and Wrekin STP | E84: R1D | F84: SHROPSHIRE COMMUNITY HEALTH NHS TRUST | G84: Community Trusts | H84: 21 | I84: 1244 | J84: 6.851851852 | K84: 6.26984127 | L84: 7.063492063 | M84: 7.222222222
A85: Y60 | B85: MIDLANDS COMMISSIONING REGION | C85: QUA | D85: The Black Country and West Birmingham STP | E85: RBK | F85: WALSALL HEALTHCARE NHS TRUST | G85: Acute and Acute & Community Trusts | H85: 1015 | I85: 3772 | J85: 6.236453202 | K85: 6.022988506 | L85: 6.251231527 | M85: 6.435139573
A86: Y60 | B86: MIDLANDS COMMISSIONING REGION | C86: QJ2 | D86: Joined Up Care Derbyshire STP | E86: RFS | F86: CHESTERFIELD ROYAL HOSPITAL NHS FOUNDATION TRUST | G86: Acute and Acute & Community Trusts | H86: 79 | I86: 3351 | J86: 6.568213783 | K86: 6.561181435 | L86: 6.445147679 | M86: 6.698312236
A87: Y60 | B87: MIDLANDS COMMISSIONING REGION | C87: QT1 | D87: Nottingham and Nottinghamshire Health and Care STP | E87: RHA | F87: NOTTINGHAMSHIRE HEALTHCARE NHS FOUNDATION TRUST | G87: Mental Health & Learning Disability and Mental Health, Learning Disability & Community Trusts | H87: 254 | I87: 7917 | J87: 6.215967869 | K87: 6.261348898 | L87: 6.312335958 | M87: 6.07421875
A88: Y60 | B88: MIDLANDS COMMISSIONING REGION | C88: QWU | D88: Coventry and Warwickshire STP | E88: RJC | F88: SOUTH WARWICKSHIRE NHS FOUNDATION TRUST | G88: Acute and Acute & Community Trusts | H88: 255 | I88: 4288 | J88: 6.773420479 | K88: 6.993464052 | L88: 6.483660131 | M88: 6.843137255
A89: Y60 | B89: MIDLANDS COMMISSIONING REGION | C89: QNC | D89: Staffordshire & Stoke on Trent STP | E89: RJE | F89: UNIVERSITY HOSPITALS OF NORTH MIDLANDS NHS TRUST | G89: Acute and Acute & Community Trusts | H89: 81 | I89: 9689 | J89: 5.781893004 | K89: 5.833333333 | L89: 5.360082305 | M89: 6.152263374
A90: Y60 | B90: MIDLANDS COMMISSIONING REGION | C90: QT1 | D90: Nottingham and Nottinghamshire Health and Care STP | E90: RK5 | F90: SHERWOOD FOREST HOSPITALS NHS FOUNDATION TRUST | G90: Acute and Acute & Community Trusts | H90: 1158 | I90: 4630 | J90: 7.134906928 | K90: 7.709412781 | L90: 6.783246978 | M90: 6.912061025
A91: Y60 | B91: MIDLANDS COMMISSIONING REGION | C91: QWU | D91: Coventry and Warwickshire STP | E91: RKB | F91: UNIVERSITY HOSPITALS COVENTRY AND WARWICKSHIRE NHS TRUST | G91: Acute and Acute & Community Trusts | H91: 131 | I91: 8012 | J91: 6.077184054 | K91: 6.151399491 | L91: 5.871501272 | M91: 6.208651399
A92: Y60 | B92: MIDLANDS COMMISSIONING REGION | C92: QUA | D92: The Black Country and West Birmingham STP | E92: RL4 | F92: THE ROYAL WOLVERHAMPTON NHS TRUST | G92: Acute and Acute & Community Trusts | H92: 150 | I92: 8719 | J92: 6.998148148 | K92: 7.333333333 | L92: 6.583333333 | M92: 7.077777778
A93: Y60 | B93: MIDLANDS COMMISSIONING REGION | C93: QWU | D93: Coventry and Warwickshire STP | E93: RLT | F93: GEORGE ELIOT HOSPITAL NHS TRUST | G93: Acute and Acute & Community Trusts | H93: 25 | I93: 2321 | J93: 6.222222222 | K93: 6.7 | L93: 5.833333333 | M93: 6.133333333
A94: Y60 | B94: MIDLANDS COMMISSIONING REGION | C94: QNC | D94: Staffordshire & Stoke on Trent STP | E94: RLY | F94: NORTH STAFFORDSHIRE COMBINED HEALTHCARE NHS TRUST | G94: Mental Health & Learning Disability and Mental Health, Learning Disability & Community Trusts | H94: 21 | I94: 1479 | J94: 7.116402116 | K94: 7.182539683 | L94: 7.301587302 | M94: 6.865079365
A95: Y60 | B95: MIDLANDS COMMISSIONING REGION | C95: QUA | D95: The Black Country and West Birmingham STP | E95: RNA | F95: THE DUDLEY GROUP NHS FOUNDATION TRUST | G95: Acute and Acute & Community Trusts | H95: 882 | I95: 4799 | J95: 6.69787304 | K95: 6.769652305 | L95: 6.496827174 | M95: 6.82713964
A96: Y60 | B96: MIDLANDS COMMISSIONING REGION | C96: QPM | D96: Northamptonshire STP | E96: RNQ | F96: KETTERING GENERAL HOSPITAL NHS FOUNDATION TRUST | G96: Acute and Acute & Community Trusts | H96: 761 | I96: 4307 | J96: 6.291608561 | K96: 6.32282085 | L96: 6.29434954 | M96: 6.257655293
A97: Y60 | B97: MIDLANDS COMMISSIONING REGION | C97: QPM | D97: Northamptonshire STP | E97: RNS | F97: NORTHAMPTON GENERAL HOSPITAL NHS TRUST | G97: Acute and Acute & Community Trusts | H97: 777 | I97: 5039 | J97: 6.346929927 | K97: 6.558344058 | L97: 6.139674379 | M97: 6.342771343
A98: Y60 | B98: MIDLANDS COMMISSIONING REGION | C98: QPM | D98: Northamptonshire STP | E98: RP1 | F98: NORTHAMPTONSHIRE HEALTHCARE NHS FOUNDATION TRUST | G98: Mental Health & Learning Disability and Mental Health, Learning Disability & Community Trusts | H98: 1629 | I98: 3744 | J98: 7.332346238 | K98: 7.622263147 | L98: 7.076519281 | M98: 7.298256285
A99: Y60 | B99: MIDLANDS COMMISSIONING REGION | C99: QJM | D99: Lincolnshire STP | E99: RP7 | F99: LINCOLNSHIRE PARTNERSHIP NHS FOUNDATION TRUST | G99: Mental Health & Learning Disability and Mental Health, Learning Disability & Community Trusts | H99: 175 | I99: 2047 | J99: 6.925676407 | K99: 6.979166667 | L99: 6.757142857 | M99: 7.040719697
A100: Y60 | B100: MIDLANDS COMMISSIONING REGION | C100: QHL | D100: Birmingham and Solihull STP | E100: RQ3 | F100: BIRMINGHAM WOMEN'S AND CHILDREN'S NHS FOUNDATION TRUST | G100: Acute and Acute & Community Trusts | H100: 23 | I100: 5380 | J100: 5.966183575 | K100: 6.15942029 | L100: 5.217391304 | M100: 6.52173913
A101: Y60 | B101: MIDLANDS COMMISSIONING REGION | C101: QNC | D101: Staffordshire & Stoke on Trent STP | E101: RRE | F101: MIDLANDS PARTNERSHIP NHS FOUNDATION TRUST | G101: Mental Health & Learning Disability and Mental Health, Learning Disability & Community Trusts | H101: 0 | I101: 7698 | J101: 0 | K101: - | L101: - | M101: -
A102: Y60 | B102: MIDLANDS COMMISSIONING REGION | C102: QHL | D102: Birmingham and Solihull STP | E102: RRK | F102: UNIVERSITY HOSPITALS BIRMINGHAM NHS FOUNDATION TRUST | G102: Acute and Acute & Community Trusts | H102: 1059 | I102: 18810 | J102: 5.727496224 | K102: 5.635220126 | L102: 5.60927673 | M102: 5.937991816
A103: Y60 | B103: MIDLANDS COMMISSIONING REGION | C103: QK1 | D103: Leicester, Leicestershire and Rutland STP | E103: RT5 | F103: LEICESTERSHIRE PARTNERSHIP NHS TRUST | G103: Mental Health & Learning Disability and Mental Health, Learning Disability & Community Trusts | H103: 960 | I103: 4741 | J103: 6.318576389 | K103: 6.1640625 | L103: 6.1953125 | M103: 6.596354167
A104: Y60 | B104: MIDLANDS COMMISSIONING REGION | C104: QJ2 | D104: Joined Up Care Derbyshire STP | E104: RTG | F104: UNIVERSITY HOSPITALS OF DERBY AND BURTON NHS FOUNDATION TRUST | G104: Acute and Acute & Community Trusts | H104: 2215 | I104: 11606 | J104: 6.461833102 | K104: 6.785714286 | L104: 5.996613995 | M104: 6.603171025
A105: Y60 | B105: MIDLANDS COMMISSIONING REGION | C105: QJM | D105: Lincolnshire STP | E105: RWD | F105: UNITED LINCOLNSHIRE HOSPITALS NHS TRUST | G105: Acute and Acute & Community Trusts | H105: 2651 | I105: 7161 | J105: 6.277881178 | K105: 5.968502452 | L105: 6.115485564 | M105: 6.749655518
A106: Y60 | B106: MIDLANDS COMMISSIONING REGION | C106: QK1 | D106: Leicester, Leicestershire and Rutland STP | E106: RWE | F106: UNIVERSITY HOSPITALS OF LEICESTER NHS TRUST | G106: Acute and Acute & Community Trusts | H106: 284 | I106: 13950 | J106: 6.315532081 | K106: 6.252934272 | L106: 6.079812207 | M106: 6.613849765
A107: Y60 | B107: MIDLANDS COMMISSIONING REGION | C107: QGH | D107: Herefordshire and Worcestershire STP | E107: RWP | F107: WORCESTERSHIRE ACUTE HOSPITALS NHS TRUST | G107: Acute and Acute & Community Trusts | H107: 484 | I107: 5680 | J107: 6.337235996 | K107: 6.189738292 | L107: 6.256887052 | M107: 6.565082645
A108: Y60 | B108: MIDLANDS COMMISSIONING REGION | C108: QT1 | D108: Nottingham and Nottinghamshire Health and Care STP | E108: RX1 | F108: NOTTINGHAM UNIVERSITY HOSPITALS NHS TRUST | G108: Acute and Acute & Community Trusts | H108: 1382 | I108: 15210 | J108: 6.477930535 | K108: 6.484563435 | L108: 6.40918958 | M108: 6.540038591
A109: Y60 | B109: MIDLANDS COMMISSIONING REGION | C109: QT1 | D109: Nottingham and Nottinghamshire Health and Care STP | E109: RX9 | F109: EAST MIDLANDS AMBULANCE SERVICE NHS TRUST | G109: Ambulance Trusts | H109: 88 | I109: 3716 | J109: 5.703914141 | K109: 5.965909091 | L109: 5.009469697 | M109: 6.136363636
A110: Y60 | B110: MIDLANDS COMMISSIONING REGION | C110: QUA | D110: The Black Country and West Birmingham STP | E110: RXK | F110: SANDWELL AND WEST BIRMINGHAM HOSPITALS NHS TRUST | G110: Acute and Acute & Community Trusts | H110: 1250 | I110: 6464 | J110: 6.479136667 | K110: 6.404798762 | L110: 6.240611241 | M110: 6.792
A111: Y60 | B111: MIDLANDS COMMISSIONING REGION | C111: QJ2 | D111: Joined Up Care Derbyshire STP | E111: RXM | F111: DERBYSHIRE HEALTHCARE NHS FOUNDATION TRUST | G111: Mental Health & Learning Disability and Mental Health, Learning Disability & Community Trusts | H111: 1102 | I111: 2445 | J111: 7.226666701 | K111: 7.429556355 | L111: 7.035531466 | M111: 7.214912281
A112: Y60 | B112: MIDLANDS COMMISSIONING REGION | C112: QUA | D112: The Black Country and West Birmingham STP | E112: RXT | F112: BIRMINGHAM AND SOLIHULL MENTAL HEALTH NHS FOUNDATION TRUST | G112: Mental Health & Learning Disability and Mental Health, Learning Disability & Community Trusts | H112: 388 | I112: 4027 | J112: 6.166953036 | K112: 5.89347079 | L112: 6.256443299 | M112: 6.350945017
A113: Y60 | B113: MIDLANDS COMMISSIONING REGION | C113: QJM | D113: Lincolnshire STP | E113: RY5 | F113: LINCOLNSHIRE COMMUNITY HEALTH SERVICES NHS TRUST | G113: Community Trusts | H113: 642 | I113: 1867 | J113: 7.281013855 | K113: 7.631100727 | L113: 6.910353535 | M113: 7.301587302
A114: Y60 | B114: MIDLANDS COMMISSIONING REGION | C114: QJ2 | D114: Joined Up Care Derbyshire STP | E114: RY8 | F114: DERBYSHIRE COMMUNITY HEALTH SERVICES NHS FOUNDATION TRUST | G114: Community Trusts | H114: 1635 | I114: 3365 | J114: 7.310174393 | K114: 7.76531231 | L114: 6.955730746 | M114: 7.209480122
A115: Y60 | B115: MIDLANDS COMMISSIONING REGION | C115: QUA | D115: The Black Country and West Birmingham STP | E115: RYA | F115: WEST MIDLANDS AMBULANCE SERVICE UNIVERSITY NHS FOUNDATION TRUST | G115: Ambulance Trusts | H115: 558 | I115: 6387 | J115: 4.853643967 | K115: 5.080645161 | L115: 3.991935484 | M115: 5.488351254
A116: Y60 | B116: MIDLANDS COMMISSIONING REGION | C116: QWU | D116: Coventry and Warwickshire STP | E116: RYG | F116: COVENTRY AND WARWICKSHIRE PARTNERSHIP NHS TRUST | G116: Mental Health & Learning Disability and Mental Health, Learning Disability & Community Trusts | H116: 299 | I116: 3505 | J116: 6.982534374 | K116: 7.020624303 | L116: 6.875696767 | M116: 7.051282051
A117: Y60 | B117: MIDLANDS COMMISSIONING REGION | C117: QHL | D117: Birmingham and Solihull STP | E117: RYW | F117: BIRMINGHAM COMMUNITY HEALTHCARE NHS FOUNDATION TRUST | G117: Community Trusts | H117: 526 | I117: 4224 | J117: 6.411068864 | K117: 6.202471483 | L117: 6.319708492 | M117: 6.711026616
A118: Y60 | B118: MIDLANDS COMMISSIONING REGION | C118: QUA | D118: The Black Country and West Birmingham STP | E118: TAJ | F118: BLACK COUNTRY HEALTHCARE NHS FOUNDATION TRUST | G118: Mental Health & Learning Disability and Mental Health, Learning Disability & Community Trusts | H118: 606 | I118: 3097 | J118: 6.191327466 | K118: 6.061606161 | L118: 6.105610561 | M118: 6.406765677
A119: Y61 | B119: EAST OF ENGLAND COMMISSIONING REGION | C119: QH8 | D119: Mid and South Essex STP | E119: R1L | F119: ESSEX PARTNERSHIP UNIVERSITY NHS FOUNDATION TRUST | G119: Mental Health & Learning Disability and Mental Health, Learning Disability & Community Trusts | H119: 322 | I119: 4918 | J119: 6.548569847 | K119: 6.669246646 | L119: 6.397515528 | M119: 6.578947368
A120: Y61 | B120: EAST OF ENGLAND COMMISSIONING REGION | C120: QH8 | D120: Mid and South Essex STP | E120: RAJ | F120: MID AND SOUTH ESSEX NHS FOUNDATION TRUST | G120: Acute and Acute & Community Trusts | H120: 48 | I120: 13662 | J120: 5.25462963 | K120: 4.947916667 | L120: 4.791666667 | M120: 6.024305556
A121: Y61 | B121: EAST OF ENGLAND COMMISSIONING REGION | C121: QH8 | D121: Mid and South Essex STP | E121: RAJ | F121: MID AND SOUTH ESSEX NHS FOUNDATION TRUST | G121: Acute and Acute & Community Trusts | H121: 48 | I121: 13662 | J121: 5.25462963 | K121: 4.947916667 | L121: 4.791666667 | M121: 6.024305556
A122: Y61 | B122: EAST OF ENGLAND COMMISSIONING REGION | C122: QHG | D122: Bedfordshire, Luton and Milton Keynes STP | E122: RC9 | F122: BEDFORDSHIRE HOSPITALS NHS FOUNDATION TRUST | G122: Acute and Acute & Community Trusts | H122: 28 | I122: 7136 | J122: 5.049603175 | K122: 5.208333333 | L122: 5 | M122: 4.94047619
A123: Y61 | B123: EAST OF ENGLAND COMMISSIONING REGION | C123: QMM | D123: Norfolk and Waveney Health & Care Partnership (STP) | E123: RCX | F123: THE QUEEN ELIZABETH HOSPITAL, KING'S LYNN, NHS FOUNDATION TRUST | G123: Acute and Acute & Community Trusts | H123: 89 | I123: 3273 | J123: 5.939450687 | K123: 5.608614232 | L123: 5.898876404 | M123: 6.310861423
A124: Y61 | B124: EAST OF ENGLAND COMMISSIONING REGION | C124: QHG | D124: Bedfordshire, Luton and Milton Keynes STP | E124: RD8 | F124: MILTON KEYNES UNIVERSITY HOSPITAL NHS FOUNDATION TRUST | G124: Acute and Acute & Community Trusts | H124: 12 | I124: 3264 | J124: 6.342592593 | K124: 6.597222222 | L124: 6.25 | M124: 6.180555556
A125: Y61 | B125: EAST OF ENGLAND COMMISSIONING REGION | C125: QJG | D125: Suffolk and North East Essex STP | E125: RDE | F125: EAST SUFFOLK AND NORTH ESSEX NHS FOUNDATION TRUST | G125: Acute and Acute & Community Trusts | H125: 32 | I125: 9644 | J125: 6.371527778 | K125: 6.510416667 | L125: 6.380208333 | M125: 6.223958333
A126: Y61 | B126: EAST OF ENGLAND COMMISSIONING REGION | C126: QUE | D126: Cambridgeshire and Peterborough STP | E126: RGM | F126: ROYAL PAPWORTH HOSPITAL NHS FOUNDATION TRUST | G126: Acute Specialist Trusts | H126: 259 | I126: 1894 | J126: 7.238399711 | K126: 8.008365508 | L126: 6.862026862 | M126: 6.844806763
A127: Y61 | B127: EAST OF ENGLAND COMMISSIONING REGION | C127: QUE | D127: Cambridgeshire and Peterborough STP | E127: RGN | F127: NORTH WEST ANGLIA NHS FOUNDATION TRUST | G127: Acute and Acute & Community Trusts | H127: 261 | I127: 6066 | J127: 6.450215424 | K127: 6.469298246 | L127: 6.466916355 | M127: 6.414431673
A128: Y61 | B128: EAST OF ENGLAND COMMISSIONING REGION | C128: QJG | D128: Suffolk and North East Essex STP | E128: RGR | F128: WEST SUFFOLK NHS FOUNDATION TRUST | G128: Acute and Acute & Community Trusts | H128: 1401 | I128: 4097 | J128: 7.001094345 | K128: 7.233523674 | L128: 6.751122136 | M128: 7.018637227
A129: Y61 | B129: EAST OF ENGLAND COMMISSIONING REGION | C129: QUE | D129: Cambridgeshire and Peterborough STP | E129: RGT | F129: CAMBRIDGE UNIVERSITY HOSPITALS NHS FOUNDATION TRUST | G129: Acute and Acute & Community Trusts | H129: 4086 | I129: 10429 | J129: 3.092413026 | K129: 2.503359248 | L129: 3.624507991 | M129: 3.149371839
A130: Y61 | B130: EAST OF ENGLAND COMMISSIONING REGION | C130: QMM | D130: Norfolk and Waveney Health & Care Partnership (STP) | E130: RM1 | F130: NORFOLK AND NORWICH UNIVERSITY HOSPITALS NHS FOUNDATION TRUST | G130: Acute and Acute & Community Trusts | H130: 220 | I130: 7867 | J130: 5.575757576 | K130: 5.356060606 | L130: 5.431818182 | M130: 5.939393939
A131: Y61 | B131: EAST OF ENGLAND COMMISSIONING REGION | C131: QMM | D131: Norfolk and Waveney Health & Care Partnership (STP) | E131: RMY | F131: NORFOLK AND SUFFOLK NHS FOUNDATION TRUST | G131: Mental Health & Learning Disability and Mental Health, Learning Disability & Community Trusts | H131: 1366 | I131: 4168 | J131: 6.373834836 | K131: 5.625915081 | L131: 6.702294686 | M131: 6.793294742
A132: Y61 | B132: EAST OF ENGLAND COMMISSIONING REGION | C132: QM7 | D132: Hertfordshire and West Essex STP | E132: RQW | F132: THE PRINCESS ALEXANDRA HOSPITAL NHS TRUST | G132: Acute and Acute & Community Trusts | H132: 190 | I132: 3407 | J132: 5.887426901 | K132: 5.324561404 | L132: 6.035087719 | M132: 6.302631579
A133: Y61 | B133: EAST OF ENGLAND COMMISSIONING REGION | C133: QUE | D133: Cambridgeshire and Peterborough STP | E133: RT1 | F133: CAMBRIDGESHIRE AND PETERBOROUGH NHS FOUNDATION TRUST | G133: Mental Health & Learning Disability and Mental Health, Learning Disability & Community Trusts | H133: 2778 | I133: 3809 | J133: 6.899548036 | K133: 7.053935685 | L133: 6.8262539 | M133: 6.818454524
A134: Y61 | B134: EAST OF ENGLAND COMMISSIONING REGION | C134: QM7 | D134: Hertfordshire and West Essex STP | E134: RWG | F134: WEST HERTFORDSHIRE HOSPITALS NHS TRUST | G134: Acute and Acute & Community Trusts | H134: 664 | I134: 4738 | J134: 6.139976573 | K134: 5.874748996 | L134: 6.001506024 | M134: 6.543674699
A135: Y61 | B135: EAST OF ENGLAND COMMISSIONING REGION | C135: QM7 | D135: Hertfordshire and West Essex STP | E135: RWH | F135: EAST AND NORTH HERTFORDSHIRE NHS TRUST | G135: Acute and Acute & Community Trusts | H135: 180 | I135: 5630 | J135: 6.148148148 | K135: 6.060185185 | L135: 5.884259259 | M135: 6.5
A136: Y61 | B136: EAST OF ENGLAND COMMISSIONING REGION | C136: QM7 | D136: Hertfordshire and West Essex STP | E136: RWR | F136: HERTFORDSHIRE PARTNERSHIP UNIVERSITY NHS FOUNDATION TRUST | G136: Mental Health & Learning Disability and Mental Health, Learning Disability & Community Trusts | H136: 853 | I136: 3266 | J136: 7.394999802 | K136: 7.795199381 | L136: 7.147323173 | M136: 7.242476852
A137: Y61 | B137: EAST OF ENGLAND COMMISSIONING REGION | C137: QMM | D137: Norfolk and Waveney Health & Care Partnership (STP) | E137: RY3 | F137: NORFOLK COMMUNITY HEALTH AND CARE NHS TRUST | G137: Community Trusts | H137: 398 | I137: 1992 | J137: 7.195700726 | K137: 7.386934673 | L137: 7.108458961 | M137: 7.091708543
A138: Y61 | B138: EAST OF ENGLAND COMMISSIONING REGION | C138: QM7 | D138: Hertfordshire and West Essex STP | E138: RY4 | F138: HERTFORDSHIRE COMMUNITY NHS TRUST | G138: Community Trusts | H138: 171 | I138: 2090 | J138: 7.155620533 | K138: 7.256335283 | L138: 6.82748538 | M138: 7.383040936
A139: Y61 | B139: EAST OF ENGLAND COMMISSIONING REGION | C139: QUE | D139: Cambridgeshire and Peterborough STP | E139: RYC | F139: EAST OF ENGLAND AMBULANCE SERVICE NHS TRUST | G139: Ambulance Trusts | H139: 305 | I139: 5410 | J139: 4.680327869 | K139: 4.770491803 | L139: 3.920765027 | M139: 5.349726776
A140: Y61 | B140: EAST OF ENGLAND COMMISSIONING REGION | C140: QUE | D140: Cambridgeshire and Peterborough STP | E140: RYV | F140: CAMBRIDGESHIRE COMMUNITY SERVICES NHS TRUST | G140: Community Trusts | H140: 99 | I140: 2126 | J140: 7.471941639 | K140: 7.87037037 | L140: 7.138047138 | M140: 7.407407407
A141: Y62 | B141: NORTH WEST COMMISSIONING REGION | C141: QOP | D141: Greater Manchester Health & Social Care Partnership | E141: R0A | F141: MANCHESTER UNIVERSITY NHS FOUNDATION TRUST | G141: Acute and Acute & Community Trusts | H141: 2798 | I141: 24928 | J141: 6.418615292 | K141: 6.471812002 | L141: 6.284153005 | M141: 6.499880867
A142: Y62 | B142: NORTH WEST COMMISSIONING REGION | C142: QYG | D142: Cheshire and Merseyside STP | E142: RBL | F142: WIRRAL UNIVERSITY TEACHING HOSPITAL NHS FOUNDATION TRUST | G142: Acute and Acute & Community Trusts | H142: 59 | I142: 5550 | J142: 5.649717514 | K142: 6.129943503 | L142: 5.084745763 | M142: 5.734463277
A143: Y62 | B143: NORTH WEST COMMISSIONING REGION | C143: QYG | D143: Cheshire and Merseyside STP | E143: RBN | F143: ST HELENS AND KNOWSLEY TEACHING HOSPITALS NHS TRUST | G143: Acute and Acute & Community Trusts | H143: 137 | I143: 5963 | J143: 6.261151663 | K143: 6.636253041 | L143: 5.681265207 | M143: 6.46593674
A144: Y62 | B144: NORTH WEST COMMISSIONING REGION | C144: QYG | D144: Cheshire and Merseyside STP | E144: RBQ | F144: LIVERPOOL HEART AND CHEST HOSPITAL NHS FOUNDATION TRUST | G144: Acute Specialist Trusts | H144: 146 | I144: 1662 | J144: 6.953957382 | K144: 7.631278539 | L144: 6.512557078 | M144: 6.71803653
A145: Y62 | B145: NORTH WEST COMMISSIONING REGION | C145: QYG | D145: Cheshire and Merseyside STP | E145: RBS | F145: ALDER HEY CHILDREN'S NHS FOUNDATION TRUST | G145: Acute and Acute & Community Trusts | H145: 271 | I145: 3632 | J145: 7.004920049 | K145: 7.610701107 | L145: 6.482164822 | M145: 6.921894219
A146: Y62 | B146: NORTH WEST COMMISSIONING REGION | C146: QYG | D146: Cheshire and Merseyside STP | E146: RBT | F146: MID CHESHIRE HOSPITALS NHS FOUNDATION TRUST | G146: Acute and Acute & Community Trusts | H146: 204 | I146: 4300 | J146: 6.970315904 | K146: 7.144607843 | L146: 6.732026144 | M146: 7.034313725
A147: Y62 | B147: NORTH WEST COMMISSIONING REGION | C147: QOP | D147: Greater Manchester Health & Social Care Partnership | E147: RBV | F147: THE CHRISTIE NHS FOUNDATION TRUST | G147: Acute Specialist Trusts | H147: 107 | I147: 2962 | J147: 7.024922118 | K147: 7.570093458 | L147: 6.861370717 | M147: 6.643302181
A148: Y62 | B148: NORTH WEST COMMISSIONING REGION | C148: QYG | D148: Cheshire and Merseyside STP | E148: REM | F148: LIVERPOOL UNIVERSITY HOSPITALS NHS FOUNDATION TRUST | G148: Acute and Acute & Community Trusts | H148: 2055 | I148: 12104 | J148: 6.447610296 | K148: 6.555961071 | L148: 6.193910256 | M148: 6.592959562
A149: Y62 | B149: NORTH WEST COMMISSIONING REGION | C149: QYG | D149: Cheshire and Merseyside STP | E149: REN | F149: THE CLATTERBRIDGE CANCER CENTRE NHS FOUNDATION TRUST | G149: Acute Specialist Trusts | H149: 228 | I149: 1451 | J149: 6.993177388 | K149: 7.394005848 | L149: 6.801900585 | M149: 6.783625731
A150: Y62 | B150: NORTH WEST COMMISSIONING REGION | C150: QYG | D150: Cheshire and Merseyside STP | E150: REP | F150: LIVERPOOL WOMEN'S NHS FOUNDATION TRUST | G150: Acute Specialist Trusts | H150: 186 | I150: 1405 | J150: 6.391314532 | K150: 6.366487455 | L150: 5.73245614 | M150: 7.075
A151: Y62 | B151: NORTH WEST COMMISSIONING REGION | C151: QYG | D151: Cheshire and Merseyside STP | E151: RET | F151: THE WALTON CENTRE NHS FOUNDATION TRUST | G151: Acute Specialist Trusts | H151: 106 | I151: 1347 | J151: 7.216981132 | K151: 7.720125786 | L151: 6.981132075 | M151: 6.949685535
A152: Y62 | B152: NORTH WEST COMMISSIONING REGION | C152: QYG | D152: Cheshire and Merseyside STP | E152: RJN | F152: EAST CHESHIRE NHS TRUST | G152: Acute and Acute & Community Trusts | H152: 122 | I152: 2167 | J152: 6.591530055 | K152: 6.482240437 | L152: 6.707650273 | M152: 6.584699454
A153: Y62 | B153: NORTH WEST COMMISSIONING REGION | C153: QYG | D153: Cheshire and Merseyside STP | E153: RJR | F153: COUNTESS OF CHESTER HOSPITAL NHS FOUNDATION TRUST | G153: Acute and Acute & Community Trusts | H153: 263 | I153: 3819 | J153: 6.190089264 | K153: 5.884030418 | L153: 6.253156566 | M153: 6.433080808
A154: Y62 | B154: NORTH WEST COMMISSIONING REGION | C154: QOP | D154: Greater Manchester Health & Social Care Partnership | E154: RM3 | F154: NORTHERN CARE ALLIANCE NHS FOUNDATION TRUST | G154: Acute and Acute & Community Trusts | H154: 2263 | I154: 17028 | J154: 6.361308488 | K154: 6.586757991 | L154: 6.223582568 | M154: 6.273584906
A155: Y62 | B155: NORTH WEST COMMISSIONING REGION | C155: QOP | D155: Greater Manchester Health & Social Care Partnership | E155: RMC | F155: BOLTON NHS FOUNDATION TRUST | G155: Acute and Acute & Community Trusts | H155: 1089 | I155: 5533 | J155: 7.216865626 | K155: 7.000306091 | L155: 7.331649832 | M155: 7.318640955
A156: Y62 | B156: NORTH WEST COMMISSIONING REGION | C156: QOP | D156: Greater Manchester Health & Social Care Partnership | E156: RMP | F156: TAMESIDE AND GLOSSOP INTEGRATED CARE NHS FOUNDATION TRUST | G156: Acute and Acute & Community Trusts | H156: 78 | I156: 3584 | J156: 5.548433048 | K156: 5.16025641 | L156: 5.341880342 | M156: 6.143162393
A157: Y62 | B157: NORTH WEST COMMISSIONING REGION | C157: QOP | D157: Greater Manchester Health & Social Care Partnership | E157: RRF | F157: WRIGHTINGTON, WIGAN AND LEIGH NHS FOUNDATION TRUST | G157: Acute and Acute & Community Trusts | H157: 159 | I157: 5754 | J157: 6.112858141 | K157: 6.194968553 | L157: 5.880503145 | M157: 6.263102725
A158: Y62 | B158: NORTH WEST COMMISSIONING REGION | C158: QOP | D158: Greater Manchester Health & Social Care Partnership | E158: RT2 | F158: PENNINE CARE NHS FOUNDATION TRUST | G158: Mental Health & Learning Disability and Mental Health, Learning Disability & Community Trusts | H158: 231 | I158: 3145 | J158: 6.334776335 | K158: 5.937950938 | L158: 6.504329004 | M158: 6.562049062
A159: Y62 | B159: NORTH WEST COMMISSIONING REGION | C159: QE1 | D159: Healthier Lancashire and South Cumbria | E159: RTX | F159: UNIVERSITY HOSPITALS OF MORECAMBE BAY NHS FOUNDATION TRUST | G159: Acute and Acute & Community Trusts | H159: 199 | I159: 6070 | J159: 5.566722501 | K159: 5.125628141 | L159: 5.586264657 | M159: 5.988274707
A160: Y62 | B160: NORTH WEST COMMISSIONING REGION | C160: QYG | D160: Cheshire and Merseyside STP | E160: RVY | F160: SOUTHPORT AND ORMSKIRK HOSPITAL NHS TRUST | G160: Acute and Acute & Community Trusts | H160: 324 | I160: 2861 | J160: 6.362105662 | K160: 6.030901722 | L160: 6.257575758 | M160: 6.797839506
A161: Y62 | B161: NORTH WEST COMMISSIONING REGION | C161: QYG | D161: Cheshire and Merseyside STP | E161: RW4 | F161: MERSEY CARE NHS FOUNDATION TRUST | G161: Mental Health & Learning Disability and Mental Health, Learning Disability & Community Trusts | H161: 2317 | I161: 9735 | J161: 6.956346905 | K161: 6.983518045 | L161: 6.749139415 | M161: 7.136383254
A162: Y62 | B162: NORTH WEST COMMISSIONING REGION | C162: QE1 | D162: Healthier Lancashire and South Cumbria | E162: RW5 | F162: LANCASHIRE & SOUTH CUMBRIA NHS FOUNDATION TRUST | G162: Mental Health & Learning Disability and Mental Health, Learning Disability & Community Trusts | H162: 1058 | I162: 6159 | J162: 6.911231362 | K162: 6.973850032 | L162: 6.622807018 | M162: 7.137037037
A163: Y62 | B163: NORTH WEST COMMISSIONING REGION | C163: QOP | D163: Greater Manchester Health & Social Care Partnership | E163: RWJ | F163: STOCKPORT NHS FOUNDATION TRUST | G163: Acute and Acute & Community Trusts | H163: 87 | I163: 4993 | J163: 5.69284802 | K163: 5.04789272 | L163: 5.795019157 | M163: 6.235632184
A164: Y62 | B164: NORTH WEST COMMISSIONING REGION | C164: QYG | D164: Cheshire and Merseyside STP | E164: RWW | F164: WARRINGTON AND HALTON TEACHING HOSPITALS NHS FOUNDATION TRUST | G164: Acute and Acute & Community Trusts | H164: 51 | I164: 3876 | J164: 6.28540305 | K164: 6.12745098 | L164: 6.062091503 | M164: 6.666666667
A165: Y62 | B165: NORTH WEST COMMISSIONING REGION | C165: QOP | D165: Greater Manchester Health & Social Care Partnership | E165: RX7 | F165: NORTH WEST AMBULANCE SERVICE NHS TRUST | G165: Ambulance Trusts | H165: 1350 | I165: 6258 | J165: 6.087708626 | K165: 6.364814815 | L165: 5.557810578 | M165: 6.340500486
A166: Y62 | B166: NORTH WEST COMMISSIONING REGION | C166: QYG | D166: Cheshire and Merseyside STP | E166: RXA | F166: CHESHIRE AND WIRRAL PARTNERSHIP NHS FOUNDATION TRUST | G166: Mental Health & Learning Disability and Mental Health, Learning Disability & Community Trusts | H166: 793 | I166: 3383 | J166: 7.017061495 | K166: 7.207860446 | L166: 6.770833333 | M166: 7.072490706
A167: Y62 | B167: NORTH WEST COMMISSIONING REGION | C167: QE1 | D167: Healthier Lancashire and South Cumbria | E167: RXL | F167: BLACKPOOL TEACHING HOSPITALS NHS FOUNDATION TRUST | G167: Acute and Acute & Community Trusts | H167: 539 | I167: 6870 | J167: 6.571840858 | K167: 6.437847866 | L167: 6.422387137 | M167: 6.85528757
A168: Y62 | B168: NORTH WEST COMMISSIONING REGION | C168: QE1 | D168: Healthier Lancashire and South Cumbria | E168: RXN | F168: LANCASHIRE TEACHING HOSPITALS NHS FOUNDATION TRUST | G168: Acute and Acute & Community Trusts | H168: 1723 | I168: 8078 | J168: 6.711462111 | K168: 6.663281099 | L168: 6.659531963 | M168: 6.811573272
A169: Y62 | B169: NORTH WEST COMMISSIONING REGION | C169: QE1 | D169: Healthier Lancashire and South Cumbria | E169: RXR | F169: EAST LANCASHIRE HOSPITALS NHS TRUST | G169: Acute and Acute & Community Trusts | H169: 95 | I169: 8472 | J169: 6.421052632 | K169: 6.385964912 | L169: 6.254385965 | M169: 6.622807018
A170: Y62 | B170: NORTH WEST COMMISSIONING REGION | C170: QOP | D170: Greater Manchester Health & Social Care Partnership | E170: RXV | F170: GREATER MANCHESTER MENTAL HEALTH NHS FOUNDATION TRUST | G170: Mental Health & Learning Disability and Mental Health, Learning Disability & Community Trusts | H170: 1249 | I170: 5688 | J170: 6.67087735 | K170: 6.489858554 | L170: 6.69426919 | M170: 6.828504307
A171: Y62 | B171: NORTH WEST COMMISSIONING REGION | C171: QYG | D171: Cheshire and Merseyside STP | E171: RY2 | F171: BRIDGEWATER COMMUNITY HEALTHCARE NHS FOUNDATION TRUST | G171: Community Trusts | H171: 296 | I171: 1423 | J171: 6.808370871 | K171: 6.776463964 | L171: 6.556869369 | M171: 7.091779279
A172: Y62 | B172: NORTH WEST COMMISSIONING REGION | C172: QYG | D172: Cheshire and Merseyside STP | E172: RY7 | F172: WIRRAL COMMUNITY HEALTH AND CARE NHS FOUNDATION TRUST | G172: Community Trusts | H172: 137 | I172: 1514 | J172: 6.855231144 | K172: 6.861313869 | L172: 6.648418491 | M172: 7.055961071
A173: Y63 | B173: NORTH EAST AND YORKSHIRE COMMISSIONING REGION | C173: QHM | D173: Cumbria and North East STP | E173: R0B | F173: SOUTH TYNESIDE AND SUNDERLAND NHS FOUNDATION TRUST | G173: Acute and Acute & Community Trusts | H173: 131 | I173: 7669 | J173: 5.22264631 | K173: 5.24173028 | L173: 5.286259542 | M173: 5.139949109
A174: Y63 | B174: NORTH EAST AND YORKSHIRE COMMISSIONING REGION | C174: QWO | D174: West Yorkshire and Harrogate Health & Care Partnership (STP) | E174: RAE | F174: BRADFORD TEACHING HOSPITALS NHS FOUNDATION TRUST | G174: Acute and Acute & Community Trusts | H174: 74 | I174: 5468 | J174: 5.968468468 | K174: 5.957207207 | L174: 6.06981982 | M174: 5.878378378
A175: Y63 | B175: NORTH EAST AND YORKSHIRE COMMISSIONING REGION | C175: QOQ | D175: Humber, Coast and Vale STP | E175: RCB | F175: YORK AND SCARBOROUGH TEACHING HOSPITALS NHS FOUNDATION TRUST | G175: Acute and Acute & Community Trusts | H175: 142 | I175: 7674 | J175: 5.768779343 | K175: 5.281690141 | L175: 5.974178404 | M175: 6.050469484
A176: Y63 | B176: NORTH EAST AND YORKSHIRE COMMISSIONING REGION | C176: QOQ | D176: Humber, Coast and Vale STP | E176: RCD | F176: HARROGATE AND DISTRICT NHS FOUNDATION TRUST | G176: Acute and Acute & Community Trusts | H176: 932 | I176: 3924 | J176: 6.955357746 | K176: 6.869635193 | L176: 6.84453931 | M176: 7.151898734
A177: Y63 | B177: NORTH EAST AND YORKSHIRE COMMISSIONING REGION | C177: QWO | D177: West Yorkshire and Harrogate Health & Care Partnership (STP) | E177: RCF | F177: AIREDALE NHS FOUNDATION TRUST | G177: Acute and Acute & Community Trusts | H177: 884 | I177: 2987 | J177: 6.965448411 | K177: 7.140837104 | L177: 6.686219739 | M177: 7.06928839
A178: Y63 | B178: NORTH EAST AND YORKSHIRE COMMISSIONING REGION | C178: QF7 | D178: South Yorkshire and Bassetlaw STP | E178: RCU | F178: SHEFFIELD CHILDREN'S NHS FOUNDATION TRUST | G178: Acute and Acute & Community Trusts | H178: 275 | I178: 3013 | J178: 6.955555556 | K178: 7.442424242 | L178: 6.860606061 | M178: 6.563636364
A179: Y63 | B179: NORTH EAST AND YORKSHIRE COMMISSIONING REGION | C179: QF7 | D179: South Yorkshire and Bassetlaw STP | E179: RFF | F179: BARNSLEY HOSPITAL NHS FOUNDATION TRUST | G179: Acute and Acute & Community Trusts | H179: 61 | I179: 3523 | J179: 6.675774135 | K179: 6.543715847 | L179: 6.816939891 | M179: 6.666666667
A180: Y63 | B180: NORTH EAST AND YORKSHIRE COMMISSIONING REGION | C180: QF7 | D180: South Yorkshire and Bassetlaw STP | E180: RFR | F180: THE ROTHERHAM NHS FOUNDATION TRUST | G180: Acute and Acute & Community Trusts | H180: 53 | I180: 3997 | J180: 5.534591195 | K180: 5.078616352 | L180: 5.534591195 | M180: 5.990566038
A181: Y63 | B181: NORTH EAST AND YORKSHIRE COMMISSIONING REGION | C181: QWO | D181: West Yorkshire and Harrogate Health & Care Partnership (STP) | E181: RGD | F181: LEEDS AND YORK PARTNERSHIP NHS FOUNDATION TRUST | G181: Mental Health & Learning Disability and Mental Health, Learning Disability & Community Trusts | H181: 18 | I181: 2818 | J181: 6.033950617 | K181: 5.601851852 | L181: 6.481481481 | M181: 6.018518519
A182: Y63 | B182: NORTH EAST AND YORKSHIRE COMMISSIONING REGION | C182: QF7 | D182: South Yorkshire and Bassetlaw STP | E182: RHQ | F182: SHEFFIELD TEACHING HOSPITALS NHS FOUNDATION TRUST | G182: Acute and Acute & Community Trusts | H182: 953 | I182: 14915 | J182: 6.378687187 | K182: 6.699895068 | L182: 6.162119622 | M182: 6.27404687
A183: Y63 | B183: NORTH EAST AND YORKSHIRE COMMISSIONING REGION | C183: QOQ | D183: Humber, Coast and Vale STP | E183: RJL | F183: NORTHERN LINCOLNSHIRE AND GOOLE NHS FOUNDATION TRUST | G183: Acute and Acute & Community Trusts | H183: 182 | I183: 5527 | J183: 5.549450549 | K183: 5 | L183: 5.462454212 | M183: 6.185897436
A184: Y63 | B184: NORTH EAST AND YORKSHIRE COMMISSIONING REGION | C184: QHM | D184: Cumbria and North East STP | E184: RNN | F184: NORTH CUMBRIA INTEGRATED CARE NHS FOUNDATION TRUST | G184: Acute and Acute & Community Trusts | H184: 504 | I184: 5709 | J184: 5.869157848 | K184: 5.165343915 | L184: 5.968915344 | M184: 6.473214286
A185: Y63 | B185: NORTH EAST AND YORKSHIRE COMMISSIONING REGION | C185: QF7 | D185: South Yorkshire and Bassetlaw STP | E185: RP5 | F185: DONCASTER AND BASSETLAW TEACHING HOSPITALS NHS FOUNDATION TRUST | G185: Acute and Acute & Community Trusts | H185: 1431 | I185: 5615 | J185: 7.219126497 | K185: 8.33919042 | L185: 6.454108009 | M185: 6.864081062
A186: Y63 | B186: NORTH EAST AND YORKSHIRE COMMISSIONING REGION | C186: QHM | D186: Cumbria and North East STP | E186: RR7 | F186: GATESHEAD HEALTH NHS FOUNDATION TRUST | G186: Acute and Acute & Community Trusts | H186: 351 | I186: 4268 | J186: 6.327160494 | K186: 6.585944919 | L186: 6.018518519 | M186: 6.377018044
A187: Y63 | B187: NORTH EAST AND YORKSHIRE COMMISSIONING REGION | C187: QWO | D187: West Yorkshire and Harrogate Health & Care Partnership (STP) | E187: RR8 | F187: LEEDS TEACHING HOSPITALS NHS TRUST | G187: Acute and Acute & Community Trusts | H187: 3182 | I187: 17248 | J187: 6.857584329 | K187: 7.134925623 | L187: 6.644144144 | M187: 6.793683218
A188: Y63 | B188: NORTH EAST AND YORKSHIRE COMMISSIONING REGION | C188: QHM | D188: Cumbria and North East STP | E188: RTD | F188: THE NEWCASTLE UPON TYNE HOSPITALS NHS FOUNDATION TRUST | G188: Acute and Acute & Community Trusts | H188: 180 | I188: 14299 | J188: 6.285493827 | K188: 6.893518519 | L188: 6 | M188: 5.962962963
A189: Y63 | B189: NORTH EAST AND YORKSHIRE COMMISSIONING REGION | C189: QHM | D189: Cumbria and North East STP | E189: RTF | F189: NORTHUMBRIA HEALTHCARE NHS FOUNDATION TRUST | G189: Acute and Acute & Community Trusts | H189: 4015 | I189: 7033 | J189: 7.182302477 | K189: 7.715649647 | L189: 6.761519303 | M189: 7.069738481
A190: Y63 | B190: NORTH EAST AND YORKSHIRE COMMISSIONING REGION | C190: QOQ | D190: Humber, Coast and Vale STP | E190: RV9 | F190: HUMBER TEACHING NHS FOUNDATION TRUST | G190: Mental Health & Learning Disability and Mental Health, Learning Disability & Community Trusts | H190: 602 | I190: 2645 | J190: 6.924112776 | K190: 6.86298737 | L190: 6.928453947 | M190: 6.98089701
A191: Y63 | B191: NORTH EAST AND YORKSHIRE COMMISSIONING REGION | C191: QHM | D191: Cumbria and North East STP | E191: RVW | F191: NORTH TEES AND HARTLEPOOL NHS FOUNDATION TRUST | G191: Acute and Acute & Community Trusts | H191: 122 | I191: 4661 | J191: 6.16575592 | K191: 6.058743169 | L191: 6.256830601 | M191: 6.181693989
A192: Y63 | B192: NORTH EAST AND YORKSHIRE COMMISSIONING REGION | C192: QWO | D192: West Yorkshire and Harrogate Health & Care Partnership (STP) | E192: RWY | F192: CALDERDALE AND HUDDERSFIELD NHS FOUNDATION TRUST | G192: Acute and Acute & Community Trusts | H192: 256 | I192: 5590 | J192: 6.281467014 | K192: 6.263020833 | L192: 6.181640625 | M192: 6.399739583
A193: Y63 | B193: NORTH EAST AND YORKSHIRE COMMISSIONING REGION | C193: QHM | D193: Cumbria and North East STP | E193: RX3 | F193: TEES, ESK AND WEAR VALLEYS NHS FOUNDATION TRUST | G193: Mental Health & Learning Disability and Mental Health, Learning Disability & Community Trusts | H193: 2361 | I193: 6819 | J193: 6.712524679 | K193: 6.54171961 | L193: 6.741251917 | M193: 6.85460251
A194: Y63 | B194: NORTH EAST AND YORKSHIRE COMMISSIONING REGION | C194: QHM | D194: Cumbria and North East STP | E194: RX4 | F194: CUMBRIA, NORTHUMBERLAND, TYNE AND WEAR NHS FOUNDATION TRUST | G194: Mental Health & Learning Disability and Mental Health, Learning Disability & Community Trusts | H194: 104 | I194: 6670 | J194: 6.308760684 | K194: 6.241987179 | L194: 6.386217949 | M194: 6.298076923
A195: Y63 | B195: NORTH EAST AND YORKSHIRE COMMISSIONING REGION | C195: QHM | D195: Cumbria and North East STP | E195: RX6 | F195: NORTH EAST AMBULANCE SERVICE NHS FOUNDATION TRUST | G195: Ambulance Trusts | H195: 293 | I195: 2645 | J195: 5.18486917 | K195: 5.176336746 | L195: 4.726962457 | M195: 5.651308305
A196: Y63 | B196: NORTH EAST AND YORKSHIRE COMMISSIONING REGION | C196: QWO | D196: West Yorkshire and Harrogate Health & Care Partnership (STP) | E196: RX8 | F196: YORKSHIRE AMBULANCE SERVICE NHS TRUST | G196: Ambulance Trusts | H196: 747 | I196: 5221 | J196: 5.987546322 | K196: 6.522988506 | L196: 5.414438503 | M196: 6.025211959
A197: Y63 | B197: NORTH EAST AND YORKSHIRE COMMISSIONING REGION | C197: QF7 | D197: South Yorkshire and Bassetlaw STP | E197: RXE | F197: ROTHERHAM DONCASTER AND SOUTH HUMBER NHS FOUNDATION TRUST | G197: Mental Health & Learning Disability and Mental Health, Learning Disability & Community Trusts | H197: 56 | I197: 3009 | J197: 5.426587302 | K197: 5.37202381 | L197: 5.416666667 | M197: 5.491071429
A198: Y63 | B198: NORTH EAST AND YORKSHIRE COMMISSIONING REGION | C198: QWO | D198: West Yorkshire and Harrogate Health & Care Partnership (STP) | E198: RXF | F198: MID YORKSHIRE HOSPITALS NHS TRUST | G198: Acute and Acute & Community Trusts | H198: 2338 | I198: 7662 | J198: 6.542071384 | K198: 6.511619618 | L198: 6.306810187 | M198: 6.807784347
A199: Y63 | B199: NORTH EAST AND YORKSHIRE COMMISSIONING REGION | C199: QWO | D199: West Yorkshire and Harrogate Health & Care Partnership (STP) | E199: RXG | F199: SOUTH WEST YORKSHIRE PARTNERSHIP NHS FOUNDATION TRUST | G199: Mental Health & Learning Disability and Mental Health, Learning Disability & Community Trusts | H199: 817 | I199: 3996 | J199: 7.045834207 | K199: 7.285307285 | L199: 6.794871795 | M199: 7.057323541
A200: Y63 | B200: NORTH EAST AND YORKSHIRE COMMISSIONING REGION | C200: QHM | D200: Cumbria and North East STP | E200: RXP | F200: COUNTY DURHAM AND DARLINGTON NHS FOUNDATION TRUST | G200: Acute and Acute & Community Trusts | H200: 1503 | I200: 6751 | J200: 6.178568788 | K200: 6.234752717 | L200: 5.983033932 | M200: 6.317919716
A201: Y63 | B201: NORTH EAST AND YORKSHIRE COMMISSIONING REGION | C201: QWO | D201: West Yorkshire and Harrogate Health & Care Partnership (STP) | E201: RY6 | F201: LEEDS COMMUNITY HEALTHCARE NHS TRUST | G201: Community Trusts | H201: 892 | I201: 2710 | J201: 6.889869295 | K201: 7.039085546 | L201: 6.759259259 | M201: 6.871263079
A202: Y63 | B202: NORTH EAST AND YORKSHIRE COMMISSIONING REGION | C202: QWO | D202: West Yorkshire and Harrogate Health & Care Partnership (STP) | E202: TAD | F202: BRADFORD DISTRICT CARE NHS FOUNDATION TRUST | G202: Mental Health & Learning Disability and Mental Health, Learning Disability & Community Trusts | H202: 489 | I202: 2811 | J202: 7.062072487 | K202: 7.240967962 | L202: 6.976626016 | M202: 6.968623482
A203: Y63 | B203: NORTH EAST AND YORKSHIRE COMMISSIONING REGION | C203: QF7 | D203: South Yorkshire and Bassetlaw STP | E203: TAH | F203: SHEFFIELD HEALTH & SOCIAL CARE NHS FOUNDATION TRUST | G203: Mental Health & Learning Disability and Mental Health, Learning Disability & Community Trusts | H203: 457 | I203: 2196 | J203: 6.051543885 | K203: 5.474106492 | L203: 6.380379285 | M203: 6.300145879

Sheet Engagement Score
X3: Avg Motivation: | Y3: =AVERAGE(T4,Y4,AD4) ->  | AM3: Avg Involvement: | AN3: =AVERAGE(AI4,AN4,AS4) ->  | BB3: Avg Advocacy: | BC3: =AVERAGE(AX4,BC4,BH4) -> 
T4: =IF($H$10=0,"-",((K$10*0)+(L$10*2.5)+(M$10*5)+(N$10*7.5)+(O$10*10))/$BF$10) ->  | Y4: =IF($H$10=0,"-",((P$10*0)+(Q$10*2.5)+(R$10*5)+(S$10*7.5)+(T$10*10))/$BF$10) ->  | AD4: =IF($H$10=0,"-",((U$10*0)+(V$10*2.5)+(W$10*5)+(X$10*7.5)+(Y$10*10))/$BF$10) ->  | AI4: =IF($H$10=0,"-",((Z$10*0)+(AA$10*2.5)+(AB$10*5)+(AC$10*7.5)+(AD$10*10))/$BE$10) ->  | AN4: =IF($H$10=0,"-",((AE$10*0)+(AF$10*2.5)+(AG$10*5)+(AH$10*7.5)+(AI$10*10))/$BE$10) ->  | AS4: =IF($H$10=0,"-",((AJ$10*0)+(AK$10*2.5)+(AL$10*5)+(AM$10*7.5)+(AN$10*10))/$BE$10) ->  | AX4: =IF($H$10=0,"-",((AO$10*0)+(AP$10*2.5)+(AQ$10*5)+(AR$10*7.5)+(AS$10*10))/$BD$10) ->  | BC4: =IF($H$10=0,"-",((AT$10*0)+(AU$10*2.5)+(AV$10*5)+(AW$10*7.5)+(AX$10*10))/$BD$10) ->  | BH4: =IF($H$10=0,"-",((AY$10*0)+(AZ$10*2.5)+(BA$10*5)+(BB$10*7.5)+(BC$10*10))/$BD$10) -> 
A7: Region Code | B7: Region Name | C7: ICB Code | D7: ICB Name | E7: Org Code | F7: Org Name | G7: Care Setting | H7: Total Responses (Average across Theme) | I7: HSCIC Workforce Headcount | J7: Engagement Score | K7: Weighted Breakdown of Responses - Motivation Q1 | P7: Weighted Breakdown of Responses - Motivation Q2 | U7: Weighted Breakdown of Responses - Motivation Q3 | Z7: Weighted Breakdown of Responses - Involvement Q4 | AE7: Weighted Breakdown of Responses - Involvement Q5 | AJ7: Weighted Breakdown of Responses - Involvement Q6 | AO7: Weighted Breakdown of Responses - Advocacy Q7 | AT7: Weighted Breakdown of Responses - Advocacy Q8 | AY7: Weighted Breakdown of Responses - Advocacy Q9 | BD7: Minimum headcounts
K8: Strongly Disagree | L8: Disagree | M8: Neither Disagree nor Agree | N8: Agree | O8: Strongly Agree | P8: Strongly Disagree | Q8: Disagree | R8: Neither Disagree nor Agree | S8: Agree | T8: Strongly Agree | U8: Strongly Disagree | V8: Disagree | W8: Neither Disagree nor Agree | X8: Agree | Y8: Strongly Agree | Z8: Strongly Disagree | AA8: Disagree | AB8: Neither Disagree nor Agree | AC8: Agree | AD8: Strongly Agree | AE8: Strongly Disagree | AF8: Disagree | AG8: Neither Disagree nor Agree | AH8: Agree | AI8: Strongly Agree | AJ8: Strongly Disagree | AK8: Disagree | AL8: Neither Disagree nor Agree | AM8: Agree | AN8: Strongly Agree | AO8: Strongly Disagree | AP8: Disagree | AQ8: Neither Disagree nor Agree | AR8: Agree | AS8: Strongly Agree | AT8: Strongly Disagree | AU8: Disagree | AV8: Neither Disagree nor Agree | AW8: Agree | AX8: Strongly Agree | AY8: Strongly Disagree | AZ8: Disagree | BA8: Neither Disagree nor Agree | BB8: Agree | BC8: Strongly Agree | BD8: Min Advocacy Headcount | BE8: Min involvement Headcount | BF8: Min motivation Headcount
G9: England | H9: 119669 | I9: 1128001 | J9: 6.50183154 | K9: 5844 | L9: 18059 | M9: 39988 | N9: 43183 | O9: 14471 | P9: 3477 | Q9: 11053 | R9: 31193 | S9: 47212 | T9: 27894 | U9: 3647 | V9: 7732 | W9: 26229 | X9: 43953 | Y9: 38791 | Z9: 6725 | AA9: 16269 | AB9: 24885 | AC9: 56258 | AD9: 22744 | AE9: 7236 | AF9: 15182 | AG9: 23095 | AH9: 57307 | AI9: 23981 | AJ9: 8326 | AK9: 19464 | AL9: 32258 | AM9: 48371 | AN9: 18292 | AO9: 6194 | AP9: 11672 | AQ9: 19419 | AR9: 52996 | AS9: 35942 | AT9: 9791 | AU9: 17178 | AV9: 29465 | AW9: 46557 | AX9: 21569 | AY9: 6967 | AZ9: 12884 | BA9: 26852 | BB9: 53894 | BC9: 24027 | BD9: 124478 | BE9: 126651 | BF9: 120284
G10: Selection (excluding suppressed data) | H10: =SUBTOTAL(9,H11:H1002) -> 119669 | I10: =SUBTOTAL(9,I11:I1002) -> 1128001 | J10: 6.50183154 | K10: =SUBTOTAL(9,K11:K1002) -> 5844 | L10: =SUBTOTAL(9,L11:L1002) -> 18059 | M10: 39988 | N10: 43183 | O10: 14471 | P10: 3477 | Q10: 11053 | R10: 31193 | S10: 47212 | T10: 27894 | U10: 3647 | V10: 7732 | W10: 26229 | X10: 43953 | Y10: 38791 | Z10: 6725 | AA10: 16269 | AB10: 24885 | AC10: 56258 | AD10: 22744 | AE10: 7236 | AF10: 15182 | AG10: 23095 | AH10: 57307 | AI10: 23981 | AJ10: 8326 | AK10: 19464 | AL10: 32258 | AM10: 48371 | AN10: 18292 | AO10: 6194 | AP10: 11672 | AQ10: 19419 | AR10: 52996 | AS10: 35942 | AT10: 9791 | AU10: 17178 | AV10: 29465 | AW10: 46557 | AX10: 21569 | AY10: 6967 | AZ10: 12884 | BA10: 26852 | BB10: 53894 | BC10: 24027
A11: Y56 | B11: LONDON COMMISSIONING REGION | C11: QMF | D11: East London Health & Care Partnership (STP) | E11: R1H | F11: BARTS HEALTH NHS TRUST | G11: Acute and Acute & Community Trusts | H11: 376 | I11: 15760 | J11: 6.255171395 | K11: 34 | L11: 69 | M11: 106 | N11: 121 | O11: 46 | P11: 20 | Q11: 46 | R11: 103 | S11: 125 | T11: 82 | U11: 22 | V11: 22 | W11: 84 | X11: 118 | Y11: 130 | Z11: 31 | AA11: 49 | AB11: 80 | AC11: 153 | AD11: 63 | AE11: 30 | AF11: 40 | AG11: 72 | AH11: 166 | AI11: 68 | AJ11: 36 | AK11: 52 | AL11: 83 | AM11: 151 | AN11: 54 | AO11: 18 | AP11: 22 | AQ11: 85 | AR11: 160 | AS11: 91 | AT11: 46 | AU11: 42 | AV11: 101 | AW11: 128 | AX11: 59 | AY11: 19 | AZ11: 37 | BA11: 103 | BB11: 152 | BC11: 65 | BD11: 376 | BE11: 376 | BF11: 376
A12: Y56 | B12: LONDON COMMISSIONING REGION | C12: QMJ | D12: North London Partners in Health & Care (STP) | E12: RAL | F12: ROYAL FREE LONDON NHS FOUNDATION TRUST | G12: Acute and Acute & Community Trusts | H12: 110 | I12: 9812 | J12: 6.138888889 | K12: 7 | L12: 22 | M12: 38 | N12: 33 | O12: 10 | P12: 5 | Q12: 13 | R12: 30 | S12: 36 | T12: 26 | U12: 3 | V12: 5 | W12: 31 | X12: 30 | Y12: 41 | Z12: 9 | AA12: 12 | AB12: 22 | AC12: 54 | AD12: 13 | AE12: 13 | AF12: 12 | AG12: 14 | AH12: 57 | AI12: 14 | AJ12: 14 | AK12: 19 | AL12: 31 | AM12: 35 | AN12: 11 | AO12: 4 | AP12: 10 | AQ12: 24 | AR12: 45 | AS12: 27 | AT12: 16 | AU12: 20 | AV12: 31 | AW12: 27 | AX12: 16 | AY12: 5 | AZ12: 11 | BA12: 21 | BB12: 52 | BC12: 21 | BD12: 110 | BE12: 110 | BF12: 110
A13: Y56 | B13: LONDON COMMISSIONING REGION | C13: QRV | D13: North West London Health & Care Partnership (STP) | E13: RAS | F13: THE HILLINGDON HOSPITALS NHS FOUNDATION TRUST | G13: Acute and Acute & Community Trusts | H13: 21 | I13: 3164 | J13: 6.296296296 | K13: 0 | L13: 3 | M13: 9 | N13: 5 | O13: 4 | P13: 0 | Q13: 2 | R13: 5 | S13: 10 | T13: 4 | U13: 0 | V13: 3 | W13: 1 | X13: 11 | Y13: 6 | Z13: 2 | AA13: 2 | AB13: 3 | AC13: 9 | AD13: 5 | AE13: 2 | AF13: 1 | AG13: 1 | AH13: 12 | AI13: 5 | AJ13: 2 | AK13: 3 | AL13: 2 | AM13: 9 | AN13: 5 | AO13: 3 | AP13: 0 | AQ13: 6 | AR13: 8 | AS13: 4 | AT13: 4 | AU13: 2 | AV13: 10 | AW13: 2 | AX13: 3 | AY13: 3 | AZ13: 3 | BA13: 4 | BB13: 11 | BC13: 0 | BD13: 21 | BE13: 21 | BF13: 21
A14: Y56 | B14: LONDON COMMISSIONING REGION | C14: QMF | D14: East London Health & Care Partnership (STP) | E14: RAT | F14: NORTH EAST LONDON NHS FOUNDATION TRUST | G14: Mental Health & Learning Disability and Mental Health, Learning Disability & Community Trusts | H14: 1020 | I14: 5887 | J14: 6.800108932 | K14: 32 | L14: 127 | M14: 361 | N14: 355 | O14: 145 | P14: 13 | Q14: 61 | R14: 277 | S14: 389 | T14: 280 | U14: 9 | V14: 49 | W14: 218 | X14: 351 | Y14: 393 | Z14: 33 | AA14: 81 | AB14: 215 | AC14: 513 | AD14: 178 | AE14: 35 | AF14: 68 | AG14: 182 | AH14: 544 | AI14: 191 | AJ14: 36 | AK14: 111 | AL14: 278 | AM14: 451 | AN14: 144 | AO14: 38 | AP14: 68 | AQ14: 147 | AR14: 458 | AS14: 309 | AT14: 53 | AU14: 88 | AV14: 279 | AW14: 395 | AX14: 205 | AY14: 47 | AZ14: 71 | BA14: 287 | BB14: 450 | BC14: 165 | BD14: 1020 | BE14: 1020 | BF14: 1020
A15: Y56 | B15: LONDON COMMISSIONING REGION | C15: QWE | D15: South West London Health & Care Partnership (STP) | E15: RAX | F15: KINGSTON HOSPITAL NHS FOUNDATION TRUST | G15: Acute and Acute & Community Trusts | H15: 56 | I15: 3244 | J15: 6.116071429 | K15: 4 | L15: 9 | M15: 22 | N15: 14 | O15: 7 | P15: 4 | Q15: 5 | R15: 20 | S15: 15 | T15: 12 | U15: 1 | V15: 5 | W15: 15 | X15: 14 | Y15: 21 | Z15: 6 | AA15: 9 | AB15: 16 | AC15: 22 | AD15: 3 | AE15: 9 | AF15: 7 | AG15: 7 | AH15: 28 | AI15: 5 | AJ15: 10 | AK15: 5 | AL15: 13 | AM15: 21 | AN15: 7 | AO15: 4 | AP15: 2 | AQ15: 10 | AR15: 20 | AS15: 20 | AT15: 9 | AU15: 5 | AV15: 13 | AW15: 19 | AX15: 10 | AY15: 3 | AZ15: 4 | BA15: 10 | BB15: 25 | BC15: 14 | BD15: 56 | BE15: 56 | BF15: 56
A16: Y56 | B16: LONDON COMMISSIONING REGION | C16: QMF | D16: East London Health & Care Partnership (STP) | E16: RF4 | F16: BARKING, HAVERING AND REDBRIDGE UNIVERSITY HOSPITALS NHS TRUST | G16: Acute and Acute & Community Trusts | H16: 420 | I16: 6783 | J16: 6.060185185 | K16: 32 | L16: 70 | M16: 153 | N16: 107 | O16: 58 | P16: 15 | Q16: 40 | R16: 112 | S16: 139 | T16: 114 | U16: 7 | V16: 27 | W16: 93 | X16: 149 | Y16: 144 | Z16: 33 | AA16: 43 | AB16: 107 | AC16: 172 | AD16: 65 | AE16: 36 | AF16: 48 | AG16: 94 | AH16: 174 | AI16: 68 | AJ16: 43 | AK16: 64 | AL16: 128 | AM16: 140 | AN16: 45 | AO16: 23 | AP16: 42 | AQ16: 92 | AR16: 167 | AS16: 96 | AT16: 64 | AU16: 69 | AV16: 135 | AW16: 114 | AX16: 38 | AY16: 37 | AZ16: 56 | BA16: 142 | BB16: 146 | BC16: 39 | BD16: 420 | BE16: 420 | BF16: 420
A17: Y56 | B17: LONDON COMMISSIONING REGION | C17: QKK | D17: Our Healthier South East London STP | E17: RJ1 | F17: GUY'S AND ST THOMAS' NHS FOUNDATION TRUST | G17: Acute and Acute & Community Trusts | H17: 263 | I17: 20397 | J17: 6.800239792 | K17: 21 | L17: 41 | M17: 84 | N17: 87 | O17: 35 | P17: 13 | Q17: 25 | R17: 79 | S17: 87 | T17: 59 | U17: 12 | V17: 19 | W17: 57 | X17: 93 | Y17: 82 | Z17: 20 | AA17: 29 | AB17: 48 | AC17: 113 | AD17: 57 | AE17: 20 | AF17: 32 | AG17: 34 | AH17: 120 | AI17: 60 | AJ17: 24 | AK17: 39 | AL17: 59 | AM17: 97 | AN17: 48 | AO17: 9 | AP17: 4 | AQ17: 28 | AR17: 115 | AS17: 112 | AT17: 18 | AU17: 23 | AV17: 39 | AW17: 103 | AX17: 85 | AY17: 12 | AZ17: 4 | BA17: 24 | BB17: 122 | BC17: 106 | BD17: 268 | BE17: 266 | BF17: 263
A18: Y56 | B18: LONDON COMMISSIONING REGION | C18: QKK | D18: Our Healthier South East London STP | E18: RJ2 | F18: LEWISHAM AND GREENWICH NHS TRUST | G18: Acute and Acute & Community Trusts | H18: 470 | I18: 6157 | J18: 5.963356974 | K18: 34 | L18: 102 | M18: 167 | N18: 115 | O18: 52 | P18: 22 | Q18: 64 | R18: 140 | S18: 131 | T18: 113 | U18: 21 | V18: 38 | W18: 103 | X18: 146 | Y18: 162 | Z18: 38 | AA18: 59 | AB18: 105 | AC18: 217 | AD18: 51 | AE18: 38 | AF18: 55 | AG18: 102 | AH18: 214 | AI18: 61 | AJ18: 48 | AK18: 79 | AL18: 127 | AM18: 172 | AN18: 44 | AO18: 26 | AP18: 41 | AQ18: 94 | AR18: 191 | AS18: 118 | AT18: 71 | AU18: 74 | AV18: 134 | AW18: 149 | AX18: 42 | AY18: 41 | AZ18: 66 | BA18: 138 | BB18: 185 | BC18: 40 | BD18: 470 | BE18: 470 | BF18: 470
A19: Y56 | B19: LONDON COMMISSIONING REGION | C19: QWE | D19: South West London Health & Care Partnership (STP) | E19: RJ7 | F19: ST GEORGE'S UNIVERSITY HOSPITALS NHS FOUNDATION TRUST | G19: Acute and Acute & Community Trusts | H19: 312 | I19: 8764 | J19: 6.306089744 | K19: 12 | L19: 58 | M19: 116 | N19: 92 | O19: 34 | P19: 10 | Q19: 27 | R19: 89 | S19: 121 | T19: 65 | U19: 4 | V19: 16 | W19: 67 | X19: 117 | Y19: 108 | Z19: 21 | AA19: 46 | AB19: 57 | AC19: 144 | AD19: 44 | AE19: 20 | AF19: 35 | AG19: 65 | AH19: 141 | AI19: 51 | AJ19: 31 | AK19: 59 | AL19: 69 | AM19: 120 | AN19: 33 | AO19: 8 | AP19: 38 | AQ19: 58 | AR19: 132 | AS19: 76 | AT19: 25 | AU19: 59 | AV19: 81 | AW19: 107 | AX19: 40 | AY19: 15 | AZ19: 32 | BA19: 70 | BB19: 137 | BC19: 58 | BD19: 312 | BE19: 312 | BF19: 312
A20: Y56 | B20: LONDON COMMISSIONING REGION | C20: QKK | D20: Our Healthier South East London STP | E20: RJZ | F20: KING'S COLLEGE HOSPITAL NHS FOUNDATION TRUST | G20: Acute and Acute & Community Trusts | H20: 100 | I20: 12410 | J20: 6.613888889 | K20: 8 | L20: 16 | M20: 29 | N20: 32 | O20: 15 | P20: 4 | Q20: 11 | R20: 24 | S20: 39 | T20: 22 | U20: 2 | V20: 5 | W20: 18 | X20: 41 | Y20: 34 | Z20: 7 | AA20: 10 | AB20: 26 | AC20: 37 | AD20: 20 | AE20: 6 | AF20: 8 | AG20: 25 | AH20: 42 | AI20: 19 | AJ20: 7 | AK20: 11 | AL20: 29 | AM20: 37 | AN20: 16 | AO20: 3 | AP20: 5 | AQ20: 19 | AR20: 44 | AS20: 29 | AT20: 6 | AU20: 8 | AV20: 25 | AW20: 40 | AX20: 21 | AY20: 3 | AZ20: 6 | BA20: 24 | BB20: 45 | BC20: 22 | BD20: 100 | BE20: 100 | BF20: 100
A21: Y56 | B21: LONDON COMMISSIONING REGION | C21: QMJ | D21: North London Partners in Health & Care (STP) | E21: RKE | F21: WHITTINGTON HEALTH NHS TRUST | G21: Acute and Acute & Community Trusts | H21: 286 | I21: 4003 | J21: 6.38014763 | K21: 16 | L21: 53 | M21: 94 | N21: 89 | O21: 34 | P21: 7 | Q21: 28 | R21: 75 | S21: 105 | T21: 71 | U21: 8 | V21: 13 | W21: 61 | X21: 85 | Y21: 119 | Z21: 23 | AA21: 36 | AB21: 54 | AC21: 120 | AD21: 53 | AE21: 23 | AF21: 29 | AG21: 57 | AH21: 119 | AI21: 58 | AJ21: 23 | AK21: 52 | AL21: 59 | AM21: 103 | AN21: 49 | AO21: 18 | AP21: 21 | AQ21: 53 | AR21: 110 | AS21: 84 | AT21: 36 | AU21: 42 | AV21: 69 | AW21: 88 | AX21: 51 | AY21: 21 | AZ21: 29 | BA21: 74 | BB21: 107 | BC21: 55 | BD21: 286 | BE21: 286 | BF21: 286
A22: Y56 | B22: LONDON COMMISSIONING REGION | C22: QRV | D22: North West London Health & Care Partnership (STP) | E22: RKL | F22: WEST LONDON NHS TRUST | G22: Mental Health & Learning Disability and Mental Health, Learning Disability & Community Trusts | H22: 30 | I22: 3793 | J22: 5.62037037 | K22: 3 | L22: 4 | M22: 13 | N22: 7 | O22: 3 | P22: 0 | Q22: 4 | R22: 11 | S22: 10 | T22: 5 | U22: 0 | V22: 1 | W22: 10 | X22: 11 | Y22: 8 | Z22: 3 | AA22: 5 | AB22: 11 | AC22: 7 | AD22: 4 | AE22: 2 | AF22: 8 | AG22: 7 | AH22: 10 | AI22: 3 | AJ22: 4 | AK22: 4 | AL22: 6 | AM22: 14 | AN22: 2 | AO22: 3 | AP22: 2 | AQ22: 6 | AR22: 15 | AS22: 4 | AT22: 5 | AU22: 7 | AV22: 7 | AW22: 7 | AX22: 4 | AY22: 6 | AZ22: 5 | BA22: 9 | BB22: 8 | BC22: 2 | BD22: 30 | BE22: 30 | BF22: 30
A23: Y56 | B23: LONDON COMMISSIONING REGION | C23: QMJ | D23: North London Partners in Health & Care (STP) | E23: RP4 | F23: GREAT ORMOND STREET HOSPITAL FOR CHILDREN NHS FOUNDATION TRUST | G23: Acute Specialist Trusts | H23: 129 | I23: 5112 | J23: 7.049575962 | K23: 6 | L23: 14 | M23: 48 | N23: 50 | O23: 13 | P23: 4 | Q23: 7 | R23: 32 | S23: 60 | T23: 27 | U23: 2 | V23: 7 | W23: 30 | X23: 45 | Y23: 46 | Z23: 7 | AA23: 10 | AB23: 17 | AC23: 76 | AD23: 21 | AE23: 5 | AF23: 8 | AG23: 15 | AH23: 75 | AI23: 27 | AJ23: 8 | AK23: 16 | AL23: 23 | AM23: 59 | AN23: 23 | AO23: 1 | AP23: 9 | AQ23: 14 | AR23: 59 | AS23: 47 | AT23: 6 | AU23: 17 | AV23: 28 | AW23: 50 | AX23: 30 | AY23: 1 | AZ23: 3 | BA23: 11 | BB23: 58 | BC23: 58 | BD23: 130 | BE23: 129 | BF23: 130
A24: Y56 | B24: LONDON COMMISSIONING REGION | C24: QMJ | D24: North London Partners in Health & Care (STP) | E24: RP6 | F24: MOORFIELDS EYE HOSPITAL NHS FOUNDATION TRUST | G24: Acute Specialist Trusts | H24: 14 | I24: 2082 | J24: 5.734126984 | K24: 2 | L24: 3 | M24: 2 | N24: 6 | O24: 1 | P24: 1 | Q24: 3 | R24: 2 | S24: 6 | T24: 2 | U24: 1 | V24: 1 | W24: 5 | X24: 4 | Y24: 3 | Z24: 0 | AA24: 7 | AB24: 2 | AC24: 2 | AD24: 3 | AE24: 0 | AF24: 8 | AG24: 1 | AH24: 3 | AI24: 2 | AJ24: 1 | AK24: 6 | AL24: 2 | AM24: 3 | AN24: 2 | AO24: 0 | AP24: 1 | AQ24: 4 | AR24: 5 | AS24: 4 | AT24: 3 | AU24: 1 | AV24: 5 | AW24: 4 | AX24: 1 | AY24: 0 | AZ24: 1 | BA24: 3 | BB24: 5 | BC24: 5 | BD24: 14 | BE24: 14 | BF24: 14
A25: Y56 | B25: LONDON COMMISSIONING REGION | C25: QKK | D25: Our Healthier South East London STP | E25: RPG | F25: OXLEAS NHS FOUNDATION TRUST | G25: Mental Health & Learning Disability and Mental Health, Learning Disability & Community Trusts | H25: 359 | I25: 3475 | J25: 6.487155679 | K25: 13 | L25: 55 | M25: 139 | N25: 114 | O25: 38 | P25: 7 | Q25: 34 | R25: 98 | S25: 137 | T25: 83 | U25: 5 | V25: 29 | W25: 83 | X25: 115 | Y25: 127 | Z25: 17 | AA25: 48 | AB25: 62 | AC25: 158 | AD25: 74 | AE25: 20 | AF25: 31 | AG25: 56 | AH25: 179 | AI25: 73 | AJ25: 21 | AK25: 52 | AL25: 100 | AM25: 135 | AN25: 51 | AO25: 15 | AP25: 24 | AQ25: 71 | AR25: 155 | AS25: 94 | AT25: 22 | AU25: 49 | AV25: 101 | AW25: 127 | AX25: 60 | AY25: 22 | AZ25: 32 | BA25: 117 | BB25: 136 | BC25: 52 | BD25: 359 | BE25: 359 | BF25: 359
A26: Y56 | B26: LONDON COMMISSIONING REGION | C26: QRV | D26: North West London Health & Care Partnership (STP) | E26: RQM | F26: CHELSEA AND WESTMINSTER HOSPITAL NHS FOUNDATION TRUST | G26: Acute and Acute & Community Trusts | H26: 18 | I26: 5899 | J26: 6.37345679 | K26: 3 | L26: 2 | M26: 6 | N26: 5 | O26: 2 | P26: 2 | Q26: 2 | R26: 5 | S26: 7 | T26: 2 | U26: 3 | V26: 2 | W26: 1 | X26: 6 | Y26: 6 | Z26: 2 | AA26: 0 | AB26: 3 | AC26: 8 | AD26: 5 | AE26: 2 | AF26: 1 | AG26: 3 | AH26: 6 | AI26: 6 | AJ26: 2 | AK26: 3 | AL26: 3 | AM26: 5 | AN26: 5 | AO26: 2 | AP26: 1 | AQ26: 0 | AR26: 10 | AS26: 5 | AT26: 3 | AU26: 0 | AV26: 4 | AW26: 6 | AX26: 5 | AY26: 2 | AZ26: 1 | BA26: 1 | BB26: 10 | BC26: 4 | BD26: 18 | BE26: 18 | BF26: 18
A27: Y56 | B27: LONDON COMMISSIONING REGION | C27: QMF | D27: East London Health & Care Partnership (STP) | E27: RQX | F27: HOMERTON UNIVERSITY HOSPITAL NHS FOUNDATION TRUST | G27: Acute and Acute & Community Trusts | H27: 866 | I27: 3550 | J27: 7.063488965 | K27: 42 | L27: 82 | M27: 291 | N27: 327 | O27: 145 | P27: 19 | Q27: 46 | R27: 232 | S27: 332 | T27: 237 | U27: 17 | V27: 47 | W27: 179 | X27: 318 | Y27: 308 | Z27: 30 | AA27: 61 | AB27: 163 | AC27: 422 | AD27: 210 | AE27: 42 | AF27: 60 | AG27: 164 | AH27: 428 | AI27: 189 | AJ27: 48 | AK27: 82 | AL27: 226 | AM27: 371 | AN27: 154 | AO27: 16 | AP27: 36 | AQ27: 83 | AR27: 398 | AS27: 346 | AT27: 48 | AU27: 70 | AV27: 173 | AW27: 363 | AX27: 224 | AY27: 22 | AZ27: 34 | BA27: 146 | BB27: 423 | BC27: 255 | BD27: 878 | BE27: 881 | BF27: 866
A28: Y56 | B28: LONDON COMMISSIONING REGION | C28: QWE | D28: South West London Health & Care Partnership (STP) | E28: RQY | F28: SOUTH WEST LONDON AND ST GEORGE'S MENTAL HEALTH NHS TRUST | G28: Mental Health & Learning Disability and Mental Health, Learning Disability & Community Trusts | H28: 50 | I28: 2320 | J28: 6.227777778 | K28: 3 | L28: 7 | M28: 16 | N28: 16 | O28: 8 | P28: 2 | Q28: 6 | R28: 12 | S28: 15 | T28: 15 | U28: 1 | V28: 6 | W28: 8 | X28: 10 | Y28: 25 | Z28: 3 | AA28: 7 | AB28: 11 | AC28: 17 | AD28: 12 | AE28: 4 | AF28: 6 | AG28: 11 | AH28: 19 | AI28: 10 | AJ28: 5 | AK28: 9 | AL28: 16 | AM28: 12 | AN28: 8 | AO28: 4 | AP28: 5 | AQ28: 11 | AR28: 16 | AS28: 14 | AT28: 5 | AU28: 8 | AV28: 19 | AW28: 11 | AX28: 7 | AY28: 4 | AZ28: 3 | BA28: 24 | BB28: 12 | BC28: 7 | BD28: 50 | BE28: 50 | BF28: 50
A29: Y56 | B29: LONDON COMMISSIONING REGION | C29: QMJ | D29: North London Partners in Health & Care (STP) | E29: RRP | F29: BARNET, ENFIELD AND HARINGEY MENTAL HEALTH NHS TRUST | G29: Mental Health & Learning Disability and Mental Health, Learning Disability & Community Trusts | H29: 218 | I29: 3066 | J29: 6.29332314 | K29: 13 | L29: 28 | M29: 79 | N29: 77 | O29: 21 | P29: 9 | Q29: 19 | R29: 67 | S29: 75 | T29: 48 | U29: 9 | V29: 11 | W29: 39 | X29: 86 | Y29: 73 | Z29: 12 | AA29: 22 | AB29: 46 | AC29: 92 | AD29: 46 | AE29: 13 | AF29: 20 | AG29: 38 | AH29: 97 | AI29: 50 | AJ29: 14 | AK29: 32 | AL29: 47 | AM29: 92 | AN29: 33 | AO29: 18 | AP29: 20 | AQ29: 45 | AR29: 73 | AS29: 62 | AT29: 29 | AU29: 36 | AV29: 48 | AW29: 78 | AX29: 27 | AY29: 30 | AZ29: 21 | BA29: 66 | BB29: 74 | BC29: 27 | BD29: 218 | BE29: 218 | BF29: 218
A30: Y56 | B30: LONDON COMMISSIONING REGION | C30: QKK | D30: Our Healthier South East London STP | E30: RRU | F30: LONDON AMBULANCE SERVICE NHS TRUST | G30: Ambulance Trusts | H30: 41 | I30: 6227 | J30: 5.799457995 | K30: 2 | L30: 8 | M30: 13 | N30: 13 | O30: 5 | P30: 1 | Q30: 7 | R30: 8 | S30: 16 | T30: 9 | U30: 2 | V30: 3 | W30: 18 | X30: 11 | Y30: 7 | Z30: 7 | AA30: 5 | AB30: 9 | AC30: 12 | AD30: 8 | AE30: 6 | AF30: 8 | AG30: 12 | AH30: 7 | AI30: 8 | AJ30: 8 | AK30: 9 | AL30: 10 | AM30: 6 | AN30: 8 | AO30: 6 | AP30: 3 | AQ30: 6 | AR30: 10 | AS30: 16 | AT30: 9 | AU30: 7 | AV30: 9 | AW30: 6 | AX30: 10 | AY30: 4 | AZ30: 5 | BA30: 5 | BB30: 14 | BC30: 13 | BD30: 41 | BE30: 41 | BF30: 41
A31: Y56 | B31: LONDON COMMISSIONING REGION | C31: QMJ | D31: North London Partners in Health & Care (STP) | E31: RRV | F31: UNIVERSITY COLLEGE LONDON HOSPITALS NHS FOUNDATION TRUST | G31: Acute and Acute & Community Trusts | H31: 663 | I31: 9370 | J31: 6.824618736 | K31: 32 | L31: 100 | M31: 226 | N31: 240 | O31: 65 | P31: 24 | Q31: 58 | R31: 190 | S31: 246 | T31: 145 | U31: 21 | V31: 39 | W31: 123 | X31: 245 | Y31: 235 | Z31: 35 | AA31: 76 | AB31: 93 | AC31: 312 | AD31: 147 | AE31: 34 | AF31: 81 | AG31: 91 | AH31: 300 | AI31: 157 | AJ31: 40 | AK31: 116 | AL31: 132 | AM31: 270 | AN31: 105 | AO31: 19 | AP31: 33 | AQ31: 82 | AR31: 298 | AS31: 231 | AT31: 48 | AU31: 57 | AV31: 130 | AW31: 245 | AX31: 183 | AY31: 17 | AZ31: 23 | BA31: 84 | BB31: 292 | BC31: 247 | BD31: 663 | BE31: 663 | BF31: 663
A32: Y56 | B32: LONDON COMMISSIONING REGION | C32: QMJ | D32: North London Partners in Health & Care (STP) | E32: RV3 | F32: CENTRAL AND NORTH WEST LONDON NHS FOUNDATION TRUST | G32: Mental Health & Learning Disability and Mental Health, Learning Disability & Community Trusts | H32: 37 | I32: 6889 | J32: 5.690690691 | K32: 3 | L32: 11 | M32: 10 | N32: 13 | O32: 0 | P32: 3 | Q32: 2 | R32: 17 | S32: 10 | T32: 5 | U32: 0 | V32: 3 | W32: 9 | X32: 15 | Y32: 10 | Z32: 4 | AA32: 5 | AB32: 9 | AC32: 15 | AD32: 4 | AE32: 4 | AF32: 9 | AG32: 4 | AH32: 14 | AI32: 6 | AJ32: 2 | AK32: 12 | AL32: 10 | AM32: 7 | AN32: 6 | AO32: 4 | AP32: 6 | AQ32: 2 | AR32: 14 | AS32: 11 | AT32: 5 | AU32: 6 | AV32: 10 | AW32: 11 | AX32: 5 | AY32: 1 | AZ32: 11 | BA32: 11 | BB32: 12 | BC32: 2 | BD32: 37 | BE32: 37 | BF32: 37
A33: Y56 | B33: LONDON COMMISSIONING REGION | C33: QKK | D33: Our Healthier South East London STP | E33: RV5 | F33: SOUTH LONDON AND MAUDSLEY NHS FOUNDATION TRUST | G33: Mental Health & Learning Disability and Mental Health, Learning Disability & Community Trusts | H33: 111 | I33: 5026 | J33: 6.301301301 | K33: 3 | L33: 25 | M33: 35 | N33: 34 | O33: 14 | P33: 3 | Q33: 13 | R33: 34 | S33: 40 | T33: 21 | U33: 3 | V33: 8 | W33: 21 | X33: 40 | Y33: 39 | Z33: 3 | AA33: 13 | AB33: 22 | AC33: 55 | AD33: 18 | AE33: 5 | AF33: 9 | AG33: 14 | AH33: 62 | AI33: 21 | AJ33: 7 | AK33: 20 | AL33: 25 | AM33: 41 | AN33: 18 | AO33: 4 | AP33: 8 | AQ33: 24 | AR33: 54 | AS33: 21 | AT33: 14 | AU33: 23 | AV33: 29 | AW33: 32 | AX33: 13 | AY33: 6 | AZ33: 16 | BA33: 41 | BB33: 33 | BC33: 15 | BD33: 111 | BE33: 111 | BF33: 111
A34: Y56 | B34: LONDON COMMISSIONING REGION | C34: QWE | D34: South West London Health & Care Partnership (STP) | E34: RVR | F34: EPSOM AND ST HELIER UNIVERSITY HOSPITALS NHS TRUST | G34: Acute and Acute & Community Trusts | H34: 204 | I34: 6045 | J34: 5.980392157 | K34: 9 | L34: 54 | M34: 70 | N34: 57 | O34: 14 | P34: 4 | Q34: 24 | R34: 73 | S34: 73 | T34: 30 | U34: 3 | V34: 13 | W34: 36 | X34: 83 | Y34: 69 | Z34: 13 | AA34: 35 | AB34: 33 | AC34: 100 | AD34: 23 | AE34: 15 | AF34: 29 | AG34: 38 | AH34: 92 | AI34: 30 | AJ34: 18 | AK34: 40 | AL34: 48 | AM34: 79 | AN34: 19 | AO34: 10 | AP34: 21 | AQ34: 50 | AR34: 82 | AS34: 41 | AT34: 28 | AU34: 33 | AV34: 64 | AW34: 63 | AX34: 16 | AY34: 18 | AZ34: 28 | BA34: 58 | BB34: 80 | BC34: 20 | BD34: 204 | BE34: 204 | BF34: 204
A35: Y56 | B35: LONDON COMMISSIONING REGION | C35: QMF | D35: East London Health & Care Partnership (STP) | E35: RWK | F35: EAST LONDON NHS FOUNDATION TRUST | G35: Mental Health & Learning Disability and Mental Health, Learning Disability & Community Trusts | H35: 1418 | I35: 5851 | J35: 7.172537527 | K35: 42 | L35: 132 | M35: 475 | N35: 554 | O35: 255 | P35: 22 | Q35: 71 | R35: 361 | S35: 572 | T35: 404 | U35: 16 | V35: 59 | W35: 304 | X35: 508 | Y35: 544 | Z35: 51 | AA35: 99 | AB35: 237 | AC35: 728 | AD35: 331 | AE35: 50 | AF35: 92 | AG35: 223 | AH35: 733 | AI35: 346 | AJ35: 53 | AK35: 133 | AL35: 345 | AM35: 640 | AN35: 266 | AO35: 18 | AP35: 56 | AQ35: 148 | AR35: 595 | AS35: 606 | AT35: 45 | AU35: 101 | AV35: 265 | AW35: 582 | AX35: 425 | AY35: 42 | AZ35: 104 | BA35: 305 | BB35: 613 | BC35: 355 | BD35: 1418 | BE35: 1437 | BF35: 1430
A36: Y56 | B36: LONDON COMMISSIONING REGION | C36: QWE | D36: South West London Health & Care Partnership (STP) | E36: RY9 | F36: HOUNSLOW AND RICHMOND COMMUNITY HEALTHCARE NHS TRUST | G36: Community Trusts | H36: 180 | I36: 1045 | J36: 6.929012346 | K36: 8 | L36: 23 | M36: 57 | N36: 69 | O36: 23 | P36: 1 | Q36: 22 | R36: 42 | S36: 71 | T36: 44 | U36: 3 | V36: 9 | W36: 33 | X36: 66 | Y36: 69 | Z36: 9 | AA36: 13 | AB36: 35 | AC36: 90 | AD36: 33 | AE36: 8 | AF36: 10 | AG36: 29 | AH36: 92 | AI36: 41 | AJ36: 7 | AK36: 18 | AL36: 39 | AM36: 86 | AN36: 30 | AO36: 5 | AP36: 8 | AQ36: 21 | AR36: 95 | AS36: 51 | AT36: 6 | AU36: 15 | AV36: 50 | AW36: 74 | AX36: 35 | AY36: 3 | AZ36: 4 | BA36: 38 | BB36: 93 | BC36: 42 | BD36: 180 | BE36: 180 | BF36: 180
A37: Y56 | B37: LONDON COMMISSIONING REGION | C37: QRV | D37: North West London Health & Care Partnership (STP) | E37: RYJ | F37: IMPERIAL COLLEGE HEALTHCARE NHS TRUST | G37: Acute and Acute & Community Trusts | H37: 80 | I37: 12149 | J37: 6.378472222 | K37: 4 | L37: 13 | M37: 28 | N37: 27 | O37: 8 | P37: 0 | Q37: 11 | R37: 19 | S37: 28 | T37: 22 | U37: 0 | V37: 5 | W37: 24 | X37: 25 | Y37: 26 | Z37: 6 | AA37: 11 | AB37: 14 | AC37: 34 | AD37: 15 | AE37: 7 | AF37: 14 | AG37: 10 | AH37: 33 | AI37: 16 | AJ37: 9 | AK37: 16 | AL37: 12 | AM37: 34 | AN37: 9 | AO37: 4 | AP37: 7 | AQ37: 11 | AR37: 34 | AS37: 24 | AT37: 8 | AU37: 9 | AV37: 22 | AW37: 30 | AX37: 11 | AY37: 4 | AZ37: 6 | BA37: 19 | BB37: 36 | BC37: 15 | BD37: 80 | BE37: 80 | BF37: 80
A38: Y56 | B38: LONDON COMMISSIONING REGION | C38: QRV | D38: North West London Health & Care Partnership (STP) | E38: RYX | F38: CENTRAL LONDON COMMUNITY HEALTHCARE NHS TRUST | G38: Community Trusts | H38: 154 | I38: 4006 | J38: 6.3997114 | K38: 4 | L38: 23 | M38: 55 | N38: 55 | O38: 17 | P38: 2 | Q38: 18 | R38: 42 | S38: 59 | T38: 33 | U38: 2 | V38: 7 | W38: 27 | X38: 56 | Y38: 62 | Z38: 15 | AA38: 20 | AB38: 28 | AC38: 58 | AD38: 33 | AE38: 12 | AF38: 20 | AG38: 21 | AH38: 70 | AI38: 31 | AJ38: 10 | AK38: 23 | AL38: 35 | AM38: 54 | AN38: 32 | AO38: 12 | AP38: 15 | AQ38: 26 | AR38: 62 | AS38: 39 | AT38: 27 | AU38: 14 | AV38: 42 | AW38: 45 | AX38: 26 | AY38: 10 | AZ38: 13 | BA38: 43 | BB38: 64 | BC38: 24 | BD38: 154 | BE38: 154 | BF38: 154
A39: Y58 | B39: SOUTH WEST COMMISSIONING REGION | C39: QVV | D39: Dorset STP | E39: R0D | F39: UNIVERSITY HOSPITALS DORSET NHS FOUNDATION TRUST | G39: Acute and Acute & Community Trusts | H39: 172 | I39: 8004 | J39: 6.083656331 | K39: 13 | L39: 41 | M39: 55 | N39: 51 | O39: 12 | P39: 5 | Q39: 21 | R39: 60 | S39: 64 | T39: 22 | U39: 6 | V39: 6 | W39: 48 | X39: 70 | Y39: 42 | Z39: 5 | AA39: 33 | AB39: 28 | AC39: 75 | AD39: 31 | AE39: 9 | AF39: 24 | AG39: 28 | AH39: 82 | AI39: 29 | AJ39: 13 | AK39: 39 | AL39: 48 | AM39: 53 | AN39: 19 | AO39: 7 | AP39: 14 | AQ39: 36 | AR39: 79 | AS39: 36 | AT39: 19 | AU39: 26 | AV39: 56 | AW39: 52 | AX39: 19 | AY39: 8 | AZ39: 21 | BA39: 44 | BB39: 78 | BC39: 21 | BD39: 172 | BE39: 172 | BF39: 172
A40: Y58 | B40: SOUTH WEST COMMISSIONING REGION | C40: QSL | D40: Somerset STP | E40: RA4 | F40: YEOVIL DISTRICT HOSPITAL NHS FOUNDATION TRUST | G40: Acute and Acute & Community Trusts | H40: 0 | I40: 2315 | J40: 0 | K40: 21 | L40: 69 | M40: 131 | N40: 207 | O40: 75 | P40: 12 | Q40: 33 | R40: 81 | S40: 242 | T40: 135 | U40: 0 | V40: 0 | W40: 0 | X40: 0 | Y40: 0 | Z40: 18 | AA40: 47 | AB40: 91 | AC40: 245 | AD40: 102 | AE40: 21 | AF40: 32 | AG40: 109 | AH40: 235 | AI40: 106 | AJ40: 22 | AK40: 57 | AL40: 130 | AM40: 218 | AN40: 76 | AO40: 12 | AP40: 22 | AQ40: 73 | AR40: 219 | AS40: 177 | AT40: 21 | AU40: 40 | AV40: 129 | AW40: 219 | AX40: 94 | AY40: 14 | AZ40: 33 | BA40: 104 | BB40: 244 | BC40: 108 | BD40: 503 | BE40: 503 | BF40: 0
A41: Y58 | B41: SOUTH WEST COMMISSIONING REGION | C41: QUY | D41: Bristol, North Somerset and South Gloucestershire STP | E41: RA7 | F41: UNIVERSITY HOSPITALS BRISTOL AND WESTON NHS FOUNDATION TRUST | G41: Acute and Acute & Community Trusts | H41: 2536 | I41: 10096 | J41: 6.876126695 | K41: 73 | L41: 315 | M41: 917 | N41: 959 | O41: 297 | P41: 34 | Q41: 160 | R41: 688 | S41: 1084 | T41: 574 | U41: 34 | V41: 125 | W41: 577 | X41: 1014 | Y41: 786 | Z41: 75 | AA41: 263 | AB41: 510 | AC41: 1383 | AD41: 435 | AE41: 71 | AF41: 238 | AG41: 509 | AH41: 1382 | AI41: 462 | AJ41: 118 | AK41: 366 | AL41: 735 | AM41: 1110 | AN41: 330 | AO41: 38 | AP41: 103 | AQ41: 331 | AR41: 1270 | AS41: 863 | AT41: 97 | AU41: 253 | AV41: 569 | AW41: 1157 | AX41: 529 | AY41: 43 | AZ41: 110 | BA41: 455 | BB41: 1340 | BC41: 657 | BD41: 2605 | BE41: 2659 | BF41: 2536
A42: Y58 | B42: SOUTH WEST COMMISSIONING REGION | C42: QJK | D42: Devon STP | E42: RA9 | F42: TORBAY AND SOUTH DEVON NHS FOUNDATION TRUST | G42: Acute and Acute & Community Trusts | H42: 140 | I42: 5683 | J42: 5.781718189 | K42: 9 | L42: 31 | M42: 63 | N42: 42 | O42: 9 | P42: 2 | Q42: 22 | R42: 50 | S42: 66 | T42: 15 | U42: 5 | V42: 5 | W42: 51 | X42: 54 | Y42: 39 | Z42: 13 | AA42: 23 | AB42: 23 | AC42: 58 | AD42: 23 | AE42: 15 | AF42: 19 | AG42: 20 | AH42: 62 | AI42: 24 | AJ42: 19 | AK42: 25 | AL42: 29 | AM42: 50 | AN42: 17 | AO42: 6 | AP42: 23 | AQ42: 35 | AR42: 64 | AS42: 21 | AT42: 23 | AU42: 27 | AV42: 47 | AW42: 50 | AX42: 2 | AY42: 11 | AZ42: 29 | BA42: 40 | BB42: 59 | BC42: 10 | BD42: 149 | BE42: 140 | BF42: 154
A43: Y58 | B43: SOUTH WEST COMMISSIONING REGION | C43: QVV | D43: Dorset STP | E43: RBD | F43: DORSET COUNTY HOSPITAL NHS FOUNDATION TRUST | G43: Acute and Acute & Community Trusts | H43: 464 | I43: 2765 | J43: 6.780411877 | K43: 16 | L43: 71 | M43: 145 | N43: 172 | O43: 60 | P43: 9 | Q43: 36 | R43: 107 | S43: 182 | T43: 130 | U43: 7 | V43: 26 | W43: 90 | X43: 171 | Y43: 170 | Z43: 25 | AA43: 42 | AB43: 93 | AC43: 201 | AD43: 103 | AE43: 25 | AF43: 37 | AG43: 58 | AH43: 240 | AI43: 104 | AJ43: 29 | AK43: 66 | AL43: 102 | AM43: 193 | AN43: 74 | AO43: 14 | AP43: 26 | AQ43: 74 | AR43: 234 | AS43: 116 | AT43: 39 | AU43: 41 | AV43: 110 | AW43: 187 | AX43: 87 | AY43: 16 | AZ43: 22 | BA43: 94 | BB43: 231 | BC43: 101 | BD43: 464 | BE43: 464 | BF43: 464
A44: Y58 | B44: SOUTH WEST COMMISSIONING REGION | C44: QJK | D44: Devon STP | E44: RBZ | F44: NORTHERN DEVON HEALTHCARE NHS TRUST | G44: Acute and Acute & Community Trusts | H44: 531 | I44: 2963 | J44: 6.93278891 | K44: 17 | L44: 66 | M44: 194 | N44: 206 | O44: 67 | P44: 5 | Q44: 31 | R44: 135 | S44: 231 | T44: 141 | U44: 5 | V44: 20 | W44: 99 | X44: 230 | Y44: 191 | Z44: 25 | AA44: 53 | AB44: 118 | AC44: 238 | AD44: 111 | AE44: 11 | AF44: 42 | AG44: 93 | AH44: 284 | AI44: 109 | AJ44: 20 | AK44: 63 | AL44: 146 | AM44: 228 | AN44: 81 | AO44: 6 | AP44: 35 | AQ44: 72 | AR44: 271 | AS44: 147 | AT44: 21 | AU44: 52 | AV44: 107 | AW44: 253 | AX44: 98 | AY44: 7 | AZ44: 33 | BA44: 105 | BB44: 274 | BC44: 113 | BD44: 531 | BE44: 538 | BF44: 543
A45: Y58 | B45: SOUTH WEST COMMISSIONING REGION | C45: QOX | D45: Bath and North East Somerset, Swindon and Wiltshire STP | E45: RD1 | F45: ROYAL UNITED HOSPITALS BATH NHS FOUNDATION TRUST | G45: Acute and Acute & Community Trusts | H45: 256 | I45: 5074 | J45: 6.991102431 | K45: 9 | L45: 36 | M45: 85 | N45: 99 | O45: 27 | P45: 4 | Q45: 16 | R45: 65 | S45: 122 | T45: 49 | U45: 1 | V45: 7 | W45: 29 | X45: 137 | Y45: 82 | Z45: 6 | AA45: 24 | AB45: 48 | AC45: 115 | AD45: 63 | AE45: 8 | AF45: 11 | AG45: 45 | AH45: 131 | AI45: 61 | AJ45: 15 | AK45: 22 | AL45: 47 | AM45: 127 | AN45: 45 | AO45: 2 | AP45: 8 | AQ45: 55 | AR45: 128 | AS45: 63 | AT45: 7 | AU45: 16 | AV45: 59 | AW45: 141 | AX45: 33 | AY45: 1 | AZ45: 9 | BA45: 51 | BB45: 146 | BC45: 49 | BD45: 256 | BE45: 256 | BF45: 256
A46: Y58 | B46: SOUTH WEST COMMISSIONING REGION | C46: QVV | D46: Dorset STP | E46: RDY | F46: DORSET HEALTHCARE UNIVERSITY NHS FOUNDATION TRUST | G46: Mental Health & Learning Disability and Mental Health, Learning Disability & Community Trusts | H46: 1148 | I46: 5189 | J46: 6.912020906 | K46: 32 | L46: 127 | M46: 348 | N46: 444 | O46: 197 | P46: 8 | Q46: 71 | R46: 260 | S46: 474 | T46: 335 | U46: 8 | V46: 49 | W46: 212 | X46: 427 | Y46: 452 | Z46: 50 | AA46: 104 | AB46: 213 | AC46: 527 | AD46: 254 | AE46: 57 | AF46: 82 | AG46: 206 | AH46: 543 | AI46: 260 | AJ46: 69 | AK46: 133 | AL46: 294 | AM46: 458 | AN46: 194 | AO46: 57 | AP46: 72 | AQ46: 173 | AR46: 525 | AS46: 321 | AT46: 61 | AU46: 109 | AV46: 244 | AW46: 503 | AX46: 231 | AY46: 23 | AZ46: 77 | BA46: 225 | BB46: 579 | BC46: 244 | BD46: 1148 | BE46: 1148 | BF46: 1148
A47: Y58 | B47: SOUTH WEST COMMISSIONING REGION | C47: QT6 | D47: Cornwall and the Isles of Scilly Health & Social Care Partnership (STP) | E47: REF | F47: ROYAL CORNWALL HOSPITALS NHS TRUST | G47: Acute and Acute & Community Trusts | H47: 681 | I47: 5957 | J47: 6.468214067 | K47: 75 | L47: 95 | M47: 193 | N47: 221 | O47: 97 | P47: 42 | Q47: 64 | R47: 167 | S47: 272 | T47: 138 | U47: 30 | V47: 46 | W47: 124 | X47: 252 | Y47: 234 | Z47: 52 | AA47: 65 | AB47: 130 | AC47: 248 | AD47: 192 | AE47: 61 | AF47: 61 | AG47: 115 | AH47: 248 | AI47: 197 | AJ47: 77 | AK47: 87 | AL47: 144 | AM47: 218 | AN47: 160 | AO47: 43 | AP47: 61 | AQ47: 142 | AR47: 237 | AS47: 199 | AT47: 58 | AU47: 98 | AV47: 181 | AW47: 244 | AX47: 108 | AY47: 28 | AZ47: 60 | BA47: 197 | BB47: 282 | BC47: 121 | BD47: 682 | BE47: 682 | BF47: 681
A48: Y58 | B48: SOUTH WEST COMMISSIONING REGION | C48: QSL | D48: Somerset STP | E48: RH5 | F48: SOMERSET NHS FOUNDATION TRUST | G48: Acute and Acute & Community Trusts | H48: 946 | I48: 8202 | J48: 6.851068828 | K48: 27 | L48: 132 | M48: 312 | N48: 355 | O48: 120 | P48: 11 | Q48: 77 | R48: 243 | S48: 393 | T48: 222 | U48: 13 | V48: 42 | W48: 194 | X48: 373 | Y48: 324 | Z48: 37 | AA48: 85 | AB48: 161 | AC48: 471 | AD48: 192 | AE48: 44 | AF48: 73 | AG48: 134 | AH48: 481 | AI48: 214 | AJ48: 51 | AK48: 132 | AL48: 232 | AM48: 380 | AN48: 151 | AO48: 24 | AP48: 56 | AQ48: 147 | AR48: 440 | AS48: 279 | AT48: 47 | AU48: 90 | AV48: 235 | AW48: 361 | AX48: 213 | AY48: 29 | AZ48: 58 | BA48: 163 | BB48: 461 | BC48: 235 | BD48: 946 | BE48: 946 | BF48: 946
A49: Y58 | B49: SOUTH WEST COMMISSIONING REGION | C49: QJK | D49: Devon STP | E49: RH8 | F49: ROYAL DEVON AND EXETER NHS FOUNDATION TRUST | G49: Acute and Acute & Community Trusts | H49: 1181 | I49: 7581 | J49: 6.88811345 | K49: 38 | L49: 150 | M49: 406 | N49: 478 | O49: 163 | P49: 16 | Q49: 77 | R49: 322 | S49: 510 | T49: 301 | U49: 15 | V49: 47 | W49: 269 | X49: 486 | Y49: 410 | Z49: 34 | AA49: 149 | AB49: 242 | AC49: 537 | AD49: 237 | AE49: 38 | AF49: 97 | AG49: 248 | AH49: 579 | AI49: 222 | AJ49: 50 | AK49: 166 | AL49: 322 | AM49: 485 | AN49: 162 | AO49: 13 | AP49: 69 | AQ49: 163 | AR49: 589 | AS49: 348 | AT49: 39 | AU49: 120 | AV49: 276 | AW49: 543 | AX49: 203 | AY49: 13 | AZ49: 49 | BA49: 191 | BB49: 636 | BC49: 292 | BD49: 1181 | BE49: 1184 | BF49: 1226
A50: Y58 | B50: SOUTH WEST COMMISSIONING REGION | C50: QT6 | D50: Cornwall and the Isles of Scilly Health & Social Care Partnership (STP) | E50: RJ8 | F50: CORNWALL PARTNERSHIP NHS FOUNDATION TRUST | G50: Mental Health & Learning Disability and Mental Health, Learning Disability & Community Trusts | H50: 11 | I50: 3370 | J50: 5.050505051 | K50: 0 | L50: 2 | M50: 5 | N50: 4 | O50: 0 | P50: 0 | Q50: 5 | R50: 2 | S50: 2 | T50: 2 | U50: 0 | V50: 2 | W50: 4 | X50: 3 | Y50: 2 | Z50: 2 | AA50: 2 | AB50: 4 | AC50: 3 | AD50: 0 | AE50: 2 | AF50: 2 | AG50: 0 | AH50: 6 | AI50: 1 | AJ50: 0 | AK50: 6 | AL50: 3 | AM50: 2 | AN50: 0 | AO50: 0 | AP50: 2 | AQ50: 6 | AR50: 2 | AS50: 1 | AT50: 0 | AU50: 4 | AV50: 4 | AW50: 3 | AX50: 0 | AY50: 0 | AZ50: 5 | BA50: 3 | BB50: 3 | BC50: 0 | BD50: 11 | BE50: 11 | BF50: 11
A51: Y58 | B51: SOUTH WEST COMMISSIONING REGION | C51: QJK | D51: Devon STP | E51: RK9 | F51: UNIVERSITY HOSPITALS PLYMOUTH NHS TRUST | G51: Acute and Acute & Community Trusts | H51: 167 | I51: 8017 | J51: 6.519754608 | K51: 11 | L51: 26 | M51: 47 | N51: 64 | O51: 22 | P51: 7 | Q51: 18 | R51: 36 | S51: 62 | T51: 47 | U51: 5 | V51: 8 | W51: 39 | X51: 64 | Y51: 54 | Z51: 13 | AA51: 23 | AB51: 35 | AC51: 64 | AD51: 35 | AE51: 10 | AF51: 29 | AG51: 23 | AH51: 70 | AI51: 38 | AJ51: 12 | AK51: 31 | AL51: 38 | AM51: 58 | AN51: 31 | AO51: 4 | AP51: 19 | AQ51: 20 | AR51: 74 | AS51: 50 | AT51: 15 | AU51: 23 | AV51: 36 | AW51: 72 | AX51: 24 | AY51: 5 | AZ51: 20 | BA51: 34 | BB51: 79 | BC51: 32 | BD51: 167 | BE51: 170 | BF51: 170
A52: Y58 | B52: SOUTH WEST COMMISSIONING REGION | C52: QOX | D52: Bath and North East Somerset, Swindon and Wiltshire STP | E52: RN3 | F52: GREAT WESTERN HOSPITALS NHS FOUNDATION TRUST | G52: Acute and Acute & Community Trusts | H52: 1663 | I52: 4570 | J52: 6.668918353 | K52: 62 | L52: 206 | M52: 598 | N52: 583 | O52: 260 | P52: 27 | Q52: 134 | R52: 447 | S52: 646 | T52: 438 | U52: 27 | V52: 83 | W52: 376 | X52: 577 | Y52: 624 | Z52: 72 | AA52: 169 | AB52: 386 | AC52: 821 | AD52: 255 | AE52: 83 | AF52: 172 | AG52: 308 | AH52: 876 | AI52: 263 | AJ52: 90 | AK52: 246 | AL52: 481 | AM52: 689 | AN52: 196 | AO52: 21 | AP52: 121 | AQ52: 245 | AR52: 787 | AS52: 489 | AT52: 92 | AU52: 192 | AV52: 441 | AW52: 700 | AX52: 246 | AY52: 41 | AZ52: 159 | BA52: 407 | BB52: 800 | BC52: 260 | BD52: 1663 | BE52: 1702 | BF52: 1687
A53: Y58 | B53: SOUTH WEST COMMISSIONING REGION | C53: QOX | D53: Bath and North East Somerset, Swindon and Wiltshire STP | E53: RNZ | F53: SALISBURY NHS FOUNDATION TRUST | G53: Acute and Acute & Community Trusts | H53: 99 | I53: 3371 | J53: 6.105499439 | K53: 9 | L53: 19 | M53: 40 | N53: 22 | O53: 9 | P53: 5 | Q53: 8 | R53: 34 | S53: 30 | T53: 22 | U53: 5 | V53: 6 | W53: 25 | X53: 39 | Y53: 24 | Z53: 6 | AA53: 16 | AB53: 26 | AC53: 39 | AD53: 12 | AE53: 7 | AF53: 6 | AG53: 24 | AH53: 48 | AI53: 14 | AJ53: 10 | AK53: 19 | AL53: 30 | AM53: 28 | AN53: 12 | AO53: 2 | AP53: 6 | AQ53: 24 | AR53: 46 | AS53: 21 | AT53: 9 | AU53: 17 | AV53: 29 | AW53: 32 | AX53: 12 | AY53: 4 | AZ53: 8 | BA53: 24 | BB53: 49 | BC53: 14 | BD53: 99 | BE53: 99 | BF53: 99
A54: Y58 | B54: SOUTH WEST COMMISSIONING REGION | C54: QR1 | D54: Gloucestershire STP | E54: RTE | F54: GLOUCESTERSHIRE HOSPITALS NHS FOUNDATION TRUST | G54: Acute and Acute & Community Trusts | H54: 98 | I54: 7155 | J54: 6.249284225 | K54: 5 | L54: 17 | M54: 36 | N54: 35 | O54: 9 | P54: 2 | Q54: 11 | R54: 31 | S54: 39 | T54: 16 | U54: 2 | V54: 6 | W54: 22 | X54: 36 | Y54: 33 | Z54: 7 | AA54: 10 | AB54: 23 | AC54: 42 | AD54: 16 | AE54: 8 | AF54: 12 | AG54: 20 | AH54: 43 | AI54: 16 | AJ54: 9 | AK54: 17 | AL54: 27 | AM54: 36 | AN54: 10 | AO54: 4 | AP54: 9 | AQ54: 19 | AR54: 44 | AS54: 23 | AT54: 8 | AU54: 17 | AV54: 28 | AW54: 35 | AX54: 12 | AY54: 7 | AZ54: 12 | BA54: 27 | BB54: 43 | BC54: 11 | BD54: 99 | BE54: 98 | BF54: 99
A55: Y58 | B55: SOUTH WEST COMMISSIONING REGION | C55: QR1 | D55: Gloucestershire STP | E55: RTQ | F55: GLOUCESTERSHIRE HEALTH AND CARE NHS FOUNDATION TRUST | G55: Mental Health & Learning Disability and Mental Health, Learning Disability & Community Trusts | H55: 171 | I55: 3774 | J55: 6.851851852 | K55: 7 | L55: 24 | M55: 56 | N55: 72 | O55: 12 | P55: 1 | Q55: 13 | R55: 52 | S55: 73 | T55: 32 | U55: 2 | V55: 7 | W55: 40 | X55: 59 | Y55: 63 | Z55: 4 | AA55: 16 | AB55: 27 | AC55: 83 | AD55: 41 | AE55: 5 | AF55: 13 | AG55: 24 | AH55: 78 | AI55: 51 | AJ55: 6 | AK55: 22 | AL55: 39 | AM55: 74 | AN55: 30 | AO55: 3 | AP55: 9 | AQ55: 30 | AR55: 76 | AS55: 53 | AT55: 13 | AU55: 21 | AV55: 39 | AW55: 62 | AX55: 36 | AY55: 4 | AZ55: 13 | BA55: 41 | BB55: 71 | BC55: 42 | BD55: 171 | BE55: 171 | BF55: 171
A56: Y58 | B56: SOUTH WEST COMMISSIONING REGION | C56: QUY | D56: Bristol, North Somerset and South Gloucestershire STP | E56: RVJ | F56: NORTH BRISTOL NHS TRUST | G56: Acute and Acute & Community Trusts | H56: 175 | I56: 8058 | J56: 6.455402237 | K56: 13 | L56: 31 | M56: 64 | N56: 56 | O56: 12 | P56: 5 | Q56: 24 | R56: 46 | S56: 74 | T56: 27 | U56: 4 | V56: 14 | W56: 47 | X56: 65 | Y56: 45 | Z56: 29 | AA56: 25 | AB56: 9 | AC56: 36 | AD56: 76 | AE56: 20 | AF56: 32 | AG56: 12 | AH56: 32 | AI56: 79 | AJ56: 33 | AK56: 22 | AL56: 17 | AM56: 45 | AN56: 58 | AO56: 13 | AP56: 53 | AQ56: 8 | AR56: 23 | AS56: 79 | AT56: 20 | AU56: 27 | AV56: 14 | AW56: 40 | AX56: 75 | AY56: 6 | AZ56: 46 | BA56: 7 | BB56: 32 | BC56: 85 | BD56: 176 | BE56: 175 | BF56: 175
A57: Y58 | B57: SOUTH WEST COMMISSIONING REGION | C57: QJK | D57: Devon STP | E57: RWV | F57: DEVON PARTNERSHIP NHS TRUST | G57: Mental Health & Learning Disability and Mental Health, Learning Disability & Community Trusts | H57: 151 | I57: 3068 | J57: 6.694260486 | K57: 3 | L57: 28 | M57: 57 | N57: 49 | O57: 14 | P57: 1 | Q57: 10 | R57: 52 | S57: 57 | T57: 31 | U57: 2 | V57: 5 | W57: 27 | X57: 59 | Y57: 58 | Z57: 5 | AA57: 15 | AB57: 35 | AC57: 64 | AD57: 32 | AE57: 4 | AF57: 10 | AG57: 30 | AH57: 73 | AI57: 34 | AJ57: 4 | AK57: 13 | AL57: 35 | AM57: 69 | AN57: 30 | AO57: 5 | AP57: 9 | AQ57: 24 | AR57: 85 | AS57: 28 | AT57: 11 | AU57: 19 | AV57: 28 | AW57: 69 | AX57: 24 | AY57: 7 | AZ57: 10 | BA57: 57 | BB57: 57 | BC57: 20 | BD57: 151 | BE57: 151 | BF57: 151
A58: Y58 | B58: SOUTH WEST COMMISSIONING REGION | C58: QJK | D58: Devon STP | E58: RYF | F58: SOUTH WESTERN AMBULANCE SERVICE NHS FOUNDATION TRUST | G58: Ambulance Trusts | H58: 520 | I58: 4390 | J58: 5.846136831 | K58: 24 | L58: 85 | M58: 170 | N58: 172 | O58: 73 | P58: 12 | Q58: 47 | R58: 167 | S58: 182 | T58: 116 | U58: 10 | V58: 70 | W58: 188 | X58: 190 | Y58: 66 | Z58: 37 | AA58: 70 | AB58: 118 | AC58: 234 | AD58: 62 | AE58: 66 | AF58: 94 | AG58: 144 | AH58: 170 | AI58: 46 | AJ58: 70 | AK58: 120 | AL58: 162 | AM58: 138 | AN58: 30 | AO58: 31 | AP58: 86 | AQ58: 92 | AR58: 204 | AS58: 110 | AT58: 67 | AU58: 99 | AV58: 124 | AW58: 179 | AX58: 52 | AY58: 26 | AZ58: 65 | BA58: 112 | BB58: 212 | BC58: 107 | BD58: 521 | BE58: 520 | BF58: 524
A59: Y59 | B59: SOUTH EAST COMMISSIONING REGION | C59: QRL | D59: Hampshire and the Isle of Wight STP | E59: R1C | F59: SOLENT NHS TRUST | G59: Mental Health & Learning Disability and Mental Health, Learning Disability & Community Trusts | H59: 251 | I59: 3306 | J59: 7.288623285 | K59: 7 | L59: 30 | M59: 73 | N59: 105 | O59: 36 | P59: 2 | Q59: 13 | R59: 57 | S59: 109 | T59: 70 | U59: 2 | V59: 11 | W59: 46 | X59: 89 | Y59: 103 | Z59: 5 | AA59: 21 | AB59: 42 | AC59: 109 | AD59: 74 | AE59: 7 | AF59: 24 | AG59: 26 | AH59: 120 | AI59: 74 | AJ59: 9 | AK59: 25 | AL59: 51 | AM59: 108 | AN59: 58 | AO59: 6 | AP59: 9 | AQ59: 23 | AR59: 108 | AS59: 105 | AT59: 11 | AU59: 19 | AV59: 55 | AW59: 89 | AX59: 77 | AY59: 6 | AZ59: 9 | BA59: 31 | BB59: 102 | BC59: 103 | BD59: 251 | BE59: 251 | BF59: 251
A60: Y59 | B60: SOUTH EAST COMMISSIONING REGION | C60: QRL | D60: Hampshire and the Isle of Wight STP | E60: R1F | F60: ISLE OF WIGHT NHS TRUST | G60: Acute and Acute & Community Trusts | H60: 344 | I60: 3082 | J60: 7.097000045 | K60: 7 | L60: 31 | M60: 96 | N60: 151 | O60: 62 | P60: 3 | Q60: 24 | R60: 61 | S60: 153 | T60: 106 | U60: 2 | V60: 15 | W60: 49 | X60: 129 | Y60: 151 | Z60: 9 | AA60: 25 | AB60: 44 | AC60: 173 | AD60: 96 | AE60: 12 | AF60: 24 | AG60: 37 | AH60: 181 | AI60: 92 | AJ60: 16 | AK60: 33 | AL60: 83 | AM60: 144 | AN60: 68 | AO60: 9 | AP60: 31 | AQ60: 47 | AR60: 133 | AS60: 126 | AT60: 13 | AU60: 37 | AV60: 88 | AW60: 138 | AX60: 71 | AY60: 10 | AZ60: 37 | BA60: 101 | BB60: 136 | BC60: 63 | BD60: 346 | BE60: 344 | BF60: 346
A61: Y59 | B61: SOUTH EAST COMMISSIONING REGION | C61: QXU | D61: Surrey Heartlands Health & Care Partnership (STP) | E61: RA2 | F61: ROYAL SURREY COUNTY HOSPITAL NHS FOUNDATION TRUST | G61: Acute and Acute & Community Trusts | H61: 52 | I61: 4289 | J61: 7.056623932 | K61: 4 | L61: 10 | M61: 12 | N61: 16 | O61: 10 | P61: 1 | Q61: 3 | R61: 15 | S61: 20 | T61: 13 | U61: 1 | V61: 0 | W61: 8 | X61: 22 | Y61: 21 | Z61: 3 | AA61: 1 | AB61: 16 | AC61: 18 | AD61: 14 | AE61: 2 | AF61: 5 | AG61: 9 | AH61: 25 | AI61: 11 | AJ61: 3 | AK61: 5 | AL61: 13 | AM61: 21 | AN61: 10 | AO61: 0 | AP61: 2 | AQ61: 7 | AR61: 21 | AS61: 22 | AT61: 2 | AU61: 6 | AV61: 10 | AW61: 21 | AX61: 13 | AY61: 1 | AZ61: 0 | BA61: 11 | BB61: 21 | BC61: 19 | BD61: 52 | BE61: 52 | BF61: 52
A62: Y59 | B62: SOUTH EAST COMMISSIONING REGION | C62: QNX | D62: Sussex Health and Care Partnership STP | E62: RDR | F62: SUSSEX COMMUNITY NHS FOUNDATION TRUST | G62: Community Trusts | H62: 62 | I62: 4364 | J62: 7.217741935 | K62: 0 | L62: 11 | M62: 13 | N62: 32 | O62: 6 | P62: 0 | Q62: 5 | R62: 13 | S62: 28 | T62: 16 | U62: 1 | V62: 4 | W62: 9 | X62: 27 | Y62: 21 | Z62: 0 | AA62: 8 | AB62: 6 | AC62: 33 | AD62: 15 | AE62: 1 | AF62: 6 | AG62: 3 | AH62: 36 | AI62: 16 | AJ62: 0 | AK62: 9 | AL62: 12 | AM62: 27 | AN62: 14 | AO62: 1 | AP62: 2 | AQ62: 8 | AR62: 29 | AS62: 22 | AT62: 3 | AU62: 3 | AV62: 11 | AW62: 33 | AX62: 12 | AY62: 0 | AZ62: 0 | BA62: 12 | BB62: 34 | BC62: 16 | BD62: 62 | BE62: 62 | BF62: 62
A63: Y59 | B63: SOUTH EAST COMMISSIONING REGION | C63: QNQ | D63: Frimley Health & Care (STP) | E63: RDU | F63: FRIMLEY HEALTH NHS FOUNDATION TRUST | G63: Acute and Acute & Community Trusts | H63: 155 | I63: 8996 | J63: 5.784946237 | K63: 16 | L63: 35 | M63: 57 | N63: 36 | O63: 11 | P63: 10 | Q63: 26 | R63: 43 | S63: 48 | T63: 28 | U63: 7 | V63: 12 | W63: 44 | X63: 45 | Y63: 47 | Z63: 12 | AA63: 32 | AB63: 33 | AC63: 52 | AD63: 26 | AE63: 18 | AF63: 29 | AG63: 33 | AH63: 53 | AI63: 22 | AJ63: 21 | AK63: 36 | AL63: 34 | AM63: 51 | AN63: 13 | AO63: 12 | AP63: 11 | AQ63: 34 | AR63: 63 | AS63: 35 | AT63: 23 | AU63: 26 | AV63: 49 | AW63: 41 | AX63: 16 | AY63: 11 | AZ63: 13 | BA63: 28 | BB63: 73 | BC63: 30 | BD63: 155 | BE63: 155 | BF63: 155
A64: Y59 | B64: SOUTH EAST COMMISSIONING REGION | C64: QRL | D64: Hampshire and the Isle of Wight STP | E64: RHM | F64: UNIVERSITY HOSPITAL SOUTHAMPTON NHS FOUNDATION TRUST | G64: Acute and Acute & Community Trusts | H64: 3359 | I64: 11005 | J64: 7.175431634 | K64: 83 | L64: 382 | M64: 1140 | N64: 1426 | O64: 402 | P64: 27 | Q64: 188 | R64: 869 | S64: 1563 | T64: 744 | U64: 41 | V64: 158 | W64: 754 | X64: 1417 | Y64: 1024 | Z64: 73 | AA64: 244 | AB64: 589 | AC64: 1781 | AD64: 701 | AE64: 90 | AF64: 232 | AG64: 608 | AH64: 1750 | AI64: 713 | AJ64: 105 | AK64: 365 | AL64: 867 | AM64: 1511 | AN64: 547 | AO64: 33 | AP64: 104 | AQ64: 278 | AR64: 1557 | AS64: 1387 | AT64: 93 | AU64: 190 | AV64: 597 | AW64: 1582 | AX64: 901 | AY64: 30 | AZ64: 92 | BA64: 384 | BB64: 1719 | BC64: 1138 | BD64: 3359 | BE64: 3388 | BF64: 3391
A65: Y59 | B65: SOUTH EAST COMMISSIONING REGION | C65: QRL | D65: Hampshire and the Isle of Wight STP | E65: RHU | F65: PORTSMOUTH HOSPITALS UNIVERSITY NATIONAL HEALTH SERVICE TRUST | G65: Acute and Acute & Community Trusts | H65: 1077 | I65: 7090 | J65: 6.416486124 | K65: 49 | L65: 213 | M65: 375 | N65: 332 | O65: 108 | P65: 17 | Q65: 118 | R65: 330 | S65: 382 | T65: 230 | U65: 20 | V65: 70 | W65: 283 | X65: 362 | Y65: 342 | Z65: 61 | AA65: 119 | AB65: 236 | AC65: 488 | AD65: 173 | AE65: 72 | AF65: 124 | AG65: 223 | AH65: 487 | AI65: 171 | AJ65: 70 | AK65: 153 | AL65: 318 | AM65: 403 | AN65: 133 | AO65: 27 | AP65: 72 | AQ65: 165 | AR65: 479 | AS65: 334 | AT65: 85 | AU65: 143 | AV65: 328 | AW65: 381 | AX65: 140 | AY65: 32 | AZ65: 94 | BA65: 260 | BB65: 494 | BC65: 197 | BD65: 1077 | BE65: 1077 | BF65: 1077
A66: Y59 | B66: SOUTH EAST COMMISSIONING REGION | C66: QU9 | D66: Buckinghamshire, Oxfordshire and Berkshire West STP | E66: RHW | F66: ROYAL BERKSHIRE NHS FOUNDATION TRUST | G66: Acute and Acute & Community Trusts | H66: 97 | I66: 5537 | J66: 6.901489118 | K66: 2 | L66: 15 | M66: 29 | N66: 36 | O66: 15 | P66: 0 | Q66: 9 | R66: 21 | S66: 40 | T66: 27 | U66: 1 | V66: 7 | W66: 23 | X66: 25 | Y66: 41 | Z66: 4 | AA66: 18 | AB66: 12 | AC66: 39 | AD66: 24 | AE66: 5 | AF66: 15 | AG66: 13 | AH66: 36 | AI66: 28 | AJ66: 6 | AK66: 14 | AL66: 19 | AM66: 38 | AN66: 20 | AO66: 2 | AP66: 3 | AQ66: 14 | AR66: 40 | AS66: 38 | AT66: 6 | AU66: 14 | AV66: 22 | AW66: 35 | AX66: 20 | AY66: 2 | AZ66: 3 | BA66: 18 | BB66: 45 | BC66: 29 | BD66: 97 | BE66: 97 | BF66: 97
A67: Y59 | B67: SOUTH EAST COMMISSIONING REGION | C67: QRL | D67: Hampshire and the Isle of Wight STP | E67: RN5 | F67: HAMPSHIRE HOSPITALS NHS FOUNDATION TRUST | G67: Acute and Acute & Community Trusts | H67: 293 | I67: 6428 | J67: 6.00967008 | K67: 16 | L67: 57 | M67: 93 | N67: 96 | O67: 31 | P67: 12 | Q67: 31 | R67: 74 | S67: 104 | T67: 72 | U67: 13 | V67: 23 | W67: 60 | X67: 102 | Y67: 95 | Z67: 25 | AA67: 48 | AB67: 59 | AC67: 112 | AD67: 49 | AE67: 28 | AF67: 44 | AG67: 50 | AH67: 123 | AI67: 48 | AJ67: 33 | AK67: 59 | AL67: 71 | AM67: 89 | AN67: 41 | AO67: 19 | AP67: 28 | AQ67: 57 | AR67: 123 | AS67: 66 | AT67: 50 | AU67: 57 | AV67: 77 | AW67: 74 | AX67: 35 | AY67: 25 | AZ67: 33 | BA67: 85 | BB67: 110 | BC67: 40 | BD67: 293 | BE67: 293 | BF67: 293
A68: Y59 | B68: SOUTH EAST COMMISSIONING REGION | C68: QKS | D68: Kent and Medway STP | E68: RN7 | F68: DARTFORD AND GRAVESHAM NHS TRUST | G68: Acute and Acute & Community Trusts | H68: 620 | I68: 3401 | J68: 6.820340502 | K68: 21 | L68: 62 | M68: 207 | N68: 211 | O68: 119 | P68: 12 | Q68: 43 | R68: 152 | S68: 236 | T68: 177 | U68: 10 | V68: 37 | W68: 152 | X68: 214 | Y68: 207 | Z68: 27 | AA68: 64 | AB68: 132 | AC68: 261 | AD68: 136 | AE68: 31 | AF68: 69 | AG68: 128 | AH68: 259 | AI68: 133 | AJ68: 39 | AK68: 76 | AL68: 160 | AM68: 225 | AN68: 120 | AO68: 15 | AP68: 36 | AQ68: 97 | AR68: 261 | AS68: 211 | AT68: 30 | AU68: 55 | AV68: 131 | AW68: 252 | AX68: 152 | AY68: 28 | AZ68: 46 | BA68: 132 | BB68: 280 | BC68: 134 | BD68: 620 | BE68: 620 | BF68: 620
A69: Y59 | B69: SOUTH EAST COMMISSIONING REGION | C69: QU9 | D69: Buckinghamshire, Oxfordshire and Berkshire West STP | E69: RNU | F69: OXFORD HEALTH NHS FOUNDATION TRUST | G69: Mental Health & Learning Disability and Mental Health, Learning Disability & Community Trusts | H69: 1100 | I69: 5265 | J69: 6.868181818 | K69: 27 | L69: 141 | M69: 348 | N69: 436 | O69: 148 | P69: 13 | Q69: 77 | R69: 278 | S69: 461 | T69: 271 | U69: 12 | V69: 44 | W69: 203 | X69: 374 | Y69: 467 | Z69: 44 | AA69: 106 | AB69: 176 | AC69: 529 | AD69: 245 | AE69: 47 | AF69: 87 | AG69: 164 | AH69: 561 | AI69: 241 | AJ69: 45 | AK69: 135 | AL69: 274 | AM69: 471 | AN69: 175 | AO69: 39 | AP69: 48 | AQ69: 186 | AR69: 515 | AS69: 312 | AT69: 73 | AU69: 102 | AV69: 276 | AW69: 434 | AX69: 215 | AY69: 41 | AZ69: 70 | BA69: 254 | BB69: 509 | BC69: 226 | BD69: 1100 | BE69: 1100 | BF69: 1100
A70: Y59 | B70: SOUTH EAST COMMISSIONING REGION | C70: QKS | D70: Kent and Medway STP | E70: RPA | F70: MEDWAY NHS FOUNDATION TRUST | G70: Acute and Acute & Community Trusts | H70: 312 | I70: 4106 | J70: 5.941951567 | K70: 17 | L70: 70 | M70: 90 | N70: 99 | O70: 36 | P70: 14 | Q70: 35 | R70: 87 | S70: 101 | T70: 75 | U70: 16 | V70: 20 | W70: 72 | X70: 95 | Y70: 109 | Z70: 34 | AA70: 39 | AB70: 71 | AC70: 120 | AD70: 48 | AE70: 37 | AF70: 40 | AG70: 60 | AH70: 121 | AI70: 54 | AJ70: 36 | AK70: 49 | AL70: 88 | AM70: 87 | AN70: 52 | AO70: 24 | AP70: 29 | AQ70: 73 | AR70: 117 | AS70: 69 | AT70: 46 | AU70: 52 | AV70: 87 | AW70: 89 | AX70: 38 | AY70: 31 | AZ70: 51 | BA70: 97 | BB70: 104 | BC70: 29 | BD70: 312 | BE70: 312 | BF70: 312
A71: Y59 | B71: SOUTH EAST COMMISSIONING REGION | C71: QNX | D71: Sussex Health and Care Partnership STP | E71: RPC | F71: QUEEN VICTORIA HOSPITAL NHS FOUNDATION TRUST | G71: Acute Specialist Trusts | H71: 145 | I71: 902 | J71: 7.492337165 | K71: 4 | L71: 13 | M71: 50 | N71: 58 | O71: 20 | P71: 2 | Q71: 6 | R71: 37 | S71: 61 | T71: 39 | U71: 2 | V71: 2 | W71: 24 | X71: 70 | Y71: 47 | Z71: 5 | AA71: 8 | AB71: 28 | AC71: 51 | AD71: 53 | AE71: 5 | AF71: 14 | AG71: 17 | AH71: 49 | AI71: 60 | AJ71: 6 | AK71: 17 | AL71: 33 | AM71: 48 | AN71: 41 | AO71: 1 | AP71: 3 | AQ71: 15 | AR71: 49 | AS71: 77 | AT71: 8 | AU71: 7 | AV71: 34 | AW71: 59 | AX71: 37 | AY71: 0 | AZ71: 0 | BA71: 4 | BB71: 38 | BC71: 103 | BD71: 145 | BE71: 145 | BF71: 145
A72: Y59 | B72: SOUTH EAST COMMISSIONING REGION | C72: QU9 | D72: Buckinghamshire, Oxfordshire and Berkshire West STP | E72: RTH | F72: OXFORD UNIVERSITY HOSPITALS NHS FOUNDATION TRUST | G72: Acute and Acute & Community Trusts | H72: 2814 | I72: 12111 | J72: 6.974335162 | K72: 69 | L72: 337 | M72: 922 | N72: 1131 | O72: 441 | P72: 41 | Q72: 176 | R72: 725 | S72: 1205 | T72: 723 | U72: 34 | V72: 139 | W72: 627 | X72: 1119 | Y72: 948 | Z72: 122 | AA72: 288 | AB72: 490 | AC72: 1367 | AD72: 575 | AE72: 125 | AF72: 259 | AG72: 463 | AH72: 1433 | AI72: 562 | AJ72: 163 | AK72: 394 | AL72: 677 | AM72: 1182 | AN72: 422 | AO72: 45 | AP72: 137 | AQ72: 331 | AR72: 1256 | AS72: 1048 | AT72: 139 | AU72: 283 | AV72: 554 | AW72: 1191 | AX72: 649 | AY72: 36 | AZ72: 111 | BA72: 414 | BB72: 1380 | BC72: 873 | BD72: 2814 | BE72: 2838 | BF72: 2867
A73: Y59 | B73: SOUTH EAST COMMISSIONING REGION | C73: QKS | D73: Kent and Medway STP | E73: RVV | F73: EAST KENT HOSPITALS UNIVERSITY NHS FOUNDATION TRUST | G73: Acute and Acute & Community Trusts | H73: 2916 | I73: 9248 | J73: 6.362398723 | K73: 124 | L73: 399 | M73: 1082 | N73: 1055 | O73: 332 | P73: 56 | Q73: 249 | R73: 804 | S73: 1130 | T73: 708 | U73: 63 | V73: 169 | W73: 707 | X73: 1078 | Y73: 934 | Z73: 112 | AA73: 366 | AB73: 660 | AC73: 1393 | AD73: 417 | AE73: 131 | AF73: 349 | AG73: 614 | AH73: 1447 | AI73: 410 | AJ73: 184 | AK73: 469 | AL73: 851 | AM73: 1121 | AN73: 323 | AO73: 104 | AP73: 286 | AQ73: 584 | AR73: 1249 | AS73: 693 | AT73: 240 | AU73: 462 | AV73: 844 | AW73: 1027 | AX73: 343 | AY73: 134 | AZ73: 399 | BA73: 816 | BB73: 1211 | BC73: 358 | BD73: 2916 | BE73: 2948 | BF73: 2947
A74: Y59 | B74: SOUTH EAST COMMISSIONING REGION | C74: QRL | D74: Hampshire and the Isle of Wight STP | E74: RW1 | F74: SOUTHERN HEALTH NHS FOUNDATION TRUST | G74: Mental Health & Learning Disability and Mental Health, Learning Disability & Community Trusts | H74: 440 | I74: 5369 | J74: 6.796085859 | K74: 15 | L74: 72 | M74: 125 | N74: 181 | O74: 47 | P74: 9 | Q74: 44 | R74: 94 | S74: 216 | T74: 77 | U74: 7 | V74: 34 | W74: 61 | X74: 232 | Y74: 106 | Z74: 14 | AA74: 44 | AB74: 72 | AC74: 211 | AD74: 99 | AE74: 16 | AF74: 36 | AG74: 58 | AH74: 228 | AI74: 102 | AJ74: 15 | AK74: 52 | AL74: 110 | AM74: 183 | AN74: 80 | AO74: 13 | AP74: 23 | AQ74: 61 | AR74: 191 | AS74: 152 | AT74: 21 | AU74: 40 | AV74: 105 | AW74: 203 | AX74: 71 | AY74: 14 | AZ74: 30 | BA74: 115 | BB74: 207 | BC74: 74 | BD74: 440 | BE74: 440 | BF74: 440
A75: Y59 | B75: SOUTH EAST COMMISSIONING REGION | C75: QNQ | D75: Frimley Health & Care (STP) | E75: RWX | F75: BERKSHIRE HEALTHCARE NHS FOUNDATION TRUST | G75: Mental Health & Learning Disability and Mental Health, Learning Disability & Community Trusts | H75: 1479 | I75: 3880 | J75: 7.370971185 | K75: 20 | L75: 141 | M75: 503 | N75: 629 | O75: 210 | P75: 9 | Q75: 69 | R75: 360 | S75: 663 | T75: 382 | U75: 9 | V75: 41 | W75: 242 | X75: 569 | Y75: 624 | Z75: 24 | AA75: 98 | AB75: 246 | AC75: 755 | AD75: 374 | AE75: 19 | AF75: 74 | AG75: 199 | AH75: 772 | AI75: 427 | AJ75: 35 | AK75: 132 | AL75: 330 | AM75: 670 | AN75: 324 | AO75: 10 | AP75: 45 | AQ75: 133 | AR75: 674 | AS75: 617 | AT75: 36 | AU75: 100 | AV75: 266 | AW75: 633 | AX75: 445 | AY75: 25 | AZ75: 57 | BA75: 250 | BB75: 725 | BC75: 422 | BD75: 1479 | BE75: 1491 | BF75: 1483
A76: Y59 | B76: SOUTH EAST COMMISSIONING REGION | C76: QNX | D76: Sussex Health and Care Partnership STP | E76: RX2 | F76: SUSSEX PARTNERSHIP NHS FOUNDATION TRUST | G76: Mental Health & Learning Disability and Mental Health, Learning Disability & Community Trusts | H76: 145 | I76: 4598 | J76: 6.511494253 | K76: 7 | L76: 19 | M76: 58 | N76: 47 | O76: 14 | P76: 3 | Q76: 13 | R76: 38 | S76: 62 | T76: 29 | U76: 1 | V76: 6 | W76: 24 | X76: 59 | Y76: 55 | Z76: 6 | AA76: 12 | AB76: 25 | AC76: 70 | AD76: 32 | AE76: 10 | AF76: 7 | AG76: 25 | AH76: 72 | AI76: 31 | AJ76: 12 | AK76: 18 | AL76: 35 | AM76: 55 | AN76: 25 | AO76: 3 | AP76: 11 | AQ76: 31 | AR76: 60 | AS76: 40 | AT76: 15 | AU76: 25 | AV76: 32 | AW76: 41 | AX76: 32 | AY76: 16 | AZ76: 24 | BA76: 36 | BB76: 50 | BC76: 19 | BD76: 145 | BE76: 145 | BF76: 145
A77: Y59 | B77: SOUTH EAST COMMISSIONING REGION | C77: QNX | D77: Sussex Health and Care Partnership STP | E77: RXC | F77: EAST SUSSEX HEALTHCARE NHS TRUST | G77: Acute and Acute & Community Trusts | H77: 119 | I77: 6714 | J77: 5.821661998 | K77: 10 | L77: 23 | M77: 43 | N77: 33 | O77: 10 | P77: 8 | Q77: 11 | R77: 37 | S77: 39 | T77: 24 | U77: 6 | V77: 10 | W77: 35 | X77: 42 | Y77: 26 | Z77: 14 | AA77: 15 | AB77: 29 | AC77: 45 | AD77: 16 | AE77: 12 | AF77: 14 | AG77: 23 | AH77: 55 | AI77: 15 | AJ77: 16 | AK77: 18 | AL77: 42 | AM77: 31 | AN77: 12 | AO77: 8 | AP77: 15 | AQ77: 26 | AR77: 48 | AS77: 22 | AT77: 14 | AU77: 18 | AV77: 39 | AW77: 36 | AX77: 12 | AY77: 9 | AZ77: 12 | BA77: 36 | BB77: 45 | BC77: 17 | BD77: 119 | BE77: 119 | BF77: 119
A78: Y59 | B78: SOUTH EAST COMMISSIONING REGION | C78: QU9 | D78: Buckinghamshire, Oxfordshire and Berkshire West STP | E78: RXQ | F78: BUCKINGHAMSHIRE HEALTHCARE NHS TRUST | G78: Acute and Acute & Community Trusts | H78: 607 | I78: 5385 | J78: 6.744005125 | K78: 21 | L78: 75 | M78: 199 | N78: 238 | O78: 74 | P78: 10 | Q78: 42 | R78: 163 | S78: 230 | T78: 162 | U78: 5 | V78: 22 | W78: 118 | X78: 219 | Y78: 243 | Z78: 20 | AA78: 61 | AB78: 118 | AC78: 292 | AD78: 116 | AE78: 19 | AF78: 67 | AG78: 94 | AH78: 309 | AI78: 118 | AJ78: 30 | AK78: 86 | AL78: 151 | AM78: 252 | AN78: 88 | AO78: 18 | AP78: 28 | AQ78: 109 | AR78: 300 | AS78: 152 | AT78: 42 | AU78: 59 | AV78: 177 | AW78: 236 | AX78: 93 | AY78: 26 | AZ78: 43 | BA78: 135 | BB78: 298 | BC78: 105 | BD78: 607 | BE78: 607 | BF78: 607
A79: Y59 | B79: SOUTH EAST COMMISSIONING REGION | C79: QKS | D79: Kent and Medway STP | E79: RXY | F79: KENT AND MEDWAY NHS AND SOCIAL CARE PARTNERSHIP TRUST | G79: Mental Health & Learning Disability and Mental Health, Learning Disability & Community Trusts | H79: 272 | I79: 3123 | J79: 6.639093137 | K79: 15 | L79: 37 | M79: 79 | N79: 108 | O79: 33 | P79: 6 | Q79: 21 | R79: 72 | S79: 101 | T79: 72 | U79: 8 | V79: 17 | W79: 53 | X79: 85 | Y79: 109 | Z79: 17 | AA79: 26 | AB79: 54 | AC79: 108 | AD79: 67 | AE79: 12 | AF79: 24 | AG79: 41 | AH79: 129 | AI79: 66 | AJ79: 15 | AK79: 41 | AL79: 42 | AM79: 123 | AN79: 51 | AO79: 11 | AP79: 25 | AQ79: 47 | AR79: 104 | AS79: 85 | AT79: 21 | AU79: 33 | AV79: 88 | AW79: 79 | AX79: 51 | AY79: 19 | AZ79: 25 | BA79: 81 | BB79: 97 | BC79: 50 | BD79: 272 | BE79: 272 | BF79: 272
A80: Y59 | B80: SOUTH EAST COMMISSIONING REGION | C80: QNX | D80: Sussex Health and Care Partnership STP | E80: RYD | F80: SOUTH EAST COAST AMBULANCE SERVICE NHS FOUNDATION TRUST | G80: Ambulance Trusts | H80: 318 | I80: 3879 | J80: 5.129280224 | K80: 25 | L80: 79 | M80: 113 | N80: 73 | O80: 28 | P80: 9 | Q80: 52 | R80: 102 | S80: 102 | T80: 53 | U80: 22 | V80: 51 | W80: 104 | X80: 90 | Y80: 51 | Z80: 36 | AA80: 66 | AB80: 74 | AC80: 113 | AD80: 29 | AE80: 62 | AF80: 81 | AG80: 59 | AH80: 86 | AI80: 30 | AJ80: 69 | AK80: 86 | AL80: 78 | AM80: 68 | AN80: 17 | AO80: 44 | AP80: 53 | AQ80: 75 | AR80: 88 | AS80: 58 | AT80: 70 | AU80: 72 | AV80: 85 | AW80: 68 | AX80: 23 | AY80: 39 | AZ80: 40 | BA80: 73 | BB80: 118 | BC80: 48 | BD80: 318 | BE80: 318 | BF80: 318
A81: Y59 | B81: SOUTH EAST COMMISSIONING REGION | C81: QU9 | D81: Buckinghamshire, Oxfordshire and Berkshire West STP | E81: RYE | F81: SOUTH CENTRAL AMBULANCE SERVICE NHS FOUNDATION TRUST | G81: Ambulance Trusts | H81: 143 | I81: 4160 | J81: 5.916860917 | K81: 12 | L81: 17 | M81: 53 | N81: 43 | O81: 18 | P81: 4 | Q81: 18 | R81: 48 | S81: 39 | T81: 34 | U81: 9 | V81: 12 | W81: 49 | X81: 45 | Y81: 28 | Z81: 12 | AA81: 30 | AB81: 29 | AC81: 58 | AD81: 14 | AE81: 14 | AF81: 25 | AG81: 23 | AH81: 62 | AI81: 19 | AJ81: 22 | AK81: 35 | AL81: 35 | AM81: 40 | AN81: 11 | AO81: 10 | AP81: 18 | AQ81: 21 | AR81: 58 | AS81: 36 | AT81: 20 | AU81: 20 | AV81: 39 | AW81: 44 | AX81: 20 | AY81: 5 | AZ81: 13 | BA81: 35 | BB81: 53 | BC81: 37 | BD81: 143 | BE81: 143 | BF81: 143
A82: Y59 | B82: SOUTH EAST COMMISSIONING REGION | C82: QNX | D82: Sussex Health and Care Partnership STP | E82: RYR | F82: UNIVERSITY HOSPITALS SUSSEX NHS FOUNDATION TRUST | G82: Acute and Acute & Community Trusts | H82: 326 | I82: 14064 | J82: 5.85463531 | K82: 21 | L82: 80 | M82: 126 | N82: 81 | O82: 18 | P82: 10 | Q82: 51 | R82: 108 | S82: 98 | T82: 59 | U82: 10 | V82: 27 | W82: 101 | X82: 119 | Y82: 69 | Z82: 27 | AA82: 48 | AB82: 57 | AC82: 153 | AD82: 41 | AE82: 23 | AF82: 43 | AG82: 57 | AH82: 155 | AI82: 48 | AJ82: 29 | AK82: 77 | AL82: 81 | AM82: 107 | AN82: 32 | AO82: 20 | AP82: 44 | AQ82: 62 | AR82: 128 | AS82: 72 | AT82: 45 | AU82: 71 | AV82: 80 | AW82: 100 | AX82: 30 | AY82: 22 | AZ82: 41 | BA82: 89 | BB82: 128 | BC82: 46 | BD82: 326 | BE82: 326 | BF82: 326
A83: Y59 | B83: SOUTH EAST COMMISSIONING REGION | C83: QKS | D83: Kent and Medway STP | E83: RYY | F83: KENT COMMUNITY HEALTH NHS FOUNDATION TRUST | G83: Community Trusts | H83: 324 | I83: 4189 | J83: 6.79526749 | K83: 12 | L83: 49 | M83: 124 | N83: 104 | O83: 35 | P83: 5 | Q83: 29 | R83: 100 | S83: 124 | T83: 66 | U83: 3 | V83: 14 | W83: 79 | X83: 99 | Y83: 129 | Z83: 16 | AA83: 30 | AB83: 60 | AC83: 156 | AD83: 62 | AE83: 14 | AF83: 28 | AG83: 39 | AH83: 174 | AI83: 69 | AJ83: 16 | AK83: 41 | AL83: 68 | AM83: 145 | AN83: 54 | AO83: 9 | AP83: 22 | AQ83: 44 | AR83: 142 | AS83: 107 | AT83: 24 | AU83: 30 | AV83: 76 | AW83: 130 | AX83: 64 | AY83: 11 | AZ83: 11 | BA83: 61 | BB83: 160 | BC83: 81 | BD83: 324 | BE83: 324 | BF83: 324
A84: Y60 | B84: MIDLANDS COMMISSIONING REGION | C84: QGH | D84: Herefordshire and Worcestershire STP | E84: R1A | F84: HEREFORDSHIRE AND WORCESTERSHIRE HEALTH AND CARE NHS TRUST | G84: Mental Health & Learning Disability and Mental Health, Learning Disability & Community Trusts | H84: 282 | I84: 3596 | J84: 6.70922125 | K84: 17 | L84: 33 | M84: 95 | N84: 101 | O84: 38 | P84: 5 | Q84: 15 | R84: 75 | S84: 101 | T84: 86 | U84: 4 | V84: 15 | W84: 53 | X84: 96 | Y84: 114 | Z84: 11 | AA84: 30 | AB84: 47 | AC84: 144 | AD84: 52 | AE84: 13 | AF84: 28 | AG84: 42 | AH84: 146 | AI84: 54 | AJ84: 18 | AK84: 43 | AL84: 76 | AM84: 102 | AN84: 44 | AO84: 12 | AP84: 24 | AQ84: 53 | AR84: 107 | AS84: 87 | AT84: 22 | AU84: 34 | AV84: 78 | AW84: 97 | AX84: 53 | AY84: 9 | AZ84: 21 | BA84: 72 | BB84: 120 | BC84: 60 | BD84: 282 | BE84: 283 | BF84: 282
A85: Y60 | B85: MIDLANDS COMMISSIONING REGION | C85: QOC | D85: Shropshire and Telford and Wrekin STP | E85: R1D | F85: SHROPSHIRE COMMUNITY HEALTH NHS TRUST | G85: Community Trusts | H85: 21 | I85: 1244 | J85: 6.851851852 | K85: 0 | L85: 4 | M85: 6 | N85: 6 | O85: 5 | P85: 0 | Q85: 1 | R85: 9 | S85: 3 | T85: 8 | U85: 0 | V85: 2 | W85: 3 | X85: 4 | Y85: 12 | Z85: 1 | AA85: 2 | AB85: 3 | AC85: 11 | AD85: 4 | AE85: 2 | AF85: 0 | AG85: 1 | AH85: 13 | AI85: 5 | AJ85: 1 | AK85: 0 | AL85: 3 | AM85: 14 | AN85: 3 | AO85: 1 | AP85: 2 | AQ85: 3 | AR85: 11 | AS85: 4 | AT85: 1 | AU85: 6 | AV85: 4 | AW85: 9 | AX85: 1 | AY85: 0 | AZ85: 3 | BA85: 2 | BB85: 15 | BC85: 1 | BD85: 21 | BE85: 21 | BF85: 21
A86: Y60 | B86: MIDLANDS COMMISSIONING REGION | C86: QUA | D86: The Black Country and West Birmingham STP | E86: RBK | F86: WALSALL HEALTHCARE NHS TRUST | G86: Acute and Acute & Community Trusts | H86: 1015 | I86: 3772 | J86: 6.236453202 | K86: 79 | L86: 165 | M86: 312 | N86: 378 | O86: 81 | P86: 42 | Q86: 109 | R86: 208 | S86: 498 | T86: 158 | U86: 33 | V86: 50 | W86: 182 | X86: 474 | Y86: 276 | Z86: 65 | AA86: 133 | AB86: 200 | AC86: 457 | AD86: 160 | AE86: 66 | AF86: 94 | AG86: 190 | AH86: 478 | AI86: 187 | AJ86: 80 | AK86: 138 | AL86: 247 | AM86: 418 | AN86: 132 | AO86: 43 | AP86: 103 | AQ86: 185 | AR86: 451 | AS86: 233 | AT86: 92 | AU86: 145 | AV86: 297 | AW86: 377 | AX86: 104 | AY86: 80 | AZ86: 143 | BA86: 317 | BB86: 385 | BC86: 90 | BD86: 1015 | BE86: 1015 | BF86: 1015
A87: Y60 | B87: MIDLANDS COMMISSIONING REGION | C87: QJ2 | D87: Joined Up Care Derbyshire STP | E87: RFS | F87: CHESTERFIELD ROYAL HOSPITAL NHS FOUNDATION TRUST | G87: Acute and Acute & Community Trusts | H87: 79 | I87: 3351 | J87: 6.568213783 | K87: 3 | L87: 17 | M87: 27 | N87: 25 | O87: 7 | P87: 1 | Q87: 7 | R87: 23 | S87: 30 | T87: 18 | U87: 1 | V87: 3 | W87: 17 | X87: 23 | Y87: 35 | Z87: 4 | AA87: 8 | AB87: 10 | AC87: 40 | AD87: 17 | AE87: 5 | AF87: 9 | AG87: 9 | AH87: 40 | AI87: 16 | AJ87: 8 | AK87: 10 | AL87: 19 | AM87: 32 | AN87: 10 | AO87: 1 | AP87: 7 | AQ87: 16 | AR87: 33 | AS87: 22 | AT87: 6 | AU87: 11 | AV87: 20 | AW87: 31 | AX87: 11 | AY87: 2 | AZ87: 8 | BA87: 18 | BB87: 40 | BC87: 11 | BD87: 79 | BE87: 79 | BF87: 79
A88: Y60 | B88: MIDLANDS COMMISSIONING REGION | C88: QT1 | D88: Nottingham and Nottinghamshire Health and Care STP | E88: RHA | F88: NOTTINGHAMSHIRE HEALTHCARE NHS FOUNDATION TRUST | G88: Mental Health & Learning Disability and Mental Health, Learning Disability & Community Trusts | H88: 254 | I88: 7917 | J88: 6.215967869 | K88: 23 | L88: 56 | M88: 74 | N88: 79 | O88: 25 | P88: 13 | Q88: 36 | R88: 55 | S88: 110 | T88: 42 | U88: 14 | V88: 27 | W88: 56 | X88: 94 | Y88: 65 | Z88: 14 | AA88: 39 | AB88: 45 | AC88: 112 | AD88: 47 | AE88: 17 | AF88: 31 | AG88: 38 | AH88: 121 | AI88: 50 | AJ88: 17 | AK88: 42 | AL88: 57 | AM88: 107 | AN88: 31 | AO88: 8 | AP88: 26 | AQ88: 49 | AR88: 108 | AS88: 66 | AT88: 29 | AU88: 44 | AV88: 53 | AW88: 98 | AX88: 33 | AY88: 14 | AZ88: 29 | BA88: 65 | BB88: 112 | BC88: 37 | BD88: 257 | BE88: 254 | BF88: 256
A89: Y60 | B89: MIDLANDS COMMISSIONING REGION | C89: QWU | D89: Coventry and Warwickshire STP | E89: RJC | F89: SOUTH WARWICKSHIRE NHS FOUNDATION TRUST | G89: Acute and Acute & Community Trusts | H89: 255 | I89: 4288 | J89: 6.773420479 | K89: 6 | L89: 47 | M89: 80 | N89: 95 | O89: 27 | P89: 1 | Q89: 26 | R89: 62 | S89: 106 | T89: 60 | U89: 0 | V89: 14 | W89: 47 | X89: 98 | Y89: 96 | Z89: 14 | AA89: 22 | AB89: 55 | AC89: 116 | AD89: 48 | AE89: 12 | AF89: 24 | AG89: 37 | AH89: 129 | AI89: 53 | AJ89: 14 | AK89: 46 | AL89: 56 | AM89: 99 | AN89: 40 | AO89: 6 | AP89: 26 | AQ89: 40 | AR89: 103 | AS89: 80 | AT89: 10 | AU89: 31 | AV89: 48 | AW89: 105 | AX89: 61 | AY89: 6 | AZ89: 19 | BA89: 48 | BB89: 124 | BC89: 58 | BD89: 255 | BE89: 255 | BF89: 255
A90: Y60 | B90: MIDLANDS COMMISSIONING REGION | C90: QNC | D90: Staffordshire & Stoke on Trent STP | E90: RJE | F90: UNIVERSITY HOSPITALS OF NORTH MIDLANDS NHS TRUST | G90: Acute and Acute & Community Trusts | H90: 81 | I90: 9689 | J90: 5.781893004 | K90: 6 | L90: 15 | M90: 31 | N90: 23 | O90: 6 | P90: 3 | Q90: 12 | R90: 19 | S90: 27 | T90: 20 | U90: 5 | V90: 6 | W90: 21 | X90: 27 | Y90: 22 | Z90: 6 | AA90: 18 | AB90: 14 | AC90: 34 | AD90: 9 | AE90: 8 | AF90: 17 | AG90: 15 | AH90: 30 | AI90: 11 | AJ90: 12 | AK90: 17 | AL90: 24 | AM90: 21 | AN90: 7 | AO90: 6 | AP90: 12 | AQ90: 15 | AR90: 33 | AS90: 15 | AT90: 14 | AU90: 15 | AV90: 25 | AW90: 17 | AX90: 10 | AY90: 4 | AZ90: 9 | BA90: 18 | BB90: 35 | BC90: 15 | BD90: 81 | BE90: 81 | BF90: 81
A91: Y60 | B91: MIDLANDS COMMISSIONING REGION | C91: QT1 | D91: Nottingham and Nottinghamshire Health and Care STP | E91: RK5 | F91: SHERWOOD FOREST HOSPITALS NHS FOUNDATION TRUST | G91: Acute and Acute & Community Trusts | H91: 1158 | I91: 4630 | J91: 7.134906928 | K91: 45 | L91: 128 | M91: 301 | N91: 538 | O91: 146 | P91: 33 | Q91: 82 | R91: 221 | S91: 574 | T91: 248 | U91: 18 | V91: 57 | W91: 220 | X91: 510 | Y91: 353 | Z91: 41 | AA91: 123 | AB91: 195 | AC91: 522 | AD91: 277 | AE91: 43 | AF91: 86 | AG91: 216 | AH91: 551 | AI91: 262 | AJ91: 46 | AK91: 129 | AL91: 268 | AM91: 505 | AN91: 210 | AO91: 28 | AP91: 35 | AQ91: 136 | AR91: 526 | AS91: 433 | AT91: 33 | AU91: 56 | AV91: 131 | AW91: 576 | AX91: 362 | AY91: 15 | AZ91: 32 | BA91: 125 | BB91: 624 | BC91: 362 | BD91: 1158 | BE91: 1158 | BF91: 1158
A92: Y60 | B92: MIDLANDS COMMISSIONING REGION | C92: QWU | D92: Coventry and Warwickshire STP | E92: RKB | F92: UNIVERSITY HOSPITALS COVENTRY AND WARWICKSHIRE NHS TRUST | G92: Acute and Acute & Community Trusts | H92: 131 | I92: 8012 | J92: 6.077184054 | K92: 9 | L92: 30 | M92: 38 | N92: 39 | O92: 15 | P92: 4 | Q92: 17 | R92: 40 | S92: 45 | T92: 25 | U92: 6 | V92: 9 | W92: 40 | X92: 32 | Y92: 44 | Z92: 10 | AA92: 22 | AB92: 29 | AC92: 54 | AD92: 16 | AE92: 7 | AF92: 21 | AG92: 21 | AH92: 60 | AI92: 22 | AJ92: 8 | AK92: 33 | AL92: 32 | AM92: 43 | AN92: 15 | AO92: 7 | AP92: 10 | AQ92: 36 | AR92: 48 | AS92: 30 | AT92: 16 | AU92: 18 | AV92: 40 | AW92: 43 | AX92: 14 | AY92: 4 | AZ92: 18 | BA92: 29 | BB92: 58 | BC92: 22 | BD92: 131 | BE92: 131 | BF92: 131
A93: Y60 | B93: MIDLANDS COMMISSIONING REGION | C93: QUA | D93: The Black Country and West Birmingham STP | E93: RL4 | F93: THE ROYAL WOLVERHAMPTON NHS TRUST | G93: Acute and Acute & Community Trusts | H93: 150 | I93: 8719 | J93: 6.998148148 | K93: 2 | L93: 14 | M93: 54 | N93: 55 | O93: 25 | P93: 2 | Q93: 10 | R93: 41 | S93: 50 | T93: 47 | U93: 2 | V93: 5 | W93: 39 | X93: 42 | Y93: 62 | Z93: 9 | AA93: 13 | AB93: 33 | AC93: 61 | AD93: 34 | AE93: 7 | AF93: 12 | AG93: 33 | AH93: 60 | AI93: 38 | AJ93: 7 | AK93: 15 | AL93: 47 | AM93: 56 | AN93: 25 | AO93: 3 | AP93: 8 | AQ93: 20 | AR93: 57 | AS93: 62 | AT93: 5 | AU93: 11 | AV93: 34 | AW93: 59 | AX93: 41 | AY93: 4 | AZ93: 7 | BA93: 30 | BB93: 70 | BC93: 39 | BD93: 150 | BE93: 150 | BF93: 150
A94: Y60 | B94: MIDLANDS COMMISSIONING REGION | C94: QWU | D94: Coventry and Warwickshire STP | E94: RLT | F94: GEORGE ELIOT HOSPITAL NHS TRUST | G94: Acute and Acute & Community Trusts | H94: 25 | I94: 2321 | J94: 6.222222222 | K94: 4 | L94: 2 | M94: 12 | N94: 6 | O94: 1 | P94: 2 | Q94: 1 | R94: 9 | S94: 6 | T94: 7 | U94: 1 | V94: 1 | W94: 7 | X94: 8 | Y94: 8 | Z94: 4 | AA94: 3 | AB94: 3 | AC94: 10 | AD94: 5 | AE94: 4 | AF94: 1 | AG94: 7 | AH94: 5 | AI94: 8 | AJ94: 4 | AK94: 5 | AL94: 5 | AM94: 5 | AN94: 6 | AO94: 2 | AP94: 1 | AQ94: 3 | AR94: 9 | AS94: 10 | AT94: 4 | AU94: 2 | AV94: 6 | AW94: 8 | AX94: 5 | AY94: 1 | AZ94: 2 | BA94: 5 | BB94: 11 | BC94: 6 | BD94: 25 | BE94: 25 | BF94: 25
A95: Y60 | B95: MIDLANDS COMMISSIONING REGION | C95: QNC | D95: Staffordshire & Stoke on Trent STP | E95: RLY | F95: NORTH STAFFORDSHIRE COMBINED HEALTHCARE NHS TRUST | G95: Mental Health & Learning Disability and Mental Health, Learning Disability & Community Trusts | H95: 21 | I95: 1479 | J95: 7.116402116 | K95: 0 | L95: 1 | M95: 13 | N95: 6 | O95: 1 | P95: 0 | Q95: 1 | R95: 5 | S95: 13 | T95: 2 | U95: 0 | V95: 0 | W95: 4 | X95: 10 | Y95: 7 | Z95: 0 | AA95: 3 | AB95: 1 | AC95: 11 | AD95: 6 | AE95: 0 | AF95: 1 | AG95: 5 | AH95: 9 | AI95: 6 | AJ95: 0 | AK95: 2 | AL95: 4 | AM95: 10 | AN95: 5 | AO95: 0 | AP95: 1 | AQ95: 5 | AR95: 9 | AS95: 6 | AT95: 0 | AU95: 2 | AV95: 4 | AW95: 10 | AX95: 5 | AY95: 0 | AZ95: 1 | BA95: 6 | BB95: 10 | BC95: 4 | BD95: 21 | BE95: 21 | BF95: 21
A96: Y60 | B96: MIDLANDS COMMISSIONING REGION | C96: QUA | D96: The Black Country and West Birmingham STP | E96: RNA | F96: THE DUDLEY GROUP NHS FOUNDATION TRUST | G96: Acute and Acute & Community Trusts | H96: 882 | I96: 4799 | J96: 6.69787304 | K96: 42 | L96: 126 | M96: 308 | N96: 325 | O96: 101 | P96: 11 | Q96: 67 | R96: 232 | S96: 359 | T96: 219 | U96: 12 | V96: 34 | W96: 195 | X96: 346 | Y96: 302 | Z96: 37 | AA96: 94 | AB96: 175 | AC96: 419 | AD96: 168 | AE96: 41 | AF96: 75 | AG96: 182 | AH96: 428 | AI96: 169 | AJ96: 46 | AK96: 127 | AL96: 230 | AM96: 357 | AN96: 133 | AO96: 9 | AP96: 57 | AQ96: 142 | AR96: 392 | AS96: 282 | AT96: 49 | AU96: 102 | AV96: 250 | AW96: 347 | AX96: 136 | AY96: 29 | AZ96: 65 | BA96: 241 | BB96: 406 | BC96: 142 | BD96: 882 | BE96: 893 | BF96: 888
A97: Y60 | B97: MIDLANDS COMMISSIONING REGION | C97: QPM | D97: Northamptonshire STP | E97: RNQ | F97: KETTERING GENERAL HOSPITAL NHS FOUNDATION TRUST | G97: Acute and Acute & Community Trusts | H97: 761 | I97: 4307 | J97: 6.291608561 | K97: 52 | L97: 201 | M97: 174 | N97: 262 | O97: 73 | P97: 25 | Q97: 138 | R97: 136 | S97: 328 | T97: 135 | U97: 21 | V97: 105 | W97: 103 | X97: 282 | Y97: 251 | Z97: 34 | AA97: 77 | AB97: 186 | AC97: 343 | AD97: 122 | AE97: 35 | AF97: 85 | AG97: 167 | AH97: 342 | AI97: 132 | AJ97: 37 | AK97: 119 | AL97: 224 | AM97: 282 | AN97: 99 | AO97: 23 | AP97: 71 | AQ97: 154 | AR97: 316 | AS97: 197 | AT97: 36 | AU97: 106 | AV97: 244 | AW97: 307 | AX97: 69 | AY97: 24 | AZ97: 85 | BA97: 242 | BB97: 341 | BC97: 69 | BD97: 761 | BE97: 761 | BF97: 762
A98: Y60 | B98: MIDLANDS COMMISSIONING REGION | C98: QPM | D98: Northamptonshire STP | E98: RNS | F98: NORTHAMPTON GENERAL HOSPITAL NHS TRUST | G98: Acute and Acute & Community Trusts | H98: 777 | I98: 5039 | J98: 6.346929927 | K98: 62 | L98: 189 | M98: 144 | N98: 310 | O98: 73 | P98: 24 | Q98: 151 | R98: 112 | S98: 329 | T98: 161 | U98: 23 | V98: 121 | W98: 84 | X98: 276 | Y98: 273 | Z98: 38 | AA98: 99 | AB98: 176 | AC98: 345 | AD98: 120 | AE98: 34 | AF98: 103 | AG98: 163 | AH98: 362 | AI98: 116 | AJ98: 42 | AK98: 139 | AL98: 228 | AM98: 284 | AN98: 85 | AO98: 21 | AP98: 59 | AQ98: 145 | AR98: 336 | AS98: 216 | AT98: 39 | AU98: 105 | AV98: 218 | AW98: 318 | AX98: 98 | AY98: 18 | AZ98: 80 | BA98: 208 | BB98: 377 | BC98: 95 | BD98: 777 | BE98: 778 | BF98: 777
A99: Y60 | B99: MIDLANDS COMMISSIONING REGION | C99: QPM | D99: Northamptonshire STP | E99: RP1 | F99: NORTHAMPTONSHIRE HEALTHCARE NHS FOUNDATION TRUST | G99: Mental Health & Learning Disability and Mental Health, Learning Disability & Community Trusts | H99: 1629 | I99: 3744 | J99: 7.332346238 | K99: 23 | L99: 139 | M99: 517 | N99: 695 | O99: 286 | P99: 11 | Q99: 78 | R99: 368 | S99: 706 | T99: 484 | U99: 6 | V99: 50 | W99: 304 | X99: 666 | Y99: 618 | Z99: 34 | AA99: 101 | AB99: 257 | AC99: 866 | AD99: 397 | AE99: 36 | AF99: 104 | AG99: 260 | AH99: 856 | AI99: 397 | AJ99: 44 | AK99: 151 | AL99: 399 | AM99: 738 | AN99: 319 | AO99: 11 | AP99: 42 | AQ99: 161 | AR99: 722 | AS99: 695 | AT99: 45 | AU99: 90 | AV99: 316 | AW99: 699 | AX99: 479 | AY99: 25 | AZ99: 64 | BA99: 305 | BB99: 763 | BC99: 473 | BD99: 1629 | BE99: 1651 | BF99: 1644
A100: Y60 | B100: MIDLANDS COMMISSIONING REGION | C100: QJM | D100: Lincolnshire STP | E100: RP7 | F100: LINCOLNSHIRE PARTNERSHIP NHS FOUNDATION TRUST | G100: Mental Health & Learning Disability and Mental Health, Learning Disability & Community Trusts | H100: 175 | I100: 2047 | J100: 6.925676407 | K100: 5 | L100: 17 | M100: 60 | N100: 74 | O100: 20 | P100: 1 | Q100: 8 | R100: 41 | S100: 69 | T100: 57 | U100: 3 | V100: 7 | W100: 39 | X100: 70 | Y100: 57 | Z100: 8 | AA100: 15 | AB100: 36 | AC100: 70 | AD100: 46 | AE100: 7 | AF100: 14 | AG100: 41 | AH100: 67 | AI100: 46 | AJ100: 12 | AK100: 17 | AL100: 39 | AM100: 70 | AN100: 38 | AO100: 6 | AP100: 12 | AQ100: 22 | AR100: 61 | AS100: 75 | AT100: 5 | AU100: 27 | AV100: 35 | AW100: 61 | AX100: 48 | AY100: 8 | AZ100: 18 | BA100: 38 | BB100: 79 | BC100: 33 | BD100: 176 | BE100: 175 | BF100: 176
A101: Y60 | B101: MIDLANDS COMMISSIONING REGION | C101: QHL | D101: Birmingham and Solihull STP | E101: RQ3 | F101: BIRMINGHAM WOMEN'S AND CHILDREN'S NHS FOUNDATION TRUST | G101: Acute and Acute & Community Trusts | H101: 23 | I101: 5380 | J101: 5.966183575 | K101: 3 | L101: 5 | M101: 6 | N101: 6 | O101: 3 | P101: 0 | Q101: 3 | R101: 8 | S101: 7 | T101: 5 | U101: 0 | V101: 1 | W101: 5 | X101: 6 | Y101: 11 | Z101: 3 | AA101: 6 | AB101: 1 | AC101: 9 | AD101: 4 | AE101: 3 | AF101: 4 | AG101: 5 | AH101: 7 | AI101: 4 | AJ101: 4 | AK101: 6 | AL101: 6 | AM101: 4 | AN101: 3 | AO101: 1 | AP101: 4 | AQ101: 3 | AR101: 8 | AS101: 7 | AT101: 5 | AU101: 3 | AV101: 6 | AW101: 6 | AX101: 3 | AY101: 2 | AZ101: 2 | BA101: 2 | BB101: 11 | BC101: 6 | BD101: 23 | BE101: 23 | BF101: 23
A102: Y60 | B102: MIDLANDS COMMISSIONING REGION | C102: QNC | D102: Staffordshire & Stoke on Trent STP | E102: RRE | F102: MIDLANDS PARTNERSHIP NHS FOUNDATION TRUST | G102: Mental Health & Learning Disability and Mental Health, Learning Disability & Community Trusts | H102: 0 | I102: 7698 | J102: 0 | K102: 0 | L102: 0 | M102: 0 | N102: 0 | O102: 0 | P102: 0 | Q102: 0 | R102: 0 | S102: 0 | T102: 0 | U102: 0 | V102: 0 | W102: 0 | X102: 0 | Y102: 0 | Z102: 0 | AA102: 0 | AB102: 0 | AC102: 0 | AD102: 0 | AE102: 0 | AF102: 0 | AG102: 0 | AH102: 0 | AI102: 0 | AJ102: 0 | AK102: 0 | AL102: 0 | AM102: 0 | AN102: 0 | AO102: 0 | AP102: 0 | AQ102: 0 | AR102: 0 | AS102: 0 | AT102: 0 | AU102: 0 | AV102: 0 | AW102: 0 | AX102: 0 | AY102: 0 | AZ102: 0 | BA102: 0 | BB102: 0 | BC102: 0 | BD102: 0 | BE102: 0 | BF102: 0
A103: Y60 | B103: MIDLANDS COMMISSIONING REGION | C103: QHL | D103: Birmingham and Solihull STP | E103: RRK | F103: UNIVERSITY HOSPITALS BIRMINGHAM NHS FOUNDATION TRUST | G103: Acute and Acute & Community Trusts | H103: 1059 | I103: 18810 | J103: 5.727496224 | K103: 101 | L103: 242 | M103: 358 | N103: 280 | O103: 79 | P103: 56 | Q103: 136 | R103: 325 | S103: 368 | T103: 174 | U103: 49 | V103: 94 | W103: 291 | X103: 334 | Y103: 292 | Z103: 109 | AA103: 161 | AB103: 212 | AC103: 428 | AD103: 150 | AE103: 115 | AF103: 166 | AG103: 213 | AH103: 431 | AI103: 135 | AJ103: 120 | AK103: 205 | AL103: 277 | AM103: 350 | AN103: 108 | AO103: 86 | AP103: 144 | AQ103: 261 | AR103: 374 | AS103: 195 | AT103: 186 | AU103: 209 | AV103: 260 | AW103: 315 | AX103: 90 | AY103: 78 | AZ103: 129 | BA103: 270 | BB103: 435 | BC103: 148 | BD103: 1060 | BE103: 1060 | BF103: 1059
A104: Y60 | B104: MIDLANDS COMMISSIONING REGION | C104: QK1 | D104: Leicester, Leicestershire and Rutland STP | E104: RT5 | F104: LEICESTERSHIRE PARTNERSHIP NHS TRUST | G104: Mental Health & Learning Disability and Mental Health, Learning Disability & Community Trusts | H104: 960 | I104: 4741 | J104: 6.318576389 | K104: 55 | L104: 142 | M104: 362 | N104: 297 | O104: 104 | P104: 24 | Q104: 90 | R104: 289 | S104: 359 | T104: 198 | U104: 19 | V104: 37 | W104: 220 | X104: 324 | Y104: 360 | Z104: 49 | AA104: 125 | AB104: 212 | AC104: 413 | AD104: 161 | AE104: 46 | AF104: 116 | AG104: 196 | AH104: 434 | AI104: 168 | AJ104: 58 | AK104: 163 | AL104: 276 | AM104: 344 | AN104: 119 | AO104: 45 | AP104: 94 | AQ104: 185 | AR104: 394 | AS104: 242 | AT104: 85 | AU104: 124 | AV104: 318 | AW104: 307 | AX104: 126 | AY104: 61 | AZ104: 107 | BA104: 296 | BB104: 381 | BC104: 115 | BD104: 960 | BE104: 960 | BF104: 960
A105: Y60 | B105: MIDLANDS COMMISSIONING REGION | C105: QJ2 | D105: Joined Up Care Derbyshire STP | E105: RTG | F105: UNIVERSITY HOSPITALS OF DERBY AND BURTON NHS FOUNDATION TRUST | G105: Acute and Acute & Community Trusts | H105: 2215 | I105: 11606 | J105: 6.461833102 | K105: 128 | L105: 338 | M105: 757 | N105: 743 | O105: 259 | P105: 53 | Q105: 220 | R105: 623 | S105: 788 | T105: 540 | U105: 41 | V105: 127 | W105: 532 | X105: 795 | Y105: 723 | Z105: 128 | AA105: 305 | AB105: 506 | AC105: 940 | AD105: 339 | AE105: 150 | AF105: 273 | AG105: 452 | AH105: 1012 | AI105: 330 | AJ105: 173 | AK105: 397 | AL105: 636 | AM105: 792 | AN105: 217 | AO105: 80 | AP105: 134 | AQ105: 338 | AR105: 1122 | AS105: 557 | AT105: 130 | AU105: 249 | AV105: 505 | AW105: 1024 | AX105: 320 | AY105: 68 | AZ105: 128 | BA105: 456 | BB105: 1225 | BC105: 349 | BD105: 2226 | BE105: 2215 | BF105: 2218
A106: Y60 | B106: MIDLANDS COMMISSIONING REGION | C106: QJM | D106: Lincolnshire STP | E106: RWD | F106: UNITED LINCOLNSHIRE HOSPITALS NHS TRUST | G106: Acute and Acute & Community Trusts | H106: 2651 | I106: 7161 | J106: 6.277881178 | K106: 126 | L106: 374 | M106: 923 | N106: 933 | O106: 328 | P106: 44 | Q106: 215 | R106: 725 | S106: 1007 | T106: 670 | U106: 46 | V106: 134 | W106: 632 | X106: 966 | Y106: 890 | Z106: 127 | AA106: 308 | AB106: 595 | AC106: 1244 | AD106: 395 | AE106: 140 | AF106: 328 | AG106: 583 | AH106: 1240 | AI106: 376 | AJ106: 185 | AK106: 447 | AL106: 799 | AM106: 957 | AN106: 282 | AO106: 90 | AP106: 279 | AQ106: 514 | AR106: 1106 | AS106: 662 | AT106: 257 | AU106: 446 | AV106: 790 | AW106: 875 | AX106: 283 | AY106: 185 | AZ106: 440 | BA106: 834 | BB106: 945 | BC106: 247 | BD106: 2651 | BE106: 2667 | BF106: 2661
A107: Y60 | B107: MIDLANDS COMMISSIONING REGION | C107: QK1 | D107: Leicester, Leicestershire and Rutland STP | E107: RWE | F107: UNIVERSITY HOSPITALS OF LEICESTER NHS TRUST | G107: Acute and Acute & Community Trusts | H107: 284 | I107: 13950 | J107: 6.315532081 | K107: 20 | L107: 48 | M107: 88 | N107: 86 | O107: 42 | P107: 7 | Q107: 25 | R107: 89 | S107: 93 | T107: 70 | U107: 5 | V107: 10 | W107: 78 | X107: 88 | Y107: 103 | Z107: 16 | AA107: 28 | AB107: 62 | AC107: 135 | AD107: 43 | AE107: 13 | AF107: 40 | AG107: 56 | AH107: 132 | AI107: 43 | AJ107: 18 | AK107: 57 | AL107: 87 | AM107: 96 | AN107: 26 | AO107: 15 | AP107: 24 | AQ107: 58 | AR107: 113 | AS107: 74 | AT107: 22 | AU107: 50 | AV107: 78 | AW107: 91 | AX107: 43 | AY107: 14 | AZ107: 33 | BA107: 79 | BB107: 118 | BC107: 40 | BD107: 284 | BE107: 284 | BF107: 284
A108: Y60 | B108: MIDLANDS COMMISSIONING REGION | C108: QGH | D108: Herefordshire and Worcestershire STP | E108: RWP | F108: WORCESTERSHIRE ACUTE HOSPITALS NHS TRUST | G108: Acute and Acute & Community Trusts | H108: 484 | I108: 5680 | J108: 6.337235996 | K108: 32 | L108: 78 | M108: 155 | N108: 162 | O108: 57 | P108: 17 | Q108: 37 | R108: 141 | S108: 175 | T108: 114 | U108: 11 | V108: 25 | W108: 119 | X108: 168 | Y108: 161 | Z108: 29 | AA108: 54 | AB108: 102 | AC108: 218 | AD108: 81 | AE108: 31 | AF108: 48 | AG108: 90 | AH108: 220 | AI108: 95 | AJ108: 40 | AK108: 80 | AL108: 118 | AM108: 170 | AN108: 76 | AO108: 31 | AP108: 40 | AQ108: 90 | AR108: 191 | AS108: 132 | AT108: 54 | AU108: 61 | AV108: 131 | AW108: 170 | AX108: 68 | AY108: 40 | AZ108: 51 | BA108: 126 | BB108: 202 | BC108: 65 | BD108: 484 | BE108: 484 | BF108: 484
A109: Y60 | B109: MIDLANDS COMMISSIONING REGION | C109: QT1 | D109: Nottingham and Nottinghamshire Health and Care STP | E109: RX1 | F109: NOTTINGHAM UNIVERSITY HOSPITALS NHS TRUST | G109: Acute and Acute & Community Trusts | H109: 1382 | I109: 15210 | J109: 6.477930535 | K109: 77 | L109: 245 | M109: 451 | N109: 459 | O109: 150 | P109: 26 | Q109: 126 | R109: 391 | S109: 522 | T109: 317 | U109: 23 | V109: 85 | W109: 341 | X109: 519 | Y109: 414 | Z109: 69 | AA109: 148 | AB109: 255 | AC109: 628 | AD109: 282 | AE109: 69 | AF109: 147 | AG109: 249 | AH109: 635 | AI109: 282 | AJ109: 94 | AK109: 212 | AL109: 364 | AM109: 507 | AN109: 205 | AO109: 35 | AP109: 130 | AQ109: 265 | AR109: 583 | AS109: 369 | AT109: 110 | AU109: 212 | AV109: 382 | AW109: 494 | AX109: 184 | AY109: 41 | AZ109: 115 | BA109: 363 | BB109: 618 | BC109: 245 | BD109: 1382 | BE109: 1382 | BF109: 1382
A110: Y60 | B110: MIDLANDS COMMISSIONING REGION | C110: QT1 | D110: Nottingham and Nottinghamshire Health and Care STP | E110: RX9 | F110: EAST MIDLANDS AMBULANCE SERVICE NHS TRUST | G110: Ambulance Trusts | H110: 88 | I110: 3716 | J110: 5.703914141 | K110: 5 | L110: 16 | M110: 35 | N110: 22 | O110: 10 | P110: 1 | Q110: 13 | R110: 23 | S110: 33 | T110: 18 | U110: 3 | V110: 7 | W110: 30 | X110: 33 | Y110: 15 | Z110: 6 | AA110: 19 | AB110: 23 | AC110: 29 | AD110: 11 | AE110: 11 | AF110: 19 | AG110: 22 | AH110: 27 | AI110: 9 | AJ110: 17 | AK110: 21 | AL110: 27 | AM110: 14 | AN110: 9 | AO110: 9 | AP110: 11 | AQ110: 15 | AR110: 36 | AS110: 17 | AT110: 11 | AU110: 14 | AV110: 30 | AW110: 22 | AX110: 11 | AY110: 4 | AZ110: 8 | BA110: 24 | BB110: 35 | BC110: 17 | BD110: 88 | BE110: 88 | BF110: 88
A111: Y60 | B111: MIDLANDS COMMISSIONING REGION | C111: QUA | D111: The Black Country and West Birmingham STP | E111: RXK | F111: SANDWELL AND WEST BIRMINGHAM HOSPITALS NHS TRUST | G111: Acute and Acute & Community Trusts | H111: 1250 | I111: 6464 | J111: 6.479136667 | K111: 43 | L111: 167 | M111: 458 | N111: 457 | O111: 155 | P111: 17 | Q111: 103 | R111: 345 | S111: 471 | T111: 315 | U111: 21 | V111: 62 | W111: 318 | X111: 446 | Y111: 403 | Z111: 69 | AA111: 155 | AB111: 265 | AC111: 588 | AD111: 217 | AE111: 80 | AF111: 159 | AG111: 264 | AH111: 560 | AI111: 228 | AJ111: 105 | AK111: 173 | AL111: 347 | AM111: 473 | AN111: 189 | AO111: 38 | AP111: 93 | AQ111: 250 | AR111: 644 | AS111: 269 | AT111: 72 | AU111: 174 | AV111: 392 | AW111: 478 | AX111: 176 | AY111: 49 | AZ111: 130 | BA111: 405 | BB111: 551 | BC111: 160 | BD111: 1292 | BE111: 1287 | BF111: 1250
A112: Y60 | B112: MIDLANDS COMMISSIONING REGION | C112: QJ2 | D112: Joined Up Care Derbyshire STP | E112: RXM | F112: DERBYSHIRE HEALTHCARE NHS FOUNDATION TRUST | G112: Mental Health & Learning Disability and Mental Health, Learning Disability & Community Trusts | H112: 1102 | I112: 2445 | J112: 7.226666701 | K112: 20 | L112: 84 | M112: 367 | N112: 496 | O112: 146 | P112: 9 | Q112: 47 | R112: 248 | S112: 497 | T112: 304 | U112: 5 | V112: 33 | W112: 235 | X112: 418 | Y112: 411 | Z112: 27 | AA112: 87 | AB112: 181 | AC112: 553 | AD112: 266 | AE112: 24 | AF112: 73 | AG112: 188 | AH112: 547 | AI112: 281 | AJ112: 34 | AK112: 102 | AL112: 276 | AM112: 474 | AN112: 221 | AO112: 19 | AP112: 35 | AQ112: 122 | AR112: 538 | AS112: 400 | AT112: 36 | AU112: 71 | AV112: 190 | AW112: 506 | AX112: 309 | AY112: 30 | AZ112: 57 | BA112: 206 | BB112: 533 | BC112: 287 | BD112: 1112 | BE112: 1107 | BF112: 1102
A113: Y60 | B113: MIDLANDS COMMISSIONING REGION | C113: QUA | D113: The Black Country and West Birmingham STP | E113: RXT | F113: BIRMINGHAM AND SOLIHULL MENTAL HEALTH NHS FOUNDATION TRUST | G113: Mental Health & Learning Disability and Mental Health, Learning Disability & Community Trusts | H113: 388 | I113: 4027 | J113: 6.166953036 | K113: 16 | L113: 72 | M113: 158 | N113: 110 | O113: 32 | P113: 7 | Q113: 37 | R113: 139 | S113: 124 | T113: 81 | U113: 8 | V113: 25 | W113: 108 | X113: 129 | Y113: 118 | Z113: 21 | AA113: 45 | AB113: 82 | AC113: 174 | AD113: 66 | AE113: 16 | AF113: 37 | AG113: 84 | AH113: 190 | AI113: 61 | AJ113: 21 | AK113: 60 | AL113: 124 | AM113: 141 | AN113: 42 | AO113: 20 | AP113: 26 | AQ113: 84 | AR113: 176 | AS113: 82 | AT113: 43 | AU113: 57 | AV113: 119 | AW113: 125 | AX113: 44 | AY113: 39 | AZ113: 58 | BA113: 120 | BB113: 134 | BC113: 37 | BD113: 388 | BE113: 388 | BF113: 388
A114: Y60 | B114: MIDLANDS COMMISSIONING REGION | C114: QJM | D114: Lincolnshire STP | E114: RY5 | F114: LINCOLNSHIRE COMMUNITY HEALTH SERVICES NHS TRUST | G114: Community Trusts | H114: 642 | I114: 1867 | J114: 7.281013855 | K114: 11 | L114: 68 | M114: 196 | N114: 290 | O114: 95 | P114: 0 | Q114: 34 | R114: 141 | S114: 279 | T114: 198 | U114: 0 | V114: 23 | W114: 122 | X114: 242 | Y114: 264 | Z114: 16 | AA114: 59 | AB114: 119 | AC114: 306 | AD114: 162 | AE114: 24 | AF114: 45 | AG114: 114 | AH114: 317 | AI114: 160 | AJ114: 25 | AK114: 72 | AL114: 150 | AM114: 278 | AN114: 135 | AO114: 11 | AP114: 26 | AQ114: 68 | AR114: 310 | AS114: 238 | AT114: 21 | AU114: 49 | AV114: 134 | AW114: 268 | AX114: 179 | AY114: 0 | AZ114: 24 | BA114: 93 | BB114: 312 | BC114: 213 | BD114: 642 | BE114: 660 | BF114: 651
A115: Y60 | B115: MIDLANDS COMMISSIONING REGION | C115: QJ2 | D115: Joined Up Care Derbyshire STP | E115: RY8 | F115: DERBYSHIRE COMMUNITY HEALTH SERVICES NHS FOUNDATION TRUST | G115: Community Trusts | H115: 1635 | I115: 3365 | J115: 7.310174393 | K115: 42 | L115: 159 | M115: 507 | N115: 731 | O115: 214 | P115: 19 | Q115: 74 | R115: 383 | S115: 710 | T115: 449 | U115: 20 | V115: 35 | W115: 295 | X115: 624 | Y115: 665 | Z115: 44 | AA115: 139 | AB115: 283 | AC115: 811 | AD115: 379 | AE115: 50 | AF115: 106 | AG115: 263 | AH115: 825 | AI115: 405 | AJ115: 60 | AK115: 162 | AL115: 381 | AM115: 733 | AN115: 315 | AO115: 17 | AP115: 66 | AQ115: 155 | AR115: 771 | AS115: 649 | AT115: 37 | AU115: 99 | AV115: 301 | AW115: 702 | AX115: 510 | AY115: 18 | AZ115: 37 | BA115: 198 | BB115: 799 | BC115: 601 | BD115: 1649 | BE115: 1649 | BF115: 1635
A116: Y60 | B116: MIDLANDS COMMISSIONING REGION | C116: QUA | D116: The Black Country and West Birmingham STP | E116: RYA | F116: WEST MIDLANDS AMBULANCE SERVICE UNIVERSITY NHS FOUNDATION TRUST | G116: Ambulance Trusts | H116: 558 | I116: 6387 | J116: 4.853643967 | K116: 64 | L116: 124 | M116: 192 | N116: 137 | O116: 41 | P116: 38 | Q116: 88 | R116: 164 | S116: 172 | T116: 96 | U116: 38 | V116: 83 | W116: 187 | X116: 181 | Y116: 69 | Z116: 91 | AA116: 116 | AB116: 121 | AC116: 193 | AD116: 37 | AE116: 152 | AF116: 123 | AG116: 140 | AH116: 114 | AI116: 29 | AJ116: 175 | AK116: 164 | AL116: 112 | AM116: 89 | AN116: 18 | AO116: 115 | AP116: 91 | AQ116: 101 | AR116: 160 | AS116: 91 | AT116: 111 | AU116: 110 | AV116: 158 | AW116: 134 | AX116: 45 | AY116: 71 | AZ116: 71 | BA116: 143 | BB116: 192 | BC116: 81 | BD116: 558 | BE116: 558 | BF116: 558
A117: Y60 | B117: MIDLANDS COMMISSIONING REGION | C117: QWU | D117: Coventry and Warwickshire STP | E117: RYG | F117: COVENTRY AND WARWICKSHIRE PARTNERSHIP NHS TRUST | G117: Mental Health & Learning Disability and Mental Health, Learning Disability & Community Trusts | H117: 299 | I117: 3505 | J117: 6.982534374 | K117: 7 | L117: 25 | M117: 101 | N117: 120 | O117: 46 | P117: 2 | Q117: 13 | R117: 77 | S117: 137 | T117: 70 | U117: 2 | V117: 15 | W117: 48 | X117: 146 | Y117: 88 | Z117: 5 | AA117: 20 | AB117: 62 | AC117: 156 | AD117: 56 | AE117: 4 | AF117: 22 | AG117: 49 | AH117: 163 | AI117: 61 | AJ117: 7 | AK117: 26 | AL117: 88 | AM117: 136 | AN117: 42 | AO117: 5 | AP117: 14 | AQ117: 43 | AR117: 148 | AS117: 89 | AT117: 15 | AU117: 23 | AV117: 57 | AW117: 151 | AX117: 53 | AY117: 7 | AZ117: 27 | BA117: 57 | BB117: 156 | BC117: 52 | BD117: 299 | BE117: 299 | BF117: 299
A118: Y60 | B118: MIDLANDS COMMISSIONING REGION | C118: QHL | D118: Birmingham and Solihull STP | E118: RYW | F118: BIRMINGHAM COMMUNITY HEALTHCARE NHS FOUNDATION TRUST | G118: Community Trusts | H118: 526 | I118: 4224 | J118: 6.411068864 | K118: 22 | L118: 87 | M118: 191 | N118: 174 | O118: 52 | P118: 10 | Q118: 45 | R118: 147 | S118: 199 | T118: 125 | U118: 8 | V118: 32 | W118: 95 | X118: 185 | Y118: 206 | Z118: 39 | AA118: 51 | AB118: 116 | AC118: 230 | AD118: 90 | AE118: 34 | AF118: 51 | AG118: 97 | AH118: 230 | AI118: 114 | AJ118: 41 | AK118: 63 | AL118: 140 | AM118: 206 | AN118: 76 | AO118: 21 | AP118: 55 | AQ118: 113 | AR118: 209 | AS118: 128 | AT118: 50 | AU118: 84 | AV118: 158 | AW118: 168 | AX118: 66 | AY118: 22 | AZ118: 54 | BA118: 153 | BB118: 221 | BC118: 76 | BD118: 526 | BE118: 526 | BF118: 526
A119: Y60 | B119: MIDLANDS COMMISSIONING REGION | C119: QUA | D119: The Black Country and West Birmingham STP | E119: TAJ | F119: BLACK COUNTRY HEALTHCARE NHS FOUNDATION TRUST | G119: Mental Health & Learning Disability and Mental Health, Learning Disability & Community Trusts | H119: 606 | I119: 3097 | J119: 6.191327466 | K119: 32 | L119: 111 | M119: 220 | N119: 179 | O119: 64 | P119: 23 | Q119: 65 | R119: 176 | S119: 215 | T119: 127 | U119: 25 | V119: 39 | W119: 134 | X119: 194 | Y119: 214 | Z119: 42 | AA119: 74 | AB119: 136 | AC119: 258 | AD119: 96 | AE119: 34 | AF119: 72 | AG119: 138 | AH119: 256 | AI119: 106 | AJ119: 40 | AK119: 95 | AL119: 185 | AM119: 213 | AN119: 73 | AO119: 24 | AP119: 66 | AQ119: 131 | AR119: 238 | AS119: 147 | AT119: 61 | AU119: 94 | AV119: 181 | AW119: 192 | AX119: 78 | AY119: 47 | AZ119: 69 | BA119: 188 | BB119: 219 | BC119: 83 | BD119: 606 | BE119: 606 | BF119: 606
A120: Y61 | B120: EAST OF ENGLAND COMMISSIONING REGION | C120: QH8 | D120: Mid and South Essex STP | E120: R1L | F120: ESSEX PARTNERSHIP UNIVERSITY NHS FOUNDATION TRUST | G120: Mental Health & Learning Disability and Mental Health, Learning Disability & Community Trusts | H120: 322 | I120: 4918 | J120: 6.548569847 | K120: 13 | L120: 60 | M120: 88 | N120: 121 | O120: 41 | P120: 6 | Q120: 47 | R120: 67 | S120: 134 | T120: 69 | U120: 6 | V120: 29 | W120: 58 | X120: 137 | Y120: 93 | Z120: 20 | AA120: 38 | AB120: 56 | AC120: 139 | AD120: 70 | AE120: 22 | AF120: 32 | AG120: 56 | AH120: 138 | AI120: 74 | AJ120: 26 | AK120: 50 | AL120: 80 | AM120: 107 | AN120: 60 | AO120: 8 | AP120: 24 | AQ120: 57 | AR120: 120 | AS120: 114 | AT120: 14 | AU120: 56 | AV120: 72 | AW120: 116 | AX120: 65 | AY120: 13 | AZ120: 43 | BA120: 83 | BB120: 122 | BC120: 62 | BD120: 323 | BE120: 322 | BF120: 323
A121: Y61 | B121: EAST OF ENGLAND COMMISSIONING REGION | C121: QH8 | D121: Mid and South Essex STP | E121: RAJ | F121: MID AND SOUTH ESSEX NHS FOUNDATION TRUST | G121: Acute and Acute & Community Trusts | H121: 48 | I121: 13662 | J121: 5.25462963 | K121: 8 | L121: 7 | M121: 17 | N121: 14 | O121: 2 | P121: 3 | Q121: 5 | R121: 16 | S121: 10 | T121: 14 | U121: 7 | V121: 2 | W121: 5 | X121: 15 | Y121: 19 | Z121: 7 | AA121: 8 | AB121: 11 | AC121: 21 | AD121: 1 | AE121: 8 | AF121: 6 | AG121: 16 | AH121: 16 | AI121: 2 | AJ121: 8 | AK121: 11 | AL121: 14 | AM121: 14 | AN121: 1 | AO121: 3 | AP121: 9 | AQ121: 16 | AR121: 11 | AS121: 9 | AT121: 9 | AU121: 14 | AV121: 13 | AW121: 11 | AX121: 1 | AY121: 5 | AZ121: 7 | BA121: 19 | BB121: 15 | BC121: 2 | BD121: 48 | BE121: 48 | BF121: 48
A122: Y61 | B122: EAST OF ENGLAND COMMISSIONING REGION | C122: QH8 | D122: Mid and South Essex STP | E122: RAJ | F122: MID AND SOUTH ESSEX NHS FOUNDATION TRUST | G122: Acute and Acute & Community Trusts | H122: 48 | I122: 13662 | J122: 5.25462963 | K122: 8 | L122: 7 | M122: 17 | N122: 14 | O122: 2 | P122: 3 | Q122: 5 | R122: 16 | S122: 10 | T122: 14 | U122: 7 | V122: 2 | W122: 5 | X122: 15 | Y122: 19 | Z122: 7 | AA122: 8 | AB122: 11 | AC122: 21 | AD122: 1 | AE122: 8 | AF122: 6 | AG122: 16 | AH122: 16 | AI122: 2 | AJ122: 8 | AK122: 11 | AL122: 14 | AM122: 14 | AN122: 1 | AO122: 3 | AP122: 9 | AQ122: 16 | AR122: 11 | AS122: 9 | AT122: 9 | AU122: 14 | AV122: 13 | AW122: 11 | AX122: 1 | AY122: 5 | AZ122: 7 | BA122: 19 | BB122: 15 | BC122: 2 | BD122: 48 | BE122: 48 | BF122: 48
A123: Y61 | B123: EAST OF ENGLAND COMMISSIONING REGION | C123: QHG | D123: Bedfordshire, Luton and Milton Keynes STP | E123: RC9 | F123: BEDFORDSHIRE HOSPITALS NHS FOUNDATION TRUST | G123: Acute and Acute & Community Trusts | H123: 28 | I123: 7136 | J123: 5.049603175 | K123: 4 | L123: 10 | M123: 8 | N123: 6 | O123: 0 | P123: 2 | Q123: 8 | R123: 8 | S123: 7 | T123: 3 | U123: 5 | V123: 2 | W123: 7 | X123: 7 | Y123: 7 | Z123: 3 | AA123: 7 | AB123: 7 | AC123: 7 | AD123: 4 | AE123: 5 | AF123: 3 | AG123: 5 | AH123: 11 | AI123: 4 | AJ123: 6 | AK123: 7 | AL123: 6 | AM123: 7 | AN123: 2 | AO123: 1 | AP123: 3 | AQ123: 10 | AR123: 12 | AS123: 2 | AT123: 9 | AU123: 5 | AV123: 4 | AW123: 9 | AX123: 1 | AY123: 3 | AZ123: 1 | BA123: 11 | BB123: 11 | BC123: 2 | BD123: 28 | BE123: 28 | BF123: 28
A124: Y61 | B124: EAST OF ENGLAND COMMISSIONING REGION | C124: QMM | D124: Norfolk and Waveney Health & Care Partnership (STP) | E124: RCX | F124: THE QUEEN ELIZABETH HOSPITAL, KING'S LYNN, NHS FOUNDATION TRUST | G124: Acute and Acute & Community Trusts | H124: 89 | I124: 3273 | J124: 5.939450687 | K124: 5 | L124: 19 | M124: 36 | N124: 26 | O124: 3 | P124: 3 | Q124: 14 | R124: 23 | S124: 29 | T124: 20 | U124: 2 | V124: 4 | W124: 21 | X124: 28 | Y124: 34 | Z124: 3 | AA124: 14 | AB124: 24 | AC124: 35 | AD124: 13 | AE124: 5 | AF124: 11 | AG124: 21 | AH124: 38 | AI124: 14 | AJ124: 7 | AK124: 18 | AL124: 30 | AM124: 26 | AN124: 8 | AO124: 4 | AP124: 13 | AQ124: 16 | AR124: 37 | AS124: 19 | AT124: 12 | AU124: 15 | AV124: 33 | AW124: 22 | AX124: 7 | AY124: 7 | AZ124: 15 | BA124: 33 | BB124: 25 | BC124: 9 | BD124: 89 | BE124: 89 | BF124: 89
A125: Y61 | B125: EAST OF ENGLAND COMMISSIONING REGION | C125: QHG | D125: Bedfordshire, Luton and Milton Keynes STP | E125: RD8 | F125: MILTON KEYNES UNIVERSITY HOSPITAL NHS FOUNDATION TRUST | G125: Acute and Acute & Community Trusts | H125: 12 | I125: 3264 | J125: 6.342592593 | K125: 1 | L125: 1 | M125: 5 | N125: 4 | O125: 1 | P125: 0 | Q125: 2 | R125: 3 | S125: 5 | T125: 2 | U125: 0 | V125: 1 | W125: 3 | X125: 8 | Y125: 0 | Z125: 0 | AA125: 4 | AB125: 0 | AC125: 6 | AD125: 2 | AE125: 0 | AF125: 3 | AG125: 1 | AH125: 4 | AI125: 4 | AJ125: 0 | AK125: 4 | AL125: 3 | AM125: 3 | AN125: 2 | AO125: 0 | AP125: 1 | AQ125: 2 | AR125: 5 | AS125: 4 | AT125: 1 | AU125: 1 | AV125: 3 | AW125: 5 | AX125: 2 | AY125: 2 | AZ125: 0 | BA125: 2 | BB125: 7 | BC125: 1 | BD125: 12 | BE125: 12 | BF125: 12
A126: Y61 | B126: EAST OF ENGLAND COMMISSIONING REGION | C126: QJG | D126: Suffolk and North East Essex STP | E126: RDE | F126: EAST SUFFOLK AND NORTH ESSEX NHS FOUNDATION TRUST | G126: Acute and Acute & Community Trusts | H126: 32 | I126: 9644 | J126: 6.371527778 | K126: 1 | L126: 8 | M126: 10 | N126: 10 | O126: 3 | P126: 0 | Q126: 3 | R126: 11 | S126: 11 | T126: 7 | U126: 0 | V126: 4 | W126: 11 | X126: 11 | Y126: 6 | Z126: 1 | AA126: 8 | AB126: 3 | AC126: 12 | AD126: 8 | AE126: 2 | AF126: 5 | AG126: 4 | AH126: 13 | AI126: 8 | AJ126: 1 | AK126: 8 | AL126: 5 | AM126: 11 | AN126: 7 | AO126: 1 | AP126: 3 | AQ126: 7 | AR126: 12 | AS126: 9 | AT126: 3 | AU126: 6 | AV126: 5 | AW126: 11 | AX126: 7 | AY126: 1 | AZ126: 4 | BA126: 6 | BB126: 16 | BC126: 5 | BD126: 32 | BE126: 32 | BF126: 32
A127: Y61 | B127: EAST OF ENGLAND COMMISSIONING REGION | C127: QUE | D127: Cambridgeshire and Peterborough STP | E127: RGM | F127: ROYAL PAPWORTH HOSPITAL NHS FOUNDATION TRUST | G127: Acute Specialist Trusts | H127: 259 | I127: 1894 | J127: 7.238399711 | K127: 14 | L127: 37 | M127: 67 | N127: 117 | O127: 42 | P127: 11 | Q127: 32 | R127: 47 | S127: 121 | T127: 65 | U127: 6 | V127: 22 | W127: 38 | X127: 114 | Y127: 97 | Z127: 18 | AA127: 26 | AB127: 34 | AC127: 118 | AD127: 78 | AE127: 21 | AF127: 22 | AG127: 25 | AH127: 123 | AI127: 83 | AJ127: 21 | AK127: 33 | AL127: 43 | AM127: 108 | AN127: 68 | AO127: 3 | AP127: 7 | AQ127: 21 | AR127: 108 | AS127: 120 | AT127: 12 | AU127: 19 | AV127: 36 | AW127: 106 | AX127: 86 | AY127: 2 | AZ127: 4 | BA127: 21 | BB127: 91 | BC127: 141 | BD127: 259 | BE127: 273 | BF127: 276
A128: Y61 | B128: EAST OF ENGLAND COMMISSIONING REGION | C128: QUE | D128: Cambridgeshire and Peterborough STP | E128: RGN | F128: NORTH WEST ANGLIA NHS FOUNDATION TRUST | G128: Acute and Acute & Community Trusts | H128: 261 | I128: 6066 | J128: 6.450215424 | K128: 32 | L128: 42 | M128: 71 | N128: 81 | O128: 35 | P128: 23 | Q128: 29 | R128: 57 | S128: 93 | T128: 64 | U128: 18 | V128: 18 | W128: 36 | X128: 106 | Y128: 89 | Z128: 29 | AA128: 25 | AB128: 61 | AC128: 89 | AD128: 63 | AE128: 32 | AF128: 27 | AG128: 35 | AH128: 118 | AI128: 81 | AJ128: 32 | AK128: 33 | AL128: 62 | AM128: 86 | AN128: 54 | AO128: 13 | AP128: 28 | AQ128: 43 | AR128: 118 | AS128: 64 | AT128: 34 | AU128: 49 | AV128: 65 | AW128: 105 | AX128: 36 | AY128: 19 | AZ128: 35 | BA128: 67 | BB128: 134 | BC128: 33 | BD128: 266 | BE128: 267 | BF128: 261
A129: Y61 | B129: EAST OF ENGLAND COMMISSIONING REGION | C129: QJG | D129: Suffolk and North East Essex STP | E129: RGR | F129: WEST SUFFOLK NHS FOUNDATION TRUST | G129: Acute and Acute & Community Trusts | H129: 1401 | I129: 4097 | J129: 7.001094345 | K129: 40 | L129: 139 | M129: 455 | N129: 606 | O129: 172 | P129: 19 | Q129: 81 | R129: 344 | S129: 583 | T129: 377 | U129: 18 | V129: 54 | W129: 299 | X129: 552 | Y129: 484 | Z129: 37 | AA129: 120 | AB129: 252 | AC129: 724 | AD129: 279 | AE129: 40 | AF129: 124 | AG129: 239 | AH129: 713 | AI129: 298 | AJ129: 50 | AK129: 185 | AL129: 342 | AM129: 619 | AN129: 215 | AO129: 19 | AP129: 77 | AQ129: 171 | AR129: 646 | AS129: 489 | AT129: 65 | AU129: 118 | AV129: 296 | AW129: 623 | AX129: 299 | AY129: 27 | AZ129: 81 | BA129: 245 | BB129: 690 | BC129: 358 | BD129: 1401 | BE129: 1411 | BF129: 1404
A130: Y61 | B130: EAST OF ENGLAND COMMISSIONING REGION | C130: QUE | D130: Cambridgeshire and Peterborough STP | E130: RGT | F130: CAMBRIDGE UNIVERSITY HOSPITALS NHS FOUNDATION TRUST | G130: Acute and Acute & Community Trusts | H130: 4086 | I130: 10429 | J130: 3.092413026 | K130: 590 | L130: 1571 | M130: 1344 | N130: 490 | O130: 138 | P130: 1049 | Q130: 1628 | R130: 1050 | S130: 303 | T130: 56 | U130: 1352 | V130: 1530 | W130: 925 | X130: 208 | Y130: 74 | Z130: 1213 | AA130: 3467 | AB130: 1347 | AC130: 747 | AD130: 258 | AE130: 1132 | AF130: 3414 | AG130: 1414 | AH130: 759 | AI130: 310 | AJ130: 869 | AK130: 2812 | AL130: 1882 | AM130: 1069 | AN130: 399 | AO130: 2527 | AP130: 3250 | AQ130: 751 | AR130: 306 | AS130: 115 | AT130: 1678 | AU130: 3026 | AV130: 1344 | AW130: 650 | AX130: 252 | AY130: 2465 | AZ130: 3335 | BA130: 802 | BB130: 251 | BC130: 93 | BD130: 6946 | BE130: 7029 | BF130: 4086
A131: Y61 | B131: EAST OF ENGLAND COMMISSIONING REGION | C131: QMM | D131: Norfolk and Waveney Health & Care Partnership (STP) | E131: RM1 | F131: NORFOLK AND NORWICH UNIVERSITY HOSPITALS NHS FOUNDATION TRUST | G131: Acute and Acute & Community Trusts | H131: 220 | I131: 7867 | J131: 5.575757576 | K131: 22 | L131: 48 | M131: 81 | N131: 49 | O131: 20 | P131: 11 | Q131: 30 | R131: 76 | S131: 67 | T131: 36 | U131: 11 | V131: 17 | W131: 52 | X131: 77 | Y131: 63 | Z131: 14 | AA131: 41 | AB131: 61 | AC131: 76 | AD131: 28 | AE131: 17 | AF131: 39 | AG131: 57 | AH131: 77 | AI131: 30 | AJ131: 30 | AK131: 50 | AL131: 62 | AM131: 59 | AN131: 19 | AO131: 19 | AP131: 41 | AQ131: 55 | AR131: 74 | AS131: 31 | AT131: 37 | AU131: 51 | AV131: 56 | AW131: 56 | AX131: 20 | AY131: 15 | AZ131: 38 | BA131: 56 | BB131: 88 | BC131: 23 | BD131: 220 | BE131: 220 | BF131: 220
A132: Y61 | B132: EAST OF ENGLAND COMMISSIONING REGION | C132: QMM | D132: Norfolk and Waveney Health & Care Partnership (STP) | E132: RMY | F132: NORFOLK AND SUFFOLK NHS FOUNDATION TRUST | G132: Mental Health & Learning Disability and Mental Health, Learning Disability & Community Trusts | H132: 1366 | I132: 4168 | J132: 6.373834836 | K132: 48 | L132: 170 | M132: 465 | N132: 552 | O132: 154 | P132: 15 | Q132: 109 | R132: 356 | S132: 605 | T132: 299 | U132: 22 | V132: 84 | W132: 288 | X132: 550 | Y132: 438 | Z132: 45 | AA132: 130 | AB132: 239 | AC132: 684 | AD132: 284 | AE132: 49 | AF132: 111 | AG132: 242 | AH132: 695 | AI132: 283 | AJ132: 64 | AK132: 177 | AL132: 333 | AM132: 580 | AN132: 227 | AO132: 47 | AP132: 134 | AQ132: 241 | AR132: 566 | AS132: 378 | AT132: 204 | AU132: 513 | AV132: 331 | AW132: 203 | AX132: 117 | AY132: 121 | AZ132: 206 | BA132: 371 | BB132: 476 | BC132: 192 | BD132: 1366 | BE132: 1380 | BF132: 1382
A133: Y61 | B133: EAST OF ENGLAND COMMISSIONING REGION | C133: QM7 | D133: Hertfordshire and West Essex STP | E133: RQW | F133: THE PRINCESS ALEXANDRA HOSPITAL NHS TRUST | G133: Acute and Acute & Community Trusts | H133: 190 | I133: 3407 | J133: 5.887426901 | K133: 18 | L133: 39 | M133: 68 | N133: 47 | O133: 18 | P133: 8 | Q133: 19 | R133: 49 | S133: 65 | T133: 49 | U133: 6 | V133: 10 | W133: 53 | X133: 59 | Y133: 62 | Z133: 18 | AA133: 26 | AB133: 36 | AC133: 65 | AD133: 45 | AE133: 18 | AF133: 24 | AG133: 34 | AH133: 69 | AI133: 45 | AJ133: 22 | AK133: 28 | AL133: 53 | AM133: 58 | AN133: 29 | AO133: 16 | AP133: 21 | AQ133: 35 | AR133: 70 | AS133: 48 | AT133: 33 | AU133: 40 | AV133: 61 | AW133: 39 | AX133: 17 | AY133: 22 | AZ133: 41 | BA133: 63 | BB133: 49 | BC133: 15 | BD133: 190 | BE133: 190 | BF133: 190
A134: Y61 | B134: EAST OF ENGLAND COMMISSIONING REGION | C134: QUE | D134: Cambridgeshire and Peterborough STP | E134: RT1 | F134: CAMBRIDGESHIRE AND PETERBOROUGH NHS FOUNDATION TRUST | G134: Mental Health & Learning Disability and Mental Health, Learning Disability & Community Trusts | H134: 2778 | I134: 3809 | J134: 6.899548036 | K134: 106 | L134: 236 | M134: 866 | N134: 1156 | O134: 414 | P134: 64 | Q134: 142 | R134: 747 | S134: 1340 | T134: 485 | U134: 27 | V134: 59 | W134: 641 | X134: 1503 | Y134: 548 | Z134: 73 | AA134: 165 | AB134: 776 | AC134: 1296 | AD134: 468 | AE134: 46 | AF134: 102 | AG134: 696 | AH134: 1418 | AI134: 516 | AJ134: 108 | AK134: 242 | AL134: 570 | AM134: 1347 | AN134: 511 | AO134: 54 | AP134: 94 | AQ134: 596 | AR134: 1428 | AS134: 606 | AT134: 128 | AU134: 237 | AV134: 556 | AW134: 1342 | AX134: 515 | AY134: 51 | AZ134: 98 | BA134: 529 | BB134: 1470 | BC134: 630 | BD134: 2778 | BE134: 2778 | BF134: 2778
A135: Y61 | B135: EAST OF ENGLAND COMMISSIONING REGION | C135: QM7 | D135: Hertfordshire and West Essex STP | E135: RWG | F135: WEST HERTFORDSHIRE HOSPITALS NHS TRUST | G135: Acute and Acute & Community Trusts | H135: 664 | I135: 4738 | J135: 6.139976573 | K135: 45 | L135: 115 | M135: 200 | N135: 215 | O135: 89 | P135: 26 | Q135: 66 | R135: 166 | S135: 250 | T135: 156 | U135: 28 | V135: 35 | W135: 143 | X135: 227 | Y135: 231 | Z135: 44 | AA135: 81 | AB135: 147 | AC135: 299 | AD135: 93 | AE135: 43 | AF135: 85 | AG135: 136 | AH135: 309 | AI135: 91 | AJ135: 56 | AK135: 107 | AL135: 184 | AM135: 253 | AN135: 64 | AO135: 35 | AP135: 53 | AQ135: 135 | AR135: 295 | AS135: 146 | AT135: 88 | AU135: 99 | AV135: 197 | AW135: 206 | AX135: 74 | AY135: 64 | AZ135: 85 | BA135: 212 | BB135: 239 | BC135: 64 | BD135: 664 | BE135: 664 | BF135: 664
A136: Y61 | B136: EAST OF ENGLAND COMMISSIONING REGION | C136: QM7 | D136: Hertfordshire and West Essex STP | E136: RWH | F136: EAST AND NORTH HERTFORDSHIRE NHS TRUST | G136: Acute and Acute & Community Trusts | H136: 180 | I136: 5630 | J136: 6.148148148 | K136: 9 | L136: 33 | M136: 66 | N136: 59 | O136: 13 | P136: 5 | Q136: 16 | R136: 57 | S136: 57 | T136: 45 | U136: 5 | V136: 7 | W136: 41 | X136: 68 | Y136: 59 | Z136: 13 | AA136: 30 | AB136: 35 | AC136: 75 | AD136: 27 | AE136: 14 | AF136: 22 | AG136: 38 | AH136: 77 | AI136: 29 | AJ136: 16 | AK136: 38 | AL136: 43 | AM136: 63 | AN136: 20 | AO136: 4 | AP136: 15 | AQ136: 42 | AR136: 82 | AS136: 37 | AT136: 21 | AU136: 30 | AV136: 58 | AW136: 57 | AX136: 14 | AY136: 6 | AZ136: 19 | BA136: 56 | BB136: 84 | BC136: 15 | BD136: 180 | BE136: 180 | BF136: 180
A137: Y61 | B137: EAST OF ENGLAND COMMISSIONING REGION | C137: QM7 | D137: Hertfordshire and West Essex STP | E137: RWR | F137: HERTFORDSHIRE PARTNERSHIP UNIVERSITY NHS FOUNDATION TRUST | G137: Mental Health & Learning Disability and Mental Health, Learning Disability & Community Trusts | H137: 853 | I137: 3266 | J137: 7.394999802 | K137: 15 | L137: 70 | M137: 277 | N137: 352 | O137: 156 | P137: 2 | Q137: 34 | R137: 203 | S137: 386 | T137: 240 | U137: 4 | V137: 28 | W137: 188 | X137: 333 | Y137: 311 | Z137: 14 | AA137: 58 | AB137: 160 | AC137: 415 | AD137: 214 | AE137: 15 | AF137: 50 | AG137: 153 | AH137: 406 | AI137: 229 | AJ137: 20 | AK137: 67 | AL137: 228 | AM137: 376 | AN137: 174 | AO137: 10 | AP137: 24 | AQ137: 55 | AR137: 323 | AS137: 456 | AT137: 19 | AU137: 44 | AV137: 161 | AW137: 346 | AX137: 295 | AY137: 13 | AZ137: 44 | BA137: 161 | BB137: 395 | BC137: 248 | BD137: 861 | BE137: 853 | BF137: 864
A138: Y61 | B138: EAST OF ENGLAND COMMISSIONING REGION | C138: QMM | D138: Norfolk and Waveney Health & Care Partnership (STP) | E138: RY3 | F138: NORFOLK COMMUNITY HEALTH AND CARE NHS TRUST | G138: Community Trusts | H138: 398 | I138: 1992 | J138: 7.195700726 | K138: 11 | L138: 49 | M138: 128 | N138: 155 | O138: 55 | P138: 5 | Q138: 24 | R138: 95 | S138: 166 | T138: 108 | U138: 2 | V138: 23 | W138: 60 | X138: 142 | Y138: 171 | Z138: 9 | AA138: 27 | AB138: 57 | AC138: 199 | AD138: 106 | AE138: 15 | AF138: 23 | AG138: 54 | AH138: 195 | AI138: 111 | AJ138: 16 | AK138: 32 | AL138: 94 | AM138: 171 | AN138: 85 | AO138: 6 | AP138: 25 | AQ138: 55 | AR138: 155 | AS138: 157 | AT138: 18 | AU138: 36 | AV138: 62 | AW138: 166 | AX138: 116 | AY138: 9 | AZ138: 15 | BA138: 87 | BB138: 159 | BC138: 128 | BD138: 398 | BE138: 398 | BF138: 398
A139: Y61 | B139: EAST OF ENGLAND COMMISSIONING REGION | C139: QM7 | D139: Hertfordshire and West Essex STP | E139: RY4 | F139: HERTFORDSHIRE COMMUNITY NHS TRUST | G139: Community Trusts | H139: 171 | I139: 2090 | J139: 7.155620533 | K139: 9 | L139: 19 | M139: 39 | N139: 73 | O139: 31 | P139: 5 | Q139: 10 | R139: 33 | S139: 66 | T139: 57 | U139: 3 | V139: 3 | W139: 21 | X139: 48 | Y139: 96 | Z139: 11 | AA139: 19 | AB139: 17 | AC139: 83 | AD139: 41 | AE139: 9 | AF139: 12 | AG139: 20 | AH139: 81 | AI139: 49 | AJ139: 13 | AK139: 18 | AL139: 33 | AM139: 68 | AN139: 39 | AO139: 11 | AP139: 6 | AQ139: 23 | AR139: 59 | AS139: 72 | AT139: 14 | AU139: 13 | AV139: 30 | AW139: 58 | AX139: 56 | AY139: 8 | AZ139: 7 | BA139: 25 | BB139: 80 | BC139: 51 | BD139: 171 | BE139: 171 | BF139: 171
A140: Y61 | B140: EAST OF ENGLAND COMMISSIONING REGION | C140: QUE | D140: Cambridgeshire and Peterborough STP | E140: RYC | F140: EAST OF ENGLAND AMBULANCE SERVICE NHS TRUST | G140: Ambulance Trusts | H140: 305 | I140: 5410 | J140: 4.680327869 | K140: 36 | L140: 88 | M140: 85 | N140: 69 | O140: 27 | P140: 18 | Q140: 63 | R140: 90 | S140: 83 | T140: 51 | U140: 29 | V140: 47 | W140: 93 | X140: 88 | Y140: 48 | Z140: 49 | AA140: 80 | AB140: 66 | AC140: 77 | AD140: 33 | AE140: 88 | AF140: 77 | AG140: 52 | AH140: 68 | AI140: 20 | AJ140: 99 | AK140: 89 | AL140: 58 | AM140: 46 | AN140: 13 | AO140: 43 | AP140: 62 | AQ140: 66 | AR140: 92 | AS140: 42 | AT140: 97 | AU140: 75 | AV140: 75 | AW140: 45 | AX140: 13 | AY140: 26 | AZ140: 45 | BA140: 77 | BB140: 131 | BC140: 26 | BD140: 305 | BE140: 305 | BF140: 305
A141: Y61 | B141: EAST OF ENGLAND COMMISSIONING REGION | C141: QUE | D141: Cambridgeshire and Peterborough STP | E141: RYV | F141: CAMBRIDGESHIRE COMMUNITY SERVICES NHS TRUST | G141: Community Trusts | H141: 99 | I141: 2126 | J141: 7.471941639 | K141: 3 | L141: 9 | M141: 21 | N141: 44 | O141: 22 | P141: 0 | Q141: 7 | R141: 17 | S141: 39 | T141: 36 | U141: 2 | V141: 6 | W141: 11 | X141: 41 | Y141: 39 | Z141: 5 | AA141: 10 | AB141: 12 | AC141: 38 | AD141: 34 | AE141: 2 | AF141: 7 | AG141: 15 | AH141: 42 | AI141: 33 | AJ141: 6 | AK141: 6 | AL141: 23 | AM141: 39 | AN141: 25 | AO141: 2 | AP141: 1 | AQ141: 10 | AR141: 34 | AS141: 52 | AT141: 3 | AU141: 7 | AV141: 19 | AW141: 31 | AX141: 39 | AY141: 1 | AZ141: 6 | BA141: 9 | BB141: 46 | BC141: 37 | BD141: 99 | BE141: 99 | BF141: 99
A142: Y62 | B142: NORTH WEST COMMISSIONING REGION | C142: QOP | D142: Greater Manchester Health & Social Care Partnership | E142: R0A | F142: MANCHESTER UNIVERSITY NHS FOUNDATION TRUST | G142: Acute and Acute & Community Trusts | H142: 2798 | I142: 24928 | J142: 6.418615292 | K142: 171 | L142: 473 | M142: 981 | N142: 967 | O142: 259 | P142: 79 | Q142: 288 | R142: 781 | S142: 1113 | T142: 545 | U142: 62 | V142: 167 | W142: 668 | X142: 1024 | Y142: 877 | Z142: 177 | AA142: 366 | AB142: 528 | AC142: 1276 | AD142: 497 | AE142: 195 | AF142: 298 | AG142: 552 | AH142: 1253 | AI142: 528 | AJ142: 221 | AK142: 414 | AL142: 693 | AM142: 1063 | AN142: 415 | AO142: 112 | AP142: 253 | AQ142: 500 | AR142: 1328 | AS142: 659 | AT142: 232 | AU142: 414 | AV142: 767 | AW142: 1046 | AX142: 386 | AY142: 110 | AZ142: 213 | BA142: 685 | BB142: 1343 | BC142: 493 | BD142: 2844 | BE142: 2806 | BF142: 2798
A143: Y62 | B143: NORTH WEST COMMISSIONING REGION | C143: QYG | D143: Cheshire and Merseyside STP | E143: RBL | F143: WIRRAL UNIVERSITY TEACHING HOSPITAL NHS FOUNDATION TRUST | G143: Acute and Acute & Community Trusts | H143: 59 | I143: 5550 | J143: 5.649717514 | K143: 9 | L143: 16 | M143: 16 | N143: 16 | O143: 2 | P143: 6 | Q143: 5 | R143: 22 | S143: 20 | T143: 6 | U143: 2 | V143: 4 | W143: 14 | X143: 19 | Y143: 20 | Z143: 8 | AA143: 14 | AB143: 9 | AC143: 22 | AD143: 6 | AE143: 10 | AF143: 8 | AG143: 10 | AH143: 23 | AI143: 8 | AJ143: 10 | AK143: 15 | AL143: 13 | AM143: 16 | AN143: 5 | AO143: 2 | AP143: 6 | AQ143: 12 | AR143: 26 | AS143: 13 | AT143: 7 | AU143: 12 | AV143: 16 | AW143: 18 | AX143: 6 | AY143: 3 | AZ143: 3 | BA143: 17 | BB143: 29 | BC143: 7 | BD143: 59 | BE143: 59 | BF143: 59
A144: Y62 | B144: NORTH WEST COMMISSIONING REGION | C144: QYG | D144: Cheshire and Merseyside STP | E144: RBN | F144: ST HELENS AND KNOWSLEY TEACHING HOSPITALS NHS TRUST | G144: Acute and Acute & Community Trusts | H144: 137 | I144: 5963 | J144: 6.261151663 | K144: 9 | L144: 28 | M144: 41 | N144: 44 | O144: 15 | P144: 4 | Q144: 20 | R144: 34 | S144: 38 | T144: 41 | U144: 4 | V144: 6 | W144: 37 | X144: 45 | Y144: 45 | Z144: 11 | AA144: 19 | AB144: 33 | AC144: 52 | AD144: 22 | AE144: 14 | AF144: 22 | AG144: 34 | AH144: 43 | AI144: 24 | AJ144: 15 | AK144: 31 | AL144: 36 | AM144: 33 | AN144: 22 | AO144: 8 | AP144: 19 | AQ144: 20 | AR144: 43 | AS144: 47 | AT144: 15 | AU144: 13 | AV144: 33 | AW144: 48 | AX144: 28 | AY144: 6 | AZ144: 13 | BA144: 31 | BB144: 43 | BC144: 44 | BD144: 137 | BE144: 137 | BF144: 137
A145: Y62 | B145: NORTH WEST COMMISSIONING REGION | C145: QYG | D145: Cheshire and Merseyside STP | E145: RBQ | F145: LIVERPOOL HEART AND CHEST HOSPITAL NHS FOUNDATION TRUST | G145: Acute Specialist Trusts | H145: 146 | I145: 1662 | J145: 6.953957382 | K145: 10 | L145: 20 | M145: 47 | N145: 46 | O145: 23 | P145: 6 | Q145: 10 | R145: 36 | S145: 50 | T145: 44 | U145: 4 | V145: 12 | W145: 29 | X145: 49 | Y145: 52 | Z145: 7 | AA145: 10 | AB145: 32 | AC145: 70 | AD145: 27 | AE145: 7 | AF145: 14 | AG145: 26 | AH145: 66 | AI145: 33 | AJ145: 9 | AK145: 22 | AL145: 34 | AM145: 61 | AN145: 20 | AO145: 6 | AP145: 4 | AQ145: 13 | AR145: 52 | AS145: 71 | AT145: 15 | AU145: 14 | AV145: 21 | AW145: 57 | AX145: 39 | AY145: 2 | AZ145: 2 | BA145: 13 | BB145: 60 | BC145: 69 | BD145: 146 | BE145: 146 | BF145: 146
A146: Y62 | B146: NORTH WEST COMMISSIONING REGION | C146: QYG | D146: Cheshire and Merseyside STP | E146: RBS | F146: ALDER HEY CHILDREN'S NHS FOUNDATION TRUST | G146: Acute and Acute & Community Trusts | H146: 271 | I146: 3632 | J146: 7.004920049 | K146: 12 | L146: 37 | M146: 87 | N146: 99 | O146: 36 | P146: 7 | Q146: 19 | R146: 64 | S146: 107 | T146: 74 | U146: 5 | V146: 8 | W146: 55 | X146: 95 | Y146: 108 | Z146: 12 | AA146: 32 | AB146: 51 | AC146: 120 | AD146: 56 | AE146: 18 | AF146: 24 | AG146: 48 | AH146: 114 | AI146: 67 | AJ146: 19 | AK146: 39 | AL146: 71 | AM146: 89 | AN146: 53 | AO146: 4 | AP146: 10 | AQ146: 31 | AR146: 126 | AS146: 100 | AT146: 16 | AU146: 24 | AV146: 53 | AW146: 98 | AX146: 80 | AY146: 3 | AZ146: 7 | BA146: 28 | BB146: 114 | BC146: 119 | BD146: 271 | BE146: 271 | BF146: 271
A147: Y62 | B147: NORTH WEST COMMISSIONING REGION | C147: QYG | D147: Cheshire and Merseyside STP | E147: RBT | F147: MID CHESHIRE HOSPITALS NHS FOUNDATION TRUST | G147: Acute and Acute & Community Trusts | H147: 204 | I147: 4300 | J147: 6.970315904 | K147: 5 | L147: 32 | M147: 63 | N147: 80 | O147: 24 | P147: 1 | Q147: 12 | R147: 52 | S147: 86 | T147: 53 | U147: 2 | V147: 4 | W147: 38 | X147: 78 | Y147: 82 | Z147: 5 | AA147: 22 | AB147: 36 | AC147: 104 | AD147: 37 | AE147: 7 | AF147: 12 | AG147: 43 | AH147: 96 | AI147: 46 | AJ147: 6 | AK147: 24 | AL147: 59 | AM147: 78 | AN147: 37 | AO147: 5 | AP147: 8 | AQ147: 29 | AR147: 97 | AS147: 65 | AT147: 4 | AU147: 17 | AV147: 53 | AW147: 86 | AX147: 44 | AY147: 3 | AZ147: 15 | BA147: 44 | BB147: 96 | BC147: 46 | BD147: 204 | BE147: 204 | BF147: 204
A148: Y62 | B148: NORTH WEST COMMISSIONING REGION | C148: QOP | D148: Greater Manchester Health & Social Care Partnership | E148: RBV | F148: THE CHRISTIE NHS FOUNDATION TRUST | G148: Acute Specialist Trusts | H148: 107 | I148: 2962 | J148: 7.024922118 | K148: 4 | L148: 14 | M148: 39 | N148: 43 | O148: 7 | P148: 1 | Q148: 7 | R148: 36 | S148: 44 | T148: 19 | U148: 1 | V148: 8 | W148: 25 | X148: 33 | Y148: 40 | Z148: 9 | AA148: 5 | AB148: 15 | AC148: 54 | AD148: 24 | AE148: 8 | AF148: 4 | AG148: 13 | AH148: 50 | AI148: 32 | AJ148: 9 | AK148: 11 | AL148: 17 | AM148: 45 | AN148: 25 | AO148: 3 | AP148: 2 | AQ148: 13 | AR148: 36 | AS148: 53 | AT148: 10 | AU148: 15 | AV148: 15 | AW148: 45 | AX148: 22 | AY148: 2 | AZ148: 2 | BA148: 11 | BB148: 36 | BC148: 56 | BD148: 107 | BE148: 107 | BF148: 107
A149: Y62 | B149: NORTH WEST COMMISSIONING REGION | C149: QYG | D149: Cheshire and Merseyside STP | E149: REM | F149: LIVERPOOL UNIVERSITY HOSPITALS NHS FOUNDATION TRUST | G149: Acute and Acute & Community Trusts | H149: 2055 | I149: 12104 | J149: 6.447610296 | K149: 98 | L149: 326 | M149: 782 | N149: 678 | O149: 216 | P149: 47 | Q149: 157 | R149: 622 | S149: 784 | T149: 464 | U149: 42 | V149: 105 | W149: 514 | X149: 793 | Y149: 615 | Z149: 82 | AA149: 270 | AB149: 493 | AC149: 974 | AD149: 267 | AE149: 102 | AF149: 223 | AG149: 445 | AH149: 1027 | AI149: 284 | AJ149: 121 | AK149: 304 | AL149: 618 | AM149: 804 | AN149: 233 | AO149: 42 | AP149: 157 | AQ149: 374 | AR149: 949 | AS149: 536 | AT149: 129 | AU149: 315 | AV149: 576 | AW149: 792 | AX149: 244 | AY149: 58 | AZ149: 174 | BA149: 517 | BB149: 980 | BC149: 326 | BD149: 2055 | BE149: 2080 | BF149: 2069
A150: Y62 | B150: NORTH WEST COMMISSIONING REGION | C150: QYG | D150: Cheshire and Merseyside STP | E150: REN | F150: THE CLATTERBRIDGE CANCER CENTRE NHS FOUNDATION TRUST | G150: Acute Specialist Trusts | H150: 228 | I150: 1451 | J150: 6.993177388 | K150: 15 | L150: 41 | M150: 47 | N150: 93 | O150: 32 | P150: 7 | Q150: 21 | R150: 39 | S150: 110 | T150: 51 | U150: 4 | V150: 18 | W150: 25 | X150: 111 | Y150: 70 | Z150: 8 | AA150: 22 | AB150: 32 | AC150: 112 | AD150: 54 | AE150: 7 | AF150: 22 | AG150: 41 | AH150: 104 | AI150: 54 | AJ150: 11 | AK150: 32 | AL150: 44 | AM150: 93 | AN150: 48 | AO150: 5 | AP150: 14 | AQ150: 34 | AR150: 80 | AS150: 95 | AT150: 14 | AU150: 30 | AV150: 50 | AW150: 77 | AX150: 57 | AY150: 3 | AZ150: 8 | BA150: 20 | BB150: 104 | BC150: 93 | BD150: 228 | BE150: 228 | BF150: 228
A151: Y62 | B151: NORTH WEST COMMISSIONING REGION | C151: QYG | D151: Cheshire and Merseyside STP | E151: REP | F151: LIVERPOOL WOMEN'S NHS FOUNDATION TRUST | G151: Acute Specialist Trusts | H151: 186 | I151: 1405 | J151: 6.391314532 | K151: 17 | L151: 66 | M151: 0 | N151: 21 | O151: 97 | P151: 5 | Q151: 44 | R151: 0 | S151: 98 | T151: 53 | U151: 6 | V151: 19 | W151: 0 | X151: 96 | Y151: 81 | Z151: 13 | AA151: 35 | AB151: 36 | AC151: 74 | AD151: 36 | AE151: 17 | AF151: 39 | AG151: 33 | AH151: 74 | AI151: 27 | AJ151: 20 | AK151: 43 | AL151: 51 | AM151: 54 | AN151: 23 | AO151: 5 | AP151: 17 | AQ151: 29 | AR151: 90 | AS151: 47 | AT151: 24 | AU151: 31 | AV151: 48 | AW151: 57 | AX151: 27 | AY151: 10 | AZ151: 23 | BA151: 37 | BB151: 79 | BC151: 37 | BD151: 186 | BE151: 190 | BF151: 200
A152: Y62 | B152: NORTH WEST COMMISSIONING REGION | C152: QYG | D152: Cheshire and Merseyside STP | E152: RET | F152: THE WALTON CENTRE NHS FOUNDATION TRUST | G152: Acute Specialist Trusts | H152: 106 | I152: 1347 | J152: 7.216981132 | K152: 4 | L152: 18 | M152: 27 | N152: 42 | O152: 15 | P152: 2 | Q152: 9 | R152: 22 | S152: 43 | T152: 30 | U152: 2 | V152: 5 | W152: 18 | X152: 41 | Y152: 40 | Z152: 5 | AA152: 8 | AB152: 14 | AC152: 49 | AD152: 30 | AE152: 4 | AF152: 6 | AG152: 16 | AH152: 48 | AI152: 32 | AJ152: 6 | AK152: 13 | AL152: 26 | AM152: 34 | AN152: 27 | AO152: 2 | AP152: 4 | AQ152: 12 | AR152: 38 | AS152: 50 | AT152: 8 | AU152: 12 | AV152: 19 | AW152: 31 | AX152: 36 | AY152: 1 | AZ152: 2 | BA152: 11 | BB152: 39 | BC152: 53 | BD152: 106 | BE152: 106 | BF152: 106
A153: Y62 | B153: NORTH WEST COMMISSIONING REGION | C153: QYG | D153: Cheshire and Merseyside STP | E153: RJN | F153: EAST CHESHIRE NHS TRUST | G153: Acute and Acute & Community Trusts | H153: 122 | I153: 2167 | J153: 6.591530055 | K153: 4 | L153: 20 | M153: 43 | N153: 47 | O153: 8 | P153: 2 | Q153: 11 | R153: 28 | S153: 61 | T153: 20 | U153: 1 | V153: 8 | W153: 30 | X153: 45 | Y153: 38 | Z153: 5 | AA153: 10 | AB153: 26 | AC153: 56 | AD153: 25 | AE153: 3 | AF153: 14 | AG153: 19 | AH153: 54 | AI153: 32 | AJ153: 4 | AK153: 21 | AL153: 28 | AM153: 43 | AN153: 26 | AO153: 6 | AP153: 7 | AQ153: 24 | AR153: 52 | AS153: 33 | AT153: 8 | AU153: 16 | AV153: 36 | AW153: 43 | AX153: 19 | AY153: 5 | AZ153: 14 | BA153: 32 | BB153: 49 | BC153: 22 | BD153: 122 | BE153: 122 | BF153: 122
A154: Y62 | B154: NORTH WEST COMMISSIONING REGION | C154: QYG | D154: Cheshire and Merseyside STP | E154: RJR | F154: COUNTESS OF CHESTER HOSPITAL NHS FOUNDATION TRUST | G154: Acute and Acute & Community Trusts | H154: 263 | I154: 3819 | J154: 6.190089264 | K154: 23 | L154: 58 | M154: 92 | N154: 68 | O154: 23 | P154: 7 | Q154: 26 | R154: 76 | S154: 101 | T154: 54 | U154: 4 | V154: 12 | W154: 59 | X154: 83 | Y154: 106 | Z154: 19 | AA154: 18 | AB154: 57 | AC154: 132 | AD154: 38 | AE154: 19 | AF154: 26 | AG154: 44 | AH154: 123 | AI154: 52 | AJ154: 26 | AK154: 36 | AL154: 72 | AM154: 90 | AN154: 40 | AO154: 11 | AP154: 28 | AQ154: 52 | AR154: 120 | AS154: 52 | AT154: 27 | AU154: 52 | AV154: 83 | AW154: 82 | AX154: 20 | AY154: 18 | AZ154: 44 | BA154: 68 | BB154: 103 | BC154: 31 | BD154: 263 | BE154: 264 | BF154: 264
A155: Y62 | B155: NORTH WEST COMMISSIONING REGION | C155: QOP | D155: Greater Manchester Health & Social Care Partnership | E155: RM3 | F155: NORTHERN CARE ALLIANCE NHS FOUNDATION TRUST | G155: Acute and Acute & Community Trusts | H155: 2263 | I155: 17028 | J155: 6.361308488 | K155: 174 | L155: 415 | M155: 864 | N155: 666 | O155: 199 | P155: 90 | Q155: 262 | R155: 728 | S155: 795 | T155: 404 | U155: 76 | V155: 143 | W155: 553 | X155: 808 | Y155: 707 | Z155: 150 | AA155: 268 | AB155: 479 | AC155: 999 | AD155: 392 | AE155: 151 | AF155: 261 | AG155: 440 | AH155: 1005 | AI155: 433 | AJ155: 184 | AK155: 337 | AL155: 592 | AM155: 816 | AN155: 358 | AO155: 84 | AP155: 155 | AQ155: 403 | AR155: 990 | AS155: 634 | AT155: 191 | AU155: 318 | AV155: 588 | AW155: 802 | AX155: 364 | AY155: 82 | AZ155: 186 | BA155: 545 | BB155: 1020 | BC155: 432 | BD155: 2263 | BE155: 2287 | BF155: 2279
A156: Y62 | B156: NORTH WEST COMMISSIONING REGION | C156: QOP | D156: Greater Manchester Health & Social Care Partnership | E156: RMC | F156: BOLTON NHS FOUNDATION TRUST | G156: Acute and Acute & Community Trusts | H156: 1089 | I156: 5533 | J156: 7.216865626 | K156: 50 | L156: 131 | M156: 273 | N156: 440 | O156: 195 | P156: 16 | Q156: 56 | R156: 134 | S156: 492 | T156: 391 | U156: 14 | V156: 33 | W156: 134 | X156: 510 | Y156: 398 | Z156: 15 | AA156: 56 | AB156: 193 | AC156: 572 | AD156: 253 | AE156: 23 | AF156: 74 | AG156: 150 | AH156: 272 | AI156: 570 | AJ156: 28 | AK156: 105 | AL156: 254 | AM156: 480 | AN156: 222 | AO156: 28 | AP156: 46 | AQ156: 118 | AR156: 438 | AS156: 459 | AT156: 57 | AU156: 110 | AV156: 252 | AW156: 525 | AX156: 145 | AY156: 35 | AZ156: 70 | BA156: 235 | BB156: 589 | BC156: 160 | BD156: 1089 | BE156: 1089 | BF156: 1089
A157: Y62 | B157: NORTH WEST COMMISSIONING REGION | C157: QOP | D157: Greater Manchester Health & Social Care Partnership | E157: RMP | F157: TAMESIDE AND GLOSSOP INTEGRATED CARE NHS FOUNDATION TRUST | G157: Acute and Acute & Community Trusts | H157: 78 | I157: 3584 | J157: 5.548433048 | K157: 6 | L157: 20 | M157: 22 | N157: 24 | O157: 6 | P157: 4 | Q157: 9 | R157: 26 | S157: 17 | T157: 22 | U157: 3 | V157: 9 | W157: 23 | X157: 12 | Y157: 31 | Z157: 11 | AA157: 9 | AB157: 16 | AC157: 32 | AD157: 10 | AE157: 14 | AF157: 10 | AG157: 12 | AH157: 29 | AI157: 13 | AJ157: 16 | AK157: 16 | AL157: 14 | AM157: 22 | AN157: 10 | AO157: 9 | AP157: 13 | AQ157: 15 | AR157: 28 | AS157: 13 | AT157: 18 | AU157: 16 | AV157: 16 | AW157: 17 | AX157: 11 | AY157: 14 | AZ157: 13 | BA157: 15 | BB157: 26 | BC157: 10 | BD157: 78 | BE157: 78 | BF157: 78
A158: Y62 | B158: NORTH WEST COMMISSIONING REGION | C158: QOP | D158: Greater Manchester Health & Social Care Partnership | E158: RRF | F158: WRIGHTINGTON, WIGAN AND LEIGH NHS FOUNDATION TRUST | G158: Acute and Acute & Community Trusts | H158: 159 | I158: 5754 | J158: 6.112858141 | K158: 11 | L158: 36 | M158: 51 | N158: 47 | O158: 14 | P158: 9 | Q158: 23 | R158: 42 | S158: 62 | T158: 23 | U158: 6 | V158: 8 | W158: 28 | X158: 57 | Y158: 60 | Z158: 14 | AA158: 28 | AB158: 28 | AC158: 62 | AD158: 27 | AE158: 14 | AF158: 20 | AG158: 31 | AH158: 63 | AI158: 31 | AJ158: 18 | AK158: 30 | AL158: 37 | AM158: 51 | AN158: 23 | AO158: 8 | AP158: 14 | AQ158: 26 | AR158: 74 | AS158: 37 | AT158: 18 | AU158: 19 | AV158: 46 | AW158: 52 | AX158: 24 | AY158: 14 | AZ158: 19 | BA158: 38 | BB158: 64 | BC158: 24 | BD158: 159 | BE158: 159 | BF158: 159
A159: Y62 | B159: NORTH WEST COMMISSIONING REGION | C159: QOP | D159: Greater Manchester Health & Social Care Partnership | E159: RT2 | F159: PENNINE CARE NHS FOUNDATION TRUST | G159: Mental Health & Learning Disability and Mental Health, Learning Disability & Community Trusts | H159: 231 | I159: 3145 | J159: 6.334776335 | K159: 13 | L159: 43 | M159: 74 | N159: 83 | O159: 18 | P159: 4 | Q159: 26 | R159: 60 | S159: 90 | T159: 51 | U159: 7 | V159: 10 | W159: 45 | X159: 89 | Y159: 80 | Z159: 14 | AA159: 28 | AB159: 31 | AC159: 109 | AD159: 49 | AE159: 13 | AF159: 27 | AG159: 31 | AH159: 106 | AI159: 54 | AJ159: 16 | AK159: 31 | AL159: 57 | AM159: 86 | AN159: 41 | AO159: 5 | AP159: 28 | AQ159: 54 | AR159: 103 | AS159: 41 | AT159: 23 | AU159: 42 | AV159: 55 | AW159: 85 | AX159: 26 | AY159: 17 | AZ159: 33 | BA159: 79 | BB159: 73 | BC159: 29 | BD159: 231 | BE159: 231 | BF159: 231
A160: Y62 | B160: NORTH WEST COMMISSIONING REGION | C160: QE1 | D160: Healthier Lancashire and South Cumbria | E160: RTX | F160: UNIVERSITY HOSPITALS OF MORECAMBE BAY NHS FOUNDATION TRUST | G160: Acute and Acute & Community Trusts | H160: 199 | I160: 6070 | J160: 5.566722501 | K160: 20 | L160: 46 | M160: 67 | N160: 44 | O160: 22 | P160: 8 | Q160: 36 | R160: 58 | S160: 56 | T160: 41 | U160: 10 | V160: 13 | W160: 60 | X160: 51 | Y160: 65 | Z160: 19 | AA160: 34 | AB160: 39 | AC160: 74 | AD160: 33 | AE160: 22 | AF160: 37 | AG160: 39 | AH160: 66 | AI160: 35 | AJ160: 28 | AK160: 46 | AL160: 36 | AM160: 59 | AN160: 30 | AO160: 22 | AP160: 26 | AQ160: 54 | AR160: 63 | AS160: 34 | AT160: 29 | AU160: 41 | AV160: 66 | AW160: 46 | AX160: 17 | AY160: 25 | AZ160: 39 | BA160: 68 | BB160: 57 | BC160: 10 | BD160: 199 | BE160: 199 | BF160: 199
A161: Y62 | B161: NORTH WEST COMMISSIONING REGION | C161: QYG | D161: Cheshire and Merseyside STP | E161: RVY | F161: SOUTHPORT AND ORMSKIRK HOSPITAL NHS TRUST | G161: Acute and Acute & Community Trusts | H161: 324 | I161: 2861 | J161: 6.362105662 | K161: 20 | L161: 43 | M161: 106 | N161: 132 | O161: 31 | P161: 7 | Q161: 23 | R161: 82 | S161: 117 | T161: 95 | U161: 7 | V161: 18 | W161: 68 | X161: 128 | Y161: 103 | Z161: 20 | AA161: 42 | AB161: 76 | AC161: 127 | AD161: 68 | AE161: 18 | AF161: 41 | AG161: 62 | AH161: 140 | AI161: 70 | AJ161: 26 | AK161: 61 | AL161: 80 | AM161: 107 | AN161: 56 | AO161: 12 | AP161: 40 | AQ161: 68 | AR161: 150 | AS161: 59 | AT161: 25 | AU161: 56 | AV161: 87 | AW161: 119 | AX161: 44 | AY161: 24 | AZ161: 60 | BA161: 84 | BB161: 128 | BC161: 36 | BD161: 329 | BE161: 330 | BF161: 324
A162: Y62 | B162: NORTH WEST COMMISSIONING REGION | C162: QYG | D162: Cheshire and Merseyside STP | E162: RW4 | F162: MERSEY CARE NHS FOUNDATION TRUST | G162: Mental Health & Learning Disability and Mental Health, Learning Disability & Community Trusts | H162: 2317 | I162: 9735 | J162: 6.956346905 | K162: 93 | L162: 244 | M162: 739 | N162: 888 | O162: 380 | P162: 51 | Q162: 113 | R162: 508 | S162: 906 | T162: 741 | U162: 46 | V162: 123 | W162: 415 | X162: 760 | Y162: 973 | Z162: 102 | AA162: 211 | AB162: 445 | AC162: 1063 | AD162: 525 | AE162: 112 | AF162: 206 | AG162: 373 | AH162: 1072 | AI162: 575 | AJ162: 132 | AK162: 269 | AL162: 531 | AM162: 935 | AN162: 457 | AO162: 50 | AP162: 141 | AQ162: 353 | AR162: 1043 | AS162: 759 | AT162: 130 | AU162: 261 | AV162: 549 | AW162: 913 | AX162: 496 | AY162: 80 | AZ162: 154 | BA162: 475 | BB162: 1086 | BC162: 551 | BD162: 2346 | BE162: 2324 | BF162: 2317
A163: Y62 | B163: NORTH WEST COMMISSIONING REGION | C163: QE1 | D163: Healthier Lancashire and South Cumbria | E163: RW5 | F163: LANCASHIRE & SOUTH CUMBRIA NHS FOUNDATION TRUST | G163: Mental Health & Learning Disability and Mental Health, Learning Disability & Community Trusts | H163: 1058 | I163: 6159 | J163: 6.911231362 | K163: 31 | L163: 131 | M163: 357 | N163: 449 | O163: 159 | P163: 6 | Q163: 49 | R163: 237 | S163: 531 | T163: 302 | U163: 10 | V163: 41 | W163: 203 | X163: 452 | Y163: 420 | Z163: 43 | AA163: 92 | AB163: 215 | AC163: 548 | AD163: 204 | AE163: 51 | AF163: 95 | AG163: 204 | AH163: 555 | AI163: 203 | AJ163: 55 | AK163: 119 | AL163: 302 | AM163: 519 | AN163: 129 | AO163: 28 | AP163: 103 | AQ163: 218 | AR163: 558 | AS163: 218 | AT163: 53 | AU163: 118 | AV163: 224 | AW163: 480 | AX163: 183 | AY163: 24 | AZ163: 84 | BA163: 281 | BB163: 571 | BC163: 168 | BD163: 1058 | BE163: 1102 | BF163: 1125
A164: Y62 | B164: NORTH WEST COMMISSIONING REGION | C164: QOP | D164: Greater Manchester Health & Social Care Partnership | E164: RWJ | F164: STOCKPORT NHS FOUNDATION TRUST | G164: Acute and Acute & Community Trusts | H164: 87 | I164: 4993 | J164: 5.69284802 | K164: 9 | L164: 19 | M164: 33 | N164: 19 | O164: 7 | P164: 2 | Q164: 12 | R164: 25 | S164: 25 | T164: 23 | U164: 2 | V164: 7 | W164: 18 | X164: 31 | Y164: 29 | Z164: 6 | AA164: 17 | AB164: 16 | AC164: 32 | AD164: 16 | AE164: 7 | AF164: 18 | AG164: 11 | AH164: 36 | AI164: 15 | AJ164: 7 | AK164: 25 | AL164: 12 | AM164: 33 | AN164: 10 | AO164: 9 | AP164: 12 | AQ164: 19 | AR164: 35 | AS164: 12 | AT164: 19 | AU164: 20 | AV164: 20 | AW164: 24 | AX164: 4 | AY164: 10 | AZ164: 16 | BA164: 27 | BB164: 30 | BC164: 4 | BD164: 87 | BE164: 87 | BF164: 87
A165: Y62 | B165: NORTH WEST COMMISSIONING REGION | C165: QYG | D165: Cheshire and Merseyside STP | E165: RWW | F165: WARRINGTON AND HALTON TEACHING HOSPITALS NHS FOUNDATION TRUST | G165: Acute and Acute & Community Trusts | H165: 51 | I165: 3876 | J165: 6.28540305 | K165: 3 | L165: 5 | M165: 19 | N165: 20 | O165: 4 | P165: 1 | Q165: 6 | R165: 13 | S165: 23 | T165: 8 | U165: 0 | V165: 2 | W165: 12 | X165: 18 | Y165: 19 | Z165: 1 | AA165: 4 | AB165: 13 | AC165: 26 | AD165: 7 | AE165: 5 | AF165: 5 | AG165: 11 | AH165: 24 | AI165: 6 | AJ165: 6 | AK165: 7 | AL165: 15 | AM165: 17 | AN165: 6 | AO165: 4 | AP165: 5 | AQ165: 7 | AR165: 22 | AS165: 13 | AT165: 2 | AU165: 7 | AV165: 17 | AW165: 23 | AX165: 2 | AY165: 4 | AZ165: 4 | BA165: 15 | BB165: 26 | BC165: 2 | BD165: 51 | BE165: 51 | BF165: 51
A166: Y62 | B166: NORTH WEST COMMISSIONING REGION | C166: QOP | D166: Greater Manchester Health & Social Care Partnership | E166: RX7 | F166: NORTH WEST AMBULANCE SERVICE NHS TRUST | G166: Ambulance Trusts | H166: 1350 | I166: 6258 | J166: 6.087708626 | K166: 60 | L166: 229 | M166: 480 | N166: 452 | O166: 156 | P166: 28 | Q166: 121 | R166: 387 | S166: 540 | T166: 296 | U166: 45 | V166: 132 | W166: 430 | X166: 485 | Y166: 281 | Z166: 97 | AA166: 203 | AB166: 288 | AC166: 575 | AD166: 192 | AE166: 144 | AF166: 232 | AG166: 307 | AH166: 499 | AI166: 179 | AJ166: 183 | AK166: 302 | AL166: 371 | AM166: 358 | AN166: 147 | AO166: 73 | AP166: 191 | AQ166: 226 | AR166: 533 | AS166: 327 | AT166: 109 | AU166: 228 | AV166: 330 | AW166: 490 | AX166: 194 | AY166: 51 | AZ166: 124 | BA166: 275 | BB166: 651 | BC166: 250 | BD166: 1350 | BE166: 1355 | BF166: 1372
A167: Y62 | B167: NORTH WEST COMMISSIONING REGION | C167: QYG | D167: Cheshire and Merseyside STP | E167: RXA | F167: CHESHIRE AND WIRRAL PARTNERSHIP NHS FOUNDATION TRUST | G167: Mental Health & Learning Disability and Mental Health, Learning Disability & Community Trusts | H167: 793 | I167: 3383 | J167: 7.017061495 | K167: 20 | L167: 77 | M167: 276 | N167: 331 | O167: 107 | P167: 8 | Q167: 34 | R167: 199 | S167: 335 | T167: 231 | U167: 7 | V167: 39 | W167: 169 | X167: 307 | Y167: 285 | Z167: 18 | AA167: 67 | AB167: 153 | AC167: 398 | AD167: 172 | AE167: 23 | AF167: 67 | AG167: 148 | AH167: 394 | AI167: 176 | AJ167: 25 | AK167: 103 | AL167: 211 | AM167: 340 | AN167: 129 | AO167: 13 | AP167: 34 | AQ167: 111 | AR167: 359 | AS167: 276 | AT167: 33 | AU167: 54 | AV167: 180 | AW167: 348 | AX167: 179 | AY167: 13 | AZ167: 51 | BA167: 161 | BB167: 397 | BC167: 171 | BD167: 793 | BE167: 808 | BF167: 807
A168: Y62 | B168: NORTH WEST COMMISSIONING REGION | C168: QE1 | D168: Healthier Lancashire and South Cumbria | E168: RXL | F168: BLACKPOOL TEACHING HOSPITALS NHS FOUNDATION TRUST | G168: Acute and Acute & Community Trusts | H168: 539 | I168: 6870 | J168: 6.571840858 | K168: 18 | L168: 86 | M168: 166 | N168: 205 | O168: 64 | P168: 10 | Q168: 44 | R168: 145 | S168: 203 | T168: 137 | U168: 6 | V168: 22 | W168: 109 | X168: 194 | Y168: 208 | Z168: 27 | AA168: 68 | AB168: 101 | AC168: 251 | AD168: 92 | AE168: 29 | AF168: 55 | AG168: 84 | AH168: 257 | AI168: 114 | AJ168: 34 | AK168: 70 | AL168: 142 | AM168: 213 | AN168: 80 | AO168: 21 | AP168: 39 | AQ168: 104 | AR168: 244 | AS168: 131 | AT168: 34 | AU168: 66 | AV168: 123 | AW168: 239 | AX168: 77 | AY168: 37 | AZ168: 60 | BA168: 142 | BB168: 220 | BC168: 80 | BD168: 539 | BE168: 539 | BF168: 539
A169: Y62 | B169: NORTH WEST COMMISSIONING REGION | C169: QE1 | D169: Healthier Lancashire and South Cumbria | E169: RXN | F169: LANCASHIRE TEACHING HOSPITALS NHS FOUNDATION TRUST | G169: Acute and Acute & Community Trusts | H169: 1723 | I169: 8078 | J169: 6.711462111 | K169: 77 | L169: 228 | M169: 633 | N169: 618 | O169: 209 | P169: 30 | Q169: 128 | R169: 448 | S169: 719 | T169: 406 | U169: 26 | V169: 77 | W169: 385 | X169: 671 | Y169: 575 | Z169: 56 | AA169: 156 | AB169: 322 | AC169: 877 | AD169: 345 | AE169: 65 | AF169: 150 | AG169: 292 | AH169: 882 | AI169: 365 | AJ169: 92 | AK169: 231 | AL169: 434 | AM169: 729 | AN169: 266 | AO169: 43 | AP169: 140 | AQ169: 266 | AR169: 748 | AS169: 528 | AT169: 95 | AU169: 219 | AV169: 449 | AW169: 689 | AX169: 271 | AY169: 67 | AZ169: 180 | BA169: 408 | BB169: 791 | BC169: 278 | BD169: 1723 | BE169: 1752 | BF169: 1731
A170: Y62 | B170: NORTH WEST COMMISSIONING REGION | C170: QE1 | D170: Healthier Lancashire and South Cumbria | E170: RXR | F170: EAST LANCASHIRE HOSPITALS NHS TRUST | G170: Acute and Acute & Community Trusts | H170: 95 | I170: 8472 | J170: 6.421052632 | K170: 5 | L170: 16 | M170: 33 | N170: 31 | O170: 10 | P170: 2 | Q170: 10 | R170: 28 | S170: 30 | T170: 25 | U170: 3 | V170: 4 | W170: 16 | X170: 40 | Y170: 32 | Z170: 4 | AA170: 20 | AB170: 13 | AC170: 42 | AD170: 16 | AE170: 6 | AF170: 11 | AG170: 15 | AH170: 45 | AI170: 18 | AJ170: 6 | AK170: 17 | AL170: 21 | AM170: 34 | AN170: 17 | AO170: 5 | AP170: 7 | AQ170: 5 | AR170: 49 | AS170: 29 | AT170: 9 | AU170: 16 | AV170: 24 | AW170: 32 | AX170: 14 | AY170: 3 | AZ170: 13 | BA170: 28 | BB170: 41 | BC170: 10 | BD170: 95 | BE170: 95 | BF170: 95
A171: Y62 | B171: NORTH WEST COMMISSIONING REGION | C171: QOP | D171: Greater Manchester Health & Social Care Partnership | E171: RXV | F171: GREATER MANCHESTER MENTAL HEALTH NHS FOUNDATION TRUST | G171: Mental Health & Learning Disability and Mental Health, Learning Disability & Community Trusts | H171: 1249 | I171: 5688 | J171: 6.67087735 | K171: 44 | L171: 177 | M171: 423 | N171: 492 | O171: 146 | P171: 20 | Q171: 94 | R171: 342 | S171: 512 | T171: 309 | U171: 24 | V171: 50 | W171: 269 | X171: 493 | Y171: 441 | Z171: 44 | AA171: 120 | AB171: 228 | AC171: 616 | AD171: 267 | AE171: 48 | AF171: 115 | AG171: 215 | AH171: 638 | AI171: 252 | AJ171: 61 | AK171: 146 | AL171: 321 | AM171: 529 | AN171: 213 | AO171: 46 | AP171: 114 | AQ171: 215 | AR171: 531 | AS171: 347 | AT171: 86 | AU171: 153 | AV171: 307 | AW171: 479 | AX171: 224 | AY171: 88 | AZ171: 144 | BA171: 318 | BB171: 490 | BC171: 213 | BD171: 1249 | BE171: 1268 | BF171: 1277
A172: Y62 | B172: NORTH WEST COMMISSIONING REGION | C172: QYG | D172: Cheshire and Merseyside STP | E172: RY2 | F172: BRIDGEWATER COMMUNITY HEALTHCARE NHS FOUNDATION TRUST | G172: Community Trusts | H172: 296 | I172: 1423 | J172: 6.808370871 | K172: 15 | L172: 39 | M172: 79 | N172: 126 | O172: 37 | P172: 8 | Q172: 21 | R172: 65 | S172: 114 | T172: 88 | U172: 4 | V172: 6 | W172: 50 | X172: 99 | Y172: 137 | Z172: 11 | AA172: 33 | AB172: 59 | AC172: 145 | AD172: 48 | AE172: 9 | AF172: 27 | AG172: 51 | AH172: 148 | AI172: 61 | AJ172: 15 | AK172: 44 | AL172: 64 | AM172: 130 | AN172: 43 | AO172: 8 | AP172: 25 | AQ172: 45 | AR172: 118 | AS172: 100 | AT172: 33 | AU172: 47 | AV172: 67 | AW172: 97 | AX172: 52 | AY172: 11 | AZ172: 12 | BA172: 47 | BB172: 152 | BC172: 74 | BD172: 296 | BE172: 296 | BF172: 296
A173: Y62 | B173: NORTH WEST COMMISSIONING REGION | C173: QYG | D173: Cheshire and Merseyside STP | E173: RY7 | F173: WIRRAL COMMUNITY HEALTH AND CARE NHS FOUNDATION TRUST | G173: Community Trusts | H173: 137 | I173: 1514 | J173: 6.855231144 | K173: 6 | L173: 14 | M173: 53 | N173: 45 | O173: 19 | P173: 0 | Q173: 13 | R173: 35 | S173: 53 | T173: 36 | U173: 2 | V173: 3 | W173: 25 | X173: 38 | Y173: 69 | Z173: 2 | AA173: 17 | AB173: 27 | AC173: 65 | AD173: 26 | AE173: 1 | AF173: 17 | AG173: 29 | AH173: 60 | AI173: 30 | AJ173: 2 | AK173: 20 | AL173: 38 | AM173: 56 | AN173: 21 | AO173: 2 | AP173: 12 | AQ173: 22 | AR173: 56 | AS173: 45 | AT173: 6 | AU173: 19 | AV173: 41 | AW173: 44 | AX173: 27 | AY173: 2 | AZ173: 11 | BA173: 34 | BB173: 56 | BC173: 34 | BD173: 137 | BE173: 137 | BF173: 137
A174: Y63 | B174: NORTH EAST AND YORKSHIRE COMMISSIONING REGION | C174: QHM | D174: Cumbria and North East STP | E174: R0B | F174: SOUTH TYNESIDE AND SUNDERLAND NHS FOUNDATION TRUST | G174: Acute and Acute & Community Trusts | H174: 131 | I174: 7669 | J174: 5.22264631 | K174: 18 | L174: 39 | M174: 43 | N174: 27 | O174: 4 | P174: 10 | Q174: 29 | R174: 38 | S174: 43 | T174: 11 | U174: 12 | V174: 14 | W174: 44 | X174: 38 | Y174: 23 | Z174: 10 | AA174: 22 | AB174: 34 | AC174: 45 | AD174: 20 | AE174: 17 | AF174: 27 | AG174: 29 | AH174: 41 | AI174: 17 | AJ174: 21 | AK174: 33 | AL174: 29 | AM174: 33 | AN174: 15 | AO174: 10 | AP174: 17 | AQ174: 33 | AR174: 46 | AS174: 25 | AT174: 28 | AU174: 28 | AV174: 32 | AW174: 29 | AX174: 14 | AY174: 18 | AZ174: 21 | BA174: 38 | BB174: 45 | BC174: 9 | BD174: 131 | BE174: 131 | BF174: 131
A175: Y63 | B175: NORTH EAST AND YORKSHIRE COMMISSIONING REGION | C175: QWO | D175: West Yorkshire and Harrogate Health & Care Partnership (STP) | E175: RAE | F175: BRADFORD TEACHING HOSPITALS NHS FOUNDATION TRUST | G175: Acute and Acute & Community Trusts | H175: 74 | I175: 5468 | J175: 5.968468468 | K175: 8 | L175: 18 | M175: 24 | N175: 18 | O175: 6 | P175: 2 | Q175: 10 | R175: 23 | S175: 23 | T175: 16 | U175: 7 | V175: 5 | W175: 22 | X175: 20 | Y175: 20 | Z175: 7 | AA175: 7 | AB175: 16 | AC175: 32 | AD175: 12 | AE175: 8 | AF175: 8 | AG175: 15 | AH175: 28 | AI175: 15 | AJ175: 7 | AK175: 8 | AL175: 21 | AM175: 28 | AN175: 10 | AO175: 4 | AP175: 7 | AQ175: 16 | AR175: 25 | AS175: 22 | AT175: 17 | AU175: 9 | AV175: 14 | AW175: 21 | AX175: 13 | AY175: 8 | AZ175: 7 | BA175: 21 | BB175: 26 | BC175: 12 | BD175: 74 | BE175: 74 | BF175: 74
A176: Y63 | B176: NORTH EAST AND YORKSHIRE COMMISSIONING REGION | C176: QOQ | D176: Humber, Coast and Vale STP | E176: RCB | F176: YORK AND SCARBOROUGH TEACHING HOSPITALS NHS FOUNDATION TRUST | G176: Acute and Acute & Community Trusts | H176: 142 | I176: 7674 | J176: 5.768779343 | K176: 13 | L176: 33 | M176: 50 | N176: 35 | O176: 11 | P176: 6 | Q176: 24 | R176: 39 | S176: 43 | T176: 30 | U176: 7 | V176: 9 | W176: 35 | X176: 45 | Y176: 46 | Z176: 8 | AA176: 28 | AB176: 30 | AC176: 52 | AD176: 24 | AE176: 9 | AF176: 18 | AG176: 24 | AH176: 64 | AI176: 27 | AJ176: 15 | AK176: 24 | AL176: 38 | AM176: 48 | AN176: 17 | AO176: 12 | AP176: 17 | AQ176: 39 | AR176: 51 | AS176: 23 | AT176: 26 | AU176: 28 | AV176: 37 | AW176: 35 | AX176: 16 | AY176: 20 | AZ176: 20 | BA176: 48 | BB176: 43 | BC176: 11 | BD176: 142 | BE176: 142 | BF176: 142
A177: Y63 | B177: NORTH EAST AND YORKSHIRE COMMISSIONING REGION | C177: QOQ | D177: Humber, Coast and Vale STP | E177: RCD | F177: HARROGATE AND DISTRICT NHS FOUNDATION TRUST | G177: Acute and Acute & Community Trusts | H177: 932 | I177: 3924 | J177: 6.955357746 | K177: 27 | L177: 133 | M177: 308 | N177: 347 | O177: 134 | P177: 8 | Q177: 57 | R177: 227 | S177: 361 | T177: 295 | U177: 9 | V177: 31 | W177: 153 | X177: 321 | Y177: 434 | Z177: 34 | AA177: 77 | AB177: 200 | AC177: 394 | AD177: 241 | AE177: 35 | AF177: 66 | AG177: 163 | AH177: 418 | AI177: 261 | AJ177: 41 | AK177: 115 | AL177: 241 | AM177: 374 | AN177: 166 | AO177: 21 | AP177: 76 | AQ177: 151 | AR177: 418 | AS177: 270 | AT177: 41 | AU177: 114 | AV177: 254 | AW177: 366 | AX177: 157 | AY177: 16 | AZ177: 65 | BA177: 201 | BB177: 448 | BC177: 203 | BD177: 932 | BE177: 937 | BF177: 948
A178: Y63 | B178: NORTH EAST AND YORKSHIRE COMMISSIONING REGION | C178: QWO | D178: West Yorkshire and Harrogate Health & Care Partnership (STP) | E178: RCF | F178: AIREDALE NHS FOUNDATION TRUST | G178: Acute and Acute & Community Trusts | H178: 884 | I178: 2987 | J178: 6.965448411 | K178: 26 | L178: 97 | M178: 284 | N178: 375 | O178: 124 | P178: 11 | Q178: 53 | R178: 213 | S178: 379 | T178: 234 | U178: 14 | V178: 42 | W178: 164 | X178: 354 | Y178: 320 | Z178: 29 | AA178: 81 | AB178: 172 | AC178: 431 | AD178: 183 | AE178: 31 | AF178: 78 | AG178: 155 | AH178: 446 | AI178: 185 | AJ178: 40 | AK178: 108 | AL178: 233 | AM178: 365 | AN178: 149 | AO178: 12 | AP178: 42 | AQ178: 106 | AR178: 444 | AS178: 280 | AT178: 33 | AU178: 84 | AV178: 186 | AW178: 401 | AX178: 180 | AY178: 32 | AZ178: 48 | BA178: 163 | BB178: 452 | BC178: 190 | BD178: 884 | BE178: 895 | BF178: 890
A179: Y63 | B179: NORTH EAST AND YORKSHIRE COMMISSIONING REGION | C179: QF7 | D179: South Yorkshire and Bassetlaw STP | E179: RCU | F179: SHEFFIELD CHILDREN'S NHS FOUNDATION TRUST | G179: Acute and Acute & Community Trusts | H179: 275 | I179: 3013 | J179: 6.955555556 | K179: 12 | L179: 41 | M179: 97 | N179: 103 | O179: 22 | P179: 6 | Q179: 23 | R179: 68 | S179: 119 | T179: 59 | U179: 9 | V179: 15 | W179: 61 | X179: 115 | Y179: 75 | Z179: 9 | AA179: 22 | AB179: 37 | AC179: 146 | AD179: 61 | AE179: 7 | AF179: 24 | AG179: 34 | AH179: 146 | AI179: 64 | AJ179: 8 | AK179: 40 | AL179: 59 | AM179: 130 | AN179: 38 | AO179: 9 | AP179: 7 | AQ179: 39 | AR179: 112 | AS179: 108 | AT179: 16 | AU179: 23 | AV179: 56 | AW179: 110 | AX179: 70 | AY179: 10 | AZ179: 5 | BA179: 34 | BB179: 119 | BC179: 107 | BD179: 275 | BE179: 275 | BF179: 275
A180: Y63 | B180: NORTH EAST AND YORKSHIRE COMMISSIONING REGION | C180: QF7 | D180: South Yorkshire and Bassetlaw STP | E180: RFF | F180: BARNSLEY HOSPITAL NHS FOUNDATION TRUST | G180: Acute and Acute & Community Trusts | H180: 61 | I180: 3523 | J180: 6.675774135 | K180: 2 | L180: 11 | M180: 18 | N180: 25 | O180: 5 | P180: 1 | Q180: 6 | R180: 16 | S180: 24 | T180: 14 | U180: 1 | V180: 2 | W180: 15 | X180: 24 | Y180: 19 | Z180: 1 | AA180: 4 | AB180: 8 | AC180: 35 | AD180: 13 | AE180: 1 | AF180: 6 | AG180: 12 | AH180: 30 | AI180: 12 | AJ180: 1 | AK180: 9 | AL180: 19 | AM180: 21 | AN180: 11 | AO180: 1 | AP180: 6 | AQ180: 14 | AR180: 21 | AS180: 19 | AT180: 1 | AU180: 12 | AV180: 17 | AW180: 24 | AX180: 7 | AY180: 1 | AZ180: 8 | BA180: 14 | BB180: 28 | BC180: 10 | BD180: 61 | BE180: 61 | BF180: 61
A181: Y63 | B181: NORTH EAST AND YORKSHIRE COMMISSIONING REGION | C181: QF7 | D181: South Yorkshire and Bassetlaw STP | E181: RFR | F181: THE ROTHERHAM NHS FOUNDATION TRUST | G181: Acute and Acute & Community Trusts | H181: 53 | I181: 3997 | J181: 5.534591195 | K181: 5 | L181: 13 | M181: 14 | N181: 20 | O181: 1 | P181: 1 | Q181: 11 | R181: 10 | S181: 22 | T181: 9 | U181: 4 | V181: 4 | W181: 11 | X181: 19 | Y181: 15 | Z181: 8 | AA181: 9 | AB181: 4 | AC181: 23 | AD181: 9 | AE181: 9 | AF181: 7 | AG181: 6 | AH181: 19 | AI181: 12 | AJ181: 12 | AK181: 8 | AL181: 6 | AM181: 22 | AN181: 5 | AO181: 7 | AP181: 7 | AQ181: 10 | AR181: 18 | AS181: 11 | AT181: 11 | AU181: 5 | AV181: 18 | AW181: 14 | AX181: 5 | AY181: 10 | AZ181: 11 | BA181: 15 | BB181: 14 | BC181: 3 | BD181: 53 | BE181: 53 | BF181: 53
A182: Y63 | B182: NORTH EAST AND YORKSHIRE COMMISSIONING REGION | C182: QWO | D182: West Yorkshire and Harrogate Health & Care Partnership (STP) | E182: RGD | F182: LEEDS AND YORK PARTNERSHIP NHS FOUNDATION TRUST | G182: Mental Health & Learning Disability and Mental Health, Learning Disability & Community Trusts | H182: 18 | I182: 2818 | J182: 6.033950617 | K182: 1 | L182: 5 | M182: 6 | N182: 5 | O182: 1 | P182: 1 | Q182: 3 | R182: 4 | S182: 9 | T182: 1 | U182: 0 | V182: 1 | W182: 6 | X182: 5 | Y182: 6 | Z182: 2 | AA182: 2 | AB182: 0 | AC182: 8 | AD182: 6 | AE182: 1 | AF182: 2 | AG182: 1 | AH182: 11 | AI182: 3 | AJ182: 1 | AK182: 2 | AL182: 7 | AM182: 7 | AN182: 1 | AO182: 1 | AP182: 2 | AQ182: 5 | AR182: 6 | AS182: 4 | AT182: 2 | AU182: 2 | AV182: 8 | AW182: 3 | AX182: 3 | AY182: 3 | AZ182: 2 | BA182: 7 | BB182: 4 | BC182: 2 | BD182: 18 | BE182: 18 | BF182: 18
A183: Y63 | B183: NORTH EAST AND YORKSHIRE COMMISSIONING REGION | C183: QF7 | D183: South Yorkshire and Bassetlaw STP | E183: RHQ | F183: SHEFFIELD TEACHING HOSPITALS NHS FOUNDATION TRUST | G183: Acute and Acute & Community Trusts | H183: 953 | I183: 14915 | J183: 6.378687187 | K183: 81 | L183: 180 | M183: 331 | N183: 303 | O183: 58 | P183: 30 | Q183: 104 | R183: 290 | S183: 353 | T183: 176 | U183: 30 | V183: 50 | W183: 220 | X183: 357 | Y183: 296 | Z183: 49 | AA183: 123 | AB183: 190 | AC183: 451 | AD183: 140 | AE183: 54 | AF183: 111 | AG183: 177 | AH183: 453 | AI183: 158 | AJ183: 68 | AK183: 166 | AL183: 252 | AM183: 363 | AN183: 104 | AO183: 38 | AP183: 66 | AQ183: 155 | AR183: 413 | AS183: 281 | AT183: 75 | AU183: 129 | AV183: 237 | AW183: 386 | AX183: 126 | AY183: 34 | AZ183: 42 | BA183: 203 | BB183: 486 | BC183: 188 | BD183: 953 | BE183: 953 | BF183: 953
A184: Y63 | B184: NORTH EAST AND YORKSHIRE COMMISSIONING REGION | C184: QOQ | D184: Humber, Coast and Vale STP | E184: RJL | F184: NORTHERN LINCOLNSHIRE AND GOOLE NHS FOUNDATION TRUST | G184: Acute and Acute & Community Trusts | H184: 182 | I184: 5527 | J184: 5.549450549 | K184: 15 | L184: 42 | M184: 64 | N184: 47 | O184: 14 | P184: 8 | Q184: 27 | R184: 44 | S184: 61 | T184: 42 | U184: 4 | V184: 17 | W184: 47 | X184: 49 | Y184: 65 | Z184: 16 | AA184: 35 | AB184: 43 | AC184: 58 | AD184: 30 | AE184: 21 | AF184: 32 | AG184: 32 | AH184: 69 | AI184: 28 | AJ184: 22 | AK184: 50 | AL184: 41 | AM184: 45 | AN184: 24 | AO184: 21 | AP184: 31 | AQ184: 42 | AR184: 61 | AS184: 27 | AT184: 30 | AU184: 35 | AV184: 59 | AW184: 43 | AX184: 15 | AY184: 26 | AZ184: 41 | BA184: 57 | BB184: 43 | BC184: 15 | BD184: 182 | BE184: 182 | BF184: 182
A185: Y63 | B185: NORTH EAST AND YORKSHIRE COMMISSIONING REGION | C185: QHM | D185: Cumbria and North East STP | E185: RNN | F185: NORTH CUMBRIA INTEGRATED CARE NHS FOUNDATION TRUST | G185: Acute and Acute & Community Trusts | H185: 504 | I185: 5709 | J185: 5.869157848 | K185: 29 | L185: 94 | M185: 177 | N185: 164 | O185: 40 | P185: 11 | Q185: 59 | R185: 139 | S185: 186 | T185: 109 | U185: 16 | V185: 32 | W185: 96 | X185: 180 | Y185: 180 | Z185: 37 | AA185: 79 | AB185: 99 | AC185: 226 | AD185: 63 | AE185: 39 | AF185: 67 | AG185: 73 | AH185: 241 | AI185: 84 | AJ185: 46 | AK185: 91 | AL185: 117 | AM185: 194 | AN185: 56 | AO185: 30 | AP185: 92 | AQ185: 130 | AR185: 173 | AS185: 79 | AT185: 81 | AU185: 107 | AV185: 140 | AW185: 139 | AX185: 37 | AY185: 72 | AZ185: 98 | BA185: 153 | BB185: 143 | BC185: 38 | BD185: 504 | BE185: 504 | BF185: 504
A186: Y63 | B186: NORTH EAST AND YORKSHIRE COMMISSIONING REGION | C186: QF7 | D186: South Yorkshire and Bassetlaw STP | E186: RP5 | F186: DONCASTER AND BASSETLAW TEACHING HOSPITALS NHS FOUNDATION TRUST | G186: Acute and Acute & Community Trusts | H186: 1431 | I186: 5615 | J186: 7.219126497 | K186: 54 | L186: 192 | M186: 486 | N186: 541 | O186: 172 | P186: 32 | Q186: 91 | R186: 356 | S186: 568 | T186: 384 | U186: 21 | V186: 63 | W186: 325 | X186: 552 | Y186: 475 | Z186: 185 | AA186: 512 | AB186: 796 | AC186: 1900 | AD186: 810 | AE186: 211 | AF186: 450 | AG186: 697 | AH186: 2013 | AI186: 832 | AJ186: 267 | AK186: 594 | AL186: 1029 | AM186: 1652 | AN186: 649 | AO186: 104 | AP186: 270 | AQ186: 578 | AR186: 1969 | AS186: 1240 | AT186: 158 | AU186: 283 | AV186: 626 | AW186: 1063 | AX186: 431 | AY186: 79 | AZ186: 187 | BA186: 608 | BB186: 1264 | BC186: 423 | BD186: 2561 | BE186: 4191 | BF186: 1431
A187: Y63 | B187: NORTH EAST AND YORKSHIRE COMMISSIONING REGION | C187: QHM | D187: Cumbria and North East STP | E187: RR7 | F187: GATESHEAD HEALTH NHS FOUNDATION TRUST | G187: Acute and Acute & Community Trusts | H187: 351 | I187: 4268 | J187: 6.327160494 | K187: 26 | L187: 69 | M187: 122 | N187: 104 | O187: 30 | P187: 13 | Q187: 37 | R187: 100 | S187: 135 | T187: 66 | U187: 10 | V187: 22 | W187: 72 | X187: 119 | Y187: 128 | Z187: 26 | AA187: 49 | AB187: 67 | AC187: 158 | AD187: 51 | AE187: 25 | AF187: 41 | AG187: 59 | AH187: 171 | AI187: 55 | AJ187: 32 | AK187: 65 | AL187: 88 | AM187: 123 | AN187: 43 | AO187: 12 | AP187: 34 | AQ187: 56 | AR187: 164 | AS187: 85 | AT187: 24 | AU187: 43 | AV187: 88 | AW187: 145 | AX187: 51 | AY187: 11 | AZ187: 32 | BA187: 75 | BB187: 176 | BC187: 57 | BD187: 351 | BE187: 351 | BF187: 351
A188: Y63 | B188: NORTH EAST AND YORKSHIRE COMMISSIONING REGION | C188: QWO | D188: West Yorkshire and Harrogate Health & Care Partnership (STP) | E188: RR8 | F188: LEEDS TEACHING HOSPITALS NHS TRUST | G188: Acute and Acute & Community Trusts | H188: 3182 | I188: 17248 | J188: 6.857584329 | K188: 103 | L188: 413 | M188: 1048 | N188: 1295 | O188: 323 | P188: 37 | Q188: 232 | R188: 844 | S188: 1391 | T188: 678 | U188: 45 | V188: 133 | W188: 718 | X188: 1263 | Y188: 1023 | Z188: 101 | AA188: 313 | AB188: 554 | AC188: 1539 | AD188: 675 | AE188: 130 | AF188: 279 | AG188: 541 | AH188: 1576 | AI188: 656 | AJ188: 142 | AK188: 408 | AL188: 843 | AM188: 1331 | AN188: 458 | AO188: 62 | AP188: 166 | AQ188: 423 | AR188: 1462 | AS188: 1069 | AT188: 142 | AU188: 298 | AV188: 720 | AW188: 1445 | AX188: 577 | AY188: 65 | AZ188: 153 | BA188: 576 | BB188: 1668 | BC188: 720
A189: Y63 | B189: NORTH EAST AND YORKSHIRE COMMISSIONING REGION | C189: QHM | D189: Cumbria and North East STP | E189: RTD | F189: THE NEWCASTLE UPON TYNE HOSPITALS NHS FOUNDATION TRUST | G189: Acute and Acute & Community Trusts | H189: 180 | I189: 14299 | J189: 6.285493827 | K189: 19 | L189: 40 | M189: 53 | N189: 57 | O189: 11 | P189: 8 | Q189: 23 | R189: 57 | S189: 60 | T189: 32 | U189: 5 | V189: 22 | W189: 52 | X189: 48 | Y189: 53 | Z189: 3 | AA189: 28 | AB189: 48 | AC189: 69 | AD189: 32 | AE189: 11 | AF189: 35 | AG189: 34 | AH189: 66 | AI189: 34 | AJ189: 12 | AK189: 40 | AL189: 47 | AM189: 58 | AN189: 23 | AO189: 4 | AP189: 12 | AQ189: 29 | AR189: 82 | AS189: 53 | AT189: 17 | AU189: 28 | AV189: 50 | AW189: 56 | AX189: 29 | AY189: 1 | AZ189: 8 | BA189: 30 | BB189: 83 | BC189: 58 | BD189: 180 | BE189: 180 | BF189: 180
A190: Y63 | B190: NORTH EAST AND YORKSHIRE COMMISSIONING REGION | C190: QHM | D190: Cumbria and North East STP | E190: RTF | F190: NORTHUMBRIA HEALTHCARE NHS FOUNDATION TRUST | G190: Acute and Acute & Community Trusts | H190: 4015 | I190: 7033 | J190: 7.182302477 | K190: 112 | L190: 403 | M190: 1263 | N190: 1585 | O190: 652 | P190: 58 | Q190: 223 | R190: 950 | S190: 1630 | T190: 1154 | U190: 65 | V190: 157 | W190: 858 | X190: 1472 | Y190: 1463 | Z190: 116 | AA190: 357 | AB190: 949 | AC190: 1999 | AD190: 594 | AE190: 106 | AF190: 239 | AG190: 648 | AH190: 2303 | AI190: 719 | AJ190: 121 | AK190: 355 | AL190: 981 | AM190: 1920 | AN190: 638 | AO190: 58 | AP190: 90 | AQ190: 447 | AR190: 1951 | AS190: 1469 | AT190: 86 | AU190: 160 | AV190: 616 | AW190: 1971 | AX190: 1182 | AY190: 45 | AZ190: 107 | BA190: 494 | BB190: 2143 | BC190: 1226 | BD190: 4015 | BE190: 4015 | BF190: 4015
A191: Y63 | B191: NORTH EAST AND YORKSHIRE COMMISSIONING REGION | C191: QOQ | D191: Humber, Coast and Vale STP | E191: RV9 | F191: HUMBER TEACHING NHS FOUNDATION TRUST | G191: Mental Health & Learning Disability and Mental Health, Learning Disability & Community Trusts | H191: 602 | I191: 2645 | J191: 6.924112776 | K191: 15 | L191: 74 | M191: 196 | N191: 254 | O191: 71 | P191: 4 | Q191: 40 | R191: 152 | S191: 251 | T191: 155 | U191: 6 | V191: 26 | W191: 127 | X191: 238 | Y191: 205 | Z191: 20 | AA191: 54 | AB191: 91 | AC191: 300 | AD191: 146 | AE191: 22 | AF191: 41 | AG191: 94 | AH191: 296 | AI191: 156 | AJ191: 26 | AK191: 70 | AL191: 136 | AM191: 252 | AN191: 124 | AO191: 12 | AP191: 48 | AQ191: 91 | AR191: 285 | AS191: 175 | AT191: 35 | AU191: 72 | AV191: 132 | AW191: 240 | AX191: 128 | AY191: 21 | AZ191: 51 | BA191: 153 | BB191: 251 | BC191: 134 | BD191: 607 | BE191: 608 | BF191: 602
A192: Y63 | B192: NORTH EAST AND YORKSHIRE COMMISSIONING REGION | C192: QHM | D192: Cumbria and North East STP | E192: RVW | F192: NORTH TEES AND HARTLEPOOL NHS FOUNDATION TRUST | G192: Acute and Acute & Community Trusts | H192: 122 | I192: 4661 | J192: 6.16575592 | K192: 11 | L192: 32 | M192: 33 | N192: 37 | O192: 9 | P192: 5 | Q192: 14 | R192: 31 | S192: 35 | T192: 37 | U192: 6 | V192: 7 | W192: 38 | X192: 36 | Y192: 35 | Z192: 10 | AA192: 14 | AB192: 24 | AC192: 52 | AD192: 22 | AE192: 6 | AF192: 18 | AG192: 17 | AH192: 54 | AI192: 27 | AJ192: 8 | AK192: 24 | AL192: 26 | AM192: 44 | AN192: 20 | AO192: 3 | AP192: 10 | AQ192: 25 | AR192: 55 | AS192: 29 | AT192: 11 | AU192: 25 | AV192: 32 | AW192: 41 | AX192: 13 | AY192: 8 | AZ192: 20 | BA192: 33 | BB192: 48 | BC192: 13 | BD192: 122 | BE192: 122 | BF192: 122
A193: Y63 | B193: NORTH EAST AND YORKSHIRE COMMISSIONING REGION | C193: QWO | D193: West Yorkshire and Harrogate Health & Care Partnership (STP) | E193: RWY | F193: CALDERDALE AND HUDDERSFIELD NHS FOUNDATION TRUST | G193: Acute and Acute & Community Trusts | H193: 256 | I193: 5590 | J193: 6.281467014 | K193: 14 | L193: 49 | M193: 93 | N193: 84 | O193: 16 | P193: 7 | Q193: 25 | R193: 89 | S193: 91 | T193: 44 | U193: 5 | V193: 18 | W193: 50 | X193: 87 | Y193: 96 | Z193: 23 | AA193: 29 | AB193: 48 | AC193: 104 | AD193: 52 | AE193: 21 | AF193: 35 | AG193: 38 | AH193: 113 | AI193: 49 | AJ193: 18 | AK193: 43 | AL193: 58 | AM193: 99 | AN193: 38 | AO193: 18 | AP193: 26 | AQ193: 40 | AR193: 94 | AS193: 78 | AT193: 35 | AU193: 33 | AV193: 58 | AW193: 88 | AX193: 42 | AY193: 20 | AZ193: 32 | BA193: 48 | BB193: 109 | BC193: 47
A194: Y63 | B194: NORTH EAST AND YORKSHIRE COMMISSIONING REGION | C194: QHM | D194: Cumbria and North East STP | E194: RX3 | F194: TEES, ESK AND WEAR VALLEYS NHS FOUNDATION TRUST | G194: Mental Health & Learning Disability and Mental Health, Learning Disability & Community Trusts | H194: 2361 | I194: 6819 | J194: 6.712524679 | K194: 82 | L194: 313 | M194: 813 | N194: 941 | O194: 261 | P194: 31 | Q194: 176 | R194: 607 | S194: 1008 | T194: 568 | U194: 39 | V194: 116 | W194: 488 | X194: 925 | Y194: 825 | Z194: 65 | AA194: 201 | AB194: 457 | AC194: 1190 | AD194: 480 | AE194: 66 | AF194: 207 | AG194: 416 | AH194: 1208 | AI194: 494 | AJ194: 84 | AK194: 274 | AL194: 657 | AM194: 1002 | AN194: 376 | AO194: 39 | AP194: 189 | AQ194: 388 | AR194: 1009 | AS194: 736 | AT194: 136 | AU194: 340 | AV194: 646 | AW194: 849 | AX194: 393 | AY194: 106 | AZ194: 311 | BA194: 672 | BB194: 912 | BC194: 364 | BD194: 2361 | BE194: 2391 | BF194: 2390
A195: Y63 | B195: NORTH EAST AND YORKSHIRE COMMISSIONING REGION | C195: QHM | D195: Cumbria and North East STP | E195: RX4 | F195: CUMBRIA, NORTHUMBERLAND, TYNE AND WEAR NHS FOUNDATION TRUST | G195: Mental Health & Learning Disability and Mental Health, Learning Disability & Community Trusts | H195: 104 | I195: 6670 | J195: 6.308760684 | K195: 9 | L195: 17 | M195: 33 | N195: 39 | O195: 6 | P195: 3 | Q195: 14 | R195: 23 | S195: 40 | T195: 24 | U195: 4 | V195: 11 | W195: 25 | X195: 31 | Y195: 33 | Z195: 6 | AA195: 14 | AB195: 19 | AC195: 43 | AD195: 22 | AE195: 9 | AF195: 11 | AG195: 14 | AH195: 49 | AI195: 21 | AJ195: 8 | AK195: 15 | AL195: 16 | AM195: 49 | AN195: 16 | AO195: 7 | AP195: 7 | AQ195: 14 | AR195: 45 | AS195: 31 | AT195: 15 | AU195: 9 | AV195: 30 | AW195: 35 | AX195: 15 | AY195: 15 | AZ195: 5 | BA195: 27 | BB195: 36 | BC195: 21 | BD195: 104 | BE195: 104 | BF195: 104
A196: Y63 | B196: NORTH EAST AND YORKSHIRE COMMISSIONING REGION | C196: QHM | D196: Cumbria and North East STP | E196: RX6 | F196: NORTH EAST AMBULANCE SERVICE NHS FOUNDATION TRUST | G196: Ambulance Trusts | H196: 293 | I196: 2645 | J196: 5.18486917 | K196: 29 | L196: 78 | M196: 95 | N196: 67 | O196: 24 | P196: 15 | Q196: 39 | R196: 93 | S196: 91 | T196: 55 | U196: 16 | V196: 36 | W196: 103 | X196: 90 | Y196: 48 | Z196: 36 | AA196: 63 | AB196: 61 | AC196: 100 | AD196: 33 | AE196: 49 | AF196: 69 | AG196: 57 | AH196: 94 | AI196: 24 | AJ196: 56 | AK196: 88 | AL196: 69 | AM196: 62 | AN196: 18 | AO196: 35 | AP196: 62 | AQ196: 53 | AR196: 99 | AS196: 44 | AT196: 77 | AU196: 64 | AV196: 82 | AW196: 57 | AX196: 13 | AY196: 14 | AZ196: 38 | BA196: 75 | BB196: 124 | BC196: 42 | BD196: 293 | BE196: 293 | BF196: 293
A197: Y63 | B197: NORTH EAST AND YORKSHIRE COMMISSIONING REGION | C197: QWO | D197: West Yorkshire and Harrogate Health & Care Partnership (STP) | E197: RX8 | F197: YORKSHIRE AMBULANCE SERVICE NHS TRUST | G197: Ambulance Trusts | H197: 747 | I197: 5221 | J197: 5.987546322 | K197: 59 | L197: 134 | M197: 246 | N197: 235 | O197: 81 | P197: 26 | Q197: 83 | R197: 211 | S197: 286 | T197: 141 | U197: 45 | V197: 87 | W197: 242 | X197: 248 | Y197: 126 | Z197: 78 | AA197: 126 | AB197: 146 | AC197: 304 | AD197: 100 | AE197: 90 | AF197: 133 | AG197: 167 | AH197: 267 | AI197: 96 | AJ197: 109 | AK197: 161 | AL197: 195 | AM197: 205 | AN197: 78 | AO197: 41 | AP197: 84 | AQ197: 104 | AR197: 319 | AS197: 206 | AT197: 78 | AU197: 110 | AV197: 188 | AW197: 266 | AX197: 113 | AY197: 31 | AZ197: 51 | BA197: 136 | BB197: 378 | BC197: 159
A198: Y63 | B198: NORTH EAST AND YORKSHIRE COMMISSIONING REGION | C198: QF7 | D198: South Yorkshire and Bassetlaw STP | E198: RXE | F198: ROTHERHAM DONCASTER AND SOUTH HUMBER NHS FOUNDATION TRUST | G198: Mental Health & Learning Disability and Mental Health, Learning Disability & Community Trusts | H198: 56 | I198: 3009 | J198: 5.426587302 | K198: 7 | L198: 13 | M198: 22 | N198: 10 | O198: 4 | P198: 4 | Q198: 11 | R198: 19 | S198: 15 | T198: 7 | U198: 2 | V198: 7 | W198: 13 | X198: 25 | Y198: 9 | Z198: 7 | AA198: 9 | AB198: 14 | AC198: 20 | AD198: 6 | AE198: 5 | AF198: 8 | AG198: 15 | AH198: 20 | AI198: 8 | AJ198: 5 | AK198: 16 | AL198: 13 | AM198: 17 | AN198: 5 | AO198: 4 | AP198: 6 | AQ198: 18 | AR198: 16 | AS198: 12 | AT198: 9 | AU198: 13 | AV198: 16 | AW198: 14 | AX198: 4 | AY198: 4 | AZ198: 9 | BA198: 23 | BB198: 15 | BC198: 5 | BD198: 56 | BE198: 56 | BF198: 56
A199: Y63 | B199: NORTH EAST AND YORKSHIRE COMMISSIONING REGION | C199: QWO | D199: West Yorkshire and Harrogate Health & Care Partnership (STP) | E199: RXF | F199: MID YORKSHIRE HOSPITALS NHS TRUST | G199: Acute and Acute & Community Trusts | H199: 2338 | I199: 7662 | J199: 6.542071384 | K199: 100 | L199: 290 | M199: 834 | N199: 865 | O199: 299 | P199: 38 | Q199: 175 | R199: 611 | S199: 918 | T199: 626 | U199: 43 | V199: 123 | W199: 559 | X199: 884 | Y199: 762 | Z199: 102 | AA199: 264 | AB199: 520 | AC199: 1075 | AD199: 408 | AE199: 124 | AF199: 250 | AG199: 472 | AH199: 1131 | AI199: 396 | AJ199: 157 | AK199: 353 | AL199: 646 | AM199: 904 | AN199: 310 | AO199: 48 | AP199: 182 | AQ199: 401 | AR199: 1071 | AS199: 636 | AT199: 150 | AU199: 287 | AV199: 610 | AW199: 929 | AX199: 362 | AY199: 118 | AZ199: 284 | BA199: 638 | BB199: 982 | BC199: 320
A200: Y63 | B200: NORTH EAST AND YORKSHIRE COMMISSIONING REGION | C200: QWO | D200: West Yorkshire and Harrogate Health & Care Partnership (STP) | E200: RXG | F200: SOUTH WEST YORKSHIRE PARTNERSHIP NHS FOUNDATION TRUST | G200: Mental Health & Learning Disability and Mental Health, Learning Disability & Community Trusts | H200: 817 | I200: 3996 | J200: 7.045834207 | K200: 26 | L200: 67 | M200: 284 | N200: 327 | O200: 115 | P200: 9 | Q200: 35 | R200: 213 | S200: 337 | T200: 223 | U200: 7 | V200: 27 | W200: 200 | X200: 288 | Y200: 297 | Z200: 29 | AA200: 76 | AB200: 142 | AC200: 389 | AD200: 183 | AE200: 31 | AF200: 64 | AG200: 119 | AH200: 418 | AI200: 187 | AJ200: 28 | AK200: 100 | AL200: 191 | AM200: 367 | AN200: 133 | AO200: 17 | AP200: 32 | AQ200: 84 | AR200: 380 | AS200: 306 | AT200: 24 | AU200: 72 | AV200: 168 | AW200: 360 | AX200: 195 | AY200: 15 | AZ200: 43 | BA200: 159 | BB200: 441 | BC200: 161
A201: Y63 | B201: NORTH EAST AND YORKSHIRE COMMISSIONING REGION | C201: QHM | D201: Cumbria and North East STP | E201: RXP | F201: COUNTY DURHAM AND DARLINGTON NHS FOUNDATION TRUST | G201: Acute and Acute & Community Trusts | H201: 1503 | I201: 6751 | J201: 6.178568788 | K201: 130 | L201: 303 | M201: 418 | N201: 524 | O201: 128 | P201: 66 | Q201: 172 | R201: 265 | S201: 734 | T201: 266 | U201: 53 | V201: 121 | W201: 283 | X201: 667 | Y201: 379 | Z201: 90 | AA201: 227 | AB201: 285 | AC201: 672 | AD201: 229 | AE201: 103 | AF201: 216 | AG201: 279 | AH201: 690 | AI201: 215 | AJ201: 127 | AK201: 263 | AL201: 402 | AM201: 553 | AN201: 158 | AO201: 75 | AP201: 163 | AQ201: 269 | AR201: 586 | AS201: 410 | AT201: 141 | AU201: 235 | AV201: 394 | AW201: 523 | AX201: 210 | AY201: 77 | AZ201: 183 | BA201: 404 | BB201: 633 | BC201: 206 | BD201: 1503 | BE201: 1503 | BF201: 1503
A202: Y63 | B202: NORTH EAST AND YORKSHIRE COMMISSIONING REGION | C202: QWO | D202: West Yorkshire and Harrogate Health & Care Partnership (STP) | E202: RY6 | F202: LEEDS COMMUNITY HEALTHCARE NHS TRUST | G202: Community Trusts | H202: 892 | I202: 2710 | J202: 6.889869295 | K202: 37 | L202: 108 | M202: 320 | N202: 356 | O202: 78 | P202: 13 | Q202: 58 | R202: 254 | S202: 367 | T202: 200 | U202: 9 | V202: 44 | W202: 159 | X202: 322 | Y202: 358 | Z202: 31 | AA202: 79 | AB202: 152 | AC202: 446 | AD202: 197 | AE202: 32 | AF202: 77 | AG202: 159 | AH202: 418 | AI202: 215 | AJ202: 47 | AK202: 100 | AL202: 238 | AM202: 354 | AN202: 161 | AO202: 20 | AP202: 50 | AQ202: 117 | AR202: 410 | AS202: 309 | AT202: 47 | AU202: 101 | AV202: 205 | AW202: 351 | AX202: 200 | AY202: 32 | AZ202: 81 | BA202: 167 | BB202: 397 | BC202: 229
A203: Y63 | B203: NORTH EAST AND YORKSHIRE COMMISSIONING REGION | C203: QWO | D203: West Yorkshire and Harrogate Health & Care Partnership (STP) | E203: TAD | F203: BRADFORD DISTRICT CARE NHS FOUNDATION TRUST | G203: Mental Health & Learning Disability and Mental Health, Learning Disability & Community Trusts | H203: 489 | I203: 2811 | J203: 7.062072487 | K203: 18 | L203: 42 | M203: 167 | N203: 191 | O203: 76 | P203: 10 | Q203: 29 | R203: 129 | S203: 189 | T203: 137 | U203: 13 | V203: 17 | W203: 105 | X203: 187 | Y203: 172 | Z203: 19 | AA203: 48 | AB203: 81 | AC203: 196 | AD203: 148 | AE203: 18 | AF203: 40 | AG203: 78 | AH203: 201 | AI203: 157 | AJ203: 28 | AK203: 55 | AL203: 100 | AM203: 197 | AN203: 114 | AO203: 8 | AP203: 23 | AQ203: 45 | AR203: 240 | AS203: 176 | AT203: 21 | AU203: 46 | AV203: 99 | AW203: 209 | AX203: 115 | AY203: 13 | AZ203: 33 | BA203: 91 | BB203: 242 | BC203: 110
A204: Y63 | B204: NORTH EAST AND YORKSHIRE COMMISSIONING REGION | C204: QF7 | D204: South Yorkshire and Bassetlaw STP | E204: TAH | F204: SHEFFIELD HEALTH & SOCIAL CARE NHS FOUNDATION TRUST | G204: Mental Health & Learning Disability and Mental Health, Learning Disability & Community Trusts | H204: 457 | I204: 2196 | J204: 6.051543885 | K204: 20 | L204: 99 | M204: 174 | N204: 125 | O204: 39 | P204: 8 | Q204: 57 | R204: 151 | S204: 154 | T204: 87 | U204: 7 | V204: 26 | W204: 125 | X204: 164 | Y204: 135 | Z204: 23 | AA204: 55 | AB204: 78 | AC204: 228 | AD204: 73 | AE204: 17 | AF204: 49 | AG204: 76 | AH204: 241 | AI204: 74 | AJ204: 24 | AK204: 76 | AL204: 112 | AM204: 188 | AN204: 57 | AO204: 19 | AP204: 50 | AQ204: 104 | AR204: 170 | AS204: 114 | AT204: 69 | AU204: 106 | AV204: 124 | AW204: 128 | AX204: 30 | AY204: 49 | AZ204: 93 | BA204: 147 | BB204: 139 | BC204: 29 | BD204: 457 | BE204: 457 | BF204: 457

Sheet Advocacy
O5: Avg Advocacy: | P5: =AVERAGE(K6,P6,U6) -> 6.559348202
K6: =IF($H$10=0,"-",((K$10*0)+(L$10*2.5)+(M$10*5)+(N$10*7.5)+(O$10*10))/$H$10) -> 7.095632542 | P6: =IF($H$10=0,"-",((P$10*0)+(Q$10*2.5)+(R$10*5)+(S$10*7.5)+(T$10*10))/$H$10) -> 6.067018302 | U6: =IF($H$10=0,"-",((U$10*0)+(V$10*2.5)+(W$10*5)+(X$10*7.5)+(Y$10*10))/$H$10) -> 6.515393762
A7: Region Code | B7: Region Name | C7: ICB Code | D7: ICB Name | E7: Org Code | F7: Org Name | G7: Care Setting | H7: Total Responses (Average across Theme) | I7: HSCIC Workforce Headcount | J7: Advocacy Score | K7: Weighted Breakdown of Responses - Advocacy Q1 | P7: Weighted Breakdown of Responses - Advocacy Q2 | U7: Weighted Breakdown of Responses - Advocacy Q3
K8: Strongly Disagree | L8: Disagree | M8: Neither Disagree nor Agree | N8: Agree | O8: Strongly Agree | P8: Strongly Disagree | Q8: Disagree | R8: Neither Disagree nor Agree | S8: Agree | T8: Strongly Agree | U8: Strongly Disagree | V8: Disagree | W8: Neither Disagree nor Agree | X8: Agree | Y8: Strongly Agree
F9: England | H9: 124466 | I9: 1128001 | J9: 6.559348202 | K9: 6194 | L9: 11672 | M9: 19419 | N9: 52996 | O9: 35942 | P9: 9791 | Q9: 17178 | R9: 29465 | S9: 46557 | T9: 21569 | U9: 6967 | V9: 12884 | W9: 26852 | X9: 53894 | Y9: 24027
F10: Selection (excluding suppressed data) | H10: =SUBTOTAL(9,H11:H1002) -> 124466 | I10: =SUBTOTAL(9,I11:I1002) -> 1128001 | J10: =IF(H10=0,"-",AVERAGE(((K10*0)+(L10*2.5)+(M10*5)+(N10*7.5)+(O10*10)),((P10*0)+(Q10*2.5)+(R10*5)+(S10*7.5)+(T10*10)),((U10*0)+(V10*2.5)+(W10*5)+(X10*7.5)+(Y10*10)))/H10) -> 6.559348202 | K10: =SUBTOTAL(9,K11:K1002) -> 6194 | L10: =SUBTOTAL(9,L11:L1002) -> 11672 | M10: 19419 | N10: 52996 | O10: 35942 | P10: 9791 | Q10: 17178 | R10: 29465 | S10: 46557 | T10: 21569 | U10: 6967 | V10: 12884 | W10: 26852 | X10: 53894 | Y10: 24027
A11: Y56 | B11: LONDON COMMISSIONING REGION | C11: QMF | D11: East London Health & Care Partnership (STP) | E11: R1H | F11: BARTS HEALTH NHS TRUST | G11: Acute and Acute & Community Trusts | H11: 376 | I11: 15760 | J11: 6.33643617 | K11: 18 | L11: 22 | M11: 85 | N11: 160 | O11: 91 | P11: 46 | Q11: 42 | R11: 101 | S11: 128 | T11: 59 | U11: 19 | V11: 37 | W11: 103 | X11: 152 | Y11: 65
A12: Y56 | B12: LONDON COMMISSIONING REGION | C12: QMJ | D12: North London Partners in Health & Care (STP) | E12: RAL | F12: ROYAL FREE LONDON NHS FOUNDATION TRUST | G12: Acute and Acute & Community Trusts | H12: 110 | I12: 9812 | J12: 6.21969697 | K12: 4 | L12: 10 | M12: 24 | N12: 45 | O12: 27 | P12: 16 | Q12: 20 | R12: 31 | S12: 27 | T12: 16 | U12: 5 | V12: 11 | W12: 21 | X12: 52 | Y12: 21
A13: Y56 | B13: LONDON COMMISSIONING REGION | C13: QRV | D13: North West London Health & Care Partnership (STP) | E13: RAS | F13: THE HILLINGDON HOSPITALS NHS FOUNDATION TRUST | G13: Acute and Acute & Community Trusts | H13: 21 | I13: 3164 | J13: 5.396825397 | K13: 3 | L13: 0 | M13: 6 | N13: 8 | O13: 4 | P13: 4 | Q13: 2 | R13: 10 | S13: 2 | T13: 3 | U13: 3 | V13: 3 | W13: 4 | X13: 11 | Y13: 0
A14: Y56 | B14: LONDON COMMISSIONING REGION | C14: QMF | D14: East London Health & Care Partnership (STP) | E14: RAT | F14: NORTH EAST LONDON NHS FOUNDATION TRUST | G14: Mental Health & Learning Disability and Mental Health, Learning Disability & Community Trusts | H14: 1020 | I14: 5887 | J14: 6.763071895 | K14: 38 | L14: 68 | M14: 147 | N14: 458 | O14: 309 | P14: 53 | Q14: 88 | R14: 279 | S14: 395 | T14: 205 | U14: 47 | V14: 71 | W14: 287 | X14: 450 | Y14: 165
A15: Y56 | B15: LONDON COMMISSIONING REGION | C15: QWE | D15: South West London Health & Care Partnership (STP) | E15: RAX | F15: KINGSTON HOSPITAL NHS FOUNDATION TRUST | G15: Acute and Acute & Community Trusts | H15: 56 | I15: 3244 | J15: 6.62202381 | K15: 4 | L15: 2 | M15: 10 | N15: 20 | O15: 20 | P15: 9 | Q15: 5 | R15: 13 | S15: 19 | T15: 10 | U15: 3 | V15: 4 | W15: 10 | X15: 25 | Y15: 14
A16: Y56 | B16: LONDON COMMISSIONING REGION | C16: QMF | D16: East London Health & Care Partnership (STP) | E16: RF4 | F16: BARKING, HAVERING AND REDBRIDGE UNIVERSITY HOSPITALS NHS TRUST | G16: Acute and Acute & Community Trusts | H16: 420 | I16: 6783 | J16: 5.71031746 | K16: 23 | L16: 42 | M16: 92 | N16: 167 | O16: 96 | P16: 64 | Q16: 69 | R16: 135 | S16: 114 | T16: 38 | U16: 37 | V16: 56 | W16: 142 | X16: 146 | Y16: 39
A17: Y56 | B17: LONDON COMMISSIONING REGION | C17: QKK | D17: Our Healthier South East London STP | E17: RJ1 | F17: GUY'S AND ST THOMAS' NHS FOUNDATION TRUST | G17: Acute and Acute & Community Trusts | H17: 268 | I17: 20397 | J17: 7.60261194 | K17: 9 | L17: 4 | M17: 28 | N17: 115 | O17: 112 | P17: 18 | Q17: 23 | R17: 39 | S17: 103 | T17: 85 | U17: 12 | V17: 4 | W17: 24 | X17: 122 | Y17: 106
A18: Y56 | B18: LONDON COMMISSIONING REGION | C18: QKK | D18: Our Healthier South East London STP | E18: RJ2 | F18: LEWISHAM AND GREENWICH NHS TRUST | G18: Acute and Acute & Community Trusts | H18: 470 | I18: 6157 | J18: 5.829787234 | K18: 26 | L18: 41 | M18: 94 | N18: 191 | O18: 118 | P18: 71 | Q18: 74 | R18: 134 | S18: 149 | T18: 42 | U18: 41 | V18: 66 | W18: 138 | X18: 185 | Y18: 40
A19: Y56 | B19: LONDON COMMISSIONING REGION | C19: QWE | D19: South West London Health & Care Partnership (STP) | E19: RJ7 | F19: ST GEORGE'S UNIVERSITY HOSPITALS NHS FOUNDATION TRUST | G19: Acute and Acute & Community Trusts | H19: 312 | I19: 8764 | J19: 6.332799145 | K19: 8 | L19: 38 | M19: 58 | N19: 132 | O19: 76 | P19: 25 | Q19: 59 | R19: 81 | S19: 107 | T19: 40 | U19: 15 | V19: 32 | W19: 70 | X19: 137 | Y19: 58
A20: Y56 | B20: LONDON COMMISSIONING REGION | C20: QKK | D20: Our Healthier South East London STP | E20: RJZ | F20: KING'S COLLEGE HOSPITAL NHS FOUNDATION TRUST | G20: Acute and Acute & Community Trusts | H20: 100 | I20: 12410 | J20: 6.916666667 | K20: 3 | L20: 5 | M20: 19 | N20: 44 | O20: 29 | P20: 6 | Q20: 8 | R20: 25 | S20: 40 | T20: 21 | U20: 3 | V20: 6 | W20: 24 | X20: 45 | Y20: 22
A21: Y56 | B21: LONDON COMMISSIONING REGION | C21: QMJ | D21: North London Partners in Health & Care (STP) | E21: RKE | F21: WHITTINGTON HEALTH NHS TRUST | G21: Acute and Acute & Community Trusts | H21: 286 | I21: 4003 | J21: 6.290792541 | K21: 18 | L21: 21 | M21: 53 | N21: 110 | O21: 84 | P21: 36 | Q21: 42 | R21: 69 | S21: 88 | T21: 51 | U21: 21 | V21: 29 | W21: 74 | X21: 107 | Y21: 55
A22: Y56 | B22: LONDON COMMISSIONING REGION | C22: QRV | D22: North West London Health & Care Partnership (STP) | E22: RKL | F22: WEST LONDON NHS TRUST | G22: Mental Health & Learning Disability and Mental Health, Learning Disability & Community Trusts | H22: 30 | I22: 3793 | J22: 5.222222222 | K22: 3 | L22: 2 | M22: 6 | N22: 15 | O22: 4 | P22: 5 | Q22: 7 | R22: 7 | S22: 7 | T22: 4 | U22: 6 | V22: 5 | W22: 9 | X22: 8 | Y22: 2
A23: Y56 | B23: LONDON COMMISSIONING REGION | C23: QMJ | D23: North London Partners in Health & Care (STP) | E23: RP4 | F23: GREAT ORMOND STREET HOSPITAL FOR CHILDREN NHS FOUNDATION TRUST | G23: Acute Specialist Trusts | H23: 130 | I23: 5112 | J23: 7.538461538 | K23: 1 | L23: 9 | M23: 14 | N23: 59 | O23: 47 | P23: 6 | Q23: 17 | R23: 28 | S23: 50 | T23: 30 | U23: 1 | V23: 3 | W23: 11 | X23: 58 | Y23: 58
A24: Y56 | B24: LONDON COMMISSIONING REGION | C24: QMJ | D24: North London Partners in Health & Care (STP) | E24: RP6 | F24: MOORFIELDS EYE HOSPITAL NHS FOUNDATION TRUST | G24: Acute Specialist Trusts | H24: 14 | I24: 2082 | J24: 6.488095238 | K24: 0 | L24: 1 | M24: 4 | N24: 5 | O24: 4 | P24: 3 | Q24: 1 | R24: 5 | S24: 4 | T24: 1 | U24: 0 | V24: 1 | W24: 3 | X24: 5 | Y24: 5
A25: Y56 | B25: LONDON COMMISSIONING REGION | C25: QKK | D25: Our Healthier South East London STP | E25: RPG | F25: OXLEAS NHS FOUNDATION TRUST | G25: Mental Health & Learning Disability and Mental Health, Learning Disability & Community Trusts | H25: 359 | I25: 3475 | J25: 6.4090065 | K25: 15 | L25: 24 | M25: 71 | N25: 155 | O25: 94 | P25: 22 | Q25: 49 | R25: 101 | S25: 127 | T25: 60 | U25: 22 | V25: 32 | W25: 117 | X25: 136 | Y25: 52
A26: Y56 | B26: LONDON COMMISSIONING REGION | C26: QRV | D26: North West London Health & Care Partnership (STP) | E26: RQM | F26: CHELSEA AND WESTMINSTER HOSPITAL NHS FOUNDATION TRUST | G26: Acute and Acute & Community Trusts | H26: 18 | I26: 5899 | J26: 6.759259259 | K26: 2 | L26: 1 | M26: 0 | N26: 10 | O26: 5 | P26: 3 | Q26: 0 | R26: 4 | S26: 6 | T26: 5 | U26: 2 | V26: 1 | W26: 1 | X26: 10 | Y26: 4
A27: Y56 | B27: LONDON COMMISSIONING REGION | C27: QMF | D27: East London Health & Care Partnership (STP) | E27: RQX | F27: HOMERTON UNIVERSITY HOSPITAL NHS FOUNDATION TRUST | G27: Acute and Acute & Community Trusts | H27: 878 | I27: 3550 | J27: 7.399392559 | K27: 16 | L27: 36 | M27: 83 | N27: 398 | O27: 346 | P27: 48 | Q27: 70 | R27: 173 | S27: 363 | T27: 224 | U27: 22 | V27: 34 | W27: 146 | X27: 423 | Y27: 255
A28: Y56 | B28: LONDON COMMISSIONING REGION | C28: QWE | D28: South West London Health & Care Partnership (STP) | E28: RQY | F28: SOUTH WEST LONDON AND ST GEORGE'S MENTAL HEALTH NHS TRUST | G28: Mental Health & Learning Disability and Mental Health, Learning Disability & Community Trusts | H28: 50 | I28: 2320 | J28: 5.883333333 | K28: 4 | L28: 5 | M28: 11 | N28: 16 | O28: 14 | P28: 5 | Q28: 8 | R28: 19 | S28: 11 | T28: 7 | U28: 4 | V28: 3 | W28: 24 | X28: 12 | Y28: 7
A29: Y56 | B29: LONDON COMMISSIONING REGION | C29: QMJ | D29: North London Partners in Health & Care (STP) | E29: RRP | F29: BARNET, ENFIELD AND HARINGEY MENTAL HEALTH NHS TRUST | G29: Mental Health & Learning Disability and Mental Health, Learning Disability & Community Trusts | H29: 218 | I29: 3066 | J29: 5.863914373 | K29: 18 | L29: 20 | M29: 45 | N29: 73 | O29: 62 | P29: 29 | Q29: 36 | R29: 48 | S29: 78 | T29: 27 | U29: 30 | V29: 21 | W29: 66 | X29: 74 | Y29: 27
A30: Y56 | B30: LONDON COMMISSIONING REGION | C30: QKK | D30: Our Healthier South East London STP | E30: RRU | F30: LONDON AMBULANCE SERVICE NHS TRUST | G30: Ambulance Trusts | H30: 41 | I30: 6227 | J30: 6.117886179 | K30: 6 | L30: 3 | M30: 6 | N30: 10 | O30: 16 | P30: 9 | Q30: 7 | R30: 9 | S30: 6 | T30: 10 | U30: 4 | V30: 5 | W30: 5 | X30: 14 | Y30: 13
A31: Y56 | B31: LONDON COMMISSIONING REGION | C31: QMJ | D31: North London Partners in Health & Care (STP) | E31: RRV | F31: UNIVERSITY COLLEGE LONDON HOSPITALS NHS FOUNDATION TRUST | G31: Acute and Acute & Community Trusts | H31: 663 | I31: 9370 | J31: 7.357968829 | K31: 19 | L31: 33 | M31: 82 | N31: 298 | O31: 231 | P31: 48 | Q31: 57 | R31: 130 | S31: 245 | T31: 183 | U31: 17 | V31: 23 | W31: 84 | X31: 292 | Y31: 247
A32: Y56 | B32: LONDON COMMISSIONING REGION | C32: QMJ | D32: North London Partners in Health & Care (STP) | E32: RV3 | F32: CENTRAL AND NORTH WEST LONDON NHS FOUNDATION TRUST | G32: Mental Health & Learning Disability and Mental Health, Learning Disability & Community Trusts | H32: 37 | I32: 6889 | J32: 5.675675676 | K32: 4 | L32: 6 | M32: 2 | N32: 14 | O32: 11 | P32: 5 | Q32: 6 | R32: 10 | S32: 11 | T32: 5 | U32: 1 | V32: 11 | W32: 11 | X32: 12 | Y32: 2
A33: Y56 | B33: LONDON COMMISSIONING REGION | C33: QKK | D33: Our Healthier South East London STP | E33: RV5 | F33: SOUTH LONDON AND MAUDSLEY NHS FOUNDATION TRUST | G33: Mental Health & Learning Disability and Mental Health, Learning Disability & Community Trusts | H33: 111 | I33: 5026 | J33: 5.915915916 | K33: 4 | L33: 8 | M33: 24 | N33: 54 | O33: 21 | P33: 14 | Q33: 23 | R33: 29 | S33: 32 | T33: 13 | U33: 6 | V33: 16 | W33: 41 | X33: 33 | Y33: 15
A34: Y56 | B34: LONDON COMMISSIONING REGION | C34: QWE | D34: South West London Health & Care Partnership (STP) | E34: RVR | F34: EPSOM AND ST HELIER UNIVERSITY HOSPITALS NHS TRUST | G34: Acute and Acute & Community Trusts | H34: 204 | I34: 6045 | J34: 5.755718954 | K34: 10 | L34: 21 | M34: 50 | N34: 82 | O34: 41 | P34: 28 | Q34: 33 | R34: 64 | S34: 63 | T34: 16 | U34: 18 | V34: 28 | W34: 58 | X34: 80 | Y34: 20
A35: Y56 | B35: LONDON COMMISSIONING REGION | C35: QMF | D35: East London Health & Care Partnership (STP) | E35: RWK | F35: EAST LONDON NHS FOUNDATION TRUST | G35: Mental Health & Learning Disability and Mental Health, Learning Disability & Community Trusts | H35: 1418 | I35: 5851 | J35: 7.411259991 | K35: 18 | L35: 56 | M35: 148 | N35: 595 | O35: 606 | P35: 45 | Q35: 101 | R35: 265 | S35: 582 | T35: 425 | U35: 42 | V35: 104 | W35: 305 | X35: 613 | Y35: 355
A36: Y56 | B36: LONDON COMMISSIONING REGION | C36: QWE | D36: South West London Health & Care Partnership (STP) | E36: RY9 | F36: HOUNSLOW AND RICHMOND COMMUNITY HEALTHCARE NHS TRUST | G36: Community Trusts | H36: 180 | I36: 1045 | J36: 7.143518519 | K36: 5 | L36: 8 | M36: 21 | N36: 95 | O36: 51 | P36: 6 | Q36: 15 | R36: 50 | S36: 74 | T36: 35 | U36: 3 | V36: 4 | W36: 38 | X36: 93 | Y36: 42
A37: Y56 | B37: LONDON COMMISSIONING REGION | C37: QRV | D37: North West London Health & Care Partnership (STP) | E37: RYJ | F37: IMPERIAL COLLEGE HEALTHCARE NHS TRUST | G37: Acute and Acute & Community Trusts | H37: 80 | I37: 12149 | J37: 6.520833333 | K37: 4 | L37: 7 | M37: 11 | N37: 34 | O37: 24 | P37: 8 | Q37: 9 | R37: 22 | S37: 30 | T37: 11 | U37: 4 | V37: 6 | W37: 19 | X37: 36 | Y37: 15
A38: Y56 | B38: LONDON COMMISSIONING REGION | C38: QRV | D38: North West London Health & Care Partnership (STP) | E38: RYX | F38: CENTRAL LONDON COMMUNITY HEALTHCARE NHS TRUST | G38: Community Trusts | H38: 154 | I38: 4006 | J38: 6.130952381 | K38: 12 | L38: 15 | M38: 26 | N38: 62 | O38: 39 | P38: 27 | Q38: 14 | R38: 42 | S38: 45 | T38: 26 | U38: 10 | V38: 13 | W38: 43 | X38: 64 | Y38: 24
A39: Y58 | B39: SOUTH WEST COMMISSIONING REGION | C39: QVV | D39: Dorset STP | E39: R0D | F39: UNIVERSITY HOSPITALS DORSET NHS FOUNDATION TRUST | G39: Acute and Acute & Community Trusts | H39: 172 | I39: 8004 | J39: 6.124031008 | K39: 7 | L39: 14 | M39: 36 | N39: 79 | O39: 36 | P39: 19 | Q39: 26 | R39: 56 | S39: 52 | T39: 19 | U39: 8 | V39: 21 | W39: 44 | X39: 78 | Y39: 21
A40: Y58 | B40: SOUTH WEST COMMISSIONING REGION | C40: QSL | D40: Somerset STP | E40: RA4 | F40: YEOVIL DISTRICT HOSPITAL NHS FOUNDATION TRUST | G40: Acute and Acute & Community Trusts | H40: 503 | I40: 2315 | J40: 7.072564612 | K40: 12 | L40: 22 | M40: 73 | N40: 219 | O40: 177 | P40: 21 | Q40: 40 | R40: 129 | S40: 219 | T40: 94 | U40: 14 | V40: 33 | W40: 104 | X40: 244 | Y40: 108
A41: Y58 | B41: SOUTH WEST COMMISSIONING REGION | C41: QUY | D41: Bristol, North Somerset and South Gloucestershire STP | E41: RA7 | F41: UNIVERSITY HOSPITALS BRISTOL AND WESTON NHS FOUNDATION TRUST | G41: Acute and Acute & Community Trusts | H41: 2605 | I41: 10096 | J41: 7.253039028 | K41: 38 | L41: 103 | M41: 331 | N41: 1270 | O41: 863 | P41: 97 | Q41: 253 | R41: 569 | S41: 1157 | T41: 529 | U41: 43 | V41: 110 | W41: 455 | X41: 1340 | Y41: 657
A42: Y58 | B42: SOUTH WEST COMMISSIONING REGION | C42: QJK | D42: Devon STP | E42: RA9 | F42: TORBAY AND SOUTH DEVON NHS FOUNDATION TRUST | G42: Acute and Acute & Community Trusts | H42: 149 | I42: 5683 | J42: 5.447427293 | K42: 6 | L42: 23 | M42: 35 | N42: 64 | O42: 21 | P42: 23 | Q42: 27 | R42: 47 | S42: 50 | T42: 2 | U42: 11 | V42: 29 | W42: 40 | X42: 59 | Y42: 10
A43: Y58 | B43: SOUTH WEST COMMISSIONING REGION | C43: QVV | D43: Dorset STP | E43: RBD | F43: DORSET COUNTY HOSPITAL NHS FOUNDATION TRUST | G43: Acute and Acute & Community Trusts | H43: 464 | I43: 2765 | J43: 6.855244253 | K43: 14 | L43: 26 | M43: 74 | N43: 234 | O43: 116 | P43: 39 | Q43: 41 | R43: 110 | S43: 187 | T43: 87 | U43: 16 | V43: 22 | W43: 94 | X43: 231 | Y43: 101
A44: Y58 | B44: SOUTH WEST COMMISSIONING REGION | C44: QJK | D44: Devon STP | E44: RBZ | F44: NORTHERN DEVON HEALTHCARE NHS TRUST | G44: Acute and Acute & Community Trusts | H44: 531 | I44: 2963 | J44: 7.084118016 | K44: 6 | L44: 35 | M44: 72 | N44: 271 | O44: 147 | P44: 21 | Q44: 52 | R44: 107 | S44: 253 | T44: 98 | U44: 7 | V44: 33 | W44: 105 | X44: 274 | Y44: 113
A45: Y58 | B45: SOUTH WEST COMMISSIONING REGION | C45: QOX | D45: Bath and North East Somerset, Swindon and Wiltshire STP | E45: RD1 | F45: ROYAL UNITED HOSPITALS BATH NHS FOUNDATION TRUST | G45: Acute and Acute & Community Trusts | H45: 256 | I45: 5074 | J45: 7.122395833 | K45: 2 | L45: 8 | M45: 55 | N45: 128 | O45: 63 | P45: 7 | Q45: 16 | R45: 59 | S45: 141 | T45: 33 | U45: 1 | V45: 9 | W45: 51 | X45: 146 | Y45: 49
A46: Y58 | B46: SOUTH WEST COMMISSIONING REGION | C46: QVV | D46: Dorset STP | E46: RDY | F46: DORSET HEALTHCARE UNIVERSITY NHS FOUNDATION TRUST | G46: Mental Health & Learning Disability and Mental Health, Learning Disability & Community Trusts | H46: 1148 | I46: 5189 | J46: 6.930168409 | K46: 57 | L46: 72 | M46: 173 | N46: 525 | O46: 321 | P46: 61 | Q46: 109 | R46: 244 | S46: 503 | T46: 231 | U46: 23 | V46: 77 | W46: 225 | X46: 579 | Y46: 244
A47: Y58 | B47: SOUTH WEST COMMISSIONING REGION | C47: QT6 | D47: Cornwall and the Isles of Scilly Health & Social Care Partnership (STP) | E47: REF | F47: ROYAL CORNWALL HOSPITALS NHS TRUST | G47: Acute and Acute & Community Trusts | H47: 682 | I47: 5957 | J47: 6.427174976 | K47: 43 | L47: 61 | M47: 142 | N47: 237 | O47: 199 | P47: 58 | Q47: 98 | R47: 181 | S47: 244 | T47: 108 | U47: 28 | V47: 60 | W47: 197 | X47: 282 | Y47: 121
A48: Y58 | B48: SOUTH WEST COMMISSIONING REGION | C48: QSL | D48: Somerset STP | E48: RH5 | F48: SOMERSET NHS FOUNDATION TRUST | G48: Acute and Acute & Community Trusts | H48: 946 | I48: 8202 | J48: 7.036645525 | K48: 24 | L48: 56 | M48: 147 | N48: 440 | O48: 279 | P48: 47 | Q48: 90 | R48: 235 | S48: 361 | T48: 213 | U48: 29 | V48: 58 | W48: 163 | X48: 461 | Y48: 235
A49: Y58 | B49: SOUTH WEST COMMISSIONING REGION | C49: QJK | D49: Devon STP | E49: RH8 | F49: ROYAL DEVON AND EXETER NHS FOUNDATION TRUST | G49: Acute and Acute & Community Trusts | H49: 1181 | I49: 7581 | J49: 7.178944397 | K49: 13 | L49: 69 | M49: 163 | N49: 589 | O49: 348 | P49: 39 | Q49: 120 | R49: 276 | S49: 543 | T49: 203 | U49: 13 | V49: 49 | W49: 191 | X49: 636 | Y49: 292
A50: Y58 | B50: SOUTH WEST COMMISSIONING REGION | C50: QT6 | D50: Cornwall and the Isles of Scilly Health & Social Care Partnership (STP) | E50: RJ8 | F50: CORNWALL PARTNERSHIP NHS FOUNDATION TRUST | G50: Mental Health & Learning Disability and Mental Health, Learning Disability & Community Trusts | H50: 11 | I50: 3370 | J50: 4.924242424 | K50: 0 | L50: 2 | M50: 6 | N50: 2 | O50: 1 | P50: 0 | Q50: 4 | R50: 4 | S50: 3 | T50: 0 | U50: 0 | V50: 5 | W50: 3 | X50: 3 | Y50: 0
A51: Y58 | B51: SOUTH WEST COMMISSIONING REGION | C51: QJK | D51: Devon STP | E51: RK9 | F51: UNIVERSITY HOSPITALS PLYMOUTH NHS TRUST | G51: Acute and Acute & Community Trusts | H51: 167 | I51: 8017 | J51: 6.691616766 | K51: 4 | L51: 19 | M51: 20 | N51: 74 | O51: 50 | P51: 15 | Q51: 23 | R51: 36 | S51: 72 | T51: 24 | U51: 5 | V51: 20 | W51: 34 | X51: 79 | Y51: 32
A52: Y58 | B52: SOUTH WEST COMMISSIONING REGION | C52: QOX | D52: Bath and North East Somerset, Swindon and Wiltshire STP | E52: RN3 | F52: GREAT WESTERN HOSPITALS NHS FOUNDATION TRUST | G52: Acute and Acute & Community Trusts | H52: 1663 | I52: 4570 | J52: 6.76438164 | K52: 21 | L52: 121 | M52: 245 | N52: 787 | O52: 489 | P52: 92 | Q52: 192 | R52: 441 | S52: 700 | T52: 246 | U52: 41 | V52: 159 | W52: 407 | X52: 800 | Y52: 260
A53: Y58 | B53: SOUTH WEST COMMISSIONING REGION | C53: QOX | D53: Bath and North East Somerset, Swindon and Wiltshire STP | E53: RNZ | F53: SALISBURY NHS FOUNDATION TRUST | G53: Acute and Acute & Community Trusts | H53: 99 | I53: 3371 | J53: 6.346801347 | K53: 2 | L53: 6 | M53: 24 | N53: 46 | O53: 21 | P53: 9 | Q53: 17 | R53: 29 | S53: 32 | T53: 12 | U53: 4 | V53: 8 | W53: 24 | X53: 49 | Y53: 14
A54: Y58 | B54: SOUTH WEST COMMISSIONING REGION | C54: QR1 | D54: Gloucestershire STP | E54: RTE | F54: GLOUCESTERSHIRE HOSPITALS NHS FOUNDATION TRUST | G54: Acute and Acute & Community Trusts | H54: 99 | I54: 7155 | J54: 6.195286195 | K54: 4 | L54: 9 | M54: 19 | N54: 44 | O54: 23 | P54: 8 | Q54: 17 | R54: 28 | S54: 35 | T54: 12 | U54: 7 | V54: 12 | W54: 27 | X54: 43 | Y54: 11
A55: Y58 | B55: SOUTH WEST COMMISSIONING REGION | C55: QR1 | D55: Gloucestershire STP | E55: RTQ | F55: GLOUCESTERSHIRE HEALTH AND CARE NHS FOUNDATION TRUST | G55: Mental Health & Learning Disability and Mental Health, Learning Disability & Community Trusts | H55: 171 | I55: 3774 | J55: 6.890838207 | K55: 3 | L55: 9 | M55: 30 | N55: 76 | O55: 53 | P55: 13 | Q55: 21 | R55: 39 | S55: 62 | T55: 36 | U55: 4 | V55: 13 | W55: 41 | X55: 71 | Y55: 42
A56: Y58 | B56: SOUTH WEST COMMISSIONING REGION | C56: QUY | D56: Bristol, North Somerset and South Gloucestershire STP | E56: RVJ | F56: NORTH BRISTOL NHS TRUST | G56: Acute and Acute & Community Trusts | H56: 176 | I56: 8058 | J56: 6.747159091 | K56: 13 | L56: 53 | M56: 8 | N56: 23 | O56: 79 | P56: 20 | Q56: 27 | R56: 14 | S56: 40 | T56: 75 | U56: 6 | V56: 46 | W56: 7 | X56: 32 | Y56: 85
A57: Y58 | B57: SOUTH WEST COMMISSIONING REGION | C57: QJK | D57: Devon STP | E57: RWV | F57: DEVON PARTNERSHIP NHS TRUST | G57: Mental Health & Learning Disability and Mental Health, Learning Disability & Community Trusts | H57: 151 | I57: 3068 | J57: 6.495584989 | K57: 5 | L57: 9 | M57: 24 | N57: 85 | O57: 28 | P57: 11 | Q57: 19 | R57: 28 | S57: 69 | T57: 24 | U57: 7 | V57: 10 | W57: 57 | X57: 57 | Y57: 20
A58: Y58 | B58: SOUTH WEST COMMISSIONING REGION | C58: QJK | D58: Devon STP | E58: RYF | F58: SOUTH WESTERN AMBULANCE SERVICE NHS FOUNDATION TRUST | G58: Ambulance Trusts | H58: 521 | I58: 4390 | J58: 6.025271913 | K58: 31 | L58: 86 | M58: 92 | N58: 204 | O58: 110 | P58: 67 | Q58: 99 | R58: 124 | S58: 179 | T58: 52 | U58: 26 | V58: 65 | W58: 112 | X58: 212 | Y58: 107
A59: Y59 | B59: SOUTH EAST COMMISSIONING REGION | C59: QRL | D59: Hampshire and the Isle of Wight STP | E59: R1C | F59: SOLENT NHS TRUST | G59: Mental Health & Learning Disability and Mental Health, Learning Disability & Community Trusts | H59: 251 | I59: 3306 | J59: 7.609561753 | K59: 6 | L59: 9 | M59: 23 | N59: 108 | O59: 105 | P59: 11 | Q59: 19 | R59: 55 | S59: 89 | T59: 77 | U59: 6 | V59: 9 | W59: 31 | X59: 102 | Y59: 103
A60: Y59 | B60: SOUTH EAST COMMISSIONING REGION | C60: QRL | D60: Hampshire and the Isle of Wight STP | E60: R1F | F60: ISLE OF WIGHT NHS TRUST | G60: Acute and Acute & Community Trusts | H60: 346 | I60: 3082 | J60: 6.835260116 | K60: 9 | L60: 31 | M60: 47 | N60: 133 | O60: 126 | P60: 13 | Q60: 37 | R60: 88 | S60: 138 | T60: 71 | U60: 10 | V60: 37 | W60: 101 | X60: 136 | Y60: 63
A61: Y59 | B61: SOUTH EAST COMMISSIONING REGION | C61: QXU | D61: Surrey Heartlands Health & Care Partnership (STP) | E61: RA2 | F61: ROYAL SURREY COUNTY HOSPITAL NHS FOUNDATION TRUST | G61: Acute and Acute & Community Trusts | H61: 52 | I61: 4289 | J61: 7.516025641 | K61: 0 | L61: 2 | M61: 7 | N61: 21 | O61: 22 | P61: 2 | Q61: 6 | R61: 10 | S61: 21 | T61: 13 | U61: 1 | V61: 0 | W61: 11 | X61: 21 | Y61: 19
A62: Y59 | B62: SOUTH EAST COMMISSIONING REGION | C62: QNX | D62: Sussex Health and Care Partnership STP | E62: RDR | F62: SUSSEX COMMUNITY NHS FOUNDATION TRUST | G62: Community Trusts | H62: 62 | I62: 4364 | J62: 7.459677419 | K62: 1 | L62: 2 | M62: 8 | N62: 29 | O62: 22 | P62: 3 | Q62: 3 | R62: 11 | S62: 33 | T62: 12 | U62: 0 | V62: 0 | W62: 12 | X62: 34 | Y62: 16
A63: Y59 | B63: SOUTH EAST COMMISSIONING REGION | C63: QNQ | D63: Frimley Health & Care (STP) | E63: RDU | F63: FRIMLEY HEALTH NHS FOUNDATION TRUST | G63: Acute and Acute & Community Trusts | H63: 155 | I63: 8996 | J63: 6.059139785 | K63: 12 | L63: 11 | M63: 34 | N63: 63 | O63: 35 | P63: 23 | Q63: 26 | R63: 49 | S63: 41 | T63: 16 | U63: 11 | V63: 13 | W63: 28 | X63: 73 | Y63: 30
A64: Y59 | B64: SOUTH EAST COMMISSIONING REGION | C64: QRL | D64: Hampshire and the Isle of Wight STP | E64: RHM | F64: UNIVERSITY HOSPITAL SOUTHAMPTON NHS FOUNDATION TRUST | G64: Acute and Acute & Community Trusts | H64: 3359 | I64: 11005 | J64: 7.735933313 | K64: 33 | L64: 104 | M64: 278 | N64: 1557 | O64: 1387 | P64: 93 | Q64: 190 | R64: 597 | S64: 1582 | T64: 901 | U64: 30 | V64: 92 | W64: 384 | X64: 1719 | Y64: 1138
A65: Y59 | B65: SOUTH EAST COMMISSIONING REGION | C65: QRL | D65: Hampshire and the Isle of Wight STP | E65: RHU | F65: PORTSMOUTH HOSPITALS UNIVERSITY NATIONAL HEALTH SERVICE TRUST | G65: Acute and Acute & Community Trusts | H65: 1077 | I65: 7090 | J65: 6.624110183 | K65: 27 | L65: 72 | M65: 165 | N65: 479 | O65: 334 | P65: 85 | Q65: 143 | R65: 328 | S65: 381 | T65: 140 | U65: 32 | V65: 94 | W65: 260 | X65: 494 | Y65: 197
A66: Y59 | B66: SOUTH EAST COMMISSIONING REGION | C66: QU9 | D66: Buckinghamshire, Oxfordshire and Berkshire West STP | E66: RHW | F66: ROYAL BERKSHIRE NHS FOUNDATION TRUST | G66: Acute and Acute & Community Trusts | H66: 97 | I66: 5537 | J66: 7.182130584 | K66: 2 | L66: 3 | M66: 14 | N66: 40 | O66: 38 | P66: 6 | Q66: 14 | R66: 22 | S66: 35 | T66: 20 | U66: 2 | V66: 3 | W66: 18 | X66: 45 | Y66: 29
A67: Y59 | B67: SOUTH EAST COMMISSIONING REGION | C67: QRL | D67: Hampshire and the Isle of Wight STP | E67: RN5 | F67: HAMPSHIRE HOSPITALS NHS FOUNDATION TRUST | G67: Acute and Acute & Community Trusts | H67: 293 | I67: 6428 | J67: 5.804891923 | K67: 19 | L67: 28 | M67: 57 | N67: 123 | O67: 66 | P67: 50 | Q67: 57 | R67: 77 | S67: 74 | T67: 35 | U67: 25 | V67: 33 | W67: 85 | X67: 110 | Y67: 40
A68: Y59 | B68: SOUTH EAST COMMISSIONING REGION | C68: QKS | D68: Kent and Medway STP | E68: RN7 | F68: DARTFORD AND GRAVESHAM NHS TRUST | G68: Acute and Acute & Community Trusts | H68: 620 | I68: 3401 | J68: 7.021505376 | K68: 15 | L68: 36 | M68: 97 | N68: 261 | O68: 211 | P68: 30 | Q68: 55 | R68: 131 | S68: 252 | T68: 152 | U68: 28 | V68: 46 | W68: 132 | X68: 280 | Y68: 134
A69: Y59 | B69: SOUTH EAST COMMISSIONING REGION | C69: QU9 | D69: Buckinghamshire, Oxfordshire and Berkshire West STP | E69: RNU | F69: OXFORD HEALTH NHS FOUNDATION TRUST | G69: Mental Health & Learning Disability and Mental Health, Learning Disability & Community Trusts | H69: 1100 | I69: 5265 | J69: 6.846969697 | K69: 39 | L69: 48 | M69: 186 | N69: 515 | O69: 312 | P69: 73 | Q69: 102 | R69: 276 | S69: 434 | T69: 215 | U69: 41 | V69: 70 | W69: 254 | X69: 509 | Y69: 226
A70: Y59 | B70: SOUTH EAST COMMISSIONING REGION | C70: QKS | D70: Kent and Medway STP | E70: RPA | F70: MEDWAY NHS FOUNDATION TRUST | G70: Acute and Acute & Community Trusts | H70: 312 | I70: 4106 | J70: 5.662393162 | K70: 24 | L70: 29 | M70: 73 | N70: 117 | O70: 69 | P70: 46 | Q70: 52 | R70: 87 | S70: 89 | T70: 38 | U70: 31 | V70: 51 | W70: 97 | X70: 104 | Y70: 29
A71: Y59 | B71: SOUTH EAST COMMISSIONING REGION | C71: QNX | D71: Sussex Health and Care Partnership STP | E71: RPC | F71: QUEEN VICTORIA HOSPITAL NHS FOUNDATION TRUST | G71: Acute Specialist Trusts | H71: 145 | I71: 902 | J71: 8.172413793 | K71: 1 | L71: 3 | M71: 15 | N71: 49 | O71: 77 | P71: 8 | Q71: 7 | R71: 34 | S71: 59 | T71: 37 | U71: 0 | V71: 0 | W71: 4 | X71: 38 | Y71: 103
A72: Y59 | B72: SOUTH EAST COMMISSIONING REGION | C72: QU9 | D72: Buckinghamshire, Oxfordshire and Berkshire West STP | E72: RTH | F72: OXFORD UNIVERSITY HOSPITALS NHS FOUNDATION TRUST | G72: Acute and Acute & Community Trusts | H72: 2814 | I72: 12111 | J72: 7.370883677 | K72: 45 | L72: 137 | M72: 331 | N72: 1256 | O72: 1048 | P72: 139 | Q72: 283 | R72: 554 | S72: 1191 | T72: 649 | U72: 36 | V72: 111 | W72: 414 | X72: 1380 | Y72: 873
A73: Y59 | B73: SOUTH EAST COMMISSIONING REGION | C73: QKS | D73: Kent and Medway STP | E73: RVV | F73: EAST KENT HOSPITALS UNIVERSITY NHS FOUNDATION TRUST | G73: Acute and Acute & Community Trusts | H73: 2916 | I73: 9248 | J73: 6.193415638 | K73: 104 | L73: 286 | M73: 584 | N73: 1249 | O73: 693 | P73: 240 | Q73: 462 | R73: 844 | S73: 1027 | T73: 343 | U73: 134 | V73: 399 | W73: 816 | X73: 1211 | Y73: 358
A74: Y59 | B74: SOUTH EAST COMMISSIONING REGION | C74: QRL | D74: Hampshire and the Isle of Wight STP | E74: RW1 | F74: SOUTHERN HEALTH NHS FOUNDATION TRUST | G74: Mental Health & Learning Disability and Mental Health, Learning Disability & Community Trusts | H74: 440 | I74: 5369 | J74: 6.90530303 | K74: 13 | L74: 23 | M74: 61 | N74: 191 | O74: 152 | P74: 21 | Q74: 40 | R74: 105 | S74: 203 | T74: 71 | U74: 14 | V74: 30 | W74: 115 | X74: 207 | Y74: 74
A75: Y59 | B75: SOUTH EAST COMMISSIONING REGION | C75: QNQ | D75: Frimley Health & Care (STP) | E75: RWX | F75: BERKSHIRE HEALTHCARE NHS FOUNDATION TRUST | G75: Mental Health & Learning Disability and Mental Health, Learning Disability & Community Trusts | H75: 1479 | I75: 3880 | J75: 7.624521073 | K75: 10 | L75: 45 | M75: 133 | N75: 674 | O75: 617 | P75: 36 | Q75: 100 | R75: 266 | S75: 633 | T75: 445 | U75: 25 | V75: 57 | W75: 250 | X75: 725 | Y75: 422
A76: Y59 | B76: SOUTH EAST COMMISSIONING REGION | C76: QNX | D76: Sussex Health and Care Partnership STP | E76: RX2 | F76: SUSSEX PARTNERSHIP NHS FOUNDATION TRUST | G76: Mental Health & Learning Disability and Mental Health, Learning Disability & Community Trusts | H76: 145 | I76: 4598 | J76: 6.17816092 | K76: 3 | L76: 11 | M76: 31 | N76: 60 | O76: 40 | P76: 15 | Q76: 25 | R76: 32 | S76: 41 | T76: 32 | U76: 16 | V76: 24 | W76: 36 | X76: 50 | Y76: 19
A77: Y59 | B77: SOUTH EAST COMMISSIONING REGION | C77: QNX | D77: Sussex Health and Care Partnership STP | E77: RXC | F77: EAST SUSSEX HEALTHCARE NHS TRUST | G77: Acute and Acute & Community Trusts | H77: 119 | I77: 6714 | J77: 5.868347339 | K77: 8 | L77: 15 | M77: 26 | N77: 48 | O77: 22 | P77: 14 | Q77: 18 | R77: 39 | S77: 36 | T77: 12 | U77: 9 | V77: 12 | W77: 36 | X77: 45 | Y77: 17
A78: Y59 | B78: SOUTH EAST COMMISSIONING REGION | C78: QU9 | D78: Buckinghamshire, Oxfordshire and Berkshire West STP | E78: RXQ | F78: BUCKINGHAMSHIRE HEALTHCARE NHS TRUST | G78: Acute and Acute & Community Trusts | H78: 607 | I78: 5385 | J78: 6.691378364 | K78: 18 | L78: 28 | M78: 109 | N78: 300 | O78: 152 | P78: 42 | Q78: 59 | R78: 177 | S78: 236 | T78: 93 | U78: 26 | V78: 43 | W78: 135 | X78: 298 | Y78: 105
A79: Y59 | B79: SOUTH EAST COMMISSIONING REGION | C79: QKS | D79: Kent and Medway STP | E79: RXY | F79: KENT AND MEDWAY NHS AND SOCIAL CARE PARTNERSHIP TRUST | G79: Mental Health & Learning Disability and Mental Health, Learning Disability & Community Trusts | H79: 272 | I79: 3123 | J79: 6.430759804 | K79: 11 | L79: 25 | M79: 47 | N79: 104 | O79: 85 | P79: 21 | Q79: 33 | R79: 88 | S79: 79 | T79: 51 | U79: 19 | V79: 25 | W79: 81 | X79: 97 | Y79: 50
A80: Y59 | B80: SOUTH EAST COMMISSIONING REGION | C80: QNX | D80: Sussex Health and Care Partnership STP | E80: RYD | F80: SOUTH EAST COAST AMBULANCE SERVICE NHS FOUNDATION TRUST | G80: Ambulance Trusts | H80: 318 | I80: 3879 | J80: 5.159853249 | K80: 44 | L80: 53 | M80: 75 | N80: 88 | O80: 58 | P80: 70 | Q80: 72 | R80: 85 | S80: 68 | T80: 23 | U80: 39 | V80: 40 | W80: 73 | X80: 118 | Y80: 48
A81: Y59 | B81: SOUTH EAST COMMISSIONING REGION | C81: QU9 | D81: Buckinghamshire, Oxfordshire and Berkshire West STP | E81: RYE | F81: SOUTH CENTRAL AMBULANCE SERVICE NHS FOUNDATION TRUST | G81: Ambulance Trusts | H81: 143 | I81: 4160 | J81: 6.282051282 | K81: 10 | L81: 18 | M81: 21 | N81: 58 | O81: 36 | P81: 20 | Q81: 20 | R81: 39 | S81: 44 | T81: 20 | U81: 5 | V81: 13 | W81: 35 | X81: 53 | Y81: 37
A82: Y59 | B82: SOUTH EAST COMMISSIONING REGION | C82: QNX | D82: Sussex Health and Care Partnership STP | E82: RYR | F82: UNIVERSITY HOSPITALS SUSSEX NHS FOUNDATION TRUST | G82: Acute and Acute & Community Trusts | H82: 326 | I82: 14064 | J82: 5.823108384 | K82: 20 | L82: 44 | M82: 62 | N82: 128 | O82: 72 | P82: 45 | Q82: 71 | R82: 80 | S82: 100 | T82: 30 | U82: 22 | V82: 41 | W82: 89 | X82: 128 | Y82: 46
A83: Y59 | B83: SOUTH EAST COMMISSIONING REGION | C83: QKS | D83: Kent and Medway STP | E83: RYY | F83: KENT COMMUNITY HEALTH NHS FOUNDATION TRUST | G83: Community Trusts | H83: 324 | I83: 4189 | J83: 7.019032922 | K83: 9 | L83: 22 | M83: 44 | N83: 142 | O83: 107 | P83: 24 | Q83: 30 | R83: 76 | S83: 130 | T83: 64 | U83: 11 | V83: 11 | W83: 61 | X83: 160 | Y83: 81
A84: Y60 | B84: MIDLANDS COMMISSIONING REGION | C84: QGH | D84: Herefordshire and Worcestershire STP | E84: R1A | F84: HEREFORDSHIRE AND WORCESTERSHIRE HEALTH AND CARE NHS TRUST | G84: Mental Health & Learning Disability and Mental Health, Learning Disability & Community Trusts | H84: 282 | I84: 3596 | J84: 6.669621749 | K84: 12 | L84: 24 | M84: 53 | N84: 107 | O84: 87 | P84: 22 | Q84: 34 | R84: 78 | S84: 97 | T84: 53 | U84: 9 | V84: 21 | W84: 72 | X84: 120 | Y84: 60
A85: Y60 | B85: MIDLANDS COMMISSIONING REGION | C85: QOC | D85: Shropshire and Telford and Wrekin STP | E85: R1D | F85: SHROPSHIRE COMMUNITY HEALTH NHS TRUST | G85: Community Trusts | H85: 21 | I85: 1244 | J85: 6.26984127 | K85: 1 | L85: 2 | M85: 3 | N85: 11 | O85: 4 | P85: 1 | Q85: 6 | R85: 4 | S85: 9 | T85: 1 | U85: 0 | V85: 3 | W85: 2 | X85: 15 | Y85: 1
A86: Y60 | B86: MIDLANDS COMMISSIONING REGION | C86: QUA | D86: The Black Country and West Birmingham STP | E86: RBK | F86: WALSALL HEALTHCARE NHS TRUST | G86: Acute and Acute & Community Trusts | H86: 1015 | I86: 3772 | J86: 6.022988506 | K86: 43 | L86: 103 | M86: 185 | N86: 451 | O86: 233 | P86: 92 | Q86: 145 | R86: 297 | S86: 377 | T86: 104 | U86: 80 | V86: 143 | W86: 317 | X86: 385 | Y86: 90
A87: Y60 | B87: MIDLANDS COMMISSIONING REGION | C87: QJ2 | D87: Joined Up Care Derbyshire STP | E87: RFS | F87: CHESTERFIELD ROYAL HOSPITAL NHS FOUNDATION TRUST | G87: Acute and Acute & Community Trusts | H87: 79 | I87: 3351 | J87: 6.561181435 | K87: 1 | L87: 7 | M87: 16 | N87: 33 | O87: 22 | P87: 6 | Q87: 11 | R87: 20 | S87: 31 | T87: 11 | U87: 2 | V87: 8 | W87: 18 | X87: 40 | Y87: 11
A88: Y60 | B88: MIDLANDS COMMISSIONING REGION | C88: QT1 | D88: Nottingham and Nottinghamshire Health and Care STP | E88: RHA | F88: NOTTINGHAMSHIRE HEALTHCARE NHS FOUNDATION TRUST | G88: Mental Health & Learning Disability and Mental Health, Learning Disability & Community Trusts | H88: 257 | I88: 7917 | J88: 6.261348898 | K88: 8 | L88: 26 | M88: 49 | N88: 108 | O88: 66 | P88: 29 | Q88: 44 | R88: 53 | S88: 98 | T88: 33 | U88: 14 | V88: 29 | W88: 65 | X88: 112 | Y88: 37
A89: Y60 | B89: MIDLANDS COMMISSIONING REGION | C89: QWU | D89: Coventry and Warwickshire STP | E89: RJC | F89: SOUTH WARWICKSHIRE NHS FOUNDATION TRUST | G89: Acute and Acute & Community Trusts | H89: 255 | I89: 4288 | J89: 6.993464052 | K89: 6 | L89: 26 | M89: 40 | N89: 103 | O89: 80 | P89: 10 | Q89: 31 | R89: 48 | S89: 105 | T89: 61 | U89: 6 | V89: 19 | W89: 48 | X89: 124 | Y89: 58
A90: Y60 | B90: MIDLANDS COMMISSIONING REGION | C90: QNC | D90: Staffordshire & Stoke on Trent STP | E90: RJE | F90: UNIVERSITY HOSPITALS OF NORTH MIDLANDS NHS TRUST | G90: Acute and Acute & Community Trusts | H90: 81 | I90: 9689 | J90: 5.833333333 | K90: 6 | L90: 12 | M90: 15 | N90: 33 | O90: 15 | P90: 14 | Q90: 15 | R90: 25 | S90: 17 | T90: 10 | U90: 4 | V90: 9 | W90: 18 | X90: 35 | Y90: 15
A91: Y60 | B91: MIDLANDS COMMISSIONING REGION | C91: QT1 | D91: Nottingham and Nottinghamshire Health and Care STP | E91: RK5 | F91: SHERWOOD FOREST HOSPITALS NHS FOUNDATION TRUST | G91: Acute and Acute & Community Trusts | H91: 1158 | I91: 4630 | J91: 7.709412781 | K91: 28 | L91: 35 | M91: 136 | N91: 526 | O91: 433 | P91: 33 | Q91: 56 | R91: 131 | S91: 576 | T91: 362 | U91: 15 | V91: 32 | W91: 125 | X91: 624 | Y91: 362
A92: Y60 | B92: MIDLANDS COMMISSIONING REGION | C92: QWU | D92: Coventry and Warwickshire STP | E92: RKB | F92: UNIVERSITY HOSPITALS COVENTRY AND WARWICKSHIRE NHS TRUST | G92: Acute and Acute & Community Trusts | H92: 131 | I92: 8012 | J92: 6.151399491 | K92: 7 | L92: 10 | M92: 36 | N92: 48 | O92: 30 | P92: 16 | Q92: 18 | R92: 40 | S92: 43 | T92: 14 | U92: 4 | V92: 18 | W92: 29 | X92: 58 | Y92: 22
A93: Y60 | B93: MIDLANDS COMMISSIONING REGION | C93: QUA | D93: The Black Country and West Birmingham STP | E93: RL4 | F93: THE ROYAL WOLVERHAMPTON NHS TRUST | G93: Acute and Acute & Community Trusts | H93: 150 | I93: 8719 | J93: 7.333333333 | K93: 3 | L93: 8 | M93: 20 | N93: 57 | O93: 62 | P93: 5 | Q93: 11 | R93: 34 | S93: 59 | T93: 41 | U93: 4 | V93: 7 | W93: 30 | X93: 70 | Y93: 39
A94: Y60 | B94: MIDLANDS COMMISSIONING REGION | C94: QWU | D94: Coventry and Warwickshire STP | E94: RLT | F94: GEORGE ELIOT HOSPITAL NHS TRUST | G94: Acute and Acute & Community Trusts | H94: 25 | I94: 2321 | J94: 6.7 | K94: 2 | L94: 1 | M94: 3 | N94: 9 | O94: 10 | P94: 4 | Q94: 2 | R94: 6 | S94: 8 | T94: 5 | U94: 1 | V94: 2 | W94: 5 | X94: 11 | Y94: 6
A95: Y60 | B95: MIDLANDS COMMISSIONING REGION | C95: QNC | D95: Staffordshire & Stoke on Trent STP | E95: RLY | F95: NORTH STAFFORDSHIRE COMBINED HEALTHCARE NHS TRUST | G95: Mental Health & Learning Disability and Mental Health, Learning Disability & Community Trusts | H95: 21 | I95: 1479 | J95: 7.182539683 | K95: 0 | L95: 1 | M95: 5 | N95: 9 | O95: 6 | P95: 0 | Q95: 2 | R95: 4 | S95: 10 | T95: 5 | U95: 0 | V95: 1 | W95: 6 | X95: 10 | Y95: 4
A96: Y60 | B96: MIDLANDS COMMISSIONING REGION | C96: QUA | D96: The Black Country and West Birmingham STP | E96: RNA | F96: THE DUDLEY GROUP NHS FOUNDATION TRUST | G96: Acute and Acute & Community Trusts | H96: 882 | I96: 4799 | J96: 6.769652305 | K96: 9 | L96: 57 | M96: 142 | N96: 392 | O96: 282 | P96: 49 | Q96: 102 | R96: 250 | S96: 347 | T96: 136 | U96: 29 | V96: 65 | W96: 241 | X96: 406 | Y96: 142
A97: Y60 | B97: MIDLANDS COMMISSIONING REGION | C97: QPM | D97: Northamptonshire STP | E97: RNQ | F97: KETTERING GENERAL HOSPITAL NHS FOUNDATION TRUST | G97: Acute and Acute & Community Trusts | H97: 761 | I97: 4307 | J97: 6.32282085 | K97: 23 | L97: 71 | M97: 154 | N97: 316 | O97: 197 | P97: 36 | Q97: 106 | R97: 244 | S97: 307 | T97: 69 | U97: 24 | V97: 85 | W97: 242 | X97: 341 | Y97: 69
A98: Y60 | B98: MIDLANDS COMMISSIONING REGION | C98: QPM | D98: Northamptonshire STP | E98: RNS | F98: NORTHAMPTON GENERAL HOSPITAL NHS TRUST | G98: Acute and Acute & Community Trusts | H98: 777 | I98: 5039 | J98: 6.558344058 | K98: 21 | L98: 59 | M98: 145 | N98: 336 | O98: 216 | P98: 39 | Q98: 105 | R98: 218 | S98: 318 | T98: 98 | U98: 18 | V98: 80 | W98: 208 | X98: 377 | Y98: 95
A99: Y60 | B99: MIDLANDS COMMISSIONING REGION | C99: QPM | D99: Northamptonshire STP | E99: RP1 | F99: NORTHAMPTONSHIRE HEALTHCARE NHS FOUNDATION TRUST | G99: Mental Health & Learning Disability and Mental Health, Learning Disability & Community Trusts | H99: 1629 | I99: 3744 | J99: 7.622263147 | K99: 11 | L99: 42 | M99: 161 | N99: 722 | O99: 695 | P99: 45 | Q99: 90 | R99: 316 | S99: 699 | T99: 479 | U99: 25 | V99: 64 | W99: 305 | X99: 763 | Y99: 473
A100: Y60 | B100: MIDLANDS COMMISSIONING REGION | C100: QJM | D100: Lincolnshire STP | E100: RP7 | F100: LINCOLNSHIRE PARTNERSHIP NHS FOUNDATION TRUST | G100: Mental Health & Learning Disability and Mental Health, Learning Disability & Community Trusts | H100: 176 | I100: 2047 | J100: 6.979166667 | K100: 6 | L100: 12 | M100: 22 | N100: 61 | O100: 75 | P100: 5 | Q100: 27 | R100: 35 | S100: 61 | T100: 48 | U100: 8 | V100: 18 | W100: 38 | X100: 79 | Y100: 33
A101: Y60 | B101: MIDLANDS COMMISSIONING REGION | C101: QHL | D101: Birmingham and Solihull STP | E101: RQ3 | F101: BIRMINGHAM WOMEN'S AND CHILDREN'S NHS FOUNDATION TRUST | G101: Acute and Acute & Community Trusts | H101: 23 | I101: 5380 | J101: 6.15942029 | K101: 1 | L101: 4 | M101: 3 | N101: 8 | O101: 7 | P101: 5 | Q101: 3 | R101: 6 | S101: 6 | T101: 3 | U101: 2 | V101: 2 | W101: 2 | X101: 11 | Y101: 6
A102: Y60 | B102: MIDLANDS COMMISSIONING REGION | C102: QNC | D102: Staffordshire & Stoke on Trent STP | E102: RRE | F102: MIDLANDS PARTNERSHIP NHS FOUNDATION TRUST | G102: Mental Health & Learning Disability and Mental Health, Learning Disability & Community Trusts | H102: 0 | I102: 7698 | J102: - | K102: 0 | L102: 0 | M102: 0 | N102: 0 | O102: 0 | P102: 0 | Q102: 0 | R102: 0 | S102: 0 | T102: 0 | U102: 0 | V102: 0 | W102: 0 | X102: 0 | Y102: 0
A103: Y60 | B103: MIDLANDS COMMISSIONING REGION | C103: QHL | D103: Birmingham and Solihull STP | E103: RRK | F103: UNIVERSITY HOSPITALS BIRMINGHAM NHS FOUNDATION TRUST | G103: Acute and Acute & Community Trusts | H103: 1060 | I103: 18810 | J103: 5.635220126 | K103: 86 | L103: 144 | M103: 261 | N103: 374 | O103: 195 | P103: 186 | Q103: 209 | R103: 260 | S103: 315 | T103: 90 | U103: 78 | V103: 129 | W103: 270 | X103: 435 | Y103: 148
A104: Y60 | B104: MIDLANDS COMMISSIONING REGION | C104: QK1 | D104: Leicester, Leicestershire and Rutland STP | E104: RT5 | F104: LEICESTERSHIRE PARTNERSHIP NHS TRUST | G104: Mental Health & Learning Disability and Mental Health, Learning Disability & Community Trusts | H104: 960 | I104: 4741 | J104: 6.1640625 | K104: 45 | L104: 94 | M104: 185 | N104: 394 | O104: 242 | P104: 85 | Q104: 124 | R104: 318 | S104: 307 | T104: 126 | U104: 61 | V104: 107 | W104: 296 | X104: 381 | Y104: 115
A105: Y60 | B105: MIDLANDS COMMISSIONING REGION | C105: QJ2 | D105: Joined Up Care Derbyshire STP | E105: RTG | F105: UNIVERSITY HOSPITALS OF DERBY AND BURTON NHS FOUNDATION TRUST | G105: Acute and Acute & Community Trusts | H105: 2226 | I105: 11606 | J105: 6.785714286 | K105: 80 | L105: 134 | M105: 338 | N105: 1122 | O105: 557 | P105: 130 | Q105: 249 | R105: 505 | S105: 1024 | T105: 320 | U105: 68 | V105: 128 | W105: 456 | X105: 1225 | Y105: 349
A106: Y60 | B106: MIDLANDS COMMISSIONING REGION | C106: QJM | D106: Lincolnshire STP | E106: RWD | F106: UNITED LINCOLNSHIRE HOSPITALS NHS TRUST | G106: Acute and Acute & Community Trusts | H106: 2651 | I106: 7161 | J106: 5.968502452 | K106: 90 | L106: 279 | M106: 514 | N106: 1106 | O106: 662 | P106: 257 | Q106: 446 | R106: 790 | S106: 875 | T106: 283 | U106: 185 | V106: 440 | W106: 834 | X106: 945 | Y106: 247
A107: Y60 | B107: MIDLANDS COMMISSIONING REGION | C107: QK1 | D107: Leicester, Leicestershire and Rutland STP | E107: RWE | F107: UNIVERSITY HOSPITALS OF LEICESTER NHS TRUST | G107: Acute and Acute & Community Trusts | H107: 284 | I107: 13950 | J107: 6.252934272 | K107: 15 | L107: 24 | M107: 58 | N107: 113 | O107: 74 | P107: 22 | Q107: 50 | R107: 78 | S107: 91 | T107: 43 | U107: 14 | V107: 33 | W107: 79 | X107: 118 | Y107: 40
A108: Y60 | B108: MIDLANDS COMMISSIONING REGION | C108: QGH | D108: Herefordshire and Worcestershire STP | E108: RWP | F108: WORCESTERSHIRE ACUTE HOSPITALS NHS TRUST | G108: Acute and Acute & Community Trusts | H108: 484 | I108: 5680 | J108: 6.189738292 | K108: 31 | L108: 40 | M108: 90 | N108: 191 | O108: 132 | P108: 54 | Q108: 61 | R108: 131 | S108: 170 | T108: 68 | U108: 40 | V108: 51 | W108: 126 | X108: 202 | Y108: 65
A109: Y60 | B109: MIDLANDS COMMISSIONING REGION | C109: QT1 | D109: Nottingham and Nottinghamshire Health and Care STP | E109: RX1 | F109: NOTTINGHAM UNIVERSITY HOSPITALS NHS TRUST | G109: Acute and Acute & Community Trusts | H109: 1382 | I109: 15210 | J109: 6.484563435 | K109: 35 | L109: 130 | M109: 265 | N109: 583 | O109: 369 | P109: 110 | Q109: 212 | R109: 382 | S109: 494 | T109: 184 | U109: 41 | V109: 115 | W109: 363 | X109: 618 | Y109: 245
A110: Y60 | B110: MIDLANDS COMMISSIONING REGION | C110: QT1 | D110: Nottingham and Nottinghamshire Health and Care STP | E110: RX9 | F110: EAST MIDLANDS AMBULANCE SERVICE NHS TRUST | G110: Ambulance Trusts | H110: 88 | I110: 3716 | J110: 5.965909091 | K110: 9 | L110: 11 | M110: 15 | N110: 36 | O110: 17 | P110: 11 | Q110: 14 | R110: 30 | S110: 22 | T110: 11 | U110: 4 | V110: 8 | W110: 24 | X110: 35 | Y110: 17
A111: Y60 | B111: MIDLANDS COMMISSIONING REGION | C111: QUA | D111: The Black Country and West Birmingham STP | E111: RXK | F111: SANDWELL AND WEST BIRMINGHAM HOSPITALS NHS TRUST | G111: Acute and Acute & Community Trusts | H111: 1292 | I111: 6464 | J111: 6.404798762 | K111: 38 | L111: 93 | M111: 250 | N111: 644 | O111: 269 | P111: 72 | Q111: 174 | R111: 392 | S111: 478 | T111: 176 | U111: 49 | V111: 130 | W111: 405 | X111: 551 | Y111: 160
A112: Y60 | B112: MIDLANDS COMMISSIONING REGION | C112: QJ2 | D112: Joined Up Care Derbyshire STP | E112: RXM | F112: DERBYSHIRE HEALTHCARE NHS FOUNDATION TRUST | G112: Mental Health & Learning Disability and Mental Health, Learning Disability & Community Trusts | H112: 1112 | I112: 2445 | J112: 7.429556355 | K112: 19 | L112: 35 | M112: 122 | N112: 538 | O112: 400 | P112: 36 | Q112: 71 | R112: 190 | S112: 506 | T112: 309 | U112: 30 | V112: 57 | W112: 206 | X112: 533 | Y112: 287
A113: Y60 | B113: MIDLANDS COMMISSIONING REGION | C113: QUA | D113: The Black Country and West Birmingham STP | E113: RXT | F113: BIRMINGHAM AND SOLIHULL MENTAL HEALTH NHS FOUNDATION TRUST | G113: Mental Health & Learning Disability and Mental Health, Learning Disability & Community Trusts | H113: 388 | I113: 4027 | J113: 5.89347079 | K113: 20 | L113: 26 | M113: 84 | N113: 176 | O113: 82 | P113: 43 | Q113: 57 | R113: 119 | S113: 125 | T113: 44 | U113: 39 | V113: 58 | W113: 120 | X113: 134 | Y113: 37
A114: Y60 | B114: MIDLANDS COMMISSIONING REGION | C114: QJM | D114: Lincolnshire STP | E114: RY5 | F114: LINCOLNSHIRE COMMUNITY HEALTH SERVICES NHS TRUST | G114: Community Trusts | H114: 642 | I114: 1867 | J114: 7.631100727 | K114: 11 | L114: 26 | M114: 68 | N114: 310 | O114: 238 | P114: 21 | Q114: 49 | R114: 134 | S114: 268 | T114: 179 | U114: 0 | V114: 24 | W114: 93 | X114: 312 | Y114: 213
A115: Y60 | B115: MIDLANDS COMMISSIONING REGION | C115: QJ2 | D115: Joined Up Care Derbyshire STP | E115: RY8 | F115: DERBYSHIRE COMMUNITY HEALTH SERVICES NHS FOUNDATION TRUST | G115: Community Trusts | H115: 1649 | I115: 3365 | J115: 7.76531231 | K115: 17 | L115: 66 | M115: 155 | N115: 771 | O115: 649 | P115: 37 | Q115: 99 | R115: 301 | S115: 702 | T115: 510 | U115: 18 | V115: 37 | W115: 198 | X115: 799 | Y115: 601
A116: Y60 | B116: MIDLANDS COMMISSIONING REGION | C116: QUA | D116: The Black Country and West Birmingham STP | E116: RYA | F116: WEST MIDLANDS AMBULANCE SERVICE UNIVERSITY NHS FOUNDATION TRUST | G116: Ambulance Trusts | H116: 558 | I116: 6387 | J116: 5.080645161 | K116: 115 | L116: 91 | M116: 101 | N116: 160 | O116: 91 | P116: 111 | Q116: 110 | R116: 158 | S116: 134 | T116: 45 | U116: 71 | V116: 71 | W116: 143 | X116: 192 | Y116: 81
A117: Y60 | B117: MIDLANDS COMMISSIONING REGION | C117: QWU | D117: Coventry and Warwickshire STP | E117: RYG | F117: COVENTRY AND WARWICKSHIRE PARTNERSHIP NHS TRUST | G117: Mental Health & Learning Disability and Mental Health, Learning Disability & Community Trusts | H117: 299 | I117: 3505 | J117: 7.020624303 | K117: 5 | L117: 14 | M117: 43 | N117: 148 | O117: 89 | P117: 15 | Q117: 23 | R117: 57 | S117: 151 | T117: 53 | U117: 7 | V117: 27 | W117: 57 | X117: 156 | Y117: 52
A118: Y60 | B118: MIDLANDS COMMISSIONING REGION | C118: QHL | D118: Birmingham and Solihull STP | E118: RYW | F118: BIRMINGHAM COMMUNITY HEALTHCARE NHS FOUNDATION TRUST | G118: Community Trusts | H118: 526 | I118: 4224 | J118: 6.202471483 | K118: 21 | L118: 55 | M118: 113 | N118: 209 | O118: 128 | P118: 50 | Q118: 84 | R118: 158 | S118: 168 | T118: 66 | U118: 22 | V118: 54 | W118: 153 | X118: 221 | Y118: 76
A119: Y60 | B119: MIDLANDS COMMISSIONING REGION | C119: QUA | D119: The Black Country and West Birmingham STP | E119: TAJ | F119: BLACK COUNTRY HEALTHCARE NHS FOUNDATION TRUST | G119: Mental Health & Learning Disability and Mental Health, Learning Disability & Community Trusts | H119: 606 | I119: 3097 | J119: 6.061606161 | K119: 24 | L119: 66 | M119: 131 | N119: 238 | O119: 147 | P119: 61 | Q119: 94 | R119: 181 | S119: 192 | T119: 78 | U119: 47 | V119: 69 | W119: 188 | X119: 219 | Y119: 83
A120: Y61 | B120: EAST OF ENGLAND COMMISSIONING REGION | C120: QH8 | D120: Mid and South Essex STP | E120: R1L | F120: ESSEX PARTNERSHIP UNIVERSITY NHS FOUNDATION TRUST | G120: Mental Health & Learning Disability and Mental Health, Learning Disability & Community Trusts | H120: 323 | I120: 4918 | J120: 6.669246646 | K120: 8 | L120: 24 | M120: 57 | N120: 120 | O120: 114 | P120: 14 | Q120: 56 | R120: 72 | S120: 116 | T120: 65 | U120: 13 | V120: 43 | W120: 83 | X120: 122 | Y120: 62
A121: Y61 | B121: EAST OF ENGLAND COMMISSIONING REGION | C121: QH8 | D121: Mid and South Essex STP | E121: RAJ | F121: MID AND SOUTH ESSEX NHS FOUNDATION TRUST | G121: Acute and Acute & Community Trusts | H121: 48 | I121: 13662 | J121: 4.947916667 | K121: 3 | L121: 9 | M121: 16 | N121: 11 | O121: 9 | P121: 9 | Q121: 14 | R121: 13 | S121: 11 | T121: 1 | U121: 5 | V121: 7 | W121: 19 | X121: 15 | Y121: 2
A122: Y61 | B122: EAST OF ENGLAND COMMISSIONING REGION | C122: QH8 | D122: Mid and South Essex STP | E122: RAJ | F122: MID AND SOUTH ESSEX NHS FOUNDATION TRUST | G122: Acute and Acute & Community Trusts | H122: 48 | I122: 13662 | J122: 4.947916667 | K122: 3 | L122: 9 | M122: 16 | N122: 11 | O122: 9 | P122: 9 | Q122: 14 | R122: 13 | S122: 11 | T122: 1 | U122: 5 | V122: 7 | W122: 19 | X122: 15 | Y122: 2
A123: Y61 | B123: EAST OF ENGLAND COMMISSIONING REGION | C123: QHG | D123: Bedfordshire, Luton and Milton Keynes STP | E123: RC9 | F123: BEDFORDSHIRE HOSPITALS NHS FOUNDATION TRUST | G123: Acute and Acute & Community Trusts | H123: 28 | I123: 7136 | J123: 5.208333333 | K123: 1 | L123: 3 | M123: 10 | N123: 12 | O123: 2 | P123: 9 | Q123: 5 | R123: 4 | S123: 9 | T123: 1 | U123: 3 | V123: 1 | W123: 11 | X123: 11 | Y123: 2
A124: Y61 | B124: EAST OF ENGLAND COMMISSIONING REGION | C124: QMM | D124: Norfolk and Waveney Health & Care Partnership (STP) | E124: RCX | F124: THE QUEEN ELIZABETH HOSPITAL, KING'S LYNN, NHS FOUNDATION TRUST | G124: Acute and Acute & Community Trusts | H124: 89 | I124: 3273 | J124: 5.608614232 | K124: 4 | L124: 13 | M124: 16 | N124: 37 | O124: 19 | P124: 12 | Q124: 15 | R124: 33 | S124: 22 | T124: 7 | U124: 7 | V124: 15 | W124: 33 | X124: 25 | Y124: 9
A125: Y61 | B125: EAST OF ENGLAND COMMISSIONING REGION | C125: QHG | D125: Bedfordshire, Luton and Milton Keynes STP | E125: RD8 | F125: MILTON KEYNES UNIVERSITY HOSPITAL NHS FOUNDATION TRUST | G125: Acute and Acute & Community Trusts | H125: 12 | I125: 3264 | J125: 6.597222222 | K125: 0 | L125: 1 | M125: 2 | N125: 5 | O125: 4 | P125: 1 | Q125: 1 | R125: 3 | S125: 5 | T125: 2 | U125: 2 | V125: 0 | W125: 2 | X125: 7 | Y125: 1
A126: Y61 | B126: EAST OF ENGLAND COMMISSIONING REGION | C126: QJG | D126: Suffolk and North East Essex STP | E126: RDE | F126: EAST SUFFOLK AND NORTH ESSEX NHS FOUNDATION TRUST | G126: Acute and Acute & Community Trusts | H126: 32 | I126: 9644 | J126: 6.510416667 | K126: 1 | L126: 3 | M126: 7 | N126: 12 | O126: 9 | P126: 3 | Q126: 6 | R126: 5 | S126: 11 | T126: 7 | U126: 1 | V126: 4 | W126: 6 | X126: 16 | Y126: 5
A127: Y61 | B127: EAST OF ENGLAND COMMISSIONING REGION | C127: QUE | D127: Cambridgeshire and Peterborough STP | E127: RGM | F127: ROYAL PAPWORTH HOSPITAL NHS FOUNDATION TRUST | G127: Acute Specialist Trusts | H127: 259 | I127: 1894 | J127: 8.008365508 | K127: 3 | L127: 7 | M127: 21 | N127: 108 | O127: 120 | P127: 12 | Q127: 19 | R127: 36 | S127: 106 | T127: 86 | U127: 2 | V127: 4 | W127: 21 | X127: 91 | Y127: 141
A128: Y61 | B128: EAST OF ENGLAND COMMISSIONING REGION | C128: QUE | D128: Cambridgeshire and Peterborough STP | E128: RGN | F128: NORTH WEST ANGLIA NHS FOUNDATION TRUST | G128: Acute and Acute & Community Trusts | H128: 266 | I128: 6066 | J128: 6.469298246 | K128: 13 | L128: 28 | M128: 43 | N128: 118 | O128: 64 | P128: 34 | Q128: 49 | R128: 65 | S128: 105 | T128: 36 | U128: 19 | V128: 35 | W128: 67 | X128: 134 | Y128: 33
A129: Y61 | B129: EAST OF ENGLAND COMMISSIONING REGION | C129: QJG | D129: Suffolk and North East Essex STP | E129: RGR | F129: WEST SUFFOLK NHS FOUNDATION TRUST | G129: Acute and Acute & Community Trusts | H129: 1401 | I129: 4097 | J129: 7.233523674 | K129: 19 | L129: 77 | M129: 171 | N129: 646 | O129: 489 | P129: 65 | Q129: 118 | R129: 296 | S129: 623 | T129: 299 | U129: 27 | V129: 81 | W129: 245 | X129: 690 | Y129: 358
A130: Y61 | B130: EAST OF ENGLAND COMMISSIONING REGION | C130: QUE | D130: Cambridgeshire and Peterborough STP | E130: RGT | F130: CAMBRIDGE UNIVERSITY HOSPITALS NHS FOUNDATION TRUST | G130: Acute and Acute & Community Trusts | H130: 6946 | I130: 10429 | J130: 2.503359248 | K130: 2527 | L130: 3250 | M130: 751 | N130: 306 | O130: 115 | P130: 1678 | Q130: 3026 | R130: 1344 | S130: 650 | T130: 252 | U130: 2465 | V130: 3335 | W130: 802 | X130: 251 | Y130: 93
A131: Y61 | B131: EAST OF ENGLAND COMMISSIONING REGION | C131: QMM | D131: Norfolk and Waveney Health & Care Partnership (STP) | E131: RM1 | F131: NORFOLK AND NORWICH UNIVERSITY HOSPITALS NHS FOUNDATION TRUST | G131: Acute and Acute & Community Trusts | H131: 220 | I131: 7867 | J131: 5.356060606 | K131: 19 | L131: 41 | M131: 55 | N131: 74 | O131: 31 | P131: 37 | Q131: 51 | R131: 56 | S131: 56 | T131: 20 | U131: 15 | V131: 38 | W131: 56 | X131: 88 | Y131: 23
A132: Y61 | B132: EAST OF ENGLAND COMMISSIONING REGION | C132: QMM | D132: Norfolk and Waveney Health & Care Partnership (STP) | E132: RMY | F132: NORFOLK AND SUFFOLK NHS FOUNDATION TRUST | G132: Mental Health & Learning Disability and Mental Health, Learning Disability & Community Trusts | H132: 1366 | I132: 4168 | J132: 5.625915081 | K132: 47 | L132: 134 | M132: 241 | N132: 566 | O132: 378 | P132: 204 | Q132: 513 | R132: 331 | S132: 203 | T132: 117 | U132: 121 | V132: 206 | W132: 371 | X132: 476 | Y132: 192
A133: Y61 | B133: EAST OF ENGLAND COMMISSIONING REGION | C133: QM7 | D133: Hertfordshire and West Essex STP | E133: RQW | F133: THE PRINCESS ALEXANDRA HOSPITAL NHS TRUST | G133: Acute and Acute & Community Trusts | H133: 190 | I133: 3407 | J133: 5.324561404 | K133: 16 | L133: 21 | M133: 35 | N133: 70 | O133: 48 | P133: 33 | Q133: 40 | R133: 61 | S133: 39 | T133: 17 | U133: 22 | V133: 41 | W133: 63 | X133: 49 | Y133: 15
A134: Y61 | B134: EAST OF ENGLAND COMMISSIONING REGION | C134: QUE | D134: Cambridgeshire and Peterborough STP | E134: RT1 | F134: CAMBRIDGESHIRE AND PETERBOROUGH NHS FOUNDATION TRUST | G134: Mental Health & Learning Disability and Mental Health, Learning Disability & Community Trusts | H134: 2778 | I134: 3809 | J134: 7.053935685 | K134: 54 | L134: 94 | M134: 596 | N134: 1428 | O134: 606 | P134: 128 | Q134: 237 | R134: 556 | S134: 1342 | T134: 515 | U134: 51 | V134: 98 | W134: 529 | X134: 1470 | Y134: 630
A135: Y61 | B135: EAST OF ENGLAND COMMISSIONING REGION | C135: QM7 | D135: Hertfordshire and West Essex STP | E135: RWG | F135: WEST HERTFORDSHIRE HOSPITALS NHS TRUST | G135: Acute and Acute & Community Trusts | H135: 664 | I135: 4738 | J135: 5.874748996 | K135: 35 | L135: 53 | M135: 135 | N135: 295 | O135: 146 | P135: 88 | Q135: 99 | R135: 197 | S135: 206 | T135: 74 | U135: 64 | V135: 85 | W135: 212 | X135: 239 | Y135: 64
A136: Y61 | B136: EAST OF ENGLAND COMMISSIONING REGION | C136: QM7 | D136: Hertfordshire and West Essex STP | E136: RWH | F136: EAST AND NORTH HERTFORDSHIRE NHS TRUST | G136: Acute and Acute & Community Trusts | H136: 180 | I136: 5630 | J136: 6.060185185 | K136: 4 | L136: 15 | M136: 42 | N136: 82 | O136: 37 | P136: 21 | Q136: 30 | R136: 58 | S136: 57 | T136: 14 | U136: 6 | V136: 19 | W136: 56 | X136: 84 | Y136: 15
A137: Y61 | B137: EAST OF ENGLAND COMMISSIONING REGION | C137: QM7 | D137: Hertfordshire and West Essex STP | E137: RWR | F137: HERTFORDSHIRE PARTNERSHIP UNIVERSITY NHS FOUNDATION TRUST | G137: Mental Health & Learning Disability and Mental Health, Learning Disability & Community Trusts | H137: 861 | I137: 3266 | J137: 7.795199381 | K137: 10 | L137: 24 | M137: 55 | N137: 323 | O137: 456 | P137: 19 | Q137: 44 | R137: 161 | S137: 346 | T137: 295 | U137: 13 | V137: 44 | W137: 161 | X137: 395 | Y137: 248
A138: Y61 | B138: EAST OF ENGLAND COMMISSIONING REGION | C138: QMM | D138: Norfolk and Waveney Health & Care Partnership (STP) | E138: RY3 | F138: NORFOLK COMMUNITY HEALTH AND CARE NHS TRUST | G138: Community Trusts | H138: 398 | I138: 1992 | J138: 7.386934673 | K138: 6 | L138: 25 | M138: 55 | N138: 155 | O138: 157 | P138: 18 | Q138: 36 | R138: 62 | S138: 166 | T138: 116 | U138: 9 | V138: 15 | W138: 87 | X138: 159 | Y138: 128
A139: Y61 | B139: EAST OF ENGLAND COMMISSIONING REGION | C139: QM7 | D139: Hertfordshire and West Essex STP | E139: RY4 | F139: HERTFORDSHIRE COMMUNITY NHS TRUST | G139: Community Trusts | H139: 171 | I139: 2090 | J139: 7.256335283 | K139: 11 | L139: 6 | M139: 23 | N139: 59 | O139: 72 | P139: 14 | Q139: 13 | R139: 30 | S139: 58 | T139: 56 | U139: 8 | V139: 7 | W139: 25 | X139: 80 | Y139: 51
A140: Y61 | B140: EAST OF ENGLAND COMMISSIONING REGION | C140: QUE | D140: Cambridgeshire and Peterborough STP | E140: RYC | F140: EAST OF ENGLAND AMBULANCE SERVICE NHS TRUST | G140: Ambulance Trusts | H140: 305 | I140: 5410 | J140: 4.770491803 | K140: 43 | L140: 62 | M140: 66 | N140: 92 | O140: 42 | P140: 97 | Q140: 75 | R140: 75 | S140: 45 | T140: 13 | U140: 26 | V140: 45 | W140: 77 | X140: 131 | Y140: 26
A141: Y61 | B141: EAST OF ENGLAND COMMISSIONING REGION | C141: QUE | D141: Cambridgeshire and Peterborough STP | E141: RYV | F141: CAMBRIDGESHIRE COMMUNITY SERVICES NHS TRUST | G141: Community Trusts | H141: 99 | I141: 2126 | J141: 7.87037037 | K141: 2 | L141: 1 | M141: 10 | N141: 34 | O141: 52 | P141: 3 | Q141: 7 | R141: 19 | S141: 31 | T141: 39 | U141: 1 | V141: 6 | W141: 9 | X141: 46 | Y141: 37
A142: Y62 | B142: NORTH WEST COMMISSIONING REGION | C142: QOP | D142: Greater Manchester Health & Social Care Partnership | E142: R0A | F142: MANCHESTER UNIVERSITY NHS FOUNDATION TRUST | G142: Acute and Acute & Community Trusts | H142: 2844 | I142: 24928 | J142: 6.471812002 | K142: 112 | L142: 253 | M142: 500 | N142: 1328 | O142: 659 | P142: 232 | Q142: 414 | R142: 767 | S142: 1046 | T142: 386 | U142: 110 | V142: 213 | W142: 685 | X142: 1343 | Y142: 493
A143: Y62 | B143: NORTH WEST COMMISSIONING REGION | C143: QYG | D143: Cheshire and Merseyside STP | E143: RBL | F143: WIRRAL UNIVERSITY TEACHING HOSPITAL NHS FOUNDATION TRUST | G143: Acute and Acute & Community Trusts | H143: 59 | I143: 5550 | J143: 6.129943503 | K143: 2 | L143: 6 | M143: 12 | N143: 26 | O143: 13 | P143: 7 | Q143: 12 | R143: 16 | S143: 18 | T143: 6 | U143: 3 | V143: 3 | W143: 17 | X143: 29 | Y143: 7
A144: Y62 | B144: NORTH WEST COMMISSIONING REGION | C144: QYG | D144: Cheshire and Merseyside STP | E144: RBN | F144: ST HELENS AND KNOWSLEY TEACHING HOSPITALS NHS TRUST | G144: Acute and Acute & Community Trusts | H144: 137 | I144: 5963 | J144: 6.636253041 | K144: 8 | L144: 19 | M144: 20 | N144: 43 | O144: 47 | P144: 15 | Q144: 13 | R144: 33 | S144: 48 | T144: 28 | U144: 6 | V144: 13 | W144: 31 | X144: 43 | Y144: 44
A145: Y62 | B145: NORTH WEST COMMISSIONING REGION | C145: QYG | D145: Cheshire and Merseyside STP | E145: RBQ | F145: LIVERPOOL HEART AND CHEST HOSPITAL NHS FOUNDATION TRUST | G145: Acute Specialist Trusts | H145: 146 | I145: 1662 | J145: 7.631278539 | K145: 6 | L145: 4 | M145: 13 | N145: 52 | O145: 71 | P145: 15 | Q145: 14 | R145: 21 | S145: 57 | T145: 39 | U145: 2 | V145: 2 | W145: 13 | X145: 60 | Y145: 69
A146: Y62 | B146: NORTH WEST COMMISSIONING REGION | C146: QYG | D146: Cheshire and Merseyside STP | E146: RBS | F146: ALDER HEY CHILDREN'S NHS FOUNDATION TRUST | G146: Acute and Acute & Community Trusts | H146: 271 | I146: 3632 | J146: 7.610701107 | K146: 4 | L146: 10 | M146: 31 | N146: 126 | O146: 100 | P146: 16 | Q146: 24 | R146: 53 | S146: 98 | T146: 80 | U146: 3 | V146: 7 | W146: 28 | X146: 114 | Y146: 119
A147: Y62 | B147: NORTH WEST COMMISSIONING REGION | C147: QYG | D147: Cheshire and Merseyside STP | E147: RBT | F147: MID CHESHIRE HOSPITALS NHS FOUNDATION TRUST | G147: Acute and Acute & Community Trusts | H147: 204 | I147: 4300 | J147: 7.144607843 | K147: 5 | L147: 8 | M147: 29 | N147: 97 | O147: 65 | P147: 4 | Q147: 17 | R147: 53 | S147: 86 | T147: 44 | U147: 3 | V147: 15 | W147: 44 | X147: 96 | Y147: 46
A148: Y62 | B148: NORTH WEST COMMISSIONING REGION | C148: QOP | D148: Greater Manchester Health & Social Care Partnership | E148: RBV | F148: THE CHRISTIE NHS FOUNDATION TRUST | G148: Acute Specialist Trusts | H148: 107 | I148: 2962 | J148: 7.570093458 | K148: 3 | L148: 2 | M148: 13 | N148: 36 | O148: 53 | P148: 10 | Q148: 15 | R148: 15 | S148: 45 | T148: 22 | U148: 2 | V148: 2 | W148: 11 | X148: 36 | Y148: 56
A149: Y62 | B149: NORTH WEST COMMISSIONING REGION | C149: QYG | D149: Cheshire and Merseyside STP | E149: REM | F149: LIVERPOOL UNIVERSITY HOSPITALS NHS FOUNDATION TRUST | G149: Acute and Acute & Community Trusts | H149: 2055 | I149: 12104 | J149: 6.555961071 | K149: 42 | L149: 157 | M149: 374 | N149: 949 | O149: 536 | P149: 129 | Q149: 315 | R149: 576 | S149: 792 | T149: 244 | U149: 58 | V149: 174 | W149: 517 | X149: 980 | Y149: 326
A150: Y62 | B150: NORTH WEST COMMISSIONING REGION | C150: QYG | D150: Cheshire and Merseyside STP | E150: REN | F150: THE CLATTERBRIDGE CANCER CENTRE NHS FOUNDATION TRUST | G150: Acute Specialist Trusts | H150: 228 | I150: 1451 | J150: 7.394005848 | K150: 5 | L150: 14 | M150: 34 | N150: 80 | O150: 95 | P150: 14 | Q150: 30 | R150: 50 | S150: 77 | T150: 57 | U150: 3 | V150: 8 | W150: 20 | X150: 104 | Y150: 93
A151: Y62 | B151: NORTH WEST COMMISSIONING REGION | C151: QYG | D151: Cheshire and Merseyside STP | E151: REP | F151: LIVERPOOL WOMEN'S NHS FOUNDATION TRUST | G151: Acute Specialist Trusts | H151: 186 | I151: 1405 | J151: 6.366487455 | K151: 5 | L151: 17 | M151: 29 | N151: 90 | O151: 47 | P151: 24 | Q151: 31 | R151: 48 | S151: 57 | T151: 27 | U151: 10 | V151: 23 | W151: 37 | X151: 79 | Y151: 37
A152: Y62 | B152: NORTH WEST COMMISSIONING REGION | C152: QYG | D152: Cheshire and Merseyside STP | E152: RET | F152: THE WALTON CENTRE NHS FOUNDATION TRUST | G152: Acute Specialist Trusts | H152: 106 | I152: 1347 | J152: 7.720125786 | K152: 2 | L152: 4 | M152: 12 | N152: 38 | O152: 50 | P152: 8 | Q152: 12 | R152: 19 | S152: 31 | T152: 36 | U152: 1 | V152: 2 | W152: 11 | X152: 39 | Y152: 53
A153: Y62 | B153: NORTH WEST COMMISSIONING REGION | C153: QYG | D153: Cheshire and Merseyside STP | E153: RJN | F153: EAST CHESHIRE NHS TRUST | G153: Acute and Acute & Community Trusts | H153: 122 | I153: 2167 | J153: 6.482240437 | K153: 6 | L153: 7 | M153: 24 | N153: 52 | O153: 33 | P153: 8 | Q153: 16 | R153: 36 | S153: 43 | T153: 19 | U153: 5 | V153: 14 | W153: 32 | X153: 49 | Y153: 22
A154: Y62 | B154: NORTH WEST COMMISSIONING REGION | C154: QYG | D154: Cheshire and Merseyside STP | E154: RJR | F154: COUNTESS OF CHESTER HOSPITAL NHS FOUNDATION TRUST | G154: Acute and Acute & Community Trusts | H154: 263 | I154: 3819 | J154: 5.884030418 | K154: 11 | L154: 28 | M154: 52 | N154: 120 | O154: 52 | P154: 27 | Q154: 52 | R154: 83 | S154: 82 | T154: 20 | U154: 18 | V154: 44 | W154: 68 | X154: 103 | Y154: 31
A155: Y62 | B155: NORTH WEST COMMISSIONING REGION | C155: QOP | D155: Greater Manchester Health & Social Care Partnership | E155: RM3 | F155: NORTHERN CARE ALLIANCE NHS FOUNDATION TRUST | G155: Acute and Acute & Community Trusts | H155: 2263 | I155: 17028 | J155: 6.586757991 | K155: 84 | L155: 155 | M155: 403 | N155: 990 | O155: 634 | P155: 191 | Q155: 318 | R155: 588 | S155: 802 | T155: 364 | U155: 82 | V155: 186 | W155: 545 | X155: 1020 | Y155: 432
A156: Y62 | B156: NORTH WEST COMMISSIONING REGION | C156: QOP | D156: Greater Manchester Health & Social Care Partnership | E156: RMC | F156: BOLTON NHS FOUNDATION TRUST | G156: Acute and Acute & Community Trusts | H156: 1089 | I156: 5533 | J156: 7.000306091 | K156: 28 | L156: 46 | M156: 118 | N156: 438 | O156: 459 | P156: 57 | Q156: 110 | R156: 252 | S156: 525 | T156: 145 | U156: 35 | V156: 70 | W156: 235 | X156: 589 | Y156: 160
A157: Y62 | B157: NORTH WEST COMMISSIONING REGION | C157: QOP | D157: Greater Manchester Health & Social Care Partnership | E157: RMP | F157: TAMESIDE AND GLOSSOP INTEGRATED CARE NHS FOUNDATION TRUST | G157: Acute and Acute & Community Trusts | H157: 78 | I157: 3584 | J157: 5.16025641 | K157: 9 | L157: 13 | M157: 15 | N157: 28 | O157: 13 | P157: 18 | Q157: 16 | R157: 16 | S157: 17 | T157: 11 | U157: 14 | V157: 13 | W157: 15 | X157: 26 | Y157: 10
A158: Y62 | B158: NORTH WEST COMMISSIONING REGION | C158: QOP | D158: Greater Manchester Health & Social Care Partnership | E158: RRF | F158: WRIGHTINGTON, WIGAN AND LEIGH NHS FOUNDATION TRUST | G158: Acute and Acute & Community Trusts | H158: 159 | I158: 5754 | J158: 6.194968553 | K158: 8 | L158: 14 | M158: 26 | N158: 74 | O158: 37 | P158: 18 | Q158: 19 | R158: 46 | S158: 52 | T158: 24 | U158: 14 | V158: 19 | W158: 38 | X158: 64 | Y158: 24
A159: Y62 | B159: NORTH WEST COMMISSIONING REGION | C159: QOP | D159: Greater Manchester Health & Social Care Partnership | E159: RT2 | F159: PENNINE CARE NHS FOUNDATION TRUST | G159: Mental Health & Learning Disability and Mental Health, Learning Disability & Community Trusts | H159: 231 | I159: 3145 | J159: 5.937950938 | K159: 5 | L159: 28 | M159: 54 | N159: 103 | O159: 41 | P159: 23 | Q159: 42 | R159: 55 | S159: 85 | T159: 26 | U159: 17 | V159: 33 | W159: 79 | X159: 73 | Y159: 29
A160: Y62 | B160: NORTH WEST COMMISSIONING REGION | C160: QE1 | D160: Healthier Lancashire and South Cumbria | E160: RTX | F160: UNIVERSITY HOSPITALS OF MORECAMBE BAY NHS FOUNDATION TRUST | G160: Acute and Acute & Community Trusts | H160: 199 | I160: 6070 | J160: 5.125628141 | K160: 22 | L160: 26 | M160: 54 | N160: 63 | O160: 34 | P160: 29 | Q160: 41 | R160: 66 | S160: 46 | T160: 17 | U160: 25 | V160: 39 | W160: 68 | X160: 57 | Y160: 10
A161: Y62 | B161: NORTH WEST COMMISSIONING REGION | C161: QYG | D161: Cheshire and Merseyside STP | E161: RVY | F161: SOUTHPORT AND ORMSKIRK HOSPITAL NHS TRUST | G161: Acute and Acute & Community Trusts | H161: 329 | I161: 2861 | J161: 6.030901722 | K161: 12 | L161: 40 | M161: 68 | N161: 150 | O161: 59 | P161: 25 | Q161: 56 | R161: 87 | S161: 119 | T161: 44 | U161: 24 | V161: 60 | W161: 84 | X161: 128 | Y161: 36
A162: Y62 | B162: NORTH WEST COMMISSIONING REGION | C162: QYG | D162: Cheshire and Merseyside STP | E162: RW4 | F162: MERSEY CARE NHS FOUNDATION TRUST | G162: Mental Health & Learning Disability and Mental Health, Learning Disability & Community Trusts | H162: 2346 | I162: 9735 | J162: 6.983518045 | K162: 50 | L162: 141 | M162: 353 | N162: 1043 | O162: 759 | P162: 130 | Q162: 261 | R162: 549 | S162: 913 | T162: 496 | U162: 80 | V162: 154 | W162: 475 | X162: 1086 | Y162: 551
A163: Y62 | B163: NORTH WEST COMMISSIONING REGION | C163: QE1 | D163: Healthier Lancashire and South Cumbria | E163: RW5 | F163: LANCASHIRE & SOUTH CUMBRIA NHS FOUNDATION TRUST | G163: Mental Health & Learning Disability and Mental Health, Learning Disability & Community Trusts | H163: 1058 | I163: 6159 | J163: 6.973850032 | K163: 28 | L163: 103 | M163: 218 | N163: 558 | O163: 218 | P163: 53 | Q163: 118 | R163: 224 | S163: 480 | T163: 183 | U163: 24 | V163: 84 | W163: 281 | X163: 571 | Y163: 168
A164: Y62 | B164: NORTH WEST COMMISSIONING REGION | C164: QOP | D164: Greater Manchester Health & Social Care Partnership | E164: RWJ | F164: STOCKPORT NHS FOUNDATION TRUST | G164: Acute and Acute & Community Trusts | H164: 87 | I164: 4993 | J164: 5.04789272 | K164: 9 | L164: 12 | M164: 19 | N164: 35 | O164: 12 | P164: 19 | Q164: 20 | R164: 20 | S164: 24 | T164: 4 | U164: 10 | V164: 16 | W164: 27 | X164: 30 | Y164: 4
A165: Y62 | B165: NORTH WEST COMMISSIONING REGION | C165: QYG | D165: Cheshire and Merseyside STP | E165: RWW | F165: WARRINGTON AND HALTON TEACHING HOSPITALS NHS FOUNDATION TRUST | G165: Acute and Acute & Community Trusts | H165: 51 | I165: 3876 | J165: 6.12745098 | K165: 4 | L165: 5 | M165: 7 | N165: 22 | O165: 13 | P165: 2 | Q165: 7 | R165: 17 | S165: 23 | T165: 2 | U165: 4 | V165: 4 | W165: 15 | X165: 26 | Y165: 2
A166: Y62 | B166: NORTH WEST COMMISSIONING REGION | C166: QOP | D166: Greater Manchester Health & Social Care Partnership | E166: RX7 | F166: NORTH WEST AMBULANCE SERVICE NHS TRUST | G166: Ambulance Trusts | H166: 1350 | I166: 6258 | J166: 6.364814815 | K166: 73 | L166: 191 | M166: 226 | N166: 533 | O166: 327 | P166: 109 | Q166: 228 | R166: 330 | S166: 490 | T166: 194 | U166: 51 | V166: 124 | W166: 275 | X166: 651 | Y166: 250
A167: Y62 | B167: NORTH WEST COMMISSIONING REGION | C167: QYG | D167: Cheshire and Merseyside STP | E167: RXA | F167: CHESHIRE AND WIRRAL PARTNERSHIP NHS FOUNDATION TRUST | G167: Mental Health & Learning Disability and Mental Health, Learning Disability & Community Trusts | H167: 793 | I167: 3383 | J167: 7.207860446 | K167: 13 | L167: 34 | M167: 111 | N167: 359 | O167: 276 | P167: 33 | Q167: 54 | R167: 180 | S167: 348 | T167: 179 | U167: 13 | V167: 51 | W167: 161 | X167: 397 | Y167: 171
A168: Y62 | B168: NORTH WEST COMMISSIONING REGION | C168: QE1 | D168: Healthier Lancashire and South Cumbria | E168: RXL | F168: BLACKPOOL TEACHING HOSPITALS NHS FOUNDATION TRUST | G168: Acute and Acute & Community Trusts | H168: 539 | I168: 6870 | J168: 6.437847866 | K168: 21 | L168: 39 | M168: 104 | N168: 244 | O168: 131 | P168: 34 | Q168: 66 | R168: 123 | S168: 239 | T168: 77 | U168: 37 | V168: 60 | W168: 142 | X168: 220 | Y168: 80
A169: Y62 | B169: NORTH WEST COMMISSIONING REGION | C169: QE1 | D169: Healthier Lancashire and South Cumbria | E169: RXN | F169: LANCASHIRE TEACHING HOSPITALS NHS FOUNDATION TRUST | G169: Acute and Acute & Community Trusts | H169: 1723 | I169: 8078 | J169: 6.663281099 | K169: 43 | L169: 140 | M169: 266 | N169: 748 | O169: 528 | P169: 95 | Q169: 219 | R169: 449 | S169: 689 | T169: 271 | U169: 67 | V169: 180 | W169: 408 | X169: 791 | Y169: 278
A170: Y62 | B170: NORTH WEST COMMISSIONING REGION | C170: QE1 | D170: Healthier Lancashire and South Cumbria | E170: RXR | F170: EAST LANCASHIRE HOSPITALS NHS TRUST | G170: Acute and Acute & Community Trusts | H170: 95 | I170: 8472 | J170: 6.385964912 | K170: 5 | L170: 7 | M170: 5 | N170: 49 | O170: 29 | P170: 9 | Q170: 16 | R170: 24 | S170: 32 | T170: 14 | U170: 3 | V170: 13 | W170: 28 | X170: 41 | Y170: 10
A171: Y62 | B171: NORTH WEST COMMISSIONING REGION | C171: QOP | D171: Greater Manchester Health & Social Care Partnership | E171: RXV | F171: GREATER MANCHESTER MENTAL HEALTH NHS FOUNDATION TRUST | G171: Mental Health & Learning Disability and Mental Health, Learning Disability & Community Trusts | H171: 1249 | I171: 5688 | J171: 6.489858554 | K171: 46 | L171: 114 | M171: 215 | N171: 531 | O171: 347 | P171: 86 | Q171: 153 | R171: 307 | S171: 479 | T171: 224 | U171: 88 | V171: 144 | W171: 318 | X171: 490 | Y171: 213
A172: Y62 | B172: NORTH WEST COMMISSIONING REGION | C172: QYG | D172: Cheshire and Merseyside STP | E172: RY2 | F172: BRIDGEWATER COMMUNITY HEALTHCARE NHS FOUNDATION TRUST | G172: Community Trusts | H172: 296 | I172: 1423 | J172: 6.776463964 | K172: 8 | L172: 25 | M172: 45 | N172: 118 | O172: 100 | P172: 33 | Q172: 47 | R172: 67 | S172: 97 | T172: 52 | U172: 11 | V172: 12 | W172: 47 | X172: 152 | Y172: 74
A173: Y62 | B173: NORTH WEST COMMISSIONING REGION | C173: QYG | D173: Cheshire and Merseyside STP | E173: RY7 | F173: WIRRAL COMMUNITY HEALTH AND CARE NHS FOUNDATION TRUST | G173: Community Trusts | H173: 137 | I173: 1514 | J173: 6.861313869 | K173: 2 | L173: 12 | M173: 22 | N173: 56 | O173: 45 | P173: 6 | Q173: 19 | R173: 41 | S173: 44 | T173: 27 | U173: 2 | V173: 11 | W173: 34 | X173: 56 | Y173: 34
A174: Y63 | B174: NORTH EAST AND YORKSHIRE COMMISSIONING REGION | C174: QHM | D174: Cumbria and North East STP | E174: R0B | F174: SOUTH TYNESIDE AND SUNDERLAND NHS FOUNDATION TRUST | G174: Acute and Acute & Community Trusts | H174: 131 | I174: 7669 | J174: 5.24173028 | K174: 10 | L174: 17 | M174: 33 | N174: 46 | O174: 25 | P174: 28 | Q174: 28 | R174: 32 | S174: 29 | T174: 14 | U174: 18 | V174: 21 | W174: 38 | X174: 45 | Y174: 9
